Workbook

Sheet Library (hidden)
A1: 274 | B1: YPD | C1: INC-A | D1: INC-B | E1: INC-C | F1: REL-A | G1: REL-B | H1: REL-C | I1: SLR | J1: CBC | K1: WFP | L1: MAT | M1: FIN | N1: AOI-A | O1: AOI-B | P1: AOI-C | Q1: ASE-A | R1: ASE-B | S1: ASE-C | T1: AOR | U1: MCA | V1: AIL | W1: Emp-A | X1: Emp-B | Y1: MOR | Z1: SSE | AA1: FSE | AB1: LUN | AC1: SPS | AD1: FPS | AE1: NI2 | AF1: NI1 | AG1: NIC2Vol | AH1: NicEx | AI1: PRO | AJ1: FOR | AK1: TCR | AL1: TRU | AM1: CGT | AN1: NRD | AO1: CAL
A2: 1 | B2: 2 | C2: 2 | D2: 1 | E2: 1 | F2: 2 | G2: 1 | H2: 1 | I2: 1 | J2: 1 | K2: 2 | L2: 2 | M2: 1 | N2: 1 | O2: 1 | P2: 1 | Q2: 1 | R2: 1 | S2: 1 | T2: 1 | U2: 1 | V2: 1 | W2: 1 | X2: 1 | Y2: 1 | Z2: 1 | AA2: 1 | AB2: 1 | AC2: 1 | AD2: 1 | AE2: 1 | AF2: 1 | AG2: 1 | AH2: 1 | AI2: 2 | AJ2: 1 | AK2: 1 | AL2: 1 | AM2: 1 | AN2: 1 | AO2: 1
A3: 2 | B3: 3 | C3: 3 | D3: 1 | E3: 1 | F3: 1 | G3: 1 | H3: 1 | I3: 1 | J3: 1 | K3: 3 | L3: 3 | M3: 1 | N3: 1 | O3: 1 | P3: 1 | Q3: 1 | R3: 1 | S3: 1 | T3: 1 | U3: 1 | V3: 1 | W3: 3 | X3: 1 | Y3: 1 | Z3: 1 | AA3: 1 | AB3: 1 | AC3: 1 | AD3: 1 | AE3: 1 | AF3: 3 | AG3: 1 | AH3: 1 | AI3: 3 | AJ3: 1 | AK3: 1 | AL3: 1 | AM3: 1 | AN3: 1 | AO3: 3
A4: 3 | B4: 4 | C4: 4 | D4: 1 | E4: 1 | F4: 4 | G4: 4 | H4: 1 | I4: 1 | J4: 1 | K4: 1 | L4: 4 | M4: 4 | N4: 1 | O4: 1 | P4: 1 | Q4: 1 | R4: 1 | S4: 1 | T4: 1 | U4: 1 | V4: 1 | W4: 4 | X4: 1 | Y4: 1 | Z4: 1 | AA4: 4 | AB4: 1 | AC4: 1 | AD4: 1 | AE4: 4 | AF4: 4 | AG4: 1 | AH4: 1 | AI4: 1 | AJ4: 1 | AK4: 1 | AL4: 1 | AM4: 1 | AN4: 1 | AO4: 4
A5: 4 | B5: 5 | C5: 5 | D5: 1 | E5: 1 | F5: 1 | G5: 1 | H5: 1 | I5: 5 | J5: 1 | K5: 1 | L5: 1 | M5: 1 | N5: 1 | O5: 1 | P5: 1 | Q5: 1 | R5: 1 | S5: 1 | T5: 1 | U5: 1 | V5: 1 | W5: 5 | X5: 1 | Y5: 1 | Z5: 1 | AA5: 1 | AB5: 1 | AC5: 1 | AD5: 1 | AE5: 1 | AF5: 5 | AG5: 1 | AH5: 1 | AI5: 1 | AJ5: 1 | AK5: 1 | AL5: 1 | AM5: 1 | AN5: 1 | AO5: 1
A6: 5 | B6: 6 | C6: 6 | D6: 1 | E6: 1 | F6: 1 | G6: 1 | H6: 1 | I6: 1 | J6: 1 | K6: 1 | L6: 6 | M6: 1 | N6: 1 | O6: 1 | P6: 1 | Q6: 1 | R6: 1 | S6: 1 | T6: 1 | U6: 1 | V6: 1 | W6: 1 | X6: 1 | Y6: 1 | Z6: 1 | AA6: 6 | AB6: 1 | AC6: 1 | AD6: 1 | AE6: 6 | AF6: 1 | AG6: 1 | AH6: 1 | AI6: 1 | AJ6: 1 | AK6: 1 | AL6: 1 | AM6: 1 | AN6: 1 | AO6: 1
A7: 6 | B7: 7 | C7: 7 | D7: 7 | E7: 1 | F7: 1 | G7: 1 | H7: 1 | I7: 1 | J7: 1 | K7: 1 | L7: 7 | M7: 1 | N7: 1 | O7: 1 | P7: 1 | Q7: 1 | R7: 1 | S7: 1 | T7: 1 | U7: 1 | V7: 1 | W7: 1 | X7: 1 | Y7: 1 | Z7: 1 | AA7: 1 | AB7: 1 | AC7: 1 | AD7: 1 | AE7: 1 | AF7: 1 | AG7: 1 | AH7: 7 | AI7: 1 | AJ7: 1 | AK7: 1 | AL7: 1 | AM7: 1 | AN7: 1 | AO7: 1
A8: 7 | B8: 8 | C8: 1 | D8: 8 | E8: 1 | F8: 1 | G8: 1 | H8: 1 | I8: 1 | J8: 1 | K8: 1 | L8: 1 | M8: 1 | N8: 1 | O8: 1 | P8: 1 | Q8: 1 | R8: 1 | S8: 1 | T8: 1 | U8: 8 | V8: 1 | W8: 8 | X8: 1 | Y8: 1 | Z8: 1 | AA8: 1 | AB8: 1 | AC8: 1 | AD8: 1 | AE8: 1 | AF8: 8 | AG8: 1 | AH8: 8 | AI8: 1 | AJ8: 1 | AK8: 1 | AL8: 1 | AM8: 1 | AN8: 1 | AO8: 1
A9: 8 | B9: 9 | C9: 9 | D9: 9 | E9: 1 | F9: 1 | G9: 9 | H9: 1 | I9: 1 | J9: 1 | K9: 1 | L9: 1 | M9: 1 | N9: 1 | O9: 1 | P9: 1 | Q9: 1 | R9: 1 | S9: 1 | T9: 1 | U9: 9 | V9: 1 | W9: 1 | X9: 1 | Y9: 1 | Z9: 1 | AA9: 9 | AB9: 1 | AC9: 1 | AD9: 1 | AE9: 1 | AF9: 1 | AG9: 1 | AH9: 9 | AI9: 1 | AJ9: 1 | AK9: 1 | AL9: 1 | AM9: 1 | AN9: 1 | AO9: 1
A10: 9 | B10: 10 | C10: 10 | D10: 1 | E10: 10 | F10: 1 | G10: 10 | H10: 1 | I10: 10 | J10: 1 | K10: 1 | L10: 1 | M10: 1 | N10: 1 | O10: 1 | P10: 1 | Q10: 1 | R10: 1 | S10: 1 | T10: 1 | U10: 1 | V10: 1 | W10: 1 | X10: 1 | Y10: 1 | Z10: 10 | AA10: 1 | AB10: 1 | AC10: 1 | AD10: 1 | AE10: 10 | AF10: 1 | AG10: 10 | AH10: 1 | AI10: 10 | AJ10: 1 | AK10: 1 | AL10: 1 | AM10: 1 | AN10: 1 | AO10: 1
A11: 10 | B11: 11 | C11: 11 | D11: 11 | E11: 1 | F11: 1 | G11: 11 | H11: 1 | I11: 1 | J11: 1 | K11: 1 | L11: 1 | M11: 1 | N11: 1 | O11: 1 | P11: 1 | Q11: 1 | R11: 1 | S11: 1 | T11: 1 | U11: 1 | V11: 1 | W11: 1 | X11: 1 | Y11: 1 | Z11: 1 | AA11: 1 | AB11: 1 | AC11: 1 | AD11: 1 | AE11: 1 | AF11: 1 | AG11: 1 | AH11: 1 | AI11: 1 | AJ11: 1 | AK11: 1 | AL11: 1 | AM11: 1 | AN11: 1 | AO11: 1
A12: 11 | B12: 12 | C12: 12 | D12: 12 | E12: 1 | F12: 12 | G12: 12 | H12: 1 | I12: 1 | J12: 1 | K12: 1 | L12: 1 | M12: 1 | N12: 1 | O12: 1 | P12: 1 | Q12: 1 | R12: 1 | S12: 1 | T12: 1 | U12: 1 | V12: 1 | W12: 12 | X12: 1 | Y12: 1 | Z12: 1 | AA12: 1 | AB12: 1 | AC12: 1 | AD12: 1 | AE12: 1 | AF12: 12 | AG12: 1 | AH12: 12 | AI12: 12 | AJ12: 1 | AK12: 1 | AL12: 1 | AM12: 1 | AN12: 1 | AO12: 1
A13: 12 | B13: 13 | C13: 13 | D13: 13 | E13: 13 | F13: 1 | G13: 1 | H13: 1 | I13: 1 | J13: 1 | K13: 1 | L13: 1 | M13: 1 | N13: 1 | O13: 1 | P13: 1 | Q13: 1 | R13: 1 | S13: 1 | T13: 1 | U13: 1 | V13: 1 | W13: 1 | X13: 1 | Y13: 1 | Z13: 1 | AA13: 1 | AB13: 1 | AC13: 1 | AD13: 1 | AE13: 1 | AF13: 1 | AG13: 1 | AH13: 1 | AI13: 1 | AJ13: 1 | AK13: 1 | AL13: 1 | AM13: 1 | AN13: 1 | AO13: 1
A14: 13 | B14: 14 | C14: 14 | D14: 14 | E14: 14 | F14: 1 | G14: 14 | H14: 1 | I14: 1 | J14: 1 | K14: 1 | L14: 1 | M14: 14 | N14: 1 | O14: 1 | P14: 1 | Q14: 1 | R14: 1 | S14: 1 | T14: 1 | U14: 14 | V14: 1 | W14: 14 | X14: 1 | Y14: 1 | Z14: 14 | AA14: 14 | AB14: 1 | AC14: 1 | AD14: 1 | AE14: 1 | AF14: 14 | AG14: 1 | AH14: 14 | AI14: 14 | AJ14: 1 | AK14: 1 | AL14: 1 | AM14: 1 | AN14: 1 | AO14: 14
A15: 14 | B15: 15 | C15: 15 | D15: 1 | E15: 1 | F15: 1 | G15: 1 | H15: 1 | I15: 15 | J15: 1 | K15: 1 | L15: 1 | M15: 1 | N15: 1 | O15: 1 | P15: 1 | Q15: 1 | R15: 1 | S15: 1 | T15: 1 | U15: 1 | V15: 1 | W15: 15 | X15: 1 | Y15: 1 | Z15: 1 | AA15: 1 | AB15: 1 | AC15: 1 | AD15: 1 | AE15: 1 | AF15: 15 | AG15: 1 | AH15: 1 | AI15: 1 | AJ15: 1 | AK15: 1 | AL15: 1 | AM15: 1 | AN15: 1 | AO15: 1
A16: 15 | B16: 16 | C16: 16 | D16: 1 | E16: 1 | F16: 1 | G16: 1 | H16: 1 | I16: 16 | J16: 1 | K16: 1 | L16: 16 | M16: 1 | N16: 1 | O16: 1 | P16: 1 | Q16: 1 | R16: 1 | S16: 1 | T16: 1 | U16: 1 | V16: 1 | W16: 1 | X16: 1 | Y16: 1 | Z16: 1 | AA16: 16 | AB16: 1 | AC16: 1 | AD16: 1 | AE16: 16 | AF16: 1 | AG16: 1 | AH16: 1 | AI16: 1 | AJ16: 1 | AK16: 1 | AL16: 1 | AM16: 1 | AN16: 1 | AO16: 1
A17: 16 | B17: 17 | C17: 17 | D17: 17 | E17: 1 | F17: 1 | G17: 1 | H17: 1 | I17: 1 | J17: 1 | K17: 1 | L17: 1 | M17: 1 | N17: 1 | O17: 1 | P17: 1 | Q17: 1 | R17: 1 | S17: 1 | T17: 1 | U17: 1 | V17: 1 | W17: 1 | X17: 1 | Y17: 1 | Z17: 1 | AA17: 1 | AB17: 1 | AC17: 1 | AD17: 1 | AE17: 1 | AF17: 1 | AG17: 1 | AH17: 1 | AI17: 17 | AJ17: 1 | AK17: 1 | AL17: 1 | AM17: 1 | AN17: 1 | AO17: 1
A18: 17 | B18: 18 | C18: 18 | D18: 1 | E18: 1 | F18: 18 | G18: 1 | H18: 1 | I18: 18 | J18: 1 | K18: 1 | L18: 1 | M18: 1 | N18: 1 | O18: 1 | P18: 1 | Q18: 1 | R18: 1 | S18: 1 | T18: 1 | U18: 1 | V18: 1 | W18: 18 | X18: 1 | Y18: 1 | Z18: 1 | AA18: 1 | AB18: 1 | AC18: 1 | AD18: 1 | AE18: 1 | AF18: 18 | AG18: 1 | AH18: 1 | AI18: 18 | AJ18: 1 | AK18: 1 | AL18: 1 | AM18: 1 | AN18: 1 | AO18: 18
A19: 18 | B19: 19 | C19: 19 | D19: 1 | E19: 1 | F19: 1 | G19: 1 | H19: 1 | I19: 1 | J19: 1 | K19: 1 | L19: 1 | M19: 1 | N19: 1 | O19: 1 | P19: 1 | Q19: 1 | R19: 1 | S19: 1 | T19: 1 | U19: 1 | V19: 1 | W19: 19 | X19: 1 | Y19: 1 | Z19: 1 | AA19: 1 | AB19: 1 | AC19: 1 | AD19: 1 | AE19: 1 | AF19: 19 | AG19: 1 | AH19: 1 | AI19: 1 | AJ19: 1 | AK19: 1 | AL19: 1 | AM19: 1 | AN19: 1 | AO19: 19
A20: 19 | B20: 20 | C20: 20 | D20: 1 | E20: 1 | F20: 1 | G20: 20 | H20: 1 | I20: 1 | J20: 1 | K20: 1 | L20: 1 | M20: 1 | N20: 1 | O20: 1 | P20: 1 | Q20: 1 | R20: 1 | S20: 1 | T20: 1 | U20: 1 | V20: 1 | W20: 20 | X20: 1 | Y20: 1 | Z20: 1 | AA20: 1 | AB20: 1 | AC20: 1 | AD20: 1 | AE20: 1 | AF20: 20 | AG20: 1 | AH20: 1 | AI20: 1 | AJ20: 1 | AK20: 1 | AL20: 1 | AM20: 1 | AN20: 1 | AO20: 1
A21: 20 | B21: 21 | C21: 21 | D21: 1 | E21: 1 | F21: 21 | G21: 1 | H21: 1 | I21: 1 | J21: 1 | K21: 1 | L21: 21 | M21: 1 | N21: 1 | O21: 1 | P21: 1 | Q21: 1 | R21: 1 | S21: 1 | T21: 1 | U21: 1 | V21: 1 | W21: 21 | X21: 1 | Y21: 1 | Z21: 1 | AA21: 1 | AB21: 1 | AC21: 1 | AD21: 1 | AE21: 1 | AF21: 1 | AG21: 1 | AH21: 1 | AI21: 1 | AJ21: 1 | AK21: 1 | AL21: 1 | AM21: 1 | AN21: 1 | AO21: 1
A22: 21 | B22: 22 | C22: 22 | D22: 1 | E22: 1 | F22: 1 | G22: 1 | H22: 1 | I22: 22 | J22: 1 | K22: 1 | L22: 1 | M22: 1 | N22: 1 | O22: 1 | P22: 1 | Q22: 1 | R22: 1 | S22: 1 | T22: 1 | U22: 1 | V22: 1 | W22: 22 | X22: 1 | Y22: 1 | Z22: 1 | AA22: 1 | AB22: 1 | AC22: 1 | AD22: 1 | AE22: 1 | AF22: 22 | AG22: 1 | AH22: 1 | AI22: 1 | AJ22: 1 | AK22: 1 | AL22: 1 | AM22: 1 | AN22: 1 | AO22: 1
A23: 22 | B23: 23 | C23: 23 | D23: 1 | E23: 23 | F23: 23 | G23: 23 | H23: 1 | I23: 1 | J23: 1 | K23: 1 | L23: 1 | M23: 1 | N23: 1 | O23: 1 | P23: 1 | Q23: 1 | R23: 1 | S23: 1 | T23: 1 | U23: 1 | V23: 1 | W23: 23 | X23: 1 | Y23: 1 | Z23: 23 | AA23: 1 | AB23: 1 | AC23: 1 | AD23: 1 | AE23: 23 | AF23: 23 | AG23: 1 | AH23: 1 | AI23: 23 | AJ23: 1 | AK23: 1 | AL23: 1 | AM23: 1 | AN23: 1 | AO23: 1
A24: 23 | B24: 24 | C24: 24 | D24: 1 | E24: 1 | F24: 24 | G24: 1 | H24: 1 | I24: 1 | J24: 1 | K24: 1 | L24: 24 | M24: 1 | N24: 1 | O24: 1 | P24: 1 | Q24: 1 | R24: 1 | S24: 1 | T24: 1 | U24: 1 | V24: 1 | W24: 24 | X24: 1 | Y24: 1 | Z24: 1 | AA24: 24 | AB24: 1 | AC24: 1 | AD24: 1 | AE24: 24 | AF24: 1 | AG24: 1 | AH24: 1 | AI24: 24 | AJ24: 1 | AK24: 1 | AL24: 1 | AM24: 1 | AN24: 1 | AO24: 24
A25: 24 | B25: 25 | C25: 25 | D25: 25 | E25: 25 | F25: 1 | G25: 1 | H25: 25 | I25: 1 | J25: 1 | K25: 1 | L25: 1 | M25: 1 | N25: 1 | O25: 1 | P25: 1 | Q25: 1 | R25: 1 | S25: 1 | T25: 1 | U25: 1 | V25: 1 | W25: 1 | X25: 1 | Y25: 1 | Z25: 1 | AA25: 1 | AB25: 1 | AC25: 1 | AD25: 1 | AE25: 1 | AF25: 1 | AG25: 1 | AH25: 1 | AI25: 1 | AJ25: 1 | AK25: 1 | AL25: 1 | AM25: 1 | AN25: 1 | AO25: 1
A26: 25 | B26: 26 | C26: 26 | D26: 26 | E26: 26 | F26: 1 | G26: 1 | H26: 1 | I26: 1 | J26: 1 | K26: 1 | L26: 26 | M26: 1 | N26: 1 | O26: 1 | P26: 1 | Q26: 1 | R26: 1 | S26: 1 | T26: 1 | U26: 1 | V26: 1 | W26: 26 | X26: 1 | Y26: 1 | Z26: 26 | AA26: 26 | AB26: 1 | AC26: 1 | AD26: 1 | AE26: 26 | AF26: 26 | AG26: 1 | AH26: 1 | AI26: 26 | AJ26: 1 | AK26: 1 | AL26: 1 | AM26: 1 | AN26: 1 | AO26: 1
A27: 26 | B27: 27 | C27: 27 | D27: 1 | E27: 1 | F27: 1 | G27: 27 | H27: 1 | I27: 1 | J27: 1 | K27: 1 | L27: 27 | M27: 1 | N27: 1 | O27: 1 | P27: 1 | Q27: 1 | R27: 1 | S27: 1 | T27: 1 | U27: 1 | V27: 1 | W27: 27 | X27: 1 | Y27: 1 | Z27: 1 | AA27: 1 | AB27: 1 | AC27: 1 | AD27: 1 | AE27: 1 | AF27: 27 | AG27: 1 | AH27: 1 | AI27: 1 | AJ27: 1 | AK27: 1 | AL27: 1 | AM27: 1 | AN27: 1 | AO27: 1
A28: 27 | B28: 28 | C28: 28 | D28: 1 | E28: 1 | F28: 1 | G28: 28 | H28: 28 | I28: 1 | J28: 1 | K28: 1 | L28: 28 | M28: 1 | N28: 1 | O28: 1 | P28: 1 | Q28: 1 | R28: 1 | S28: 1 | T28: 1 | U28: 1 | V28: 1 | W28: 28 | X28: 1 | Y28: 1 | Z28: 1 | AA28: 28 | AB28: 1 | AC28: 1 | AD28: 1 | AE28: 28 | AF28: 28 | AG28: 1 | AH28: 1 | AI28: 28 | AJ28: 1 | AK28: 1 | AL28: 1 | AM28: 1 | AN28: 1 | AO28: 1
A29: 28 | B29: 29 | C29: 29 | D29: 29 | E29: 1 | F29: 1 | G29: 29 | H29: 1 | I29: 1 | J29: 1 | K29: 1 | L29: 1 | M29: 1 | N29: 1 | O29: 1 | P29: 1 | Q29: 1 | R29: 1 | S29: 1 | T29: 1 | U29: 1 | V29: 1 | W29: 1 | X29: 1 | Y29: 1 | Z29: 1 | AA29: 1 | AB29: 1 | AC29: 1 | AD29: 1 | AE29: 1 | AF29: 1 | AG29: 1 | AH29: 1 | AI29: 1 | AJ29: 1 | AK29: 1 | AL29: 1 | AM29: 1 | AN29: 1 | AO29: 1
A30: 29 | B30: 30 | C30: 30 | D30: 1 | E30: 30 | F30: 30 | G30: 1 | H30: 1 | I30: 30 | J30: 1 | K30: 1 | L30: 1 | M30: 1 | N30: 1 | O30: 1 | P30: 1 | Q30: 1 | R30: 1 | S30: 1 | T30: 1 | U30: 1 | V30: 1 | W30: 30 | X30: 1 | Y30: 1 | Z30: 1 | AA30: 1 | AB30: 1 | AC30: 1 | AD30: 1 | AE30: 1 | AF30: 30 | AG30: 1 | AH30: 1 | AI30: 1 | AJ30: 1 | AK30: 1 | AL30: 1 | AM30: 1 | AN30: 1 | AO30: 1
A31: 30 | B31: 31 | C31: 31 | D31: 1 | E31: 1 | F31: 31 | G31: 1 | H31: 1 | I31: 1 | J31: 1 | K31: 1 | L31: 1 | M31: 1 | N31: 1 | O31: 1 | P31: 1 | Q31: 1 | R31: 1 | S31: 1 | T31: 1 | U31: 1 | V31: 1 | W31: 31 | X31: 1 | Y31: 1 | Z31: 1 | AA31: 31 | AB31: 1 | AC31: 1 | AD31: 1 | AE31: 31 | AF31: 31 | AG31: 1 | AH31: 1 | AI31: 1 | AJ31: 1 | AK31: 1 | AL31: 1 | AM31: 1 | AN31: 1 | AO31: 31
A32: 31 | B32: 32 | C32: 1 | D32: 32 | E32: 1 | F32: 32 | G32: 1 | H32: 1 | I32: 32 | J32: 1 | K32: 1 | L32: 1 | M32: 1 | N32: 1 | O32: 1 | P32: 1 | Q32: 1 | R32: 1 | S32: 1 | T32: 1 | U32: 1 | V32: 1 | W32: 32 | X32: 1 | Y32: 1 | Z32: 32 | AA32: 1 | AB32: 1 | AC32: 1 | AD32: 1 | AE32: 32 | AF32: 32 | AG32: 1 | AH32: 1 | AI32: 1 | AJ32: 1 | AK32: 1 | AL32: 1 | AM32: 1 | AN32: 1 | AO32: 1
A33: 32 | B33: 33 | C33: 33 | D33: 1 | E33: 1 | F33: 33 | G33: 33 | H33: 1 | I33: 33 | J33: 1 | K33: 1 | L33: 1 | M33: 1 | N33: 1 | O33: 1 | P33: 1 | Q33: 1 | R33: 1 | S33: 1 | T33: 1 | U33: 1 | V33: 1 | W33: 33 | X33: 1 | Y33: 1 | Z33: 1 | AA33: 33 | AB33: 1 | AC33: 1 | AD33: 1 | AE33: 33 | AF33: 33 | AG33: 1 | AH33: 1 | AI33: 1 | AJ33: 1 | AK33: 1 | AL33: 1 | AM33: 1 | AN33: 1 | AO33: 1
A34: 33 | B34: 34 | C34: 34 | D34: 1 | E34: 1 | F34: 1 | G34: 1 | H34: 1 | I34: 34 | J34: 1 | K34: 1 | L34: 1 | M34: 1 | N34: 1 | O34: 1 | P34: 1 | Q34: 1 | R34: 1 | S34: 1 | T34: 1 | U34: 1 | V34: 1 | W34: 34 | X34: 1 | Y34: 1 | Z34: 1 | AA34: 34 | AB34: 1 | AC34: 1 | AD34: 1 | AE34: 34 | AF34: 34 | AG34: 1 | AH34: 1 | AI34: 34 | AJ34: 1 | AK34: 1 | AL34: 1 | AM34: 1 | AN34: 1 | AO34: 1
A35: 34 | B35: 35 | C35: 35 | D35: 1 | E35: 1 | F35: 35 | G35: 1 | H35: 1 | I35: 1 | J35: 1 | K35: 1 | L35: 1 | M35: 1 | N35: 1 | O35: 1 | P35: 1 | Q35: 1 | R35: 1 | S35: 1 | T35: 1 | U35: 1 | V35: 1 | W35: 35 | X35: 1 | Y35: 1 | Z35: 1 | AA35: 1 | AB35: 1 | AC35: 1 | AD35: 1 | AE35: 1 | AF35: 35 | AG35: 1 | AH35: 1 | AI35: 1 | AJ35: 1 | AK35: 1 | AL35: 1 | AM35: 1 | AN35: 1 | AO35: 35
A36: 35 | B36: 36 | C36: 36 | D36: 1 | E36: 36 | F36: 1 | G36: 1 | H36: 1 | I36: 1 | J36: 1 | K36: 1 | L36: 1 | M36: 1 | N36: 1 | O36: 1 | P36: 1 | Q36: 1 | R36: 1 | S36: 1 | T36: 1 | U36: 1 | V36: 1 | W36: 36 | X36: 1 | Y36: 1 | Z36: 1 | AA36: 36 | AB36: 1 | AC36: 1 | AD36: 1 | AE36: 36 | AF36: 1 | AG36: 1 | AH36: 1 | AI36: 1 | AJ36: 1 | AK36: 1 | AL36: 1 | AM36: 1 | AN36: 1 | AO36: 1
A37: 36 | B37: 37 | C37: 37 | D37: 37 | E37: 1 | F37: 1 | G37: 1 | H37: 1 | I37: 1 | J37: 1 | K37: 1 | L37: 1 | M37: 1 | N37: 1 | O37: 1 | P37: 1 | Q37: 1 | R37: 1 | S37: 1 | T37: 1 | U37: 37 | V37: 1 | W37: 1 | X37: 1 | Y37: 1 | Z37: 1 | AA37: 37 | AB37: 1 | AC37: 1 | AD37: 1 | AE37: 1 | AF37: 1 | AG37: 1 | AH37: 1 | AI37: 37 | AJ37: 1 | AK37: 1 | AL37: 1 | AM37: 1 | AN37: 1 | AO37: 1
A38: 37 | B38: 38 | C38: 38 | D38: 38 | E38: 38 | F38: 1 | G38: 38 | H38: 1 | I38: 1 | J38: 1 | K38: 1 | L38: 38 | M38: 1 | N38: 1 | O38: 1 | P38: 1 | Q38: 1 | R38: 1 | S38: 1 | T38: 1 | U38: 1 | V38: 1 | W38: 1 | X38: 1 | Y38: 1 | Z38: 1 | AA38: 1 | AB38: 1 | AC38: 1 | AD38: 1 | AE38: 1 | AF38: 1 | AG38: 1 | AH38: 1 | AI38: 38 | AJ38: 1 | AK38: 1 | AL38: 1 | AM38: 1 | AN38: 1 | AO38: 1
A39: 38 | B39: 39 | C39: 39 | D39: 1 | E39: 1 | F39: 1 | G39: 1 | H39: 1 | I39: 1 | J39: 1 | K39: 1 | L39: 1 | M39: 39 | N39: 1 | O39: 1 | P39: 1 | Q39: 1 | R39: 1 | S39: 1 | T39: 1 | U39: 1 | V39: 1 | W39: 39 | X39: 1 | Y39: 1 | Z39: 1 | AA39: 39 | AB39: 1 | AC39: 1 | AD39: 1 | AE39: 39 | AF39: 1 | AG39: 1 | AH39: 1 | AI39: 1 | AJ39: 1 | AK39: 1 | AL39: 1 | AM39: 1 | AN39: 1 | AO39: 1
A40: 39 | B40: 40 | C40: 40 | D40: 1 | E40: 1 | F40: 40 | G40: 1 | H40: 1 | I40: 1 | J40: 1 | K40: 1 | L40: 1 | M40: 1 | N40: 1 | O40: 1 | P40: 1 | Q40: 1 | R40: 1 | S40: 1 | T40: 1 | U40: 1 | V40: 1 | W40: 40 | X40: 1 | Y40: 1 | Z40: 1 | AA40: 1 | AB40: 1 | AC40: 1 | AD40: 1 | AE40: 1 | AF40: 40 | AG40: 1 | AH40: 1 | AI40: 40 | AJ40: 1 | AK40: 1 | AL40: 1 | AM40: 1 | AN40: 1 | AO40: 1
A41: 40 | B41: 41 | C41: 41 | D41: 41 | E41: 1 | F41: 1 | G41: 41 | H41: 1 | I41: 1 | J41: 1 | K41: 1 | L41: 1 | M41: 1 | N41: 1 | O41: 1 | P41: 1 | Q41: 1 | R41: 1 | S41: 1 | T41: 1 | U41: 1 | V41: 1 | W41: 41 | X41: 1 | Y41: 1 | Z41: 1 | AA41: 1 | AB41: 1 | AC41: 1 | AD41: 1 | AE41: 1 | AF41: 1 | AG41: 1 | AH41: 1 | AI41: 1 | AJ41: 1 | AK41: 1 | AL41: 1 | AM41: 1 | AN41: 1 | AO41: 1
A42: 41 | B42: 42 | C42: 42 | D42: 1 | E42: 42 | F42: 42 | G42: 1 | H42: 1 | I42: 42 | J42: 1 | K42: 1 | L42: 1 | M42: 1 | N42: 1 | O42: 42 | P42: 1 | Q42: 1 | R42: 1 | S42: 1 | T42: 1 | U42: 1 | V42: 1 | W42: 42 | X42: 42 | Y42: 1 | Z42: 1 | AA42: 1 | AB42: 1 | AC42: 1 | AD42: 1 | AE42: 1 | AF42: 42 | AG42: 1 | AH42: 1 | AI42: 42 | AJ42: 1 | AK42: 1 | AL42: 1 | AM42: 1 | AN42: 1 | AO42: 1
A43: 42 | B43: 43 | C43: 43 | D43: 1 | E43: 1 | F43: 1 | G43: 1 | H43: 1 | I43: 1 | J43: 1 | K43: 1 | L43: 43 | M43: 1 | N43: 1 | O43: 1 | P43: 1 | Q43: 1 | R43: 1 | S43: 1 | T43: 1 | U43: 1 | V43: 1 | W43: 43 | X43: 1 | Y43: 1 | Z43: 43 | AA43: 1 | AB43: 1 | AC43: 1 | AD43: 1 | AE43: 43 | AF43: 43 | AG43: 43 | AH43: 1 | AI43: 1 | AJ43: 1 | AK43: 1 | AL43: 1 | AM43: 1 | AN43: 1 | AO43: 1
A44: 43 | B44: 44 | C44: 44 | D44: 1 | E44: 1 | F44: 1 | G44: 1 | H44: 44 | I44: 1 | J44: 1 | K44: 1 | L44: 44 | M44: 1 | N44: 1 | O44: 1 | P44: 1 | Q44: 1 | R44: 1 | S44: 1 | T44: 1 | U44: 1 | V44: 1 | W44: 44 | X44: 1 | Y44: 1 | Z44: 1 | AA44: 1 | AB44: 1 | AC44: 1 | AD44: 1 | AE44: 1 | AF44: 44 | AG44: 1 | AH44: 1 | AI44: 1 | AJ44: 1 | AK44: 1 | AL44: 1 | AM44: 44 | AN44: 1 | AO44: 1
A45: 44 | B45: 45 | C45: 1 | D45: 1 | E45: 1 | F45: 1 | G45: 1 | H45: 1 | I45: 45 | J45: 1 | K45: 1 | L45: 45 | M45: 1 | N45: 1 | O45: 1 | P45: 1 | Q45: 1 | R45: 1 | S45: 1 | T45: 1 | U45: 1 | V45: 1 | W45: 1 | X45: 1 | Y45: 1 | Z45: 45 | AA45: 45 | AB45: 1 | AC45: 1 | AD45: 1 | AE45: 45 | AF45: 1 | AG45: 1 | AH45: 1 | AI45: 1 | AJ45: 1 | AK45: 1 | AL45: 45 | AM45: 1 | AN45: 1 | AO45: 1
A46: 45 | B46: 46 | C46: 1 | D46: 1 | E46: 1 | F46: 1 | G46: 1 | H46: 1 | I46: 1 | J46: 1 | K46: 1 | L46: 1 | M46: 1 | N46: 1 | O46: 46 | P46: 1 | Q46: 1 | R46: 1 | S46: 1 | T46: 1 | U46: 46 | V46: 1 | W46: 1 | X46: 1 | Y46: 1 | Z46: 1 | AA46: 1 | AB46: 1 | AC46: 1 | AD46: 1 | AE46: 1 | AF46: 1 | AG46: 1 | AH46: 46 | AI46: 46 | AJ46: 46 | AK46: 46 | AL46: 1 | AM46: 1 | AN46: 1 | AO46: 1
A47: 46 | B47: 47 | C47: 47 | D47: 47 | E47: 1 | F47: 1 | G47: 1 | H47: 1 | I47: 1 | J47: 1 | K47: 1 | L47: 1 | M47: 1 | N47: 1 | O47: 1 | P47: 1 | Q47: 1 | R47: 1 | S47: 1 | T47: 1 | U47: 1 | V47: 1 | W47: 1 | X47: 1 | Y47: 1 | Z47: 1 | AA47: 1 | AB47: 1 | AC47: 1 | AD47: 1 | AE47: 1 | AF47: 1 | AG47: 1 | AH47: 47 | AI47: 1 | AJ47: 1 | AK47: 1 | AL47: 1 | AM47: 1 | AN47: 47 | AO47: 1
A48: 47 | B48: 48 | C48: 48 | D48: 48 | E48: 1 | F48: 1 | G48: 1 | H48: 1 | I48: 1 | J48: 1 | K48: 1 | L48: 1 | M48: 1 | N48: 1 | O48: 1 | P48: 1 | Q48: 1 | R48: 1 | S48: 1 | T48: 1 | U48: 1 | V48: 1 | W48: 48 | X48: 1 | Y48: 1 | Z48: 1 | AA48: 1 | AB48: 1 | AC48: 1 | AD48: 1 | AE48: 1 | AF48: 1 | AG48: 1 | AH48: 48 | AI48: 48 | AJ48: 1 | AK48: 1 | AL48: 1 | AM48: 48 | AN48: 48 | AO48: 1
A49: 48 | B49: 49 | C49: 49 | D49: 49 | E49: 1 | F49: 1 | G49: 1 | H49: 1 | I49: 1 | J49: 1 | K49: 1 | L49: 49 | M49: 1 | N49: 1 | O49: 1 | P49: 1 | Q49: 1 | R49: 1 | S49: 1 | T49: 1 | U49: 1 | V49: 1 | W49: 1 | X49: 1 | Y49: 1 | Z49: 1 | AA49: 1 | AB49: 1 | AC49: 1 | AD49: 1 | AE49: 1 | AF49: 1 | AG49: 1 | AH49: 49 | AI49: 49 | AJ49: 1 | AK49: 1 | AL49: 1 | AM49: 1 | AN49: 49 | AO49: 1
A50: 49 | B50: 50 | C50: 1 | D50: 1 | E50: 1 | F50: 1 | G50: 1 | H50: 1 | I50: 1 | J50: 1 | K50: 1 | L50: 1 | M50: 50 | N50: 1 | O50: 1 | P50: 1 | Q50: 50 | R50: 1 | S50: 1 | T50: 50 | U50: 1 | V50: 1 | W50: 50 | X50: 50 | Y50: 1 | Z50: 1 | AA50: 1 | AB50: 1 | AC50: 1 | AD50: 1 | AE50: 1 | AF50: 50 | AG50: 1 | AH50: 1 | AI50: 1 | AJ50: 1 | AK50: 1 | AL50: 1 | AM50: 1 | AN50: 1 | AO50: 50
A51: 50 | B51: 51 | C51: 51 | D51: 51 | E51: 1 | F51: 1 | G51: 51 | H51: 1 | I51: 1 | J51: 1 | K51: 1 | L51: 1 | M51: 1 | N51: 1 | O51: 1 | P51: 1 | Q51: 1 | R51: 1 | S51: 1 | T51: 1 | U51: 1 | V51: 1 | W51: 51 | X51: 51 | Y51: 1 | Z51: 1 | AA51: 1 | AB51: 1 | AC51: 1 | AD51: 51 | AE51: 51 | AF51: 51 | AG51: 51 | AH51: 1 | AI51: 51 | AJ51: 51 | AK51: 51 | AL51: 1 | AM51: 51 | AN51: 1 | AO51: 1
A52: 51 | B52: 52 | C52: 1 | D52: 1 | E52: 1 | F52: 52 | G52: 1 | H52: 1 | I52: 52 | J52: 1 | K52: 1 | L52: 1 | M52: 1 | N52: 1 | O52: 1 | P52: 1 | Q52: 1 | R52: 52 | S52: 1 | T52: 52 | U52: 1 | V52: 1 | W52: 52 | X52: 1 | Y52: 1 | Z52: 1 | AA52: 1 | AB52: 1 | AC52: 52 | AD52: 52 | AE52: 52 | AF52: 1 | AG52: 1 | AH52: 1 | AI52: 1 | AJ52: 52 | AK52: 52 | AL52: 52 | AM52: 52 | AN52: 1 | AO52: 1
A53: 52 | B53: 53 | C53: 53 | D53: 53 | E53: 53 | F53: 53 | G53: 53 | H53: 1 | I53: 1 | J53: 1 | K53: 1 | L53: 1 | M53: 53 | N53: 53 | O53: 53 | P53: 53 | Q53: 53 | R53: 53 | S53: 53 | T53: 53 | U53: 53 | V53: 1 | W53: 53 | X53: 53 | Y53: 1 | Z53: 53 | AA53: 1 | AB53: 1 | AC53: 53 | AD53: 1 | AE53: 53 | AF53: 53 | AG53: 53 | AH53: 1 | AI53: 53 | AJ53: 53 | AK53: 53 | AL53: 53 | AM53: 53 | AN53: 1 | AO53: 1
A54: 53 | B54: 54 | C54: 54 | D54: 54 | E54: 54 | F54: 54 | G54: 54 | H54: 54 | I54: 54 | J54: 1 | K54: 1 | L54: 1 | M54: 1 | N54: 1 | O54: 1 | P54: 1 | Q54: 54 | R54: 54 | S54: 1 | T54: 1 | U54: 1 | V54: 1 | W54: 54 | X54: 1 | Y54: 1 | Z54: 54 | AA54: 54 | AB54: 1 | AC54: 1 | AD54: 1 | AE54: 54 | AF54: 1 | AG54: 1 | AH54: 1 | AI54: 1 | AJ54: 1 | AK54: 1 | AL54: 1 | AM54: 1 | AN54: 1 | AO54: 1
A55: 54 | B55: 55 | C55: 55 | D55: 1 | E55: 1 | F55: 55 | G55: 1 | H55: 1 | I55: 55 | J55: 1 | K55: 1 | L55: 1 | M55: 1 | N55: 1 | O55: 1 | P55: 1 | Q55: 1 | R55: 1 | S55: 1 | T55: 1 | U55: 1 | V55: 1 | W55: 55 | X55: 55 | Y55: 1 | Z55: 1 | AA55: 1 | AB55: 1 | AC55: 1 | AD55: 1 | AE55: 1 | AF55: 55 | AG55: 1 | AH55: 1 | AI55: 1 | AJ55: 1 | AK55: 1 | AL55: 1 | AM55: 1 | AN55: 1 | AO55: 1
A56: 55 | B56: 56 | C56: 56 | D56: 56 | E56: 1 | F56: 1 | G56: 56 | H56: 1 | I56: 1 | J56: 1 | K56: 1 | L56: 1 | M56: 1 | N56: 1 | O56: 1 | P56: 1 | Q56: 1 | R56: 1 | S56: 1 | T56: 1 | U56: 1 | V56: 1 | W56: 56 | X56: 1 | Y56: 1 | Z56: 1 | AA56: 1 | AB56: 1 | AC56: 1 | AD56: 1 | AE56: 1 | AF56: 56 | AG56: 1 | AH56: 1 | AI56: 1 | AJ56: 56 | AK56: 56 | AL56: 1 | AM56: 56 | AN56: 1 | AO56: 1
A57: 56 | B57: 57 | C57: 57 | D57: 1 | E57: 1 | F57: 1 | G57: 1 | H57: 1 | I57: 1 | J57: 1 | K57: 1 | L57: 1 | M57: 1 | N57: 1 | O57: 57 | P57: 1 | Q57: 1 | R57: 1 | S57: 1 | T57: 1 | U57: 1 | V57: 1 | W57: 57 | X57: 1 | Y57: 1 | Z57: 1 | AA57: 1 | AB57: 1 | AC57: 1 | AD57: 1 | AE57: 1 | AF57: 1 | AG57: 1 | AH57: 57 | AI57: 1 | AJ57: 1 | AK57: 1 | AL57: 1 | AM57: 1 | AN57: 1 | AO57: 1
A58: 57 | B58: 58 | C58: 58 | D58: 1 | E58: 1 | F58: 1 | G58: 58 | H58: 1 | I58: 1 | J58: 1 | K58: 1 | L58: 1 | M58: 1 | N58: 1 | O58: 1 | P58: 1 | Q58: 1 | R58: 1 | S58: 1 | T58: 58 | U58: 1 | V58: 1 | W58: 58 | X58: 58 | Y58: 1 | Z58: 1 | AA58: 1 | AB58: 1 | AC58: 1 | AD58: 1 | AE58: 58 | AF58: 58 | AG58: 1 | AH58: 1 | AI58: 1 | AJ58: 1 | AK58: 1 | AL58: 1 | AM58: 1 | AN58: 1 | AO58: 1
A59: 58 | B59: 59 | C59: 1 | D59: 1 | E59: 1 | F59: 1 | G59: 1 | H59: 1 | I59: 1 | J59: 1 | K59: 1 | L59: 1 | M59: 1 | N59: 1 | O59: 1 | P59: 1 | Q59: 1 | R59: 1 | S59: 1 | T59: 1 | U59: 1 | V59: 1 | W59: 59 | X59: 59 | Y59: 1 | Z59: 1 | AA59: 1 | AB59: 1 | AC59: 1 | AD59: 1 | AE59: 59 | AF59: 1 | AG59: 1 | AH59: 1 | AI59: 1 | AJ59: 59 | AK59: 59 | AL59: 1 | AM59: 1 | AN59: 1 | AO59: 1
A60: 59 | B60: 60 | C60: 60 | D60: 1 | E60: 1 | F60: 1 | G60: 1 | H60: 1 | I60: 1 | J60: 1 | K60: 1 | L60: 1 | M60: 1 | N60: 1 | O60: 1 | P60: 1 | Q60: 1 | R60: 1 | S60: 1 | T60: 60 | U60: 1 | V60: 1 | W60: 1 | X60: 1 | Y60: 1 | Z60: 1 | AA60: 1 | AB60: 1 | AC60: 1 | AD60: 1 | AE60: 1 | AF60: 1 | AG60: 1 | AH60: 60 | AI60: 60 | AJ60: 1 | AK60: 1 | AL60: 1 | AM60: 1 | AN60: 60 | AO60: 1
A61: 60 | B61: 61 | C61: 61 | D61: 1 | E61: 1 | F61: 1 | G61: 61 | H61: 1 | I61: 1 | J61: 1 | K61: 1 | L61: 1 | M61: 1 | N61: 1 | O61: 61 | P61: 1 | Q61: 1 | R61: 1 | S61: 1 | T61: 1 | U61: 1 | V61: 1 | W61: 1 | X61: 1 | Y61: 1 | Z61: 1 | AA61: 1 | AB61: 1 | AC61: 1 | AD61: 1 | AE61: 1 | AF61: 1 | AG61: 1 | AH61: 1 | AI61: 1 | AJ61: 1 | AK61: 1 | AL61: 61 | AM61: 1 | AN61: 1 | AO61: 1
A62: 61 | B62: 62 | C62: 62 | D62: 62 | E62: 1 | F62: 1 | G62: 1 | H62: 1 | I62: 1 | J62: 1 | K62: 1 | L62: 1 | M62: 1 | N62: 1 | O62: 62 | P62: 1 | Q62: 1 | R62: 1 | S62: 1 | T62: 1 | U62: 1 | V62: 1 | W62: 62 | X62: 1 | Y62: 1 | Z62: 1 | AA62: 1 | AB62: 1 | AC62: 1 | AD62: 1 | AE62: 1 | AF62: 62 | AG62: 1 | AH62: 62 | AI62: 1 | AJ62: 1 | AK62: 1 | AL62: 1 | AM62: 1 | AN62: 1 | AO62: 1
A63: 62 | B63: 63 | C63: 63 | D63: 63 | E63: 1 | F63: 1 | G63: 63 | H63: 1 | I63: 1 | J63: 1 | K63: 1 | L63: 1 | M63: 1 | N63: 1 | O63: 1 | P63: 1 | Q63: 1 | R63: 1 | S63: 1 | T63: 1 | U63: 63 | V63: 1 | W63: 1 | X63: 1 | Y63: 1 | Z63: 1 | AA63: 1 | AB63: 1 | AC63: 1 | AD63: 1 | AE63: 1 | AF63: 1 | AG63: 1 | AH63: 63 | AI63: 1 | AJ63: 1 | AK63: 1 | AL63: 1 | AM63: 1 | AN63: 1 | AO63: 1
A64: 63 | B64: 64 | C64: 64 | D64: 1 | E64: 1 | F64: 1 | G64: 1 | H64: 64 | I64: 1 | J64: 1 | K64: 1 | L64: 1 | M64: 64 | N64: 1 | O64: 64 | P64: 1 | Q64: 1 | R64: 1 | S64: 1 | T64: 64 | U64: 1 | V64: 1 | W64: 64 | X64: 1 | Y64: 1 | Z64: 1 | AA64: 1 | AB64: 1 | AC64: 1 | AD64: 1 | AE64: 1 | AF64: 64 | AG64: 1 | AH64: 1 | AI64: 1 | AJ64: 1 | AK64: 1 | AL64: 1 | AM64: 1 | AN64: 1 | AO64: 1
A65: 64 | B65: 65 | C65: 65 | D65: 65 | E65: 1 | F65: 1 | G65: 65 | H65: 1 | I65: 1 | J65: 1 | K65: 1 | L65: 1 | M65: 1 | N65: 1 | O65: 1 | P65: 1 | Q65: 1 | R65: 1 | S65: 1 | T65: 1 | U65: 1 | V65: 1 | W65: 65 | X65: 1 | Y65: 1 | Z65: 1 | AA65: 1 | AB65: 1 | AC65: 1 | AD65: 1 | AE65: 1 | AF65: 1 | AG65: 1 | AH65: 65 | AI65: 65 | AJ65: 1 | AK65: 1 | AL65: 1 | AM65: 65 | AN65: 1 | AO65: 1
A66: 65 | B66: 66 | C66: 66 | D66: 66 | E66: 66 | F66: 1 | G66: 1 | H66: 1 | I66: 1 | J66: 1 | K66: 1 | L66: 1 | M66: 1 | N66: 1 | O66: 1 | P66: 1 | Q66: 1 | R66: 1 | S66: 1 | T66: 1 | U66: 1 | V66: 1 | W66: 1 | X66: 1 | Y66: 1 | Z66: 1 | AA66: 1 | AB66: 1 | AC66: 1 | AD66: 1 | AE66: 1 | AF66: 1 | AG66: 1 | AH66: 66 | AI66: 1 | AJ66: 1 | AK66: 1 | AL66: 1 | AM66: 1 | AN66: 1 | AO66: 1
A67: 66 | B67: 67 | C67: 67 | D67: 67 | E67: 67 | F67: 1 | G67: 67 | H67: 1 | I67: 1 | J67: 1 | K67: 1 | L67: 1 | M67: 1 | N67: 1 | O67: 1 | P67: 1 | Q67: 1 | R67: 1 | S67: 1 | T67: 1 | U67: 1 | V67: 1 | W67: 1 | X67: 1 | Y67: 1 | Z67: 1 | AA67: 1 | AB67: 1 | AC67: 1 | AD67: 1 | AE67: 1 | AF67: 1 | AG67: 1 | AH67: 67 | AI67: 1 | AJ67: 1 | AK67: 1 | AL67: 1 | AM67: 1 | AN67: 1 | AO67: 1
A68: 67 | B68: 68 | C68: 68 | D68: 68 | E68: 68 | F68: 1 | G68: 1 | H68: 1 | I68: 1 | J68: 1 | K68: 1 | L68: 1 | M68: 1 | N68: 1 | O68: 1 | P68: 68 | Q68: 1 | R68: 1 | S68: 1 | T68: 1 | U68: 1 | V68: 1 | W68: 68 | X68: 1 | Y68: 1 | Z68: 1 | AA68: 1 | AB68: 1 | AC68: 1 | AD68: 1 | AE68: 1 | AF68: 1 | AG68: 1 | AH68: 68 | AI68: 1 | AJ68: 1 | AK68: 1 | AL68: 1 | AM68: 1 | AN68: 1 | AO68: 1
A69: 68 | B69: 69 | C69: 69 | D69: 69 | E69: 1 | F69: 1 | G69: 1 | H69: 1 | I69: 1 | J69: 1 | K69: 1 | L69: 1 | M69: 1 | N69: 1 | O69: 1 | P69: 1 | Q69: 1 | R69: 1 | S69: 1 | T69: 1 | U69: 1 | V69: 1 | W69: 1 | X69: 1 | Y69: 1 | Z69: 1 | AA69: 1 | AB69: 1 | AC69: 1 | AD69: 1 | AE69: 1 | AF69: 1 | AG69: 1 | AH69: 69 | AI69: 1 | AJ69: 1 | AK69: 1 | AL69: 1 | AM69: 69 | AN69: 1 | AO69: 1
A70: 69 | B70: 70 | C70: 70 | D70: 70 | E70: 70 | F70: 1 | G70: 70 | H70: 1 | I70: 1 | J70: 1 | K70: 1 | L70: 1 | M70: 1 | N70: 70 | O70: 1 | P70: 1 | Q70: 1 | R70: 1 | S70: 1 | T70: 1 | U70: 1 | V70: 1 | W70: 1 | X70: 1 | Y70: 1 | Z70: 1 | AA70: 1 | AB70: 1 | AC70: 1 | AD70: 1 | AE70: 1 | AF70: 1 | AG70: 1 | AH70: 70 | AI70: 1 | AJ70: 1 | AK70: 1 | AL70: 1 | AM70: 70 | AN70: 1 | AO70: 1
A71: 70 | B71: 71 | C71: 71 | D71: 71 | E71: 1 | F71: 1 | G71: 1 | H71: 1 | I71: 1 | J71: 1 | K71: 71 | L71: 1 | M71: 1 | N71: 1 | O71: 1 | P71: 1 | Q71: 71 | R71: 71 | S71: 1 | T71: 1 | U71: 1 | V71: 1 | W71: 1 | X71: 1 | Y71: 1 | Z71: 71 | AA71: 1 | AB71: 1 | AC71: 1 | AD71: 1 | AE71: 1 | AF71: 1 | AG71: 1 | AH71: 71 | AI71: 71 | AJ71: 1 | AK71: 1 | AL71: 1 | AM71: 1 | AN71: 1 | AO71: 1
A72: 71 | B72: 72 | C72: 72 | D72: 1 | E72: 1 | F72: 1 | G72: 1 | H72: 1 | I72: 1 | J72: 1 | K72: 1 | L72: 1 | M72: 1 | N72: 1 | O72: 1 | P72: 1 | Q72: 1 | R72: 1 | S72: 1 | T72: 1 | U72: 72 | V72: 1 | W72: 1 | X72: 1 | Y72: 1 | Z72: 1 | AA72: 1 | AB72: 1 | AC72: 1 | AD72: 1 | AE72: 1 | AF72: 1 | AG72: 1 | AH72: 72 | AI72: 1 | AJ72: 1 | AK72: 1 | AL72: 1 | AM72: 1 | AN72: 1 | AO72: 1
A73: 72 | B73: 73 | C73: 73 | D73: 73 | E73: 73 | F73: 1 | G73: 1 | H73: 1 | I73: 1 | J73: 1 | K73: 1 | L73: 1 | M73: 1 | N73: 1 | O73: 1 | P73: 1 | Q73: 1 | R73: 1 | S73: 1 | T73: 1 | U73: 73 | V73: 1 | W73: 1 | X73: 1 | Y73: 1 | Z73: 1 | AA73: 1 | AB73: 1 | AC73: 1 | AD73: 1 | AE73: 1 | AF73: 1 | AG73: 1 | AH73: 73 | AI73: 73 | AJ73: 1 | AK73: 1 | AL73: 1 | AM73: 1 | AN73: 1 | AO73: 1
A74: 73 | B74: 74 | C74: 74 | D74: 74 | E74: 1 | F74: 1 | G74: 74 | H74: 1 | I74: 1 | J74: 1 | K74: 1 | L74: 1 | M74: 1 | N74: 1 | O74: 1 | P74: 1 | Q74: 1 | R74: 1 | S74: 1 | T74: 1 | U74: 74 | V74: 1 | W74: 1 | X74: 1 | Y74: 1 | Z74: 1 | AA74: 74 | AB74: 1 | AC74: 1 | AD74: 1 | AE74: 1 | AF74: 1 | AG74: 1 | AH74: 74 | AI74: 1 | AJ74: 1 | AK74: 1 | AL74: 1 | AM74: 1 | AN74: 1 | AO74: 1
A75: 74 | B75: 75 | C75: 75 | D75: 75 | E75: 1 | F75: 1 | G75: 75 | H75: 1 | I75: 1 | J75: 1 | K75: 1 | L75: 1 | M75: 1 | N75: 1 | O75: 1 | P75: 1 | Q75: 1 | R75: 1 | S75: 1 | T75: 1 | U75: 1 | V75: 1 | W75: 1 | X75: 1 | Y75: 1 | Z75: 1 | AA75: 1 | AB75: 1 | AC75: 1 | AD75: 1 | AE75: 1 | AF75: 1 | AG75: 1 | AH75: 75 | AI75: 1 | AJ75: 1 | AK75: 1 | AL75: 1 | AM75: 1 | AN75: 1 | AO75: 1
A76: 75 | B76: 76 | C76: 76 | D76: 76 | E76: 1 | F76: 1 | G76: 1 | H76: 1 | I76: 1 | J76: 1 | K76: 1 | L76: 1 | M76: 1 | N76: 1 | O76: 1 | P76: 1 | Q76: 1 | R76: 1 | S76: 1 | T76: 1 | U76: 76 | V76: 1 | W76: 1 | X76: 1 | Y76: 1 | Z76: 1 | AA76: 1 | AB76: 1 | AC76: 1 | AD76: 1 | AE76: 1 | AF76: 1 | AG76: 1 | AH76: 76 | AI76: 1 | AJ76: 1 | AK76: 1 | AL76: 1 | AM76: 1 | AN76: 1 | AO76: 1
A77: 76 | B77: 77 | C77: 77 | D77: 1 | E77: 1 | F77: 1 | G77: 77 | H77: 1 | I77: 1 | J77: 1 | K77: 1 | L77: 1 | M77: 1 | N77: 1 | O77: 1 | P77: 1 | Q77: 1 | R77: 1 | S77: 1 | T77: 77 | U77: 1 | V77: 1 | W77: 1 | X77: 1 | Y77: 1 | Z77: 77 | AA77: 77 | AB77: 1 | AC77: 1 | AD77: 77 | AE77: 77 | AF77: 1 | AG77: 1 | AH77: 1 | AI77: 77 | AJ77: 77 | AK77: 77 | AL77: 1 | AM77: 1 | AN77: 1 | AO77: 1
A78: 77 | B78: 78 | C78: 1 | D78: 1 | E78: 1 | F78: 78 | G78: 1 | H78: 1 | I78: 1 | J78: 1 | K78: 1 | L78: 1 | M78: 1 | N78: 1 | O78: 78 | P78: 1 | Q78: 1 | R78: 1 | S78: 1 | T78: 78 | U78: 1 | V78: 1 | W78: 1 | X78: 1 | Y78: 1 | Z78: 1 | AA78: 1 | AB78: 1 | AC78: 1 | AD78: 78 | AE78: 1 | AF78: 1 | AG78: 1 | AH78: 1 | AI78: 78 | AJ78: 1 | AK78: 1 | AL78: 78 | AM78: 1 | AN78: 1 | AO78: 1
A79: 78 | B79: 79 | C79: 1 | D79: 79 | E79: 1 | F79: 1 | G79: 79 | H79: 1 | I79: 1 | J79: 1 | K79: 1 | L79: 1 | M79: 1 | N79: 1 | O79: 1 | P79: 1 | Q79: 1 | R79: 1 | S79: 1 | T79: 1 | U79: 1 | V79: 1 | W79: 79 | X79: 1 | Y79: 1 | Z79: 1 | AA79: 79 | AB79: 1 | AC79: 1 | AD79: 79 | AE79: 1 | AF79: 1 | AG79: 1 | AH79: 79 | AI79: 79 | AJ79: 1 | AK79: 1 | AL79: 1 | AM79: 79 | AN79: 1 | AO79: 1
A80: 79 | B80: 80 | C80: 1 | D80: 1 | E80: 1 | F80: 80 | G80: 1 | H80: 1 | I80: 1 | J80: 1 | K80: 1 | L80: 1 | M80: 1 | N80: 1 | O80: 1 | P80: 1 | Q80: 1 | R80: 1 | S80: 1 | T80: 1 | U80: 1 | V80: 1 | W80: 80 | X80: 80 | Y80: 1 | Z80: 1 | AA80: 1 | AB80: 1 | AC80: 1 | AD80: 80 | AE80: 1 | AF80: 80 | AG80: 1 | AH80: 1 | AI80: 1 | AJ80: 1 | AK80: 1 | AL80: 1 | AM80: 1 | AN80: 1 | AO80: 1
A81: 80 | B81: 81 | C81: 81 | D81: 81 | E81: 1 | F81: 1 | G81: 1 | H81: 1 | I81: 1 | J81: 1 | K81: 1 | L81: 1 | M81: 1 | N81: 1 | O81: 1 | P81: 1 | Q81: 1 | R81: 1 | S81: 1 | T81: 1 | U81: 81 | V81: 1 | W81: 81 | X81: 1 | Y81: 1 | Z81: 1 | AA81: 81 | AB81: 1 | AC81: 1 | AD81: 1 | AE81: 1 | AF81: 81 | AG81: 1 | AH81: 81 | AI81: 1 | AJ81: 1 | AK81: 1 | AL81: 1 | AM81: 1 | AN81: 1 | AO81: 1
A82: 81 | B82: 82 | C82: 82 | D82: 1 | E82: 1 | F82: 1 | G82: 82 | H82: 82 | I82: 1 | J82: 1 | K82: 1 | L82: 1 | M82: 1 | N82: 1 | O82: 1 | P82: 1 | Q82: 1 | R82: 1 | S82: 1 | T82: 1 | U82: 1 | V82: 1 | W82: 1 | X82: 1 | Y82: 1 | Z82: 1 | AA82: 1 | AB82: 1 | AC82: 1 | AD82: 82 | AE82: 1 | AF82: 1 | AG82: 1 | AH82: 1 | AI82: 1 | AJ82: 1 | AK82: 1 | AL82: 1 | AM82: 1 | AN82: 1 | AO82: 1
A83: 82 | B83: 83 | C83: 83 | D83: 83 | E83: 83 | F83: 83 | G83: 83 | H83: 1 | I83: 1 | J83: 1 | K83: 1 | L83: 1 | M83: 1 | N83: 1 | O83: 1 | P83: 1 | Q83: 1 | R83: 1 | S83: 1 | T83: 1 | U83: 1 | V83: 1 | W83: 83 | X83: 1 | Y83: 1 | Z83: 1 | AA83: 83 | AB83: 1 | AC83: 1 | AD83: 83 | AE83: 1 | AF83: 83 | AG83: 1 | AH83: 83 | AI83: 83 | AJ83: 1 | AK83: 1 | AL83: 1 | AM83: 1 | AN83: 1 | AO83: 1
A84: 83 | B84: 84 | C84: 84 | D84: 84 | E84: 1 | F84: 1 | G84: 84 | H84: 1 | I84: 1 | J84: 1 | K84: 84 | L84: 1 | M84: 1 | N84: 84 | O84: 1 | P84: 1 | Q84: 1 | R84: 1 | S84: 1 | T84: 84 | U84: 1 | V84: 1 | W84: 1 | X84: 1 | Y84: 1 | Z84: 1 | AA84: 1 | AB84: 1 | AC84: 84 | AD84: 84 | AE84: 1 | AF84: 1 | AG84: 1 | AH84: 84 | AI84: 84 | AJ84: 1 | AK84: 1 | AL84: 1 | AM84: 1 | AN84: 1 | AO84: 1
A85: 84 | B85: 85 | C85: 85 | D85: 85 | E85: 1 | F85: 85 | G85: 85 | H85: 1 | I85: 1 | J85: 1 | K85: 1 | L85: 1 | M85: 1 | N85: 1 | O85: 85 | P85: 1 | Q85: 1 | R85: 1 | S85: 1 | T85: 1 | U85: 1 | V85: 1 | W85: 85 | X85: 1 | Y85: 1 | Z85: 85 | AA85: 1 | AB85: 1 | AC85: 1 | AD85: 85 | AE85: 1 | AF85: 1 | AG85: 1 | AH85: 1 | AI85: 85 | AJ85: 85 | AK85: 85 | AL85: 1 | AM85: 85 | AN85: 1 | AO85: 1
A86: 85 | B86: 86 | C86: 86 | D86: 86 | E86: 1 | F86: 1 | G86: 1 | H86: 1 | I86: 1 | J86: 1 | K86: 1 | L86: 1 | M86: 86 | N86: 1 | O86: 1 | P86: 1 | Q86: 1 | R86: 1 | S86: 1 | T86: 1 | U86: 1 | V86: 1 | W86: 1 | X86: 1 | Y86: 1 | Z86: 1 | AA86: 86 | AB86: 1 | AC86: 1 | AD86: 86 | AE86: 1 | AF86: 1 | AG86: 1 | AH86: 86 | AI86: 1 | AJ86: 1 | AK86: 1 | AL86: 1 | AM86: 1 | AN86: 1 | AO86: 1
A87: 86 | B87: 87 | C87: 87 | D87: 1 | E87: 1 | F87: 87 | G87: 87 | H87: 1 | I87: 1 | J87: 1 | K87: 1 | L87: 1 | M87: 1 | N87: 1 | O87: 1 | P87: 1 | Q87: 1 | R87: 1 | S87: 1 | T87: 1 | U87: 1 | V87: 1 | W87: 1 | X87: 1 | Y87: 1 | Z87: 1 | AA87: 87 | AB87: 1 | AC87: 1 | AD87: 1 | AE87: 87 | AF87: 1 | AG87: 1 | AH87: 1 | AI87: 1 | AJ87: 1 | AK87: 1 | AL87: 1 | AM87: 1 | AN87: 1 | AO87: 1
A88: 87 | B88: 88 | C88: 1 | D88: 88 | E88: 88 | F88: 1 | G88: 88 | H88: 1 | I88: 1 | J88: 1 | K88: 1 | L88: 1 | M88: 1 | N88: 1 | O88: 1 | P88: 1 | Q88: 1 | R88: 1 | S88: 1 | T88: 1 | U88: 1 | V88: 1 | W88: 1 | X88: 1 | Y88: 1 | Z88: 1 | AA88: 88 | AB88: 1 | AC88: 1 | AD88: 1 | AE88: 1 | AF88: 1 | AG88: 1 | AH88: 88 | AI88: 1 | AJ88: 1 | AK88: 1 | AL88: 1 | AM88: 1 | AN88: 1 | AO88: 1
A89: 88 | B89: 89 | C89: 89 | D89: 89 | E89: 1 | F89: 1 | G89: 89 | H89: 1 | I89: 1 | J89: 1 | K89: 1 | L89: 1 | M89: 1 | N89: 1 | O89: 1 | P89: 1 | Q89: 1 | R89: 1 | S89: 1 | T89: 1 | U89: 1 | V89: 1 | W89: 89 | X89: 89 | Y89: 1 | Z89: 1 | AA89: 89 | AB89: 1 | AC89: 1 | AD89: 1 | AE89: 1 | AF89: 89 | AG89: 1 | AH89: 1 | AI89: 89 | AJ89: 1 | AK89: 1 | AL89: 1 | AM89: 1 | AN89: 1 | AO89: 1
A90: 89 | B90: 90 | C90: 1 | D90: 1 | E90: 1 | F90: 1 | G90: 1 | H90: 1 | I90: 1 | J90: 1 | K90: 1 | L90: 90 | M90: 1 | N90: 1 | O90: 1 | P90: 1 | Q90: 1 | R90: 1 | S90: 1 | T90: 1 | U90: 1 | V90: 1 | W90: 90 | X90: 1 | Y90: 1 | Z90: 90 | AA90: 90 | AB90: 1 | AC90: 1 | AD90: 1 | AE90: 90 | AF90: 90 | AG90: 90 | AH90: 1 | AI90: 1 | AJ90: 1 | AK90: 1 | AL90: 1 | AM90: 1 | AN90: 1 | AO90: 1
A91: 90 | B91: 91 | C91: 91 | D91: 91 | E91: 91 | F91: 1 | G91: 1 | H91: 1 | I91: 1 | J91: 1 | K91: 1 | L91: 1 | M91: 1 | N91: 1 | O91: 1 | P91: 1 | Q91: 1 | R91: 1 | S91: 1 | T91: 1 | U91: 1 | V91: 1 | W91: 1 | X91: 1 | Y91: 1 | Z91: 91 | AA91: 91 | AB91: 1 | AC91: 1 | AD91: 91 | AE91: 1 | AF91: 1 | AG91: 1 | AH91: 91 | AI91: 1 | AJ91: 1 | AK91: 1 | AL91: 1 | AM91: 1 | AN91: 1 | AO91: 1
A92: 91 | B92: 92 | C92: 1 | D92: 1 | E92: 1 | F92: 1 | G92: 92 | H92: 1 | I92: 1 | J92: 1 | K92: 1 | L92: 1 | M92: 1 | N92: 1 | O92: 1 | P92: 1 | Q92: 1 | R92: 92 | S92: 1 | T92: 1 | U92: 1 | V92: 92 | W92: 92 | X92: 1 | Y92: 1 | Z92: 1 | AA92: 1 | AB92: 1 | AC92: 1 | AD92: 1 | AE92: 92 | AF92: 1 | AG92: 1 | AH92: 1 | AI92: 92 | AJ92: 1 | AK92: 1 | AL92: 1 | AM92: 92 | AN92: 1 | AO92: 1
A93: 92 | B93: 93 | C93: 93 | D93: 1 | E93: 1 | F93: 93 | G93: 93 | H93: 1 | I93: 1 | J93: 1 | K93: 1 | L93: 1 | M93: 1 | N93: 1 | O93: 1 | P93: 1 | Q93: 1 | R93: 1 | S93: 1 | T93: 93 | U93: 1 | V93: 1 | W93: 1 | X93: 1 | Y93: 1 | Z93: 1 | AA93: 93 | AB93: 1 | AC93: 1 | AD93: 1 | AE93: 93 | AF93: 1 | AG93: 1 | AH93: 1 | AI93: 93 | AJ93: 1 | AK93: 1 | AL93: 1 | AM93: 1 | AN93: 1 | AO93: 1
A94: 93 | B94: 94 | C94: 94 | D94: 1 | E94: 1 | F94: 94 | G94: 94 | H94: 1 | I94: 1 | J94: 1 | K94: 1 | L94: 1 | M94: 1 | N94: 1 | O94: 1 | P94: 1 | Q94: 1 | R94: 1 | S94: 1 | T94: 94 | U94: 1 | V94: 1 | W94: 1 | X94: 1 | Y94: 1 | Z94: 1 | AA94: 94 | AB94: 1 | AC94: 1 | AD94: 1 | AE94: 94 | AF94: 1 | AG94: 1 | AH94: 1 | AI94: 94 | AJ94: 1 | AK94: 1 | AL94: 1 | AM94: 1 | AN94: 1 | AO94: 1
A95: 94 | B95: 95 | C95: 95 | D95: 1 | E95: 95 | F95: 95 | G95: 95 | H95: 1 | I95: 1 | J95: 1 | K95: 1 | L95: 1 | M95: 95 | N95: 1 | O95: 95 | P95: 95 | Q95: 1 | R95: 1 | S95: 1 | T95: 1 | U95: 1 | V95: 1 | W95: 1 | X95: 1 | Y95: 95 | Z95: 1 | AA95: 1 | AB95: 1 | AC95: 1 | AD95: 1 | AE95: 1 | AF95: 1 | AG95: 1 | AH95: 1 | AI95: 95 | AJ95: 95 | AK95: 95 | AL95: 1 | AM95: 95 | AN95: 1 | AO95: 95
A96: 95 | B96: 96 | C96: 1 | D96: 1 | E96: 1 | F96: 96 | G96: 1 | H96: 1 | I96: 1 | J96: 1 | K96: 1 | L96: 1 | M96: 1 | N96: 96 | O96: 1 | P96: 96 | Q96: 1 | R96: 1 | S96: 1 | T96: 1 | U96: 1 | V96: 1 | W96: 1 | X96: 1 | Y96: 1 | Z96: 1 | AA96: 96 | AB96: 1 | AC96: 1 | AD96: 1 | AE96: 96 | AF96: 1 | AG96: 1 | AH96: 1 | AI96: 1 | AJ96: 1 | AK96: 1 | AL96: 1 | AM96: 1 | AN96: 1 | AO96: 1
A97: 96 | B97: 97 | C97: 97 | D97: 97 | E97: 1 | F97: 97 | G97: 97 | H97: 1 | I97: 1 | J97: 1 | K97: 1 | L97: 1 | M97: 1 | N97: 97 | O97: 1 | P97: 97 | Q97: 1 | R97: 1 | S97: 97 | T97: 97 | U97: 1 | V97: 1 | W97: 97 | X97: 1 | Y97: 1 | Z97: 1 | AA97: 97 | AB97: 1 | AC97: 1 | AD97: 1 | AE97: 97 | AF97: 97 | AG97: 1 | AH97: 1 | AI97: 97 | AJ97: 1 | AK97: 1 | AL97: 1 | AM97: 1 | AN97: 1 | AO97: 1
A98: 97 | B98: 98 | C98: 1 | D98: 1 | E98: 98 | F98: 98 | G98: 98 | H98: 1 | I98: 1 | J98: 1 | K98: 1 | L98: 1 | M98: 98 | N98: 98 | O98: 1 | P98: 1 | Q98: 1 | R98: 1 | S98: 1 | T98: 98 | U98: 1 | V98: 1 | W98: 1 | X98: 1 | Y98: 1 | Z98: 1 | AA98: 1 | AB98: 1 | AC98: 98 | AD98: 1 | AE98: 98 | AF98: 1 | AG98: 1 | AH98: 1 | AI98: 1 | AJ98: 1 | AK98: 1 | AL98: 1 | AM98: 1 | AN98: 1 | AO98: 1
A99: 98 | B99: 99 | C99: 99 | D99: 99 | E99: 99 | F99: 1 | G99: 1 | H99: 1 | I99: 1 | J99: 1 | K99: 1 | L99: 1 | M99: 1 | N99: 99 | O99: 99 | P99: 1 | Q99: 1 | R99: 1 | S99: 1 | T99: 1 | U99: 1 | V99: 1 | W99: 1 | X99: 1 | Y99: 1 | Z99: 1 | AA99: 1 | AB99: 1 | AC99: 99 | AD99: 1 | AE99: 99 | AF99: 1 | AG99: 99 | AH99: 1 | AI99: 1 | AJ99: 1 | AK99: 1 | AL99: 1 | AM99: 1 | AN99: 1 | AO99: 1
A100: 99 | B100: 100 | C100: 100 | D100: 1 | E100: 1 | F100: 100 | G100: 100 | H100: 100 | I100: 1 | J100: 1 | K100: 1 | L100: 1 | M100: 1 | N100: 1 | O100: 100 | P100: 1 | Q100: 1 | R100: 1 | S100: 1 | T100: 1 | U100: 1 | V100: 1 | W100: 1 | X100: 1 | Y100: 1 | Z100: 1 | AA100: 1 | AB100: 1 | AC100: 1 | AD100: 100 | AE100: 100 | AF100: 1 | AG100: 1 | AH100: 1 | AI100: 1 | AJ100: 1 | AK100: 1 | AL100: 1 | AM100: 1 | AN100: 1 | AO100: 1
A101: 100 | B101: 101 | C101: 101 | D101: 1 | E101: 1 | F101: 1 | G101: 101 | H101: 1 | I101: 1 | J101: 1 | K101: 1 | L101: 1 | M101: 1 | N101: 1 | O101: 1 | P101: 1 | Q101: 1 | R101: 1 | S101: 1 | T101: 1 | U101: 1 | V101: 1 | W101: 1 | X101: 1 | Y101: 1 | Z101: 1 | AA101: 1 | AB101: 1 | AC101: 1 | AD101: 101 | AE101: 101 | AF101: 1 | AG101: 1 | AH101: 1 | AI101: 101 | AJ101: 1 | AK101: 1 | AL101: 1 | AM101: 1 | AN101: 1 | AO101: 1
A102: 101 | B102: 102 | C102: 102 | D102: 1 | E102: 1 | F102: 1 | G102: 102 | H102: 1 | I102: 1 | J102: 1 | K102: 1 | L102: 1 | M102: 1 | N102: 1 | O102: 102 | P102: 102 | Q102: 1 | R102: 1 | S102: 1 | T102: 102 | U102: 1 | V102: 1 | W102: 102 | X102: 102 | Y102: 1 | Z102: 1 | AA102: 1 | AB102: 1 | AC102: 1 | AD102: 102 | AE102: 102 | AF102: 1 | AG102: 1 | AH102: 1 | AI102: 102 | AJ102: 1 | AK102: 1 | AL102: 1 | AM102: 102 | AN102: 1 | AO102: 1
A103: 102 | B103: 103 | C103: 103 | D103: 1 | E103: 1 | F103: 1 | G103: 103 | H103: 1 | I103: 103 | J103: 1 | K103: 1 | L103: 1 | M103: 1 | N103: 1 | O103: 1 | P103: 1 | Q103: 1 | R103: 1 | S103: 1 | T103: 1 | U103: 1 | V103: 1 | W103: 103 | X103: 103 | Y103: 1 | Z103: 1 | AA103: 1 | AB103: 1 | AC103: 1 | AD103: 1 | AE103: 1 | AF103: 103 | AG103: 1 | AH103: 1 | AI103: 103 | AJ103: 1 | AK103: 1 | AL103: 1 | AM103: 1 | AN103: 1 | AO103: 103
A104: 103 | B104: 104 | C104: 1 | D104: 1 | E104: 1 | F104: 1 | G104: 104 | H104: 1 | I104: 1 | J104: 1 | K104: 1 | L104: 1 | M104: 1 | N104: 1 | O104: 104 | P104: 1 | Q104: 1 | R104: 1 | S104: 1 | T104: 104 | U104: 1 | V104: 1 | W104: 1 | X104: 1 | Y104: 1 | Z104: 104 | AA104: 104 | AB104: 1 | AC104: 1 | AD104: 1 | AE104: 104 | AF104: 1 | AG104: 1 | AH104: 1 | AI104: 104 | AJ104: 1 | AK104: 1 | AL104: 1 | AM104: 104 | AN104: 1 | AO104: 1
A105: 104 | B105: 105 | C105: 1 | D105: 1 | E105: 1 | F105: 1 | G105: 105 | H105: 1 | I105: 1 | J105: 1 | K105: 1 | L105: 1 | M105: 1 | N105: 1 | O105: 105 | P105: 1 | Q105: 1 | R105: 1 | S105: 1 | T105: 1 | U105: 1 | V105: 1 | W105: 105 | X105: 1 | Y105: 1 | Z105: 105 | AA105: 1 | AB105: 1 | AC105: 105 | AD105: 1 | AE105: 105 | AF105: 1 | AG105: 1 | AH105: 1 | AI105: 1 | AJ105: 1 | AK105: 1 | AL105: 1 | AM105: 1 | AN105: 1 | AO105: 1
A106: 105 | B106: 106 | C106: 106 | D106: 106 | E106: 1 | F106: 1 | G106: 1 | H106: 1 | I106: 1 | J106: 1 | K106: 1 | L106: 1 | M106: 1 | N106: 1 | O106: 106 | P106: 1 | Q106: 1 | R106: 1 | S106: 1 | T106: 1 | U106: 1 | V106: 1 | W106: 106 | X106: 1 | Y106: 1 | Z106: 1 | AA106: 1 | AB106: 1 | AC106: 1 | AD106: 1 | AE106: 1 | AF106: 106 | AG106: 1 | AH106: 1 | AI106: 1 | AJ106: 1 | AK106: 1 | AL106: 1 | AM106: 1 | AN106: 1 | AO106: 1
A107: 106 | B107: 107 | C107: 107 | D107: 1 | E107: 1 | F107: 107 | G107: 107 | H107: 1 | I107: 1 | J107: 1 | K107: 1 | L107: 1 | M107: 1 | N107: 1 | O107: 107 | P107: 1 | Q107: 1 | R107: 107 | S107: 1 | T107: 1 | U107: 1 | V107: 1 | W107: 107 | X107: 1 | Y107: 1 | Z107: 1 | AA107: 1 | AB107: 1 | AC107: 1 | AD107: 1 | AE107: 1 | AF107: 107 | AG107: 1 | AH107: 1 | AI107: 1 | AJ107: 1 | AK107: 1 | AL107: 1 | AM107: 1 | AN107: 1 | AO107: 107
A108: 107 | B108: 108 | C108: 108 | D108: 1 | E108: 1 | F108: 108 | G108: 1 | H108: 1 | I108: 1 | J108: 1 | K108: 1 | L108: 1 | M108: 1 | N108: 1 | O108: 108 | P108: 1 | Q108: 1 | R108: 1 | S108: 1 | T108: 1 | U108: 1 | V108: 1 | W108: 1 | X108: 1 | Y108: 1 | Z108: 1 | AA108: 1 | AB108: 1 | AC108: 108 | AD108: 1 | AE108: 108 | AF108: 1 | AG108: 1 | AH108: 1 | AI108: 1 | AJ108: 1 | AK108: 1 | AL108: 1 | AM108: 108 | AN108: 1 | AO108: 1
A109: 108 | B109: 109 | C109: 1 | D109: 109 | E109: 1 | F109: 1 | G109: 1 | H109: 1 | I109: 1 | J109: 1 | K109: 1 | L109: 1 | M109: 1 | N109: 109 | O109: 109 | P109: 109 | Q109: 1 | R109: 1 | S109: 1 | T109: 109 | U109: 1 | V109: 1 | W109: 1 | X109: 1 | Y109: 1 | Z109: 1 | AA109: 1 | AB109: 1 | AC109: 1 | AD109: 109 | AE109: 1 | AF109: 1 | AG109: 1 | AH109: 109 | AI109: 1 | AJ109: 1 | AK109: 1 | AL109: 109 | AM109: 1 | AN109: 1 | AO109: 1
A110: 109 | B110: 110 | C110: 110 | D110: 110 | E110: 1 | F110: 1 | G110: 1 | H110: 1 | I110: 1 | J110: 1 | K110: 1 | L110: 1 | M110: 1 | N110: 1 | O110: 1 | P110: 110 | Q110: 1 | R110: 1 | S110: 1 | T110: 110 | U110: 1 | V110: 1 | W110: 110 | X110: 110 | Y110: 1 | Z110: 1 | AA110: 1 | AB110: 1 | AC110: 1 | AD110: 1 | AE110: 1 | AF110: 110 | AG110: 1 | AH110: 110 | AI110: 110 | AJ110: 1 | AK110: 1 | AL110: 1 | AM110: 1 | AN110: 1 | AO110: 1
A111: 110 | B111: 111 | C111: 1 | D111: 1 | E111: 1 | F111: 1 | G111: 1 | H111: 1 | I111: 111 | J111: 1 | K111: 1 | L111: 1 | M111: 1 | N111: 1 | O111: 1 | P111: 1 | Q111: 1 | R111: 1 | S111: 1 | T111: 111 | U111: 1 | V111: 1 | W111: 1 | X111: 1 | Y111: 1 | Z111: 1 | AA111: 111 | AB111: 1 | AC111: 1 | AD111: 111 | AE111: 111 | AF111: 1 | AG111: 1 | AH111: 1 | AI111: 111 | AJ111: 1 | AK111: 1 | AL111: 111 | AM111: 111 | AN111: 1 | AO111: 1
A112: 111 | B112: 112 | C112: 1 | D112: 1 | E112: 1 | F112: 1 | G112: 1 | H112: 1 | I112: 1 | J112: 1 | K112: 1 | L112: 1 | M112: 1 | N112: 1 | O112: 1 | P112: 1 | Q112: 1 | R112: 1 | S112: 1 | T112: 1 | U112: 1 | V112: 1 | W112: 112 | X112: 1 | Y112: 1 | Z112: 1 | AA112: 1 | AB112: 1 | AC112: 1 | AD112: 1 | AE112: 1 | AF112: 112 | AG112: 1 | AH112: 1 | AI112: 1 | AJ112: 1 | AK112: 1 | AL112: 112 | AM112: 1 | AN112: 1 | AO112: 112
A113: 112 | B113: 113 | C113: 113 | D113: 1 | E113: 1 | F113: 1 | G113: 1 | H113: 1 | I113: 1 | J113: 1 | K113: 1 | L113: 1 | M113: 1 | N113: 1 | O113: 1 | P113: 1 | Q113: 1 | R113: 113 | S113: 1 | T113: 1 | U113: 1 | V113: 1 | W113: 113 | X113: 113 | Y113: 1 | Z113: 1 | AA113: 1 | AB113: 1 | AC113: 1 | AD113: 1 | AE113: 1 | AF113: 113 | AG113: 1 | AH113: 1 | AI113: 113 | AJ113: 1 | AK113: 1 | AL113: 1 | AM113: 1 | AN113: 1 | AO113: 113
A114: 113 | B114: 114 | C114: 114 | D114: 1 | E114: 114 | F114: 1 | G114: 114 | H114: 1 | I114: 1 | J114: 1 | K114: 1 | L114: 1 | M114: 1 | N114: 1 | O114: 1 | P114: 1 | Q114: 1 | R114: 1 | S114: 1 | T114: 1 | U114: 1 | V114: 1 | W114: 1 | X114: 1 | Y114: 1 | Z114: 1 | AA114: 1 | AB114: 1 | AC114: 114 | AD114: 114 | AE114: 114 | AF114: 1 | AG114: 1 | AH114: 1 | AI114: 114 | AJ114: 114 | AK114: 114 | AL114: 114 | AM114: 114 | AN114: 1 | AO114: 1
A115: 114 | B115: 115 | C115: 1 | D115: 1 | E115: 1 | F115: 1 | G115: 1 | H115: 1 | I115: 1 | J115: 1 | K115: 1 | L115: 1 | M115: 1 | N115: 1 | O115: 1 | P115: 1 | Q115: 115 | R115: 1 | S115: 1 | T115: 1 | U115: 1 | V115: 1 | W115: 1 | X115: 1 | Y115: 1 | Z115: 115 | AA115: 1 | AB115: 1 | AC115: 1 | AD115: 1 | AE115: 115 | AF115: 1 | AG115: 1 | AH115: 1 | AI115: 1 | AJ115: 1 | AK115: 1 | AL115: 1 | AM115: 1 | AN115: 1 | AO115: 1
A116: 115 | B116: 116 | C116: 116 | D116: 116 | E116: 1 | F116: 116 | G116: 1 | H116: 1 | I116: 1 | J116: 1 | K116: 1 | L116: 1 | M116: 1 | N116: 1 | O116: 1 | P116: 1 | Q116: 1 | R116: 1 | S116: 116 | T116: 1 | U116: 116 | V116: 116 | W116: 116 | X116: 116 | Y116: 1 | Z116: 116 | AA116: 1 | AB116: 1 | AC116: 116 | AD116: 1 | AE116: 116 | AF116: 116 | AG116: 1 | AH116: 1 | AI116: 1 | AJ116: 1 | AK116: 1 | AL116: 1 | AM116: 1 | AN116: 116 | AO116: 1
A117: 116 | B117: 117 | C117: 117 | D117: 1 | E117: 1 | F117: 1 | G117: 1 | H117: 1 | I117: 1 | J117: 1 | K117: 1 | L117: 1 | M117: 1 | N117: 1 | O117: 1 | P117: 1 | Q117: 1 | R117: 1 | S117: 117 | T117: 1 | U117: 1 | V117: 1 | W117: 117 | X117: 117 | Y117: 1 | Z117: 1 | AA117: 1 | AB117: 1 | AC117: 1 | AD117: 1 | AE117: 1 | AF117: 117 | AG117: 1 | AH117: 1 | AI117: 1 | AJ117: 117 | AK117: 117 | AL117: 1 | AM117: 1 | AN117: 117 | AO117: 1
A118: 117 | B118: 118 | C118: 118 | D118: 1 | E118: 118 | F118: 1 | G118: 1 | H118: 1 | I118: 1 | J118: 1 | K118: 1 | L118: 1 | M118: 1 | N118: 1 | O118: 118 | P118: 1 | Q118: 1 | R118: 1 | S118: 1 | T118: 1 | U118: 1 | V118: 1 | W118: 1 | X118: 1 | Y118: 1 | Z118: 1 | AA118: 1 | AB118: 1 | AC118: 1 | AD118: 1 | AE118: 1 | AF118: 1 | AG118: 1 | AH118: 1 | AI118: 1 | AJ118: 1 | AK118: 1 | AL118: 1 | AM118: 1 | AN118: 1 | AO118: 1
A119: 118 | B119: 119 | C119: 119 | D119: 1 | E119: 1 | F119: 1 | G119: 119 | H119: 1 | I119: 1 | J119: 1 | K119: 1 | L119: 1 | M119: 1 | N119: 1 | O119: 1 | P119: 1 | Q119: 1 | R119: 1 | S119: 1 | T119: 119 | U119: 1 | V119: 1 | W119: 119 | X119: 119 | Y119: 1 | Z119: 1 | AA119: 119 | AB119: 1 | AC119: 1 | AD119: 1 | AE119: 1 | AF119: 1 | AG119: 1 | AH119: 1 | AI119: 119 | AJ119: 119 | AK119: 119 | AL119: 119 | AM119: 119 | AN119: 1 | AO119: 1
A120: 119 | B120: 120 | C120: 120 | D120: 120 | E120: 1 | F120: 120 | G120: 1 | H120: 1 | I120: 1 | J120: 1 | K120: 1 | L120: 1 | M120: 1 | N120: 1 | O120: 1 | P120: 1 | Q120: 1 | R120: 1 | S120: 120 | T120: 1 | U120: 120 | V120: 120 | W120: 120 | X120: 120 | Y120: 1 | Z120: 120 | AA120: 1 | AB120: 1 | AC120: 120 | AD120: 1 | AE120: 120 | AF120: 120 | AG120: 1 | AH120: 1 | AI120: 1 | AJ120: 1 | AK120: 1 | AL120: 1 | AM120: 1 | AN120: 120 | AO120: 1
A121: 120 | B121: 121 | C121: 121 | D121: 1 | E121: 1 | F121: 1 | G121: 1 | H121: 1 | I121: 1 | J121: 1 | K121: 1 | L121: 1 | M121: 1 | N121: 1 | O121: 1 | P121: 1 | Q121: 1 | R121: 1 | S121: 121 | T121: 1 | U121: 1 | V121: 1 | W121: 121 | X121: 121 | Y121: 1 | Z121: 1 | AA121: 1 | AB121: 1 | AC121: 1 | AD121: 1 | AE121: 1 | AF121: 121 | AG121: 1 | AH121: 1 | AI121: 1 | AJ121: 121 | AK121: 121 | AL121: 1 | AM121: 1 | AN121: 121 | AO121: 1
A122: 121 | B122: 122 | C122: 122 | D122: 1 | E122: 1 | F122: 1 | G122: 1 | H122: 1 | I122: 122 | J122: 1 | K122: 1 | L122: 1 | M122: 1 | N122: 1 | O122: 1 | P122: 1 | Q122: 1 | R122: 1 | S122: 1 | T122: 1 | U122: 1 | V122: 1 | W122: 122 | X122: 1 | Y122: 1 | Z122: 1 | AA122: 1 | AB122: 1 | AC122: 122 | AD122: 1 | AE122: 122 | AF122: 122 | AG122: 1 | AH122: 1 | AI122: 1 | AJ122: 1 | AK122: 1 | AL122: 1 | AM122: 1 | AN122: 1 | AO122: 122
A123: 122 | B123: 123 | C123: 1 | D123: 123 | E123: 1 | F123: 1 | G123: 1 | H123: 1 | I123: 1 | J123: 1 | K123: 1 | L123: 1 | M123: 1 | N123: 1 | O123: 1 | P123: 1 | Q123: 123 | R123: 1 | S123: 1 | T123: 1 | U123: 1 | V123: 1 | W123: 123 | X123: 1 | Y123: 1 | Z123: 123 | AA123: 1 | AB123: 1 | AC123: 1 | AD123: 1 | AE123: 1 | AF123: 123 | AG123: 1 | AH123: 1 | AI123: 1 | AJ123: 1 | AK123: 1 | AL123: 1 | AM123: 1 | AN123: 1 | AO123: 1
A124: 123 | B124: 124 | C124: 124 | D124: 124 | E124: 1 | F124: 1 | G124: 124 | H124: 1 | I124: 1 | J124: 1 | K124: 1 | L124: 1 | M124: 1 | N124: 124 | O124: 1 | P124: 1 | Q124: 1 | R124: 1 | S124: 1 | T124: 1 | U124: 1 | V124: 1 | W124: 1 | X124: 1 | Y124: 1 | Z124: 1 | AA124: 1 | AB124: 1 | AC124: 124 | AD124: 1 | AE124: 1 | AF124: 1 | AG124: 1 | AH124: 1 | AI124: 124 | AJ124: 124 | AK124: 124 | AL124: 1 | AM124: 124 | AN124: 1 | AO124: 1
A125: 124 | B125: 125 | C125: 125 | D125: 125 | E125: 1 | F125: 1 | G125: 1 | H125: 1 | I125: 1 | J125: 1 | K125: 1 | L125: 1 | M125: 1 | N125: 1 | O125: 1 | P125: 1 | Q125: 1 | R125: 1 | S125: 1 | T125: 1 | U125: 1 | V125: 1 | W125: 125 | X125: 1 | Y125: 1 | Z125: 1 | AA125: 1 | AB125: 1 | AC125: 1 | AD125: 125 | AE125: 1 | AF125: 1 | AG125: 1 | AH125: 125 | AI125: 125 | AJ125: 1 | AK125: 1 | AL125: 1 | AM125: 1 | AN125: 1 | AO125: 1
A126: 125 | B126: 126 | C126: 126 | D126: 1 | E126: 126 | F126: 1 | G126: 126 | H126: 1 | I126: 1 | J126: 1 | K126: 1 | L126: 1 | M126: 1 | N126: 126 | O126: 1 | P126: 126 | Q126: 1 | R126: 1 | S126: 1 | T126: 1 | U126: 126 | V126: 1 | W126: 126 | X126: 1 | Y126: 1 | Z126: 1 | AA126: 1 | AB126: 1 | AC126: 1 | AD126: 126 | AE126: 1 | AF126: 1 | AG126: 1 | AH126: 126 | AI126: 126 | AJ126: 1 | AK126: 1 | AL126: 1 | AM126: 126 | AN126: 1 | AO126: 1
A127: 126 | B127: 127 | C127: 1 | D127: 127 | E127: 1 | F127: 1 | G127: 1 | H127: 1 | I127: 1 | J127: 1 | K127: 1 | L127: 1 | M127: 1 | N127: 1 | O127: 1 | P127: 1 | Q127: 1 | R127: 1 | S127: 1 | T127: 127 | U127: 1 | V127: 1 | W127: 127 | X127: 127 | Y127: 1 | Z127: 1 | AA127: 1 | AB127: 1 | AC127: 1 | AD127: 1 | AE127: 127 | AF127: 1 | AG127: 1 | AH127: 1 | AI127: 1 | AJ127: 1 | AK127: 1 | AL127: 1 | AM127: 1 | AN127: 1 | AO127: 1
A128: 127 | B128: 128 | C128: 128 | D128: 1 | E128: 1 | F128: 1 | G128: 1 | H128: 1 | I128: 1 | J128: 1 | K128: 1 | L128: 1 | M128: 1 | N128: 1 | O128: 1 | P128: 1 | Q128: 1 | R128: 1 | S128: 1 | T128: 1 | U128: 1 | V128: 1 | W128: 128 | X128: 1 | Y128: 128 | Z128: 128 | AA128: 128 | AB128: 1 | AC128: 1 | AD128: 1 | AE128: 1 | AF128: 1 | AG128: 1 | AH128: 1 | AI128: 1 | AJ128: 1 | AK128: 1 | AL128: 1 | AM128: 1 | AN128: 1 | AO128: 1
A129: 128 | B129: 129 | C129: 129 | D129: 1 | E129: 1 | F129: 1 | G129: 129 | H129: 1 | I129: 1 | J129: 1 | K129: 1 | L129: 1 | M129: 1 | N129: 1 | O129: 1 | P129: 1 | Q129: 1 | R129: 1 | S129: 1 | T129: 1 | U129: 1 | V129: 1 | W129: 1 | X129: 1 | Y129: 129 | Z129: 1 | AA129: 1 | AB129: 1 | AC129: 1 | AD129: 1 | AE129: 1 | AF129: 1 | AG129: 1 | AH129: 1 | AI129: 129 | AJ129: 1 | AK129: 1 | AL129: 1 | AM129: 1 | AN129: 1 | AO129: 1
A130: 129 | B130: 130 | C130: 130 | D130: 1 | E130: 130 | F130: 1 | G130: 1 | H130: 1 | I130: 1 | J130: 1 | K130: 1 | L130: 1 | M130: 1 | N130: 1 | O130: 1 | P130: 1 | Q130: 1 | R130: 1 | S130: 1 | T130: 1 | U130: 1 | V130: 1 | W130: 1 | X130: 1 | Y130: 130 | Z130: 1 | AA130: 1 | AB130: 1 | AC130: 1 | AD130: 1 | AE130: 1 | AF130: 1 | AG130: 1 | AH130: 1 | AI130: 1 | AJ130: 1 | AK130: 1 | AL130: 1 | AM130: 1 | AN130: 1 | AO130: 1
A131: 130 | B131: 131 | C131: 1 | D131: 1 | E131: 1 | F131: 1 | G131: 1 | H131: 1 | I131: 1 | J131: 1 | K131: 1 | L131: 1 | M131: 1 | N131: 131 | O131: 1 | P131: 1 | Q131: 1 | R131: 1 | S131: 1 | T131: 1 | U131: 1 | V131: 1 | W131: 131 | X131: 1 | Y131: 1 | Z131: 131 | AA131: 1 | AB131: 1 | AC131: 1 | AD131: 1 | AE131: 1 | AF131: 131 | AG131: 1 | AH131: 131 | AI131: 1 | AJ131: 1 | AK131: 1 | AL131: 1 | AM131: 131 | AN131: 1 | AO131: 1
A132: 131 | B132: 132 | C132: 1 | D132: 1 | E132: 132 | F132: 1 | G132: 1 | H132: 1 | I132: 1 | J132: 1 | K132: 1 | L132: 1 | M132: 1 | N132: 1 | O132: 1 | P132: 1 | Q132: 1 | R132: 1 | S132: 1 | T132: 1 | U132: 1 | V132: 1 | W132: 132 | X132: 132 | Y132: 1 | Z132: 132 | AA132: 1 | AB132: 1 | AC132: 1 | AD132: 1 | AE132: 132 | AF132: 132 | AG132: 132 | AH132: 1 | AI132: 132 | AJ132: 1 | AK132: 1 | AL132: 1 | AM132: 132 | AN132: 1 | AO132: 1
A133: 132 | B133: 133 | C133: 133 | D133: 1 | E133: 1 | F133: 1 | G133: 1 | H133: 1 | I133: 1 | J133: 1 | K133: 1 | L133: 1 | M133: 1 | N133: 1 | O133: 1 | P133: 1 | Q133: 1 | R133: 1 | S133: 1 | T133: 1 | U133: 1 | V133: 1 | W133: 1 | X133: 1 | Y133: 1 | Z133: 1 | AA133: 133 | AB133: 1 | AC133: 1 | AD133: 1 | AE133: 133 | AF133: 1 | AG133: 1 | AH133: 1 | AI133: 1 | AJ133: 1 | AK133: 1 | AL133: 1 | AM133: 1 | AN133: 1 | AO133: 1
A134: 133 | B134: 134 | C134: 1 | D134: 1 | E134: 1 | F134: 1 | G134: 1 | H134: 1 | I134: 1 | J134: 1 | K134: 1 | L134: 1 | M134: 1 | N134: 1 | O134: 1 | P134: 1 | Q134: 1 | R134: 1 | S134: 1 | T134: 1 | U134: 1 | V134: 1 | W134: 134 | X134: 1 | Y134: 1 | Z134: 1 | AA134: 134 | AB134: 1 | AC134: 1 | AD134: 1 | AE134: 134 | AF134: 1 | AG134: 134 | AH134: 1 | AI134: 1 | AJ134: 1 | AK134: 1 | AL134: 1 | AM134: 134 | AN134: 134 | AO134: 1
A135: 134 | B135: 135 | C135: 135 | D135: 1 | E135: 135 | F135: 1 | G135: 1 | H135: 1 | I135: 1 | J135: 1 | K135: 1 | L135: 1 | M135: 135 | N135: 1 | O135: 1 | P135: 1 | Q135: 1 | R135: 1 | S135: 1 | T135: 1 | U135: 1 | V135: 1 | W135: 135 | X135: 135 | Y135: 1 | Z135: 1 | AA135: 1 | AB135: 1 | AC135: 1 | AD135: 135 | AE135: 135 | AF135: 135 | AG135: 1 | AH135: 1 | AI135: 135 | AJ135: 1 | AK135: 1 | AL135: 1 | AM135: 1 | AN135: 1 | AO135: 1
A136: 135 | B136: 136 | C136: 1 | D136: 1 | E136: 1 | F136: 1 | G136: 1 | H136: 1 | I136: 1 | J136: 1 | K136: 1 | L136: 1 | M136: 1 | N136: 1 | O136: 1 | P136: 1 | Q136: 1 | R136: 1 | S136: 1 | T136: 1 | U136: 1 | V136: 1 | W136: 136 | X136: 1 | Y136: 1 | Z136: 1 | AA136: 136 | AB136: 1 | AC136: 1 | AD136: 136 | AE136: 1 | AF136: 136 | AG136: 1 | AH136: 136 | AI136: 1 | AJ136: 1 | AK136: 1 | AL136: 1 | AM136: 1 | AN136: 1 | AO136: 1
A137: 136 | B137: 137 | C137: 1 | D137: 1 | E137: 1 | F137: 1 | G137: 1 | H137: 1 | I137: 1 | J137: 1 | K137: 1 | L137: 1 | M137: 1 | N137: 1 | O137: 137 | P137: 1 | Q137: 1 | R137: 1 | S137: 1 | T137: 1 | U137: 1 | V137: 1 | W137: 137 | X137: 1 | Y137: 1 | Z137: 1 | AA137: 1 | AB137: 1 | AC137: 137 | AD137: 1 | AE137: 1 | AF137: 1 | AG137: 1 | AH137: 1 | AI137: 137 | AJ137: 1 | AK137: 1 | AL137: 1 | AM137: 1 | AN137: 1 | AO137: 1
A138: 137 | B138: 138 | C138: 138 | D138: 1 | E138: 1 | F138: 1 | G138: 1 | H138: 1 | I138: 138 | J138: 1 | K138: 1 | L138: 1 | M138: 1 | N138: 1 | O138: 1 | P138: 1 | Q138: 1 | R138: 1 | S138: 1 | T138: 1 | U138: 1 | V138: 1 | W138: 138 | X138: 1 | Y138: 1 | Z138: 1 | AA138: 1 | AB138: 1 | AC138: 138 | AD138: 1 | AE138: 1 | AF138: 1 | AG138: 1 | AH138: 1 | AI138: 1 | AJ138: 1 | AK138: 1 | AL138: 1 | AM138: 1 | AN138: 1 | AO138: 1
A139: 138 | B139: 139 | C139: 139 | D139: 1 | E139: 1 | F139: 139 | G139: 1 | H139: 1 | I139: 139 | J139: 1 | K139: 1 | L139: 1 | M139: 1 | N139: 1 | O139: 1 | P139: 1 | Q139: 1 | R139: 1 | S139: 1 | T139: 1 | U139: 1 | V139: 139 | W139: 139 | X139: 1 | Y139: 1 | Z139: 139 | AA139: 1 | AB139: 1 | AC139: 1 | AD139: 1 | AE139: 1 | AF139: 139 | AG139: 1 | AH139: 1 | AI139: 1 | AJ139: 1 | AK139: 1 | AL139: 1 | AM139: 1 | AN139: 1 | AO139: 1
A140: 139 | B140: 140 | C140: 140 | D140: 140 | E140: 140 | F140: 1 | G140: 1 | H140: 1 | I140: 1 | J140: 1 | K140: 1 | L140: 1 | M140: 1 | N140: 140 | O140: 1 | P140: 1 | Q140: 1 | R140: 1 | S140: 1 | T140: 1 | U140: 1 | V140: 1 | W140: 140 | X140: 1 | Y140: 1 | Z140: 140 | AA140: 140 | AB140: 1 | AC140: 140 | AD140: 140 | AE140: 140 | AF140: 1 | AG140: 1 | AH140: 1 | AI140: 1 | AJ140: 140 | AK140: 140 | AL140: 1 | AM140: 140 | AN140: 1 | AO140: 1
A141: 140 | B141: 141 | C141: 141 | D141: 1 | E141: 1 | F141: 1 | G141: 141 | H141: 1 | I141: 1 | J141: 1 | K141: 1 | L141: 1 | M141: 1 | N141: 1 | O141: 1 | P141: 1 | Q141: 1 | R141: 1 | S141: 1 | T141: 1 | U141: 1 | V141: 1 | W141: 141 | X141: 141 | Y141: 1 | Z141: 1 | AA141: 1 | AB141: 1 | AC141: 1 | AD141: 1 | AE141: 141 | AF141: 1 | AG141: 141 | AH141: 1 | AI141: 141 | AJ141: 141 | AK141: 141 | AL141: 1 | AM141: 1 | AN141: 1 | AO141: 1
A142: 141 | B142: 142 | C142: 1 | D142: 1 | E142: 1 | F142: 1 | G142: 1 | H142: 1 | I142: 1 | J142: 1 | K142: 1 | L142: 1 | M142: 1 | N142: 142 | O142: 1 | P142: 1 | Q142: 1 | R142: 1 | S142: 1 | T142: 142 | U142: 1 | V142: 142 | W142: 142 | X142: 1 | Y142: 1 | Z142: 1 | AA142: 1 | AB142: 1 | AC142: 142 | AD142: 1 | AE142: 1 | AF142: 142 | AG142: 1 | AH142: 1 | AI142: 142 | AJ142: 142 | AK142: 142 | AL142: 1 | AM142: 1 | AN142: 1 | AO142: 1
A143: 142 | B143: 143 | C143: 143 | D143: 1 | E143: 1 | F143: 1 | G143: 1 | H143: 1 | I143: 1 | J143: 1 | K143: 1 | L143: 1 | M143: 1 | N143: 1 | O143: 1 | P143: 1 | Q143: 1 | R143: 1 | S143: 1 | T143: 1 | U143: 1 | V143: 1 | W143: 143 | X143: 1 | Y143: 1 | Z143: 1 | AA143: 1 | AB143: 1 | AC143: 1 | AD143: 1 | AE143: 1 | AF143: 143 | AG143: 1 | AH143: 1 | AI143: 143 | AJ143: 1 | AK143: 1 | AL143: 1 | AM143: 143 | AN143: 1 | AO143: 1
A144: 143 | B144: 144 | C144: 144 | D144: 1 | E144: 144 | F144: 1 | G144: 1 | H144: 1 | I144: 1 | J144: 1 | K144: 1 | L144: 1 | M144: 1 | N144: 1 | O144: 1 | P144: 1 | Q144: 1 | R144: 1 | S144: 1 | T144: 1 | U144: 1 | V144: 1 | W144: 1 | X144: 1 | Y144: 1 | Z144: 1 | AA144: 1 | AB144: 144 | AC144: 1 | AD144: 1 | AE144: 144 | AF144: 1 | AG144: 1 | AH144: 1 | AI144: 144 | AJ144: 144 | AK144: 144 | AL144: 1 | AM144: 144 | AN144: 1 | AO144: 1
A145: 144 | B145: 145 | C145: 145 | D145: 1 | E145: 1 | F145: 1 | G145: 145 | H145: 1 | I145: 1 | J145: 1 | K145: 1 | L145: 1 | M145: 1 | N145: 145 | O145: 1 | P145: 1 | Q145: 1 | R145: 1 | S145: 1 | T145: 1 | U145: 1 | V145: 1 | W145: 145 | X145: 1 | Y145: 1 | Z145: 1 | AA145: 1 | AB145: 145 | AC145: 145 | AD145: 145 | AE145: 145 | AF145: 1 | AG145: 1 | AH145: 1 | AI145: 1 | AJ145: 145 | AK145: 145 | AL145: 1 | AM145: 145 | AN145: 1 | AO145: 1
A146: 145 | B146: 146 | C146: 146 | D146: 146 | E146: 1 | F146: 1 | G146: 1 | H146: 1 | I146: 1 | J146: 1 | K146: 1 | L146: 1 | M146: 1 | N146: 1 | O146: 1 | P146: 1 | Q146: 1 | R146: 1 | S146: 1 | T146: 1 | U146: 1 | V146: 1 | W146: 146 | X146: 1 | Y146: 1 | Z146: 1 | AA146: 146 | AB146: 146 | AC146: 1 | AD146: 1 | AE146: 1 | AF146: 1 | AG146: 1 | AH146: 146 | AI146: 1 | AJ146: 146 | AK146: 146 | AL146: 1 | AM146: 1 | AN146: 1 | AO146: 146
A147: 146 | B147: 147 | C147: 147 | D147: 147 | E147: 1 | F147: 1 | G147: 1 | H147: 1 | I147: 1 | J147: 1 | K147: 1 | L147: 1 | M147: 1 | N147: 1 | O147: 147 | P147: 1 | Q147: 1 | R147: 1 | S147: 1 | T147: 1 | U147: 1 | V147: 1 | W147: 147 | X147: 1 | Y147: 1 | Z147: 1 | AA147: 147 | AB147: 147 | AC147: 1 | AD147: 1 | AE147: 1 | AF147: 1 | AG147: 1 | AH147: 147 | AI147: 147 | AJ147: 1 | AK147: 1 | AL147: 1 | AM147: 147 | AN147: 1 | AO147: 147
A148: 147 | B148: 148 | C148: 148 | D148: 148 | E148: 1 | F148: 1 | G148: 148 | H148: 1 | I148: 1 | J148: 1 | K148: 1 | L148: 1 | M148: 1 | N148: 1 | O148: 1 | P148: 1 | Q148: 1 | R148: 1 | S148: 1 | T148: 1 | U148: 1 | V148: 1 | W148: 1 | X148: 1 | Y148: 1 | Z148: 1 | AA148: 1 | AB148: 148 | AC148: 148 | AD148: 148 | AE148: 148 | AF148: 1 | AG148: 1 | AH148: 1 | AI148: 148 | AJ148: 148 | AK148: 148 | AL148: 1 | AM148: 148 | AN148: 1 | AO148: 148
A149: 148 | B149: 149 | C149: 149 | D149: 1 | E149: 1 | F149: 1 | G149: 1 | H149: 1 | I149: 1 | J149: 1 | K149: 1 | L149: 1 | M149: 1 | N149: 1 | O149: 1 | P149: 1 | Q149: 1 | R149: 1 | S149: 1 | T149: 1 | U149: 1 | V149: 149 | W149: 149 | X149: 1 | Y149: 1 | Z149: 1 | AA149: 1 | AB149: 149 | AC149: 149 | AD149: 1 | AE149: 1 | AF149: 1 | AG149: 1 | AH149: 149 | AI149: 149 | AJ149: 149 | AK149: 149 | AL149: 1 | AM149: 149 | AN149: 1 | AO149: 1
A150: 149 | B150: 150 | C150: 150 | D150: 1 | E150: 1 | F150: 1 | G150: 1 | H150: 1 | I150: 150 | J150: 1 | K150: 1 | L150: 1 | M150: 1 | N150: 1 | O150: 1 | P150: 1 | Q150: 1 | R150: 1 | S150: 1 | T150: 1 | U150: 1 | V150: 1 | W150: 1 | X150: 1 | Y150: 1 | Z150: 1 | AA150: 1 | AB150: 150 | AC150: 1 | AD150: 1 | AE150: 150 | AF150: 1 | AG150: 1 | AH150: 1 | AI150: 1 | AJ150: 1 | AK150: 1 | AL150: 150 | AM150: 150 | AN150: 1 | AO150: 1
A151: 150 | B151: 151 | C151: 151 | D151: 1 | E151: 1 | F151: 1 | G151: 151 | H151: 1 | I151: 1 | J151: 1 | K151: 1 | L151: 1 | M151: 1 | N151: 1 | O151: 1 | P151: 1 | Q151: 1 | R151: 1 | S151: 1 | T151: 1 | U151: 1 | V151: 1 | W151: 1 | X151: 1 | Y151: 1 | Z151: 1 | AA151: 1 | AB151: 151 | AC151: 151 | AD151: 1 | AE151: 151 | AF151: 1 | AG151: 1 | AH151: 1 | AI151: 1 | AJ151: 151 | AK151: 151 | AL151: 1 | AM151: 151 | AN151: 1 | AO151: 1
A152: 151 | B152: 152 | C152: 152 | D152: 152 | E152: 1 | F152: 1 | G152: 1 | H152: 1 | I152: 1 | J152: 1 | K152: 1 | L152: 1 | M152: 1 | N152: 1 | O152: 1 | P152: 1 | Q152: 1 | R152: 1 | S152: 1 | T152: 1 | U152: 1 | V152: 1 | W152: 152 | X152: 1 | Y152: 1 | Z152: 1 | AA152: 152 | AB152: 152 | AC152: 1 | AD152: 1 | AE152: 152 | AF152: 1 | AG152: 1 | AH152: 1 | AI152: 1 | AJ152: 1 | AK152: 1 | AL152: 1 | AM152: 152 | AN152: 1 | AO152: 1
A153: 152 | B153: 153 | C153: 1 | D153: 1 | E153: 1 | F153: 1 | G153: 153 | H153: 1 | I153: 1 | J153: 1 | K153: 1 | L153: 1 | M153: 1 | N153: 153 | O153: 153 | P153: 1 | Q153: 1 | R153: 1 | S153: 1 | T153: 1 | U153: 1 | V153: 1 | W153: 153 | X153: 1 | Y153: 1 | Z153: 1 | AA153: 1 | AB153: 153 | AC153: 1 | AD153: 1 | AE153: 153 | AF153: 153 | AG153: 1 | AH153: 1 | AI153: 152 | AJ153: 153 | AK153: 153 | AL153: 1 | AM153: 153 | AN153: 153 | AO153: 1
A154: 153 | B154: 154 | C154: 154 | D154: 1 | E154: 154 | F154: 154 | G154: 1 | H154: 1 | I154: 1 | J154: 1 | K154: 1 | L154: 1 | M154: 1 | N154: 1 | O154: 1 | P154: 1 | Q154: 1 | R154: 154 | S154: 1 | T154: 1 | U154: 1 | V154: 1 | W154: 154 | X154: 1 | Y154: 1 | Z154: 1 | AA154: 1 | AB154: 1 | AC154: 1 | AD154: 154 | AE154: 154 | AF154: 1 | AG154: 1 | AH154: 1 | AI154: 1 | AJ154: 1 | AK154: 1 | AL154: 1 | AM154: 154 | AN154: 1 | AO154: 1
A155: 154 | B155: 155 | C155: 155 | D155: 155 | E155: 155 | F155: 1 | G155: 155 | H155: 1 | I155: 1 | J155: 1 | K155: 1 | L155: 1 | M155: 1 | N155: 1 | O155: 1 | P155: 1 | Q155: 1 | R155: 1 | S155: 1 | T155: 155 | U155: 155 | V155: 1 | W155: 155 | X155: 1 | Y155: 155 | Z155: 1 | AA155: 1 | AB155: 1 | AC155: 155 | AD155: 155 | AE155: 1 | AF155: 155 | AG155: 1 | AH155: 1 | AI155: 1 | AJ155: 155 | AK155: 155 | AL155: 1 | AM155: 155 | AN155: 1 | AO155: 1
A156: 155 | B156: 156 | C156: 156 | D156: 1 | E156: 156 | F156: 1 | G156: 156 | H156: 1 | I156: 1 | J156: 1 | K156: 1 | L156: 1 | M156: 1 | N156: 156 | O156: 1 | P156: 1 | Q156: 1 | R156: 156 | S156: 1 | T156: 156 | U156: 1 | V156: 1 | W156: 156 | X156: 1 | Y156: 1 | Z156: 1 | AA156: 1 | AB156: 1 | AC156: 1 | AD156: 1 | AE156: 1 | AF156: 156 | AG156: 1 | AH156: 1 | AI156: 1 | AJ156: 156 | AK156: 156 | AL156: 1 | AM156: 156 | AN156: 1 | AO156: 1
A157: 156 | B157: 157 | C157: 157 | D157: 1 | E157: 1 | F157: 1 | G157: 1 | H157: 1 | I157: 1 | J157: 1 | K157: 1 | L157: 1 | M157: 1 | N157: 1 | O157: 1 | P157: 1 | Q157: 1 | R157: 1 | S157: 1 | T157: 1 | U157: 1 | V157: 1 | W157: 157 | X157: 1 | Y157: 1 | Z157: 157 | AA157: 1 | AB157: 1 | AC157: 1 | AD157: 157 | AE157: 157 | AF157: 157 | AG157: 157 | AH157: 1 | AI157: 1 | AJ157: 1 | AK157: 1 | AL157: 1 | AM157: 157 | AN157: 1 | AO157: 1
A158: 157 | B158: 158 | C158: 158 | D158: 1 | E158: 1 | F158: 1 | G158: 1 | H158: 1 | I158: 1 | J158: 1 | K158: 1 | L158: 1 | M158: 1 | N158: 1 | O158: 1 | P158: 1 | Q158: 1 | R158: 1 | S158: 1 | T158: 1 | U158: 1 | V158: 1 | W158: 1 | X158: 1 | Y158: 1 | Z158: 158 | AA158: 1 | AB158: 1 | AC158: 1 | AD158: 1 | AE158: 158 | AF158: 1 | AG158: 158 | AH158: 1 | AI158: 1 | AJ158: 1 | AK158: 1 | AL158: 1 | AM158: 158 | AN158: 1 | AO158: 1
A159: 158 | B159: 159 | C159: 159 | D159: 159 | E159: 159 | F159: 159 | G159: 159 | H159: 1 | I159: 1 | J159: 1 | K159: 1 | L159: 1 | M159: 1 | N159: 1 | O159: 1 | P159: 1 | Q159: 1 | R159: 1 | S159: 1 | T159: 1 | U159: 1 | V159: 1 | W159: 159 | X159: 1 | Y159: 1 | Z159: 1 | AA159: 159 | AB159: 1 | AC159: 1 | AD159: 1 | AE159: 159 | AF159: 1 | AG159: 1 | AH159: 1 | AI159: 159 | AJ159: 159 | AK159: 159 | AL159: 1 | AM159: 159 | AN159: 1 | AO159: 1
A160: 159 | B160: 160 | C160: 160 | D160: 1 | E160: 1 | F160: 1 | G160: 1 | H160: 1 | I160: 1 | J160: 1 | K160: 1 | L160: 1 | M160: 1 | N160: 1 | O160: 1 | P160: 1 | Q160: 1 | R160: 1 | S160: 1 | T160: 1 | U160: 1 | V160: 1 | W160: 1 | X160: 1 | Y160: 1 | Z160: 160 | AA160: 1 | AB160: 1 | AC160: 1 | AD160: 1 | AE160: 160 | AF160: 1 | AG160: 160 | AH160: 1 | AI160: 1 | AJ160: 160 | AK160: 160 | AL160: 1 | AM160: 160 | AN160: 1 | AO160: 1
A161: 160 | B161: 161 | C161: 161 | D161: 1 | E161: 1 | F161: 1 | G161: 1 | H161: 1 | I161: 1 | J161: 1 | K161: 1 | L161: 1 | M161: 1 | N161: 1 | O161: 1 | P161: 1 | Q161: 1 | R161: 1 | S161: 1 | T161: 1 | U161: 1 | V161: 1 | W161: 161 | X161: 1 | Y161: 1 | Z161: 161 | AA161: 161 | AB161: 1 | AC161: 1 | AD161: 161 | AE161: 161 | AF161: 1 | AG161: 1 | AH161: 1 | AI161: 1 | AJ161: 1 | AK161: 1 | AL161: 1 | AM161: 161 | AN161: 1 | AO161: 1
A162: 161 | B162: 162 | C162: 162 | D162: 1 | E162: 1 | F162: 162 | G162: 1 | H162: 1 | I162: 1 | J162: 1 | K162: 1 | L162: 1 | M162: 1 | N162: 1 | O162: 1 | P162: 1 | Q162: 1 | R162: 1 | S162: 1 | T162: 162 | U162: 1 | V162: 1 | W162: 162 | X162: 1 | Y162: 1 | Z162: 1 | AA162: 162 | AB162: 1 | AC162: 162 | AD162: 1 | AE162: 162 | AF162: 1 | AG162: 162 | AH162: 1 | AI162: 1 | AJ162: 162 | AK162: 162 | AL162: 1 | AM162: 162 | AN162: 1 | AO162: 1
A163: 162 | B163: 163 | C163: 163 | D163: 1 | E163: 1 | F163: 1 | G163: 163 | H163: 1 | I163: 1 | J163: 1 | K163: 1 | L163: 1 | M163: 1 | N163: 163 | O163: 1 | P163: 1 | Q163: 1 | R163: 1 | S163: 163 | T163: 163 | U163: 1 | V163: 1 | W163: 163 | X163: 163 | Y163: 1 | Z163: 1 | AA163: 163 | AB163: 1 | AC163: 163 | AD163: 1 | AE163: 1 | AF163: 1 | AG163: 1 | AH163: 1 | AI163: 1 | AJ163: 163 | AK163: 163 | AL163: 1 | AM163: 163 | AN163: 1 | AO163: 1
A164: 163 | B164: 164 | C164: 164 | D164: 164 | E164: 164 | F164: 1 | G164: 164 | H164: 1 | I164: 1 | J164: 1 | K164: 1 | L164: 1 | M164: 1 | N164: 1 | O164: 1 | P164: 1 | Q164: 1 | R164: 1 | S164: 1 | T164: 164 | U164: 1 | V164: 1 | W164: 164 | X164: 1 | Y164: 1 | Z164: 164 | AA164: 1 | AB164: 1 | AC164: 1 | AD164: 164 | AE164: 164 | AF164: 1 | AG164: 1 | AH164: 1 | AI164: 1 | AJ164: 164 | AK164: 164 | AL164: 1 | AM164: 164 | AN164: 1 | AO164: 1
A165: 164 | B165: 165 | C165: 1 | D165: 1 | E165: 165 | F165: 1 | G165: 1 | H165: 1 | I165: 1 | J165: 1 | K165: 1 | L165: 1 | M165: 1 | N165: 1 | O165: 165 | P165: 1 | Q165: 1 | R165: 1 | S165: 1 | T165: 1 | U165: 1 | V165: 1 | W165: 1 | X165: 1 | Y165: 1 | Z165: 1 | AA165: 1 | AB165: 1 | AC165: 1 | AD165: 1 | AE165: 1 | AF165: 1 | AG165: 1 | AH165: 1 | AI165: 1 | AJ165: 1 | AK165: 1 | AL165: 165 | AM165: 165 | AN165: 165 | AO165: 1
A166: 165 | B166: 166 | C166: 166 | D166: 1 | E166: 166 | F166: 1 | G166: 166 | H166: 1 | I166: 1 | J166: 1 | K166: 1 | L166: 1 | M166: 1 | N166: 1 | O166: 1 | P166: 1 | Q166: 1 | R166: 1 | S166: 1 | T166: 1 | U166: 1 | V166: 1 | W166: 166 | X166: 1 | Y166: 1 | Z166: 1 | AA166: 166 | AB166: 1 | AC166: 1 | AD166: 1 | AE166: 1 | AF166: 1 | AG166: 1 | AH166: 1 | AI166: 1 | AJ166: 1 | AK166: 1 | AL166: 1 | AM166: 166 | AN166: 1 | AO166: 1
A167: 166 | B167: 167 | C167: 1 | D167: 1 | E167: 1 | F167: 1 | G167: 1 | H167: 1 | I167: 1 | J167: 1 | K167: 1 | L167: 1 | M167: 1 | N167: 1 | O167: 167 | P167: 1 | Q167: 1 | R167: 1 | S167: 1 | T167: 1 | U167: 1 | V167: 1 | W167: 167 | X167: 1 | Y167: 1 | Z167: 1 | AA167: 1 | AB167: 1 | AC167: 1 | AD167: 1 | AE167: 1 | AF167: 167 | AG167: 1 | AH167: 1 | AI167: 1 | AJ167: 1 | AK167: 1 | AL167: 1 | AM167: 167 | AN167: 1 | AO167: 1
A168: 167 | B168: 168 | C168: 168 | D168: 1 | E168: 1 | F168: 1 | G168: 168 | H168: 1 | I168: 1 | J168: 1 | K168: 1 | L168: 1 | M168: 1 | N168: 1 | O168: 168 | P168: 1 | Q168: 1 | R168: 1 | S168: 1 | T168: 1 | U168: 1 | V168: 1 | W168: 168 | X168: 168 | Y168: 1 | Z168: 1 | AA168: 168 | AB168: 1 | AC168: 1 | AD168: 168 | AE168: 1 | AF168: 168 | AG168: 1 | AH168: 1 | AI168: 1 | AJ168: 168 | AK168: 168 | AL168: 1 | AM168: 168 | AN168: 1 | AO168: 1
A169: 168 | B169: 169 | C169: 169 | D169: 1 | E169: 1 | F169: 1 | G169: 1 | H169: 1 | I169: 1 | J169: 1 | K169: 1 | L169: 1 | M169: 1 | N169: 1 | O169: 1 | P169: 1 | Q169: 1 | R169: 1 | S169: 1 | T169: 1 | U169: 1 | V169: 1 | W169: 169 | X169: 1 | Y169: 1 | Z169: 169 | AA169: 1 | AB169: 1 | AC169: 169 | AD169: 1 | AE169: 1 | AF169: 169 | AG169: 1 | AH169: 1 | AI169: 1 | AJ169: 169 | AK169: 169 | AL169: 1 | AM169: 169 | AN169: 1 | AO169: 1
A170: 169 | B170: 170 | C170: 170 | D170: 1 | E170: 1 | F170: 1 | G170: 1 | H170: 1 | I170: 1 | J170: 1 | K170: 1 | L170: 1 | M170: 1 | N170: 1 | O170: 1 | P170: 1 | Q170: 1 | R170: 1 | S170: 1 | T170: 1 | U170: 1 | V170: 170 | W170: 170 | X170: 1 | Y170: 1 | Z170: 1 | AA170: 1 | AB170: 1 | AC170: 1 | AD170: 1 | AE170: 1 | AF170: 170 | AG170: 1 | AH170: 1 | AI170: 1 | AJ170: 1 | AK170: 1 | AL170: 1 | AM170: 1 | AN170: 1 | AO170: 1
A171: 170 | B171: 171 | C171: 1 | D171: 1 | E171: 1 | F171: 1 | G171: 1 | H171: 1 | I171: 1 | J171: 1 | K171: 1 | L171: 1 | M171: 1 | N171: 1 | O171: 171 | P171: 1 | Q171: 1 | R171: 171 | S171: 1 | T171: 1 | U171: 1 | V171: 1 | W171: 171 | X171: 1 | Y171: 1 | Z171: 1 | AA171: 1 | AB171: 1 | AC171: 1 | AD171: 1 | AE171: 1 | AF171: 1 | AG171: 1 | AH171: 1 | AI171: 1 | AJ171: 1 | AK171: 1 | AL171: 1 | AM171: 1 | AN171: 1 | AO171: 171
A172: 171 | B172: 172 | C172: 1 | D172: 172 | E172: 1 | F172: 1 | G172: 172 | H172: 1 | I172: 1 | J172: 1 | K172: 1 | L172: 1 | M172: 1 | N172: 1 | O172: 172 | P172: 1 | Q172: 1 | R172: 1 | S172: 1 | T172: 1 | U172: 1 | V172: 1 | W172: 1 | X172: 1 | Y172: 1 | Z172: 1 | AA172: 1 | AB172: 1 | AC172: 1 | AD172: 1 | AE172: 1 | AF172: 1 | AG172: 1 | AH172: 1 | AI172: 1 | AJ172: 1 | AK172: 1 | AL172: 1 | AM172: 1 | AN172: 1 | AO172: 1
A173: 172 | B173: 173 | C173: 173 | D173: 173 | E173: 1 | F173: 1 | G173: 1 | H173: 1 | I173: 1 | J173: 1 | K173: 1 | L173: 1 | M173: 1 | N173: 1 | O173: 1 | P173: 173 | Q173: 1 | R173: 1 | S173: 1 | T173: 1 | U173: 1 | V173: 1 | W173: 1 | X173: 1 | Y173: 1 | Z173: 1 | AA173: 1 | AB173: 1 | AC173: 1 | AD173: 1 | AE173: 1 | AF173: 1 | AG173: 1 | AH173: 173 | AI173: 173 | AJ173: 1 | AK173: 1 | AL173: 1 | AM173: 1 | AN173: 173 | AO173: 1
A174: 173 | B174: 174 | C174: 174 | D174: 174 | E174: 1 | F174: 1 | G174: 1 | H174: 1 | I174: 1 | J174: 1 | K174: 1 | L174: 1 | M174: 1 | N174: 1 | O174: 1 | P174: 174 | Q174: 1 | R174: 1 | S174: 1 | T174: 1 | U174: 1 | V174: 1 | W174: 1 | X174: 1 | Y174: 1 | Z174: 1 | AA174: 1 | AB174: 1 | AC174: 1 | AD174: 1 | AE174: 1 | AF174: 1 | AG174: 1 | AH174: 174 | AI174: 174 | AJ174: 1 | AK174: 1 | AL174: 1 | AM174: 1 | AN174: 174 | AO174: 1
A175: 174 | B175: 175 | C175: 175 | D175: 175 | E175: 1 | F175: 1 | G175: 1 | H175: 1 | I175: 1 | J175: 1 | K175: 1 | L175: 1 | M175: 1 | N175: 1 | O175: 1 | P175: 1 | Q175: 1 | R175: 1 | S175: 1 | T175: 1 | U175: 1 | V175: 1 | W175: 1 | X175: 1 | Y175: 1 | Z175: 1 | AA175: 1 | AB175: 1 | AC175: 1 | AD175: 175 | AE175: 1 | AF175: 1 | AG175: 1 | AH175: 175 | AI175: 175 | AJ175: 1 | AK175: 1 | AL175: 1 | AM175: 1 | AN175: 175 | AO175: 1
A176: 175 | B176: 176 | C176: 176 | D176: 1 | E176: 1 | F176: 1 | G176: 1 | H176: 1 | I176: 1 | J176: 1 | K176: 1 | L176: 1 | M176: 1 | N176: 1 | O176: 176 | P176: 1 | Q176: 1 | R176: 1 | S176: 1 | T176: 1 | U176: 1 | V176: 1 | W176: 176 | X176: 1 | Y176: 1 | Z176: 1 | AA176: 1 | AB176: 1 | AC176: 1 | AD176: 1 | AE176: 1 | AF176: 176 | AG176: 1 | AH176: 1 | AI176: 1 | AJ176: 1 | AK176: 1 | AL176: 176 | AM176: 1 | AN176: 1 | AO176: 1
A177: 176 | B177: 177 | C177: 177 | D177: 1 | E177: 1 | F177: 1 | G177: 1 | H177: 1 | I177: 1 | J177: 1 | K177: 1 | L177: 1 | M177: 1 | N177: 1 | O177: 1 | P177: 1 | Q177: 1 | R177: 1 | S177: 1 | T177: 1 | U177: 1 | V177: 177 | W177: 1 | X177: 1 | Y177: 1 | Z177: 1 | AA177: 1 | AB177: 1 | AC177: 1 | AD177: 1 | AE177: 1 | AF177: 1 | AG177: 1 | AH177: 1 | AI177: 177 | AJ177: 1 | AK177: 1 | AL177: 1 | AM177: 1 | AN177: 1 | AO177: 1
A178: 177 | B178: 178 | C178: 178 | D178: 178 | E178: 178 | F178: 1 | G178: 1 | H178: 1 | I178: 1 | J178: 1 | K178: 1 | L178: 1 | M178: 1 | N178: 1 | O178: 1 | P178: 178 | Q178: 1 | R178: 178 | S178: 1 | T178: 1 | U178: 1 | V178: 1 | W178: 178 | X178: 1 | Y178: 1 | Z178: 1 | AA178: 1 | AB178: 1 | AC178: 1 | AD178: 1 | AE178: 1 | AF178: 1 | AG178: 1 | AH178: 1 | AI178: 1 | AJ178: 1 | AK178: 1 | AL178: 1 | AM178: 1 | AN178: 1 | AO178: 178
A179: 178 | B179: 179 | C179: 179 | D179: 179 | E179: 179 | F179: 1 | G179: 179 | H179: 1 | I179: 1 | J179: 1 | K179: 1 | L179: 1 | M179: 1 | N179: 1 | O179: 1 | P179: 1 | Q179: 1 | R179: 1 | S179: 1 | T179: 1 | U179: 1 | V179: 1 | W179: 179 | X179: 1 | Y179: 1 | Z179: 1 | AA179: 1 | AB179: 1 | AC179: 1 | AD179: 1 | AE179: 1 | AF179: 1 | AG179: 1 | AH179: 1 | AI179: 1 | AJ179: 1 | AK179: 1 | AL179: 1 | AM179: 1 | AN179: 179 | AO179: 1
A180: 179 | B180: 180 | C180: 180 | D180: 180 | E180: 180 | F180: 1 | G180: 1 | H180: 1 | I180: 1 | J180: 1 | K180: 1 | L180: 1 | M180: 1 | N180: 1 | O180: 1 | P180: 1 | Q180: 1 | R180: 1 | S180: 1 | T180: 1 | U180: 1 | V180: 1 | W180: 180 | X180: 1 | Y180: 1 | Z180: 1 | AA180: 1 | AB180: 1 | AC180: 1 | AD180: 1 | AE180: 1 | AF180: 1 | AG180: 1 | AH180: 1 | AI180: 1 | AJ180: 1 | AK180: 1 | AL180: 1 | AM180: 1 | AN180: 1 | AO180: 1
A181: 180 | B181: 181 | C181: 181 | D181: 181 | E181: 181 | F181: 1 | G181: 181 | H181: 1 | I181: 1 | J181: 1 | K181: 1 | L181: 1 | M181: 1 | N181: 1 | O181: 1 | P181: 1 | Q181: 1 | R181: 1 | S181: 1 | T181: 1 | U181: 1 | V181: 1 | W181: 181 | X181: 1 | Y181: 1 | Z181: 1 | AA181: 1 | AB181: 1 | AC181: 1 | AD181: 1 | AE181: 1 | AF181: 1 | AG181: 1 | AH181: 1 | AI181: 1 | AJ181: 1 | AK181: 1 | AL181: 1 | AM181: 1 | AN181: 1 | AO181: 1
A182: 181 | B182: 182 | C182: 182 | D182: 1 | E182: 1 | F182: 1 | G182: 182 | H182: 1 | I182: 182 | J182: 1 | K182: 1 | L182: 1 | M182: 182 | N182: 1 | O182: 1 | P182: 1 | Q182: 1 | R182: 182 | S182: 1 | T182: 182 | U182: 1 | V182: 1 | W182: 182 | X182: 182 | Y182: 1 | Z182: 1 | AA182: 1 | AB182: 1 | AC182: 1 | AD182: 1 | AE182: 1 | AF182: 182 | AG182: 1 | AH182: 1 | AI182: 1 | AJ182: 1 | AK182: 1 | AL182: 1 | AM182: 182 | AN182: 1 | AO182: 182
A183: 182 | B183: 183 | C183: 183 | D183: 1 | E183: 1 | F183: 1 | G183: 1 | H183: 1 | I183: 1 | J183: 1 | K183: 1 | L183: 1 | M183: 1 | N183: 1 | O183: 1 | P183: 1 | Q183: 1 | R183: 1 | S183: 1 | T183: 1 | U183: 1 | V183: 1 | W183: 183 | X183: 183 | Y183: 1 | Z183: 1 | AA183: 183 | AB183: 1 | AC183: 1 | AD183: 1 | AE183: 1 | AF183: 1 | AG183: 1 | AH183: 1 | AI183: 1 | AJ183: 1 | AK183: 1 | AL183: 1 | AM183: 1 | AN183: 1 | AO183: 1
A184: 183 | B184: 184 | C184: 184 | D184: 184 | E184: 1 | F184: 1 | G184: 1 | H184: 1 | I184: 1 | J184: 1 | K184: 1 | L184: 1 | M184: 1 | N184: 1 | O184: 184 | P184: 1 | Q184: 1 | R184: 1 | S184: 1 | T184: 1 | U184: 1 | V184: 1 | W184: 1 | X184: 1 | Y184: 1 | Z184: 1 | AA184: 1 | AB184: 1 | AC184: 1 | AD184: 1 | AE184: 1 | AF184: 1 | AG184: 1 | AH184: 1 | AI184: 184 | AJ184: 1 | AK184: 1 | AL184: 1 | AM184: 1 | AN184: 1 | AO184: 1
A185: 184 | B185: 185 | C185: 185 | D185: 185 | E185: 1 | F185: 1 | G185: 1 | H185: 1 | I185: 1 | J185: 1 | K185: 1 | L185: 1 | M185: 1 | N185: 1 | O185: 1 | P185: 1 | Q185: 1 | R185: 1 | S185: 1 | T185: 1 | U185: 1 | V185: 1 | W185: 185 | X185: 1 | Y185: 1 | Z185: 1 | AA185: 1 | AB185: 1 | AC185: 1 | AD185: 1 | AE185: 1 | AF185: 185 | AG185: 1 | AH185: 1 | AI185: 185 | AJ185: 185 | AK185: 185 | AL185: 1 | AM185: 1 | AN185: 1 | AO185: 1
A186: 185 | B186: 186 | C186: 186 | D186: 1 | E186: 1 | F186: 1 | G186: 1 | H186: 1 | I186: 186 | J186: 1 | K186: 1 | L186: 1 | M186: 1 | N186: 1 | O186: 186 | P186: 1 | Q186: 1 | R186: 1 | S186: 1 | T186: 1 | U186: 1 | V186: 1 | W186: 1 | X186: 1 | Y186: 1 | Z186: 1 | AA186: 1 | AB186: 1 | AC186: 1 | AD186: 1 | AE186: 1 | AF186: 1 | AG186: 1 | AH186: 1 | AI186: 186 | AJ186: 1 | AK186: 1 | AL186: 186 | AM186: 1 | AN186: 1 | AO186: 1
A187: 186 | B187: 187 | C187: 187 | D187: 187 | E187: 1 | F187: 1 | G187: 1 | H187: 1 | I187: 1 | J187: 1 | K187: 1 | L187: 1 | M187: 1 | N187: 1 | O187: 1 | P187: 187 | Q187: 1 | R187: 1 | S187: 1 | T187: 1 | U187: 1 | V187: 1 | W187: 1 | X187: 1 | Y187: 1 | Z187: 1 | AA187: 1 | AB187: 1 | AC187: 1 | AD187: 1 | AE187: 1 | AF187: 1 | AG187: 1 | AH187: 1 | AI187: 1 | AJ187: 1 | AK187: 1 | AL187: 1 | AM187: 1 | AN187: 1 | AO187: 1
A188: 187 | B188: 188 | C188: 188 | D188: 188 | E188: 1 | F188: 1 | G188: 1 | H188: 1 | I188: 1 | J188: 1 | K188: 1 | L188: 1 | M188: 1 | N188: 1 | O188: 1 | P188: 1 | Q188: 1 | R188: 188 | S188: 1 | T188: 1 | U188: 1 | V188: 1 | W188: 188 | X188: 1 | Y188: 1 | Z188: 188 | AA188: 1 | AB188: 1 | AC188: 1 | AD188: 1 | AE188: 1 | AF188: 1 | AG188: 1 | AH188: 188 | AI188: 1 | AJ188: 1 | AK188: 1 | AL188: 1 | AM188: 1 | AN188: 1 | AO188: 1
A189: 188 | B189: 189 | C189: 189 | D189: 189 | E189: 189 | F189: 1 | G189: 1 | H189: 1 | I189: 1 | J189: 1 | K189: 1 | L189: 1 | M189: 1 | N189: 1 | O189: 189 | P189: 189 | Q189: 1 | R189: 1 | S189: 1 | T189: 1 | U189: 1 | V189: 189 | W189: 1 | X189: 1 | Y189: 1 | Z189: 1 | AA189: 189 | AB189: 1 | AC189: 1 | AD189: 1 | AE189: 1 | AF189: 1 | AG189: 1 | AH189: 189 | AI189: 189 | AJ189: 1 | AK189: 1 | AL189: 1 | AM189: 1 | AN189: 1 | AO189: 1
A190: 189 | B190: 190 | C190: 190 | D190: 1 | E190: 1 | F190: 1 | G190: 1 | H190: 1 | I190: 1 | J190: 1 | K190: 1 | L190: 1 | M190: 1 | N190: 1 | O190: 1 | P190: 1 | Q190: 1 | R190: 190 | S190: 1 | T190: 1 | U190: 1 | V190: 1 | W190: 190 | X190: 1 | Y190: 1 | Z190: 1 | AA190: 1 | AB190: 1 | AC190: 1 | AD190: 1 | AE190: 1 | AF190: 1 | AG190: 1 | AH190: 1 | AI190: 1 | AJ190: 1 | AK190: 1 | AL190: 1 | AM190: 190 | AN190: 1 | AO190: 190
A191: 190 | B191: 191 | C191: 191 | D191: 1 | E191: 191 | F191: 191 | G191: 191 | H191: 1 | I191: 1 | J191: 1 | K191: 1 | L191: 1 | M191: 1 | N191: 191 | O191: 1 | P191: 1 | Q191: 1 | R191: 191 | S191: 1 | T191: 191 | U191: 1 | V191: 1 | W191: 191 | X191: 1 | Y191: 1 | Z191: 1 | AA191: 1 | AB191: 1 | AC191: 191 | AD191: 1 | AE191: 191 | AF191: 1 | AG191: 1 | AH191: 1 | AI191: 1 | AJ191: 1 | AK191: 1 | AL191: 1 | AM191: 1 | AN191: 1 | AO191: 1
A192: 191 | B192: 192 | C192: 1 | D192: 1 | E192: 192 | F192: 192 | G192: 192 | H192: 1 | I192: 1 | J192: 1 | K192: 1 | L192: 1 | M192: 1 | N192: 192 | O192: 192 | P192: 1 | Q192: 1 | R192: 1 | S192: 1 | T192: 192 | U192: 1 | V192: 1 | W192: 192 | X192: 1 | Y192: 1 | Z192: 1 | AA192: 1 | AB192: 1 | AC192: 192 | AD192: 1 | AE192: 192 | AF192: 1 | AG192: 1 | AH192: 1 | AI192: 1 | AJ192: 1 | AK192: 1 | AL192: 1 | AM192: 1 | AN192: 1 | AO192: 1
A193: 192 | B193: 193 | C193: 193 | D193: 1 | E193: 1 | F193: 1 | G193: 1 | H193: 1 | I193: 1 | J193: 193 | K193: 1 | L193: 1 | M193: 1 | N193: 1 | O193: 1 | P193: 1 | Q193: 1 | R193: 193 | S193: 1 | T193: 1 | U193: 1 | V193: 1 | W193: 193 | X193: 1 | Y193: 1 | Z193: 1 | AA193: 193 | AB193: 1 | AC193: 1 | AD193: 1 | AE193: 193 | AF193: 1 | AG193: 1 | AH193: 1 | AI193: 1 | AJ193: 1 | AK193: 1 | AL193: 1 | AM193: 1 | AN193: 1 | AO193: 1
A194: 193 | B194: 194 | C194: 194 | D194: 1 | E194: 1 | F194: 1 | G194: 1 | H194: 1 | I194: 1 | J194: 194 | K194: 1 | L194: 1 | M194: 1 | N194: 1 | O194: 1 | P194: 1 | Q194: 1 | R194: 1 | S194: 1 | T194: 1 | U194: 1 | V194: 1 | W194: 194 | X194: 1 | Y194: 1 | Z194: 194 | AA194: 1 | AB194: 1 | AC194: 1 | AD194: 1 | AE194: 194 | AF194: 194 | AG194: 1 | AH194: 1 | AI194: 1 | AJ194: 1 | AK194: 1 | AL194: 1 | AM194: 1 | AN194: 1 | AO194: 1
A195: 194 | B195: 195 | C195: 195 | D195: 1 | E195: 1 | F195: 1 | G195: 1 | H195: 1 | I195: 1 | J195: 195 | K195: 1 | L195: 1 | M195: 1 | N195: 1 | O195: 1 | P195: 1 | Q195: 1 | R195: 1 | S195: 1 | T195: 195 | U195: 1 | V195: 1 | W195: 195 | X195: 1 | Y195: 1 | Z195: 1 | AA195: 1 | AB195: 1 | AC195: 1 | AD195: 1 | AE195: 1 | AF195: 195 | AG195: 1 | AH195: 1 | AI195: 1 | AJ195: 1 | AK195: 1 | AL195: 1 | AM195: 1 | AN195: 1 | AO195: 1
A196: 195 | B196: 196 | C196: 1 | D196: 1 | E196: 1 | F196: 1 | G196: 196 | H196: 1 | I196: 1 | J196: 196 | K196: 1 | L196: 1 | M196: 1 | N196: 1 | O196: 1 | P196: 1 | Q196: 1 | R196: 1 | S196: 1 | T196: 1 | U196: 1 | V196: 1 | W196: 196 | X196: 1 | Y196: 1 | Z196: 196 | AA196: 1 | AB196: 1 | AC196: 1 | AD196: 1 | AE196: 196 | AF196: 196 | AG196: 1 | AH196: 1 | AI196: 1 | AJ196: 1 | AK196: 1 | AL196: 1 | AM196: 1 | AN196: 1 | AO196: 1
A197: 196 | B197: 197 | C197: 197 | D197: 197 | E197: 1 | F197: 197 | G197: 1 | H197: 1 | I197: 1 | J197: 197 | K197: 1 | L197: 1 | M197: 1 | N197: 1 | O197: 1 | P197: 197 | Q197: 1 | R197: 197 | S197: 1 | T197: 1 | U197: 1 | V197: 1 | W197: 197 | X197: 1 | Y197: 1 | Z197: 1 | AA197: 1 | AB197: 1 | AC197: 1 | AD197: 1 | AE197: 1 | AF197: 197 | AG197: 1 | AH197: 1 | AI197: 1 | AJ197: 1 | AK197: 1 | AL197: 1 | AM197: 1 | AN197: 1 | AO197: 197
A198: 197 | B198: 198 | C198: 198 | D198: 1 | E198: 198 | F198: 1 | G198: 198 | H198: 1 | I198: 1 | J198: 1 | K198: 1 | L198: 1 | M198: 1 | N198: 1 | O198: 1 | P198: 1 | Q198: 1 | R198: 1 | S198: 1 | T198: 198 | U198: 1 | V198: 198 | W198: 198 | X198: 1 | Y198: 1 | Z198: 1 | AA198: 1 | AB198: 1 | AC198: 1 | AD198: 1 | AE198: 1 | AF198: 198 | AG198: 1 | AH198: 1 | AI198: 1 | AJ198: 1 | AK198: 1 | AL198: 1 | AM198: 1 | AN198: 1 | AO198: 1
A199: 198 | B199: 199 | C199: 199 | D199: 199 | E199: 1 | F199: 1 | G199: 199 | H199: 199 | I199: 1 | J199: 1 | K199: 1 | L199: 1 | M199: 1 | N199: 199 | O199: 1 | P199: 1 | Q199: 1 | R199: 1 | S199: 1 | T199: 1 | U199: 1 | V199: 199 | W199: 199 | X199: 1 | Y199: 1 | Z199: 1 | AA199: 1 | AB199: 1 | AC199: 1 | AD199: 1 | AE199: 1 | AF199: 1 | AG199: 1 | AH199: 1 | AI199: 1 | AJ199: 1 | AK199: 1 | AL199: 1 | AM199: 1 | AN199: 1 | AO199: 1
A200: 199 | B200: 200 | C200: 200 | D200: 200 | E200: 1 | F200: 1 | G200: 1 | H200: 1 | I200: 200 | J200: 1 | K200: 1 | L200: 1 | M200: 1 | N200: 1 | O200: 200 | P200: 200 | Q200: 1 | R200: 1 | S200: 1 | T200: 1 | U200: 1 | V200: 200 | W200: 1 | X200: 1 | Y200: 1 | Z200: 1 | AA200: 200 | AB200: 1 | AC200: 1 | AD200: 1 | AE200: 1 | AF200: 1 | AG200: 1 | AH200: 1 | AI200: 1 | AJ200: 1 | AK200: 1 | AL200: 1 | AM200: 200 | AN200: 1 | AO200: 1
... 74 more rows

Sheet data (hidden)
A1: NS income (c1) | C1: Overview of the tax calculation process | E1: ="Calculate Tax and NIC "&tax_year -> Calculate Tax and NIC 2025-26
A2: Savings (c2) | C2: The main body of the calculation is contained within stages 1 to 12. Stages 14 to 29 may be required,
A3: Divs (c3) | C3: depending on the taxpayer’s circumstances. They are cross-referenced with various points within stages
A4: Status (c3a) | C4: 1 to 12. Only the end result of processing in stages 14 to 28 (13 is not currently used) are used within
A5: Deductions (c4) | C5: stages 1 to 12 but all boxes leading to the end result need to be calculated.
A6: Taxable (c5)
A7: tax it (c6) | C7: ="For example: "&'Tax adj (c9)'!I51&" requires a figure from box "&'allowances (c14c15)'!K148&" or "&'allowances (c14c15)'!K164&". To calculate box "&'allowances (c14c15)'!K148&" or "&'allowances (c14c15)'!K164&" not" -> For example: c9.16 requires a figure from box c15.20 or c15.21. To calculate box c15.20 or c15.21 not
A8: CDR (c7) | C8: ="only requires calculating "&'allowances (c14c15)'!K43&" onwards but also "&'allowances (c14c15)'!K5&" through "&'allowances (c14c15)'!K26&", as these are referenced in "&'allowances (c14c15)'!E58 -> only requires calculating c15.1 onwards but also c14.1 through c14.6, as these are referenced in c15.6
A9: tax it (c8) | C9: ="and "&'allowances (c14c15)'!E61&"." -> and c15.7.
A10: Tax adj (c9)
A11: Div Cr (c10) | C11: The annexes contain associated processing that is dependant on the calculation stages.
A12: tax paid (c11)
A13: Tax due (c12) | C13: Note where a box contains all instances then the rounding should be done on each instances.
A14: POAs (c13)
A15: allowances (c14c15) | C15: If NON UK RESIDENT (box NRD1 = Y)
A16: Class 4 NIC (c16) | C16: set calculation type = resident
A17: TSR (c17) | C17: ="Calculate boxes "&'NS income (c1)'!E5&" through "&'Tax due (c12)'!I5 -> Calculate boxes c1.1 through c12.1
A18: CG (c18) | C18: ="resident-result ("&'Tax due (c12)'!I14&") = "&'Tax due (c12)'!I5 -> resident-result (c12.1a) = c12.1
A19: RBC (c19) | C19: set calculation type = non-resident
A20: RBC & Cap (C20a) | C20: ="Calculate boxes "&'non-res (c91)'!C15&" through "&'non-res (c91)'!R119 -> Calculate boxes c91.1 through c91.35
A21: Notional (c21c23) | C21: ="Calculate boxes "&'Deductions (c4)'!Q23&" through "&'Tax due (c12)'!I5 -> Calculate boxes c4.4 through c12.1
A22: LLIR (c24) | C22: ="non-resident-result ("&'Tax due (c12)'!I18&") = "&'Tax due (c12)'!I5 -> non-resident-result (c12.1b) = c12.1
A23: Pensions (c25c26) | C23: If resident-result <= non-resident-result
A24: S loans(c27) | C24: end if
A25: CBC(c28) | C25: set calculation type = resident
A26: non-res (c91) | C26: ="Calculate boxes c1.1 through "&'Tax due (c12)'!I119 -> Calculate boxes c1.1 through c12.21
C27: end if
A28: EMP
A29: MOR | C29: Format SA302 and view screens (see Annex A)
A30: SE
A31: LUN | C31: If a digital Marriage Allowance transfer claim is in place and they are a Transferor or a Recipient the MAT_OUT
A32: PS | C32: ="or MAT_IN amount will be set and "&'Deductions (c4)'!H473&" or "&'Tax adj (c9)'!I75&" will be completed with the MAT amount." -> or MAT_IN amount will be set and c4.68 or c9.20 will be completed with the MAT amount.
A33: NI
A34: PRO | C34: ="Where there is not a digital Marriage Allowance transfer claim in place and the customer completes MAT"&'REL(2)'!C39 -> Where there is not a digital Marriage Allowance transfer claim in place and the customer completes MAT1-5
A35: FOR | C35: MAT_OUT amount will be set to "Y"
A36: TRU
A37: CGT | C37: ="For Class 2 there are no boxes on the SA Return. Pseudo Return boxes / centralised box will be required to populate "&'Class 4 NIC (c16)'!J192&"." -> For Class 2 there are no boxes on the SA Return. Pseudo Return boxes / centralised box will be required to populate c16.32.
A38: NRD | C38: Larger of all instances (SSECL2 OR FSECL2 OR SPSCL2 OR FPSCL2) OR LUNCL2 OR Total of centralised box
A39: CAL
A40: AOI | C40: For Class 4 there are no boxes for Class 1 earnings on the Return for the Reg100 Class 4 calculation.
A41: ASE | C41: ="Pseudo Return boxes will be required to populate "&'Class 4 NIC (c16)'!J110 -> Pseudo Return boxes will be required to populate c16.20
A42: AOR
A43: MCA | C43: Tax rates | F43: Reviewed | G43: Swiss Tax Credit
A44: AIL | C44: Employees' rate between threshold and upper earnings limit | D44: NIC1_rate | E44: 0.08 | G44: not for requirements
C45: Class 4 rate between lower profits limit and upper profits limit | D45: NIC_rate | E45: 0.06 | K45: used as
A46: C0 | C46: Class 4 rate above upper profits limit | D46: NIC_supp_rate | E46: 0.02 | G46: Grossing up factors | I46: D | J46: F | K46: *100/ | L46: P
A47: C1 | C47: Student Loan deduction rate | D47: Sloan_rate | E47: 0.09 | G47: Dividend old net to gross factor | H47: old_gross | I47: 1.111111111 | J47: 100/90 | K47: 90 | L47: 0.1
A48: C2 | C48: Postgraduate loan rate | D48: PGL_rate | E48: 0.06 | G48: Dividend net to gross factor | H48: divs_gross | I48: 1.095890411 | J48: 100/91.25 | K48: 91.25 | L48: 0.0875
A49: C3 | C49: Starting rate for savings | D49: SR_rate | E49: 0 | G49: Savings net to gross factor | H49: savings_gross | I49: 1.25 | J49: 100/80 | K49: 80 | L49: 0.2
A50: C4 | C50: Savings Nil rate | D50: SNil_rate | E50: 0 | G50: Non-savings net to gross factor | H50: NS_gross | I50: 1.25 | J50: 100/80 | K50: 80 | L50: 0.2
A51: C5 | C51: Old Basic Rate | D51: OLD_BR | E51: 0.22 | G51: Higher rate net to gross factor | H51: HR_gross | I51: 1.666666667 | J51: 100/60 | K51: 60 | L51: 0.4 | M51: used in calc?
A52: C6 | C52: Basic rate for savings | D52: SAVBR_rate | E52: 0.2 | G52: Non-savings net to gross old factor | H52: Gross_By_22 | I52: 1.282051282 | J52: 100/78 | K52: 78 | L52: 0.22
A53: C7 | C53: Higher rate for savings | D53: SAVHR_rate | E53: 0.4 | G53: Trust rate net to gross factor | H53: trust_gross | I53: 1.818181818 | J53: 100/55 | K53: 55 | L53: 0.45
A54: C8C9C10 | C54: Additional rate for savings | D54: SAVAHR_rate | E54: 0.45 | G54: Trust dividend rate net to gross factor | H54: trust_div_gross | I54: 1.648804617 | J54: 100/60.65 | K54: 60.65 | L54: 0.3935
C55: Basic rate UK rate for England Northern Ireland | D55: BR_rate | E55: 0.2 | G55: Gift aid | H55: gift_aid | I55: 1.25 | J55: 100/80 | K55: 80 | L55: 0.2
C56: Higher rate UK rate for England Northern Ireland | D56: HR_rate | E56: 0.4 | G56: Dividend old 7.5 net to gross | H56: divs_gross_old | I56: 1.081081081 | J56: 100/92.5 | K56: 92.5 | L56: 0.075
C57: Additional Rate UK rate for England and Northern Ireland | D57: AHR_rate | E57: 0.45
C58: Starter rate for Scotland | D58: SSR_rate | E58: 0.19
C59: Basic rate UK rate for Scotland | D59: SBR_rate | E59: 0.2
C60: Intermediate rate for Scotland | D60: SIR_rate | E60: 0.21
C61: Higher rate UK rate for Scotland | D61: SHR_rate | E61: 0.42
C62: Advanced rate for Scotland | D62: SAR_rate | E62: 0.45
C63: Additional Rate UK rate for Scotland | D63: SAHR_rate | E63: 0.48
C64: Basic rate for Wales | D64: WBR_rate | E64: 0.2
C65: Higher rate for Wales | D65: WHR_rate | E65: 0.4
C66: Additional Rate rate for Wales | D66: WAHR_rate | E66: 0.45
C67: Old Dividend rate | D67: Old_DIV_rate | E67: 0.075
C68: Lower Dividend rate | D68: Ldiv_rate | E68: 0.1
C69: Dividend Nil rate | D69: DivNil_rate | E69: 0
C70: Dividend Investment rate | D70: DivBR_rate | E70: 0.0875
C71: Dividend Higher rate | D71: DivHR_rate | E71: 0.3375
C72: Dividend Additional rate | D72: DivAR_rate | E72: 0.3935
C73: Venture Capital Trust shares rate | D73: VCT_rate | E73: 0.3
C74: Enterprise Investment Scheme rate | D74: EIS_rate | E74: 0.3
C75: Seed Enterprise Investment Scheme Relief rate | D75: SEIS_rate | E75: 0.5
C76: Community Investment Tax Relief rate | D76: CITR_rate | E76: 0.05
C77: Social Investment Tax Relief rate | D77: SITR_rate | E77: 0.3
C78: Reducing Allowances rate for MCA, Alimony etc | D78: A_rate | E78: 0.1
C79: Capital Gains Entrepreneurs rate | D79: ER_CGT_rate | E79: 0.14
C80: Capital Gains Lower rate | D80: Lower_CGT_rate | E80: 0.18
C81: Capital Gains Higher rate | D81: Upper_CGT_rate | E81: 0.24
C82: Capital Gains Lower rate Residential Property | D82: Lower_CGT_rate_RP | E82: 0.18
C83: Capital Gains Higher rate Residential Property | D83: Upper_CGT_rate_RP | E83: 0.24
C84: Carried Interest | D84: Lower_CGT_rate_CI | E84: 0.18
C85: Carried Interest | D85: Upper_CGT_rate_CI | E85: 0.24
C86: Overpaid SEISS and CJRS charge rate | D86: Charge_rate | E86: 1
C87: Carried Interest rate | D87: CI_CGT_rate | E87: 0.32
J92: ="06/04/"&Tax_year_start -> 06/04/2025
J93: ="05/04/"&Tax_year_end -> 05/04/2026
K94: =J92-DAY(J92)+8-WEEKDAY(J92-DAY(J92)) -> 2025-04-06 | L94: ="First Sunday in April "&Tax_year_start -> First Sunday in April 2025
J95: week 1 | K95: =IF(K94+0<J92+0,K94+7,K94) -> 2025-04-06 | L95: ="First Sunday after 5 April "&Tax_year_start -> First Sunday after 5 April 2025
J96: week 52 | K96: =K95+357 -> 2026-03-29
C97: Rate Bands | J97: week 53 | K97: =K95+364 -> 2026-04-05 | L97: =IF(K97>K98,52,53) -> 53
C98: Savings Starting rate band | D98: SR_band | E98: 5000 | J98: last day | K98: =J93+0 -> 2026-04-05
C99: Scottish starter rate band | D99: SSR_band | E99: 2827
C100: Band between Savings rate & Basic rate | D100: SavBR_band | E100: 32700 | G100: =BR_band-SR_band -> 32700 | H100: =BR_band-SR_band | J100: 1 | K100: =K95 -> 2025-04-06 | L100: 27 | M100: =K125+7 -> 2025-10-05
C101: Basic rate band | D101: BR_band | E101: 37700 | J101: 2 | K101: =K100+7 -> 2025-04-13 | L101: 28 | M101: =M100+7 -> 2025-10-12
C102: Scottish Basic rate band | D102: SBR_band | E102: 12094 | G102: Ratified rate | H102: Announced December/Ratified March | J102: 3 | K102: =K101+7 -> 2025-04-20 | L102: 29 | M102: 2025-10-19
C103: Scottish intermediate rate band | D103: SIR_band | E103: 16171 | J103: 4 | K103: 2025-04-27 | L103: 30 | M103: 2025-10-26
C104: Band between Basic Rate & Higher rate | D104: HR_band | E104: 87440 | G104: =AHR_band-BR_band -> 87440 | H104: =AHR_band-BR_band | J104: 5 | K104: 2025-05-04 | L104: 31 | M104: 2025-11-02
C105: Scottish Band between Basic Rate & Higher rate | D105: SHR_band | E105: 31338 | G105: =SAHR_band-(SBR_band+SSR_band+SIR_band+SAVR_band) -> 31338 | H105: =SAHR_band-SBR_band | J105: 6 | K105: 2025-05-11 | L105: 32 | M105: 2025-11-09
C106: Scottish Advanced rate band | D106: SAR_band | E106: 62710 | G106: =SAHR_band-(SBR_band+SSR_band+SIR_band+SHR_band) -> 62710 | J106: 7 | K106: 2025-05-18 | L106: 33 | M106: 2025-11-16
C107: Additional rate band | D107: AHR_band | E107: 125140 | J107: 8 | K107: 2025-05-25 | L107: 34 | M107: 2025-11-23
C108: Scottish Additional rate band | D108: SAHR_band | E108: 125140 | J108: 9 | K108: 2025-06-01 | L108: 35 | M108: 2025-11-30
C109: Class 1 Primary Threshold (employee) | D109: Class1_PT | E109: 12570 | G109: not for requirements | J109: 10 | K109: 2025-06-08 | L109: 36 | M109: 2025-12-07
C110: Class 1 Upper Earnings Limit | D110: Class1_UEL | E110: 50270 | G110: not for requirements | J110: 11 | K110: 2025-06-15 | L110: 37 | M110: 2025-12-14
C111: Class 2 amount, per week | D111: NIC2_weekamt | E111: 3.5 | G111: 'Ordinary' rate | J111: 12 | K111: 2025-06-22 | L111: 38 | M111: 2025-12-21
C112: Class 2 annual limit | D112: NIC2_annual_limit | E112: 185.5 | G112: =NIC2_weekamt*53 -> 185.5 | H112: =NIC2_weekamt*53 | J112: 13 | K112: 2025-06-29 | L112: 39 | M112: 2025-12-28
C113: Class 2 amount, per week for Share fishermen | D113: NIC2SF_weekamt | E113: 4.15 | G113: Share Fisherman | J113: 14 | K113: 2025-07-06 | L113: 40 | M113: 2026-01-04
C114: Class 2 annual limit for Share fishermen | D114: NIC2SF_annual_limit | E114: 219.95 | G114: =NIC2SF_weekamt*53 -> 219.95 | H114: =NIC2SF_weekamt*53 | J114: 15 | K114: 2025-07-13 | L114: 41 | M114: 2026-01-11
C115: Class 2 NIC small profit theshhold | D115: NIC2_SPT | E115: 6845 | J115: 16 | K115: 2025-07-20 | L115: 42 | M115: 2026-01-18
C116: Class 2 Lower Profit Threshold | D116: NIC2_LPT | E116: 12570 | J116: 17 | K116: 2025-07-27 | L116: 43 | M116: 2026-01-25
C117: Upper earnings limit (weekly) | D117: NIC_UEL_Wk | E117: 967 | G117: Not for requirements | J117: 18 | K117: 2025-08-03 | L117: 44 | M117: 2026-02-01
C118: Primary earnings threshold (weekly) | D118: NIC_PT_Wk | E118: 242 | G118: Not for requirements | J118: 19 | K118: 2025-08-10 | L118: 45 | M118: 2026-02-08
C119: Class 4 NIC upper profit limit | D119: NIC_UEL | E119: 50270 | J119: 20 | K119: 2025-08-17 | L119: 46 | M119: 2026-02-15
C120: Class 4 NIC lower profit limit | D120: NIC_LEL | E120: 12570 | J120: 21 | K120: 2025-08-24 | L120: 47 | M120: =M119+7 -> 2026-02-22
C121: NIC rate band | D121: NIC_Band | E121: 37700 | G121: =NIC_UEL-NIC_LEL -> 37700 | H121: =NIC_UEL-NIC_LEL | J121: 22 | K121: 2025-08-31 | L121: 48 | M121: =M120+7 -> 2026-03-01
C122: Max Class 4 NIC charge | D122: max_NIC | E122: 2262 | G122: =NIC_Band*NIC_rate -> 2262 | H122: =NIC_Band*NIC_rate | J122: 23 | K122: 2025-09-07 | L122: 49 | M122: 2026-03-08
C123: Count Contribution weeks | D123: Max NIC2 weeks | E123: =IF(K97>K98,52,53) -> 53 | F123: NOT FOR REQUIREMENTS | J123: 24 | K123: 2025-09-14 | L123: 50 | M123: 2026-03-15
C124: Student Loan Threshold Plan 1 | D124: SL_limit1 | E124: 26065 | J124: 25 | K124: 2025-09-21 | L124: 51 | M124: =M123+7 -> 2026-03-22
C125: Student Loan Threshold Plan 2 | D125: SL_limit2 | E125: 28470 | J125: 26 | K125: =K124+7 -> 2025-09-28 | L125: 52 | M125: =M124+7 -> 2026-03-29
C126: Student Loan Threshold Plan 4 | D126: SL_limit4 | E126: 32745 | L126: 53 | M126: 2026-04-05 | N126: =IF(M126>M127,52,53) -> 53
C127: Postgraduate Loan Threshold | D127: PGL_limit | E127: 21000 | L127: last day | M127: =K98 -> 2026-04-05
C128: Student Loan Unearned Income Threshold | D128: SL_UIT | E128: 2000
C131: Misc | J131: =IF(ppr_extender<1000,ppr_extender,H132&","&IF(I132<10,"00"&I132,IF(I132<100,"0"&I132,I132))) -> 0
A132: BPA claimed | C132: POA threshold | D132: POA_limit | E132: 1000 | G132: ppr | H132: =TRUNC(ppr_extender/1000,0) -> 0 | I132: =ppr_extender-(H132*1000) -> 0 | J132: =IF(gift_extender<1000,gift_extender,H133&","&IF(I133<10,"00"&I133,IF(I133<100,"0"&I133,I133))) -> 0
C133: Resident Non-domicile Lower charge | D133: Res_non_dom_ch | E133: 30000 | G133: gift aid | H133: =TRUNC(gift_extender/1000,0) -> 0 | I133: =gift_extender-(H133*1000) -> 0 | J133: =IF(extended_BR<1000,extended_BR,H134&","&IF(I134<10,"00"&I134,IF(I134<100,"0"&I134,I134))) -> 37,700
C134: Resident Non-domicile Higher charge | D134: Res_non_dom_High_ch | E134: 60000 | G134: extended BR | H134: =TRUNC(extended_BR/1000,0) -> 37 | I134: =extended_BR-(H134*1000) -> 700 | J134: =IF((extended_BR+SR_band)<1000,(extended_BR+SR_band),H135&","&IF(I135<10,"00"&I135,IF(I135<100,"0"&I135,I135))) -> 42,700
C135: Non-domicile remittance basis allowance limit | D135: ND_limit | E135: 2000 | G135: HR limit | H135: =TRUNC((extended_BR+SR_band)/1000,0) -> 42 | I135: =(extended_BR+SR_band)-(H135*1000) -> 700 | J135: =IF((SR_band)<1000,(SR_band),H136&","&IF(I136<10,"00"&I136,IF(I136<100,"0"&I136,I136))) -> 5,000
C136: coded out limit | D136: coded_out_limit | E136: 3000 | G136: SR band | H136: =TRUNC((SR_band)/1000,0) -> 5 | I136: =(SR_band)-(H136*1000) -> 0
C137: Child Benefit Higher Rate Threshold | D137: CBC_HR_threshold | E137: 60000
C138: Child Benefit Taper | D138: CBC_taper | E138: 0.005
C139: Child Benefit rate | D139: CBC_rate | E139: 0.01
C140: Temporary repatriation facility | D140: TRF_rate | E140: 0.12
C141: Winter Fuel Payment Threshold | D141: WFP_threshold | E141: 35000
C142: Winter Fuel Payment Threshold rate | D142: WFP_rate | E142: 1
C144: Allowances
C145: Personal Allowance | D145: P_A | E145: 12570
C146: Age Allowance Income limit | D146: AA_limit | E146: 37700
C147: Tapered PA limit | D147: PA_taper_limit | E147: 100000
C148: Age Allowance Income limit excess | D148: AA_excess | E148: 0.5
C149: Personal Savings Allowance Basic Rate | D149: PSA_BR | E149: 1000
C150: Personal Savings Allowance Higher Rate | D150: PSA_HR | E150: 500
C151: Personal Savings Allowance Additional Higher Rate | D151: PSA_AHR | E151: 0
C152: Dividend Allowance | D152: DA | E152: 500
C153: Transferable personal allowance | D153: T_P_A | E153: 1260 | G153: =CEILING(P_A*10%,10) -> 1260
C154: Minimum MCA | D154: MCA | E154: 4360
C155: Half MCA | D155: MCA_2 | E155: 2180 | G155: =MCA/2 -> 2180
C156: Higher MCA | D156: H_MCA | E156: 11270
C157: Blind Person's Allowance | D157: BPA | E157: 3130
C158: Maintenance & Alimony | D158: SMP | E158: 4360 | G158: =MCA -> 4360 | H158: =MCA
C159: Capital Gains annual exempt amount | D159: CG_exempt | E159: 3000
C160: Deductions Cap | D160: Dedn_cap | E160: 50000
C161: Deductions taper | D161: Dedn_taper | E161: 0.25
C163: Dates | H163: Date stuff | I163: 1 | J163: January
C164: Year MCA due | D164: MCA_year | E164: 1935 | F164: 25 | H164: =NOW() -> 2026-02-26T07:53:39.740 | I164: 2 | J164: February
C165: Tax year start | D165: Tax_year_start | E165: =20&F164 -> 2025 | F165: 26 | H165: ='Add pages'!I5 -> 00:00:00 | I165: 3 | J165: March
C166: Tax year end | D166: Tax_year_end | E166: =20&F165 -> 2026 | F166: 27 | H166: =IF(H165=0,H164,H165) -> 46079.32893 | I166: 4 | J166: April
C167: BCD year | D167: BCD_year | E167: =20&F166 -> 2027 | H167: =DAY(H166)&" "&VLOOKUP(MONTH(H166),I163:J174,2)&" "&YEAR(H166) -> 26 February 2026 | I167: 5 | J167: May
A168: Taxpayer Age | I168: 6 | J168: June
I169: 7 | J169: July
I170: 8 | J170: August
C171: Tax Year | D171: Tax_year | E171: =Tax_year_start&"-"&F165 -> 2025-26 | I171: 9 | J171: September
C172: Next tax year | D172: next_year | E172: =Tax_year_end&"-"&F166 -> 2026-27 | I172: 10 | J172: October
A173: Wife's Age | C173: Last tax year | D173: last_year | E173: =Tax_year_start-1&"-"&F164 -> 2024-25 | I173: 11 | J173: November
I174: 12 | J174: December
C175: Pension Charges
A176: MCA | C176: LTA charge - Lump sum | D176: LTA_lump | E176: 0.55
C177: LTA charge - Pension | D177: LTA_pension | E177: 0.25 | H177: Welsh Date stuff | I177: 1 | J177: Ionawr
C178: Annual Allowance charge threshold | D178: Pen_AA_limit | E178: 60000 | H178: =NOW() -> 2026-02-26T07:53:39.770 | I178: 2 | J178: Chwefror
C179: Money Purchase Annual Allowance charge threshold (lower allowance) | D179: Pen_MPAA_limit | E179: 10000 | H179: ='Add pages'!I5 -> 00:00:00 | I179: 3 | J179: Mawrth
C180: Annual Allowance charge Rate | D180: Pen_AA_rate | E180: 0.4 | H180: =IF(H179=0,H178,H179) -> 46079.32893 | I180: 4 | J180: Ebrill
C181: Unauthorised payments | D181: Pen_Upayts | E181: 0.4 | H181: =DAY(H180)&" "&VLOOKUP(MONTH(H180),I177:J188,2)&" "&YEAR(H180) -> 26 Chwefror 2026 | I181: 5 | J181: Mai
C182: Unauthorised payments -surcharge | D182: Upayts_surcharge | E182: 0.55 | I182: 6 | J182: Mehefin
C183: Short service refund Lower Rate | D183: SSR_lower_rate | E183: 0.2 | I183: 7 | J183: Gorffennaf
C184: Short service refund Lower Rate band | D184: SSR_lower_band | E184: 20000 | I184: 8 | J184: Awst
B185: 1 | C185: Short service refund charge Higher Rate | D185: SSR_higher_rate | E185: 0.5 | I185: 9 | J185: Medi
B186: 2 | C186: Special lump sum death benefit Rate | D186: SLSDB_rate | E186: 0.45 | I186: 10 | J186: Hydref
B187: 3 | C187: Overseas Transfer Charge | D187: OTC_rate | E187: 0.25 | I187: 11 | J187: Tachwedd
C188: Minimum relevant earnings | D188: min_relevant_earns | E188: 3600 | I188: 12 | J188: Rhagfyr
A190: NIC | C190: MCA Age
A191: Class 4 Exempt | B191: 1 | C191: ="Before 6/4/"&MCA_year&" (age over "&Tax_year_start-MCA_year&")" -> Before 6/4/1935 (age over 90) | D191: =tp_age_ind=1 -> FALSE
B192: 2 | C192: ="After 6/4/"&MCA_year&" (age "&Tax_year_start-MCA_year&" or under)" -> After 6/4/1935 (age 90 or under) | D192: =tp_age_ind=2 -> TRUE
A194: Class 2 Voluntary Deductions | C194: MCA Claim Type
B195: 1 | C195: =IF(MCA_claim=1,"","1) Before 6/4/"&MCA_year) ->  | D195: =Wife_age_ind=1 -> FALSE | E195: ="over "&Tax_year_start-MCA_year -> over 90
B196: 2 | C196: =IF(MCA_claim=1,"","2) After 5/4/"&MCA_year&" or not present") ->  | D196: =Wife_age_ind=2 -> TRUE
B198: 1 | C198: 1) Not Claimed | D198: =MCA!F5=1 -> TRUE
B199: 2 | C199: ="2) husband / higher income partner (box "&MCA!$C$4&" present)" -> 2) husband / higher income partner (box 1 present) | D199: =MCA!F5=2 -> FALSE
B200: 3 | C200: ="3) wife / lower income partner (box "&MCA!$C$5&" present)" -> 3) wife / lower income partner (box 8 present) | D200: =MCA!F5=3 -> FALSE
B202: 1 | C202: =IF(mca_not_claimed,"","1) None to spouse/partner") ->  | D202: =MCA!F13=1 -> TRUE
B203: 2 | C203: =IF(MCA_claim>1,"2) 50% to spouse/partner (box "&MCA!$C$12&" ticked)","") ->  | D203: =MCA!F13=2 -> FALSE
B204: 3 | C204: =IF(MCA_claim>1,"3) All to spouse/partner (box "&MCA!$C$13&" ticked)","") ->  | D204: =MCA!F13=3 -> FALSE
C206: Older_spouse | D206: =MIN(tp_age_ind,Wife_age_ind) -> 2
C208: months not married | D208: =months_married-1 -> 0
C209: =IF(MCA!$F$5=1,"","1) "&'allowances (c14c15)'!C105) -> 
C210: =IF(MCA!$F$5=1,"","2) "&'allowances (c14c15)'!C106) -> 
C211: =IF(MCA!$F$5=1,"","3) "&'allowances (c14c15)'!C107) -> 
C212: =IF(MCA!$F$5=1,"","4) "&'allowances (c14c15)'!C108) -> 
C213: =IF(MCA!$F$5=1,"","5) "&'allowances (c14c15)'!C109) -> 
C214: =IF(MCA!$F$5=1,"","6) "&'allowances (c14c15)'!C110) -> 
... 13 more rows

Sheet Changes log
A1: Key
A2: Version change Prime colours per change log
A3: Roll forward annual changes OE
A4: Furnished Holiday lettings Regime Repeal
A5: ORIP Repeal
A6: Non UK Domicile reform
A7: SA Data Gaps Start and End dates
A8: SA Data Gaps Dividends
A9: CGT rate changes
A10: Green First year Capital Allowances
A11: Winter Fuel Payment
A12: Pensions programme - Low Earners Anomaly
A13: SRIT
A14: WRIT
A16: Change Reason | B16: Worksheet changed | C16: What was changed | D16: Notes
A17: Changes v0.0.1 | B17: 2025-02-13
A18: v0.0.1 created | B18: NONE | C18: Taken from MTR_Tester-2024-25-V-2.4.0 | D18: This is the baseline 13/01/2025
A19: roll forward | B19: Changes Log | C19: Version change Prime colours per change log updated
A20: roll forward | B20: Changes Log | C20: Previous Year PY changes removed
A21: roll forward | B21: Test Case index | C21: Previous Year PY changes highlighting removed
A22: roll forward | B22: tc_template | C22: Previous Year PY changes highlighting removed
A23: Changes v0.1.0 | B23: 2025-02-18
A24: v0.0.1 created | B24: NONE | C24: Taken from MTR_Tester-2025-26 - V0.0.1
A25: roll forward | B25: Data tab | C25: Previous Year PY changes/highlighting removed
A26: roll forward | B26: Data tab | C26: NIC2_weekamt changed from "3.45" to "3.50"
A27: roll forward | B27: Data tab | C27: NIC2_annual_limit changed from "182.85" to "185.50"
A28: roll forward | B28: Data tab | C28: NIC2SF_weekamt changed from "4.10" to "4.15"
A29: roll forward | B29: Data tab | C29: NIC2SF_annual_limit changed from "217.30" to "219.95"
A30: roll forward | B30: Data tab | C30: NIC2_SPT changed from "6725" to "6845"
A31: roll forward | B31: Data tab | C31: SSR_band changed from "2,306" to "2,827"
A32: roll forward | B32: Data tab | C32: SBR_band changed from "11,685" to "12,094"
A33: roll forward | B33: Data tab | C33: SIR_band changed from "17,101" to "16,171"
A34: roll forward | B34: Data tab | C34: SL_limit1 changed from "24,990" to "26,065"
A35: roll forward | B35: Data tab | C35: SL_limit1 changed from "27,295" to "28,470"
A36: roll forward | B36: Data tab | C36: SL_limit1 changed from "31,395" to "32,745"
A37: roll forward | B37: Data tab | C37: MCA changed from "4,280" to "4,360"
A38: roll forward | B38: Data tab | C38: MCA_2 changed from "2,140" to "2,180"
A39: roll forward | B39: Data tab | C39: H_MCA changed from "11,080" to "11,270"
A40: roll forward | B40: Data tab | C40: BPA changed from "3,070" to "3,130"
A41: roll forward | B41: Data tab | C41: SMP changed from "4,280" to "4,360"
A42: roll forward | B42: Data tab | C42: Lower_CGT_rate changed from "10%" to "18%"
A43: roll forward | B43: Data tab | C43: Upper_CGT_rate changed from "20%" to "24%"
A44: roll forward | B44: Data tab | C44: ER_CGT_rate changed from "10%" to "14%"
A45: roll forward | B45: Data tab | C45: Lower_CGT_rate_CI struck through
A46: roll forward | B46: Data tab | C46: Upper_CGT_rate_CII struck through
A47: Changes v1.0.0 | B47: 2025-07-23
A48: test case enhancements and FHL | B48: component sheets | C48: changes made for a large number of test cases | D48: Furnished holiday lettings
A49: Enhancements | B49: TSR (c17) | C49: Formula in cell F101 (c17.21) changed to only calculate when resident
A50: Furnished Holiday lettings Regime Repeal | B50: NS income (c1) | C50: c1.28 changed from "Total all instances (lower of PRO13 and PRO14)" to "Set to zero"
A51: Furnished Holiday lettings Regime Repeal | B51: NS income (c1) | C51: c1.29 changed from "Total all instances (PRO15)" to "Set to zero"
A52: Furnished Holiday lettings Regime Repeal | B52: NS income (c1) | C52: c1.30 changed from "c1.29 + c1.28" to "Set to zero"
A53: Furnished Holiday lettings Regime Repeal | B53: NS income (c1) | C53: c1.34 changed from "c1.30 + c1.33" to "Set to zero"
A54: Furnished Holiday lettings Regime Repeal | B54: NS income (c1) | C54: c1.57 changed from "c1.9 + c1.10 + c1.17 + c1.20 + c1.27 + c1.34 + c1.35a + c1.40 + c1.44 + c1.51 + c1.52 + c1.56" to "c1.9 + c1.10 + c1.17 + c1.20 + c1.27 + c1.33 + c1.35a + c1.40 + c1.44 + c1.51 + c1.52 + c1.56"
A55: Furnished Holiday lettings Regime Repeal | B55: Deductions (c4) | C55: c4.27 changed from "from c1.28" to "Set to zero"
A56: Furnished Holiday lettings Regime Repeal | B56: Deductions (c4) | C56: c4.39 changed from "c4.1 + c4.4 + c4.5 + c4.6 + c4.7 + c4.8 + c4.13 + c4.14 + c4.19 + c4.20 + c4.24.1 + c4.27 + c4.28 + c4.31 + c4.33 + c4.34 + c4.35 + c4.36 + c4.37 + c4.38 + c4.37.1" to "c4.1 + c4.4 + c4.5 + c4.6 + c4.7 + c4.8 + c4.13 + c4.14 + c4.19 + c4.20 + c4.24.1 + c4.28 + c4.31 + c4.33 + c4.34 + c4.35 + c4.36 + c4.37 + c4.38 + c4.37.1"
A57: Furnished Holiday lettings Regime Repeal | B57: Deductions (c4) | C57: c4.46 changed from "c4.2 + c4.4 + c4.26 + c4.27 + c4.28 + c4.33 + c4.35 + c4.37.1" to "c4.2 + c4.4 + c4.26 + c4.28 + c4.33 + c4.35 + c4.37.1"
A58: Furnished Holiday lettings Regime Repeal | B58: Deductions (c4) | C58: c4.63b changed from "c4.5 + c4.7 + c4.13 + c4.19 + c4.27 + c4.28 + c4.33 + c4.35" to "c4.5 + c4.7 + c4.13 + c4.19 + c4.28 + c4.33 + c4.35"
A59: Furnished Holiday lettings Regime Repeal | B59: S loans (c27) | C59: c27.15 changed from "Total all instances of PRO15" to "Set to zero"
A60: Furnished Holiday lettings Regime Repeal | B60: IRCX_template | C60: L10 income-IFP MTR Calculation box changed from "c1.34" to "c1.33"
A61: Furnished Holiday lettings Regime Repeal | B61: component sheets | C61: c5 boxes 5 - 19 struck through
A62: Furnished Holiday lettings Regime Repeal | B62: target | C62: updated
A63: Furnished Holiday lettings Regime Repeal | B63: tc_template | C63: updated
A64: Pensions programme - Low Earners Anomaly | B64: NS income (c1) | C64: c1.8.1 changed from "Total all instances (EMP3.1)" to "Set to zero"
A65: Pensions programme - Low Earners Anomaly | B65: NS income (c1) | C65: c1.9 changed from "(c1.4 + c1.5 + c1.8.1) minus c1.8" to "(c1.4 + c1.5) minus c1.8"
A66: Pensions programme - Low Earners Anomaly | B66: NS income (c1) | C66: c3.21.1 changed from "(c1.57 + c1.58 + c2.19 + c3.15 + c3.18 + c3.19 + c3.20) minus c1.8.1" to "Set to zero"
A67: SA Data Gaps Dividends | B67: component sheets | C67: C2 7.1-7.5 added
A68: SA Data Gaps Start and End dates | B68: component sheets | C68: C3 5.1 & 6.1 added (FSE)
A69: SA Data Gaps Start and End dates | B69: component sheets | C69: C3 4.1 & 5.1 added (SSE)
A70: SA Data Gaps Start and End dates | B70: component sheets | C70: C4 2.1 & 3.1 added (FPS)
A71: SA Data Gaps Start and End dates | B71: component sheets | C71: C4 2.1 & 3.1 added (SPS)
A72: SA Data Gaps Dividends | B72: component sheets | C72: TC8 & TC21 updated
A73: Enhancements | B73: Deductions (c4) | C73: new box "c4.57.1" "from REL1"
A74: Enhancements | B74: Deductions (c4) | C74: new box "c4.57.2" "c1.9 + c1.10 + c1.17 + c1.20 + c1.27 + c1.53 + c1.58 + c4.40.1 + c4.40.2"
A75: Enhancements | B75: Deductions (c4) | C75: new box "c4.57.3" "higher of min_relevant_earns (£3,600) and c4.57.2"
A76: Enhancements | B76: Deductions (c4) | C76: c4.58 changed from "from REL1" to "lower of c4.57.1 and c4.57.4"
A77: Non UK Domicile reform | B77: NRD | C77: Components, input sheet, tc_template and target updated
A78: Non UK Domicile reform | B78: FOR | C78: Components, input sheet, tc_template and target updated
A79: Non UK Domicile reform | B79: RBC (c19) | C79: c19.1 changed from “if (box_NRD28 = Y, box_NRD29 = N, and box_NRD = N) and (NRD + NRD is greater than 0 (zero)) if box_NRD = Y then c19.1 = Res_non_dom_High_ch (£60,000) else if box_NRD = Y then c19.1 = Res_non_dom_ch (£30,000) else c19.1 = 0 (zero) end if end if end if” to “Set to zero”
A80: Non UK Domicile reform | B80: IRCX_template | C80: L93d MTR calculation box for "non-dom-charge-amount" changed from "c19.1" to "not in use"
A81: Non UK Domicile reform | B81: Data tab | C81: "Res_non_dom_ch" struck through - no longer used
A82: Non UK Domicile reform | B82: Data tab | C82: "Res_non_dom_High_ch" struck through - no longer used
A83: Non UK Domicile reform | B83: Data tab | C83: "ND_limit" struck through - no longer used
A84: Non UK Domicile reform | B84: Data tab | C84: TRF_rate 12% added
A85: Non UK Domicile reform | B85: IRCX_template | C85: L83d - TRF_amount added
A86: Non UK Domicile reform | B86: IRCX_template | C86: L83d - TRF_charge added
A87: Non UK Domicile reform | B87: IRCX_template | C87: data name non-dom-charge-amount MTR calc box changed from "c19.1" to "Set to zero"
A88: Non UK Domicile reform | B88: SA302_template | C88: L79A struck through
A89: Non UK Domicile reform | B89: SA302_template | C89: L83d added
A90: Non UK Domicile reform | B90: SA302_template | C90: L93d struck through
A91: Non UK Domicile reform | B91: Deductions (c4) | C91: First If above c4.64 changed from “if (box_NRD28 = Y and box_NRD29 = N and box_NRD16 = N) or (box_NRD1 = Y and box_NRD15 = N and box_NRD16 = N) or (Calculation type = non-resident) set boxes c4.64 to c4.69 to 0 (zero) else” to “if (box_NRD28 = Y or box_NRD29 = Y or box_NRD40 = Y) or (box_NRD1 = Y and box_NRD15 = N and box_NRD16 = N) or (Calculation type = non-resident) set boxes c4.64 to c4.69 to 0 (zero)”
A92: Non UK Domicile reform | B92: Deductions (c4) | C92: Overarching If above c4.68 changed from “if (box_NRD1 = Y and box_NRD15 = Y and box_NRD16 = N) c4.68 = 0 (zero) else” to “if (box_NRD1 = Y and box_NRD15 = Y and box_NRD16 = N) or (box_NRD28 = Y or box_NRD29 = Y or box_NRD40 = Y) c4.68 = 0 (zero)”
A93: Non UK Domicile reform | B93: Deductions (c4) | C93: c4.4 changed from “If calculation type = non-resident c4.4 = 0 (zero) else c4.4 = AOR8 end if” to “If calculation type = non-resident or (box_NRD28 = Y or box_NRD29 = Y or box_NRD40 = Y) c4.4 = 0 (zero) else c4.4 = AOR8 end if”
A94: Non UK Domicile reform | B94: Tax adj (c9) | C94: Overarching If above c9.16 changed from “If (box_NRD28 = Y and box_NRD29 = N and box_NRD16 = N) or (box_NRD1 = Y and box_NRD15 and box_NRD16 = N) or Calculation type = non-resident set boxes c9.16 to c9.17 to 0 (zero) else” to “If (box_NRD28 = Y or box_NRD29 = Y or box_NRD40 = Y) or (box_NRD1 = Y and box_NRD15 and box_NRD16 = N) or Calculation type = non-resident set boxes c9.16 to c9.17 to 0 (zero) else”
A95: Non UK Domicile reform | B95: Tax adj (c9) | C95: Overarching If above c9.20 changed from “If (box_NRD28 = Y and box_NRD29 = N and box_NRD16 = N) or (box_NRD1 = Y and box_NRD15 and box_NRD16 = N) or Calculation type = non-resident set boxes c9.16 to c9.17 to 0 (zero) else” to “If (box_NRD28 = Y or box_NRD29 = Y or box_NRD40 = Y) or (box_NRD1 = Y and box_NRD15 and box_NRD16 = N) or Calculation type = non-resident set boxes c9.20 to c9.21 to 0 (zero) else”
A96: Non UK Domicile reform | B96: NS income (c1) | C96: c1.35 changed from "FOR7.2 + FOR7.4 + FOR9 + FOR13 + FOR41 + FOR42" to "c1.35a + c1.35b + c1.35c + c1.35d c10.3.2"
A97: Non UK Domicile reform | B97: NS income (c1) | C97: c1.35a changed from "c1.35 + c10.3.2" to "from FOR7.2"
A98: Non UK Domicile reform | B98: NS income (c1) | C98: new box c1.35b "from FOR4"
A99: Non UK Domicile reform | B99: NS income (c1) | C99: new box c1.35c "from FOR9"
A100: Non UK Domicile reform | B100: NS income (c1) | C100: new box c1.35d "from FOR13
A101: Non UK Domicile reform | B101: NS income (c1) | C101: c1.41 changed from "from INC6" to "from FOR48"
A102: Non UK Domicile reform | B102: NS income (c1) | C102: If surrounding c1.41 to c1.43a struck though
A103: Non UK Domicile reform | B103: NS income (c1) | C103: c1.42 changed from “from FOR4” to “from FOR54”
A104: Non UK Domicile reform | B104: NS income (c1) | C104: c1.43 changed from “from FOR6” to “from FOR55”
A105: Non UK Domicile reform | B105: NS income (c1) | C105: c1.43a changed from “from FOR11” to “from FOR56”
A106: Non UK Domicile reform | B106: NS income (c1) | C106: new box c1.43b "from FOR57"
A107: Non UK Domicile reform | B107: NS income (c1) | C107: new box c1.43c "from FOR58"
A108: Non UK Domicile reform | B108: NS income (c1) | C108: new box c1.43d "from FOR59"
A109: Non UK Domicile reform | B109: NS income (c1) | C109: new box c1.43e "from FOR60"
A110: Non UK Domicile reform | B110: NS income (c1) | C110: new box c1.43f "from FOR61"
A111: Non UK Domicile reform | B111: NS income (c1) | C111: new box c1.43g "from FOR62"
A112: Non UK Domicile reform | B112: NS income (c1) | C112: new box c1.43h "from FOR63"
A113: Non UK Domicile reform | B113: NS income (c1) | C113: new box c1.43i "from FOR64"
A114: Non UK Domicile reform | B114: NS income (c1) | C114: c1.44 changed from “c1.41 + c1.42 + c1.43 + c1.43a” to “c1.41 + c1.42 + c1.43 + c1.43a + c1.43b + c1.43c + c1.43d + c1.43e + c1.43f + c1.43g + c1.43h + c1.43i”
A115: Non UK Domicile reform | B115: NS income (c1) | C115: new box c1.51.1 "from TRU22.1"
A116: Non UK Domicile reform | B116: NS income (c1) | C116: c1.57 changed from "c1.9 + c1.10 + c1.17 + c1.20 + c1.27 + c1.34 + c1.35a + c1.40 + c1.44 + c1.51 + c1.52 + c1.56" to "c1.9 + c1.10 + c1.17 + c1.20 + c1.27 + c1.33 + c1.35 + c1.40 + c1.44 + c1.51 + c1.52 + c1.56"
A117: Non UK Domicile reform | B117: Savings (c2) | C117: c2.7 changed from “If NRD28 = N c2.7= FOR4 else c2.7 = 0 end if” to “FOR4”
A118: Non UK Domicile reform | B118: Savings (c2) | C118: new box c2.7.1 "from FOR51"
B119: Savings (c2) | C119: c2.9 changed from "c2.6 + c2.7 + c2.8" to "c2.6 + c2.7 + c2.7.1 + c2.8"
A120: Non UK Domicile reform | B120: Divs (c3) | C120: If surrounding c3.2 to c3.4 struck through.
A121: Non UK Domicile reform | B121: Divs (c3) | C121: new box c3.4.1 "from FOR53"
A122: Non UK Domicile reform | B122: Divs (c3) | C122: c3.5 changed from “c3.2 + c3.3 + c3.4” to “c3.2 + c3.3 + c3.4 + c3.4.1”
A123: Non UK Domicile reform | B123: Tax adj (c9) | C123: c9.39g changed from "set to zero" to "NRD51"
C124: new box c9.39g1 "from NRD53"
A125: Non UK Domicile reform | B125: Tax adj (c9) | C125: c9.39h changed from "set to zero" to "(c9.39g + c9.39g1) × TRF_rate (12%)"
A126: Non UK Domicile reform | B126: CG (18) | C126: new box c18.4.1
A127: Non UK Domicile reform | B127: CG (18) | C127: new box c18.4.2
A128: Non UK Domicile reform | B128: CG (18) | C128: new box c18.4.3
A129: Non UK Domicile reform | B129: CG (18) | C129: new box c18.4.4
A130: Non UK Domicile reform | B130: CG (18) | C130: new box c18.4.5
A131: Non UK Domicile reform | B131: CG (18) | C131: new box c18.4.6
A132: Non UK Domicile reform | B132: CG (18) | C132: new box c18.4.7
A133: Non UK Domicile reform | B133: CG (18) | C133: new box c18.4.8
A134: Non UK Domicile reform | B134: CG (18) | C134: new box c18.4.9
A135: Non UK Domicile reform | B135: CG (18) | C135: new box c18.4.10
A136: Non UK Domicile reform | B136: CG (18) | C136: c18.5a changed from "c18.5 minus c18.1" to "c18.5 minus c18.4.6"
A137: Non UK Domicile reform | B137: CG (18) | C137: c18.7 changed from "c18.5 minus (c18.1 + c18.1a)" to "c18.5 minus (c18.4.6 + c18.4.7)"
A138: Non UK Domicile reform | B138: CG (18) | C138: c18.8 changed from "c18.5 minus (c18.1 + c18.1a + c18.3)" to "c18.5 minus (c18.4.6 + c18.4.7 + c18.4.8)"
A139: Non UK Domicile reform | B139: CG (18) | C139: c18.9 changed from "c18.1 minus c18.5" to "c18.4.6 minus c18.5"
A140: Non UK Domicile reform | B140: CG (18) | C140: c18.9a changed from "c18.1a minus c18.5a" to "c18.4.7 minus c18.5a"
A141: Non UK Domicile reform | B141: CG (18) | C141: c18.11 changed from "c18.3 minus c18.7" to "c18.4.8 minus c18.7"
A142: Non UK Domicile reform | B142: CG (18) | C142: c18.12 changed from "c18.4 minus c18.8" to "c18.4.10 minus c18.8"
A143: Non UK Domicile reform | B143: CG (18) | C143: c18.24 changed from "If (box_NRD28 = Y and box_NRD29 = N and box_NRD16 = N) c18.24 = 0 (zero) Else c18.24 = CG_exempt (£3,000) end if" to "If (box_NRD28 = Y or box_NRD29 = Y or box_NRD40 = Y) c18.24 = 0 (zero) Else c18.24 = CG_exempt (£3,000) end if"
A144: Non UK Domicile reform | B144: LLIR (24) | C144: new box c24.9.1
A145: Non UK Domicile reform | B145: LLIR (24) | C145: c24.15a changed from "c24.1 + c24.3a + c24.4a + c24.6 + c24.9 + c24.10" to "c24.1 + c24.3a + c24.4a + c24.6 + c24.9 + c24.9.1 + c24.10"
A146: Non UK Domicile reform | B146: LLIR (24) | C146: c24.16 changed from "c24.3 + c24.4 + c24.5 + c24.8 + c24.9 + c24.10" to "c24.3 + c24.4 + c24.5 + c24.8 + c24.9 + c24.9.1 + c24.10"
A147: Non UK Domicile reform | B147: SA302_template | C147: new line L27.1 added
A148: Non UK Domicile reform | B148: SA302_template | C148: new line L27.2 and L27.2 Or added
A149: Non UK Domicile reform | B149: SA302_template | C149: L85 2 new Or lines added
A150: Non UK Domicile reform | B150: SA302_template | C150: L85 print condition for 1st line and 1st Or updated to include TRF_charge
A151: Non UK Domicile reform | B151: SA302_template | C151: L94 - four new Or lines added
A152: Non UK Domicile reform | B152: SA302_template | C152: L94 - 1st four lines updated to include TRF_charge
A153: Non UK Domicile reform | B153: SA302_template | C153: L111 - four new Or lines added
A154: Non UK Domicile reform | B154: SA302_template | C154: L111 - 1st four Or lines updated to include TRF_charge
A155: Non UK Domicile reform | B155: SA302_template | C155: L120e - four new Or lines added
A156: Non UK Domicile reform | B156: SA302_template | C156: L120e - 1st four lines updated to include TRF_charge
A157: Non UK Domicile reform | B157: SA302_template | C157: L120h - four new Or lines added
A158: Non UK Domicile reform | B158: SA302_template | C158: L120h - 1st for lines updated to include TRF_charge
A159: Non UK Domicile reform | B159: SA302_template | C159: L121 - four new Or lines added
A160: Non UK Domicile reform | B160: SA302_template | C160: L121 - 1st four Or lines updated to include TRF_charge
A161: Non UK Domicile reform | B161: SA302_template | C161: L126 - two new Or lines
A162: Non UK Domicile reform | B162: SA302_template | C162: L126 - 1st two lines updated
A163: Non UK Domicile reform | B163: POAs (c13) | C163: c13.11 changed from "c12.16 minus (c12.3 + c12.7 + c12.7b + c13.8 + NRD36)" to "c12.16 minus (c12.3 + c12.7 + c12.7b + c13.8)
A164: Non UK Domicile reform | B164: POAs (c13) | C164: c13.12 changed from "c9.25 + c9.27 + c12.1e + c12.2 + c12.9 + c12.11 minus NRD36" to "c9.25 + c9.27 + c12.1e + c12.2 + c12.9 + c12.11"
A165: CGT rate changes | B165: Data tab | C165: "CI_CGT_rate (32%) added
A166: CGT rate changes | B166: CG (18) | C166: c18.41 changed from "Lower of c18.27 and c18.40" to "Set to zero"
A167: CGT rate changes | B167: CG (18) | C167: c18.42 changed from "c18.41 × Lower_CGT_rate_CI (32%)" to "Set to zero"
A168: CGT rate changes | B168: CG (18) | C168: c18.43 changed from "c18.27 minus c18.41" to "c18.27"
C169: c18.44 changed from "c18.43 × Upper_CGT_rate_CI (28%)" to "c18.43 × CI_CGT_rate (32%)"
A170: CGT rate changes | B170: CG (18) | C170: c18.45 changed from "c18.40 minus c18.27" to "Set to zero"
A171: CGT rate changes | B171: CG (18) | C171: c18.45.1 changed from "Lower of c18.27.1 and c18.45" to "Lower of c18.27.1 and c18.40"
A172: CGT rate changes | B172: CG (18) | C172: c18.45.5 changed from "c18.45 minus c18.27.1" to "c18.40 minus c18.27.1"
A173: Roll forward annual changes OE | B173: Deductions (c4) | C173: new box c4.57.1
A174: Roll forward annual changes OE | B174: Deductions (c4) | C174: new box c4.57.2
A175: Non UK Domicile reform | B175: Deductions (c4) | C175: new box c4.47.1
A176: Non UK Domicile reform | B176: Deductions (c4) | C176: new box c4.47.2
A177: Non UK Domicile reform | B177: Deductions (c4) | C177: new box c4.47.3
A178: Non UK Domicile reform | B178: Deductions (c4) | C178: new box c4.47.4
A179: Non UK Domicile reform | B179: Deductions (c4) | C179: new box c4.47.5
A180: Non UK Domicile reform | B180: Deductions (c4) | C180: new box c4.47.6
A181: Non UK Domicile reform | B181: Deductions (c4) | C181: new box c4.47.7
A182: Non UK Domicile reform | B182: Deductions (c4) | C182: new box c4.47.8
A183: Non UK Domicile reform | B183: Deductions (c4) | C183: new box c4.47.9
A184: Non UK Domicile reform | B184: Deductions (c4) | C184: new box c4.47.10
A185: Non UK Domicile reform | B185: Deductions (c4) | C185: new box c4.47.11
A186: Non UK Domicile reform | B186: Deductions (c4) | C186: new box c4.47.12
A187: Non UK Domicile reform | B187: Deductions (c4) | C187: new box c4.47.13
A188: Non UK Domicile reform | B188: Deductions (c4) | C188: new box c4.47.14
A189: Non UK Domicile reform | B189: Deductions (c4) | C189: new box c4.47.15
A190: Non UK Domicile reform | B190: Deductions (c4) | C190: new box c4.47.16
A191: Non UK Domicile reform | B191: Deductions (c4) | C191: new box c4.47.17
A192: Non UK Domicile reform | B192: Deductions (c4) | C192: new box c4.47.18
A193: Non UK Domicile reform | B193: Deductions (c4) | C193: new box c4.47.19
A194: Non UK Domicile reform | B194: Deductions (c4) | C194: new box c4.47.20
A195: Non UK Domicile reform | B195: Deductions (c4) | C195: new box c4.47.21
A196: Non UK Domicile reform | B196: Deductions (c4) | C196: new box c4.47.22
A197: Non UK Domicile reform | B197: Deductions (c4) | C197: new box c4.47.23
A198: Non UK Domicile reform | B198: Deductions (c4) | C198: new box c4.47.24
A199: Non UK Domicile reform | B199: Deductions (c4) | C199: new box c4.47.25
A200: Non UK Domicile reform | B200: Deductions (c4) | C200: new box c4.47.26
A201: Non UK Domicile reform | B201: Deductions (c4) | C201: new box c4.47.27
... 141 more rows

Sheet Read me
B1: The Tester | C1: ='Add pages'!G2 -> Version E1.5.4
B2: The Test Case Generator (Tester) supports the testing of the tax calculation, resulting from the successful capture of
B3: ="a "&tax_year&" Main Tax Return (MTR), and can be used in 3 ways." -> a 2025-26 Main Tax Return (MTR), and can be used in 3 ways.
B5: 1. As a stand-alone tax calculator.
B6: Select the sheets on 'Add pages' that correspond to questions on the Return.
B7: The sheets for the core Return (INC(1), INC(2) and REL) are always visible, others appear when selected.
B8: Enter, the sub-set of Return data required by the tax calculation and
B9: press the 'Calculate Now' button on 'Add pages' to reveal the outputs (see below).
B10: Note: The ‘Reset calculation’ button on the 'Add pages' sheet should used between tests to avoid residual entries
B11: corrupting the expected results.
B13: 2. As a test case generator.
B14: The Tester can auto-populate the input sheets from a number of pre-fabricated test components (see below).
B15: These components can be selected on the 'Selector' and 'More Select' sheets, and the 'Test this case' button will
B16: generate outputs (see below) based on the selection.
B17: The 'Clear selection' button will remove all data from the 'Selector' and 'More Select' sheets, and resets
B18: input sheets and calculation.
B20: 3. As a database of business specified test cases (see below). These are pre-defined full test cases.
B21: Each case is numbered and can be selected by inputting the case number in the box
B22: marked ‘Select test case number to be replayed’ on the 'Test Case index' sheet.
B23: The selected test case can be activated by pressing 'Replay selected case' button on the 'Test Case index' sheet.
B24: This auto-populates the input sheets from the test components that make up the test case, and generates outputs
B25: (see below) based on the selection.
B27: The 'Test case' sheet
B28: When the TCG is used in modes 2 or 3 it will pull together all the data needed for a full Tax Return.
B29: The data appear on the 'Test case' sheet (to the right of the 'Add pages' sheet).
B30: It is important to note that there are differences between the test case and the components used to create it.
B31: Most of the data is supplied by the test components, but some are modified, either to add boxes that are dependant
B32: on other components/data selected, or remove inconstistancies in the selection.
B33: (See 'Adjustments made to produce more realistic cases' for more detail.)
B35: About test components
B36: The Tester is based on a number of pre-fabricated components.
B37: Each component relates to a question or part question on the Main Tax Return.
B38: There are a number of instances of each component, giving a variety of valid MTR entries.
B40: Component | C40: Description | D40: Instances | E40: Worksheet
B41: INC-A | C41: Income boxes INC1 to INC6 (Interest and Dividends) | D41: 15 | E41: C0
B42: INC-B | C42: Income boxes INC7 to INC14 (UK pensions etc. received) | D42: 11 | E42: C0
B43: INC-C | C43: Income boxes INC15 to INC19 (Other UK income) | D43: 6 | E43: C0
B44: REL-A | C44: Tax reliefs boxes REL1 to REL4 (Pension contributions) | D44: 7 | E44: C0
B45: REL-B | C45: Tax reliefs boxes REL5 to REL10 (Charitable giving) | D45: 8 | E45: C0
B46: REL-C | C46: Tax reliefs boxes REL11 to REL14 (Blind Person's Allowance) | D46: 2 | E46: C0
B47: SLR | C47: Student Loans | D47: 6 | E47: C0
B48: CBC | C48: Child Benefit payments | D48: 4 | E48: C0
B49: MAT | C49: Marriage Allowance Transfer | D49: 4 | E49: C0
B50: AOI-A | C50: Additional Information boxes AOI1 to AOI3 (Interest from UK securities) | D50: 3 | E50: C1
B51: AOI-B | C51: Additional Information boxes AOI4 to AOI11 (Life insurance gains) | D51: 9 | E51: C1
B52: AOI-C | C52: Additional Information boxes AOI12 to AOI15 (Stock dividends etc.) | D52: 5 | E52: C1
B53: ASE-A | C53: Additional Information boxes ASE1 to ASE2 (Share schemes) | D53: 3 | E53: C1
B54: ASE-B | C54: Additional Information boxes ASE3 to ASE10 (Lump sum payments) | D54: 3 | E54: C1
B55: ASE-C | C55: Additional Information boxes ASE11 to ASE15 (Other deductions) | D55: 4 | E55: C1
B56: AOR | C56: Additional Information boxes AOR1 to AOR10 (Other tax reliefs) | D56: 10 | E56: C1
B57: MCA | C57: Additional Information boxes MCA1 to MCA11 (Married Couple's Allowance) | D57: 9 | E57: C1
B58: AIL | C58: Additional Information boxes AIL1 to AIL19 (Other Information) | D58: 11 | E58: C1
B59: EMP | C59: Employment | D59: 11 | E59: C2
B60: MOR | C60: Ministers of religion | D60: 6 | E60: C2
B61: SSE | C61: Short self-employment (excluding class 4 NIC) | D61: 8 | E61: C3
B62: FSE | C62: Full self-employment (excluding class 4 NIC) | D62: 9 | E62: C3
B63: LUN | C63: Lloyd's underwriters (excluding class 4 NIC) | D63: 7 | E63: C3
B64: SPS | C64: Short partnership income (excluding class 4 NIC) | D64: 6 | E64: C4
B65: FPS | C65: Full partnership income (excluding class 4 NIC) | D65: 8 | E65: C4
B66: PRO | C66: Income from property | D66: 10 | E66: C5
B67: FOR | C67: ="Foreign income (excluding Foreign Tax Credit Relief - box "&'C6'!C3&")" -> Foreign income (excluding Foreign Tax Credit Relief - box FOR2) | D67: 8 | E67: C6
B68: TRU | C68: Trust income | D68: 4 | E68: C7
B69: CGT | C69: Capital gains | D69: 9 | E69: C8
B70: NRD | C70: Residence, Remittance Basis etc. | D70: 10 | E70: C9
B71: CAL | C71: Tax calculation summary | D71: 18 | E71: C8C9C10
B72: NI2 | C72: Class 2 NIC | D72: 2 | E72: C8C9C10
B73: NI1 | C73: Class 1 NIC | D73: 2 | E73: C8C9C10
B75: Instances of different components can be selected together to produce complete test cases.
B76: In addition to selecting different components, multiple instances of some components can be selected.
B77: (Up to 2 employments, 2 self-employments (1 short & 1 full) and 2 partnerships (1 short & 1 full) .)
B78: Some questions on the core Tax Return and Additional Information pages would require a large number
B79: of components, so have been split (into A, B & C ranges). These can be selected individually or together.
B80: [Whilst all the combinations of components that can be selected will be ‘valid’ in terms of the system, not all will
B81: be ‘realistic’. The generator makes some adjustments to make the case more realistic, but they aren’t
B82: comprehensive.]
B83: The components can be viewed at any time using the ‘Show/Hide Components’ button on the ‘Test’
B84: and ‘More test’ worksheets.
B86: The business specified test cases
B87: ='Add pages'!G2&" of the "&tax_year&" test case generator has a built in database of "&Last_row-1&" test cases." -> Version E1.5.4 of the 2025-26 test case generator has a built in database of 273 test cases.
B88: Details of these can be found on the ‘Test Case index’ worksheet.
B89: Each case is numbered and can be selected by inputting the case number in the box marked
B90: Select test case number to be replayed’. [N.B. After the case number is entered press the 'Enter' key.]
B91: The selected test case can be activated by pressing 'Replay selected case' button on the 'Test case index' sheet.
B92: This auto-populates the input sheets from the test components that make up the test case, and generates outputs
B93: (see below) based on the selection.
B94: Test cases 1 to 25 use identical data to STR test cases 1 to 25, and should produce identical results.
B96: Recording new test cases
B97: New test cases can be quickly added to the existing business test cases.
B98: All new cases will comply with the business validation rules, but may not 'realistic' examples of actual MTRs.
B99: To create a new test case:
C100: 1. Select the required components on the 'Selector' and 'More Select' sheets
C101: 2. Select any required ‘case variable data’ (e.g. date of birth - see note a).
C102: 3. Press the ‘Test this case’ button.
C103: 4. Press the 'Record this case' button on the 'Selector' and 'More Select' sheets
B105: The summary of test components and case specific data needed to re-run this case will be stored in the next
B106: vacant row on the Test Case index' sheet. Once the case is stored it can be 'replayed' as any other test
B107: case.
B108: Note a: The test case generator does not have true date processing capability. There are 5 pre-set dates of birth
B109: and these are the only dates the spreadsheet will recognise.
B111: Amending test cases
B112: Test case data will remain in the input sheets until the ‘Reset calculation’ button on the ‘Add pages’ sheet is
B113: pressed. That data can be amended, by going to the input sheet and over-typing the box entries.
B114: The 'Calculate Now' button on the 'Add pages' sheet will cause certain outputs to be regenerated using the
B115: amended figures.
B116: Note: Where components are being used, amending the input sheets will not change the figures on the
B117: component. The 'test case' sheet is generated from components and will not show the amended figures.
B118: If the test case is recorded the original figures (not amendments) will be stored.
B119: 'Test this case' will remove the amendments and restore the original figures.
B121: Outputs from the Tester
B122: Whatever mode the Tester is used in, the following worksheets are always produced:
B124: SA302 - This is the tax calculation formatted in the style of pages 3/4 of form SA302
B126: Liability - SA110 boxes CAL1 to CAL8
B128: Additionally, when components are used, the following worksheets appear:
B130: Test case - This combines all the data from the selected components into a complete 'MTR'.
B132: The identities of components used appear on all outputs.
B133: All output sheets appear between the 'Add pages' and 'INC(1)' worksheets.
B135: Adjustments made to produce more realistic cases
B136: 1. On the ‘More select’ worksheet there is a tick box to indicate the taxpayer is exempt from paying Class 4 NIC.
B137: This will be set to 'Y' automatically if the taxpayer is aged over 65 or is non-resident.
B138: It will be ignored if no component SSE, FSE, LUN, SPS or FPS is selected.
B139: 2. The value for box FOR2 (Foreign Tax Credit Relief) is not stored in the FOR component. It is calculated for each
B140: test case that uses this component.
B141: 3. Coded underpayment will be ignored if the is no PAYE source (EMP or MOR) selected.
B143: Problem & query reporting
B144: If you have a problem or query you want to refer to HMRC CDIO please quote the
B145: case number (if it involves a business supplied test case) or the components used.
B147: Accessing & Navigating SEES – SA Tax Calculator
B149: Select the 'Additional Information' and 'Additional Pages' from the Return that are required.
B150: Note that the National Insurance page does not equate to a Return page but should be completed
B151: where Class 2 is payable or Class 1 paid affects Class 4 due
B180: Insert the Return entries as shown below
B213: Complete all the Return pages and select 'Add pages'
B244: NI
B245: The Class 2 Reg 21 calculation reduces Class 2 with reference to Class 1 Earnings. There are two new boxes within the 'NI' screen to help calculate the reduced amount when requested from a customer.
B247: The deferment of Class 4 NIC has been removed from 2015-2016 onwards. There are two new boxes within the 'NI' screen in relation to Class 1 Earnings for the Reg100 Clas 4 calculation.
B249: Class 2
B250: Where a person is liable to pay Class 2 National Insurance contributions (NICs), Class 2 NICs are due for each contribution week or part of a week that a person was self-employed.
B251: So, where a person was self-employed and liable to pay Class 2 NICs for part or all of one day in a week, liability arises for one week’s NICs due at the weekly flat rate.
B252: A ‘contribution week’ is defined as a period of seven days beginning with midnight between Saturday and Sunday. The first day of the contribution week is Sunday and Saturday is the last.
B253: The first week of the contribution year starts on the first Sunday after 5 April. Some contribution years will include 53 contribution weeks.
B255: Class 4
B256: Class 4 NI payable with income from employment and self-employment
B257: Annual maximum of Class 4 contributions due under section 15 of the Act
B258: 100.—(1) Where for any year there are payable by or in respect of an earner Class 4 contributions under section 15 of the Act and also primary Class1 or Class2 contributions or both primary Class 1 or Class 2 contributions,
B259: the liability of that earner for such Class 4 contributions for that year shall (without prejudice to his liability in the ﬁrst instance for the full amount payable apart from this regulation) not exceed such amount as, when added to
B260: the amount of such other of those contributions as are ultimately payable by or in respect of him for that year, equals in value the sum of the amount which, but for the provisions of this regulation, would be payable by that earner
B261: on proﬁts or gains equal to the higher of the two money sums speciﬁed in section 15(3) of the Act and, subject to the provisions of section 12 of the Act and regulations 63 to 65, 53 times the amount of a Class2 contribution payable for that year.
B262: 2) For the purpose only of determining the extent of an earner’s liability for Class 4 contributions under paragraph (1), the amount of any primary Class 1 contributions paid at less than the primary percentage speciﬁed in section 8(2) of the Act
B263: shall be treated as equal to the amount of any primary Class 1 contributions payable at that percentage on the same amount of earnings.
B264: So that a person with earnings from both an employment and self-employment does not pay considerably more NI than a person who has a similar level of earnings but from only one employment, the Class 4 NI payable is sometimes restricted.
B265: The objective is to limit the self-employed profits charged at the main 9% rate to the employee-only equivalent, but still leave higher earnings charged at the uncapped 2% rate.
B267: Class 1 Earnings
B269: The two boxes in question are to be filled in if the customer has employment and is also self-employed. They are to be filled in as follows:
B271: =NI!C19&" Earnings from PT to UEL - These are earnings that appear in the column 1c from PT to UEL on the P60 (this was Column 1c + 1d up to 2015-16)." -> EMPCL1 Earnings from PT to UEL - These are earnings that appear in the column 1c from PT to UEL on the P60 (this was Column 1c + 1d up to 2015-16).
B272: =NI!C26&" Earnings from PT to UEL - These are earnings that appear in the column 1c from PT to UEL on the P60 (this was Column 1c + 1d up to 2015-16)." -> MORCL1 Earnings from PT to UEL - These are earnings that appear in the column 1c from PT to UEL on the P60 (this was Column 1c + 1d up to 2015-16).
B274: From 2016-17 the P11ws and P60 were changed so that the columns for 1c and 1d are combined into one column that has earnings from PT to UEL.
B277: On NPS > Employment > P14 Summary take the figures from column 1c and 1d
B278: ="Enter the amounts in the "&NI!C19&"/"&NI!C22&" and/or "&NI!C26&"/"&NI!C29&" boxes." -> Enter the amounts in the EMPCL1/ and/or MORCL1/ boxes.
B308: Select the 'Calculate Now' button to reveal the SA302 tax calculation
B340: The SA302 Calculation – here you can see what the customers SA302 looks like based on the entries you have made
B380: On the 'Add pages' worksheet select the Reset calculation button to clear all entries and close pages before
B381: entering the details for another case
B383: Things to note
B384: Marriage Allowance Transfer
B385: If the Transferor makes a claim on the return and not digitally, a relationship will be created on TBS, but it will not
B386: trigger a digital claim. The fact that they are a Recipient will be stored in the background and when the Recipient
B387: files their SA Return the credit will be given.
B411: FTCR - see the guidance at
B412: http://bg.inrev.gov.uk/tax/actionguides/40100/tax40072_main.htm
B413: http://bg.inrev.gov.uk/tax/helpcards/tax50104.pdf
B433: Non-resident calculation
B434: Section 811 applies to taxpayers who are non-resident for the whole tax year. Certain sources of income (mostly investment income*) are ‘disregarded’. That is no more tax can be charged than has been deducted at source.
B435: The disregarded income is removed from the tax calculation and only the tax deducted at source added to the liability computed on the non-disregarded income.
B436: UK allowances are not given in the section 811 calculation, even if the taxpayer is entitled to claim them. The taxpayer can still claim tax deductions in the section 811 calculation. (Note: Maintenance and alimony payments are a deduction, not an allowance, so any relief claimed is still given in the section 811 calculation.)
B437: As the use of section 811 is optional, two calculations are performed: 1) the ‘standard’ tax calculation including all income and any UK allowances due, 2) the section 811 calculation.
B438: The results of the two calculations are compared and the calculation that produces the better result for the taxpayer is retained.
B440: Income Tax Relief - Losses
B441: The SA tax calculator follows the steps in s23 ITA 2007. Step 1 is to identify total income. Reliefs are deductible at step 2. HMRC introduced the term "limit on income tax reliefs" for step 2 deductions. This includes trade and property losses but there are other reliefs and deductions.
B442: From 2015-16 changes were made to:
B443: - calculate the limit on relief with the correct adjusted total income x 25% where more than £50,000.
B444: - update the SA302 so it included the reliefs, including losses, in the 'income received' section and include them as "Income tax relief" in the 'minus' section below that. "Income tax relief" replaced both "Loan interest payments" and "Losses".
B445: The change to ensure adjusted total income is calculated correctly presents the total income received for the year before losses brought forward from an earlier year and before losses ocurring in the year for other income. The SA302 adds back the brought forward losses to show the total profit for the year and then deducts them as income tax relief.
B446: See Limit on Income Tax reliefs: HS204 Self Assessment helpsheet
B447: https://www.gov.uk/government/publications/limit-on-income-tax-reliefs-hs204-self-assessment-helpsheet
B449: Savings Income
B451: From 06 April 2016 the Personal Savings Allowance (PSA) introduces a new 0% band for Income Tax on income from savings interest.
B453: This will apply up to a maximum of
B455: £1000 for basic rate customers (20%)
B456: £500 for higher rate customers (40%)
B458: - The PSA will not apply to savings income received by additional rate customers (45%).
B459: - Income that is within an individual's savings allowance will still count towards their basic or higher rate limits.
B460: - Higher/Additional rate income is income on which tax is charged, or would be but for the dividend nil rate.
B461: - PSA is in addition to the starter savings rate which allows low income earners to receive up to £5,000 tax free savings interest.
B462: - Interest from Individual Savings Accounts (ISAs) is already tax-free so this will not count towards the Personal Savings Allowance.
B463: - PSA is not affected by the Scottish Rate of Income Tax and will be applied at the same rate for all taxpayers across the UK.
B464: - PSA is affected by the £100 rule for children's savings and investments. If a parent's gift to a child exceeds this amount in any tax year it counts toward the parent's income for tax purposes.
B466: Dividends
B468: From April 2016 the Dividend Tax Credit will be abolished and a new £5,000 tax free allowance for dividend income will be introduced. This allowance will not reduce total income for tax purposes and will only apply to dividend income.
B469: The new rates of tax on dividend income above the allowance will be:
B471: 7.5% for basic rate customers
... 60 more rows

Sheet Test Case index
C1: ="There are "&Last_row-1&" stored test cases" -> There are 273 stored test cases
C3: 168
G4: Used for
B5: Test reason | D5: Components used | E5: Calc figure | F5: v1.5.2 | G5: HMRC Portal | H5: Comments
A6: 1 | B6: Scottish customer with income from property, loss b/f and LLIR reduced to zero, savings, dividends. MAT out. Allces to non-savings and dividends (STR 1) | D6: Components: YPD INC-A REL-A MAT Emp-A PRO | E6: 137.98 | F6: 137.98 | G6: YES
A7: 2 | B7: Basic rate employment, savings and property, loss b/f and LLIR reduced. MAT in digital claim in place, but disallowed because HR. Small Debt Coded with PAYE Tax to cover (STR 2) | D7: Components: YPD INC-A MAT Emp-A PRO CAL | E7: 9691.12 | F7: 8870.48 | G7: YES
A8: 3 | B8: Scottish customer with Higher rate non-savings; basic rate savings; higher rate dividends; PPR; Gift Aid; Digital claim to Marriage Allowance Transfer (MAT) in place where customer is recipient, but disallowed because HR; Class 4 NIC + Class 2 NIC treated as paid (STR 3) | D8: Components: YPD INC-A REL-A REL-B MAT FIN Emp-A FSE NI2 NI1 CAL | E8: 7461.93 | F8: 6950.94 | G8: YES
A9: 4 | B9: Welsh customer with Non-Savings, Savings and Dividends where more beneficial to have some of PA against Savings to position Savings in nil band that would otherwise be in HR, SL repayment case PT02 & PGL03 (STR 4) | D9: Components: YPD INC-A SLR Emp-A | E9: 6990.61 | F9: 6990.61 | G9: YES
A10: 5 | B10: Scottish Customer with self employment profit, Savings starter rate, Digital claim to Marriage Allowance Transfer (MAT) in place where customer is recipient, Class 4 NIC + Class 2 NIC treated as paid (STR 5) | D10: Components: YPD INC-A REL-A MAT FSE NI2 | E10: 766.23 | F10: 1025.14 | G10: YES
A11: 6 | B11: Welsh customer with Non-Savings, Savings and Dividends where more beneficial to have some of PA against Dividends before Non-Savings/Savings (STR 6) | D11: Components: YPD INC-A INC-B MAT | E11: 6678.91 | F11: 6351.66 | G11: YES
A12: 7 | B12: Employment, RAR, Lower income spouse claiming Married Couples Allowance MCA, in year marriage (STR 7) | D12: Components: YPD INC-B REL-A MCA Emp-A CAL | E12: 54.8 | F12: 68.3 | G12: YES
A13: 8 | B13: Self employed, state pension (DOB spouse post 1935) MCA in year marriage (STR 8) | D13: Components: YPD INC-A INC-B MCA FSE NicEx | E13: 1041.98 | F13: 1059.38 | G13: YES
A14: 9 | B14: Scottish customer with Self employment, property, savings, dividends, gift aid. Non savings income 'covered' by PA, Savings Starting rate, PSA, Dividend Allowance (DA), Gift Aid, Landlords Loan Interest Relief LLIR reduced to max allowable, additional tax due on gift aid, Class 2 NICs, SL repayment case PT 01 & PGL 03. (STR 9) | D14: Components: YPD INC-A INC-C REL-B SLR SSE NI2 NI1 NIC2Vol NicEx PRO | E14: 197.02 | F14: 190.92 | G14: YES
A15: 10 | B15: BR Non savings, Savings BR, Dividends HR, Gift Aid. Beneficial ordering of reliefs and allowances considered - PA set against pension in preference to dividends at HR. This introduced more savings starting rate. (STR 10) | D15: Components: YPD INC-A INC-B REL-B | E15: 4379.99 | F15: 4379.99 | G15: YES
A16: 11 | B16: Scottish customer with Starter, basic & Intermediate rate. PA to Non savings. PSA and DA. Divs in BR, PPR, Gift Aid, LLIR, (STR11) | D16: Components: YPD INC-A INC-B REL-A REL-B Emp-A PRO CAL | E16: 4177.35 | F16: 4191.86 | G16: YES
A17: 12 | B17: Allowances to savings, dividends and non savings. Divs in HR (STR 12) | D17: Components: YPD INC-A INC-B INC-C | E17: 6999.94 | F17: 6999.94 | G17: YES
A18: 13 | B18: Kitchen sink with in year MCA to wife (reduced to minimum amount); NIC exempt (STR 13) | D18: Components: YPD INC-A INC-B INC-C REL-A REL-B FIN MCA Emp-A SSE NI1 NicEx PRO CAL | E18: 25819.78 | F18: 18445.08 | G18: YES
A19: 14 | B19: Employment, savings, dividends. PA to non-savings up to basic rate limit and savings to ensure Savings in nil band would otherwise be in higher rate band. Student Loan SL repayment case Plan 02, Basic rate employment, DA, DOR, (STR 14) | D19: Components: YPD INC-A SLR Emp-A CAL | E19: 7235.17 | F19: 7235.17 | G19: YES
A20: 15 | B20: Student Loan SL repayment case Plan 01, RAR, BR self employment, SAV BR, DA, DOR, Class 4 NIC + Class 2 NIC (STR 15) | D20: Components: YPD INC-A REL-A SLR FSE NI2 | E20: 10552.15 | F20: 10878.32 | G20: YES
A21: 16 | B21: Scottish Customer with PRO loss B/F. Reduced PA. SSR, SBR, SIR, SHR, Pension/PRO income, PSA (HR), SAV HR, DA, Dividend Upper Rate DUR, LLIR reduced | D21: Components: YPD INC-A INC-B REL-C PRO | E21: 16020.32 | F21: 16034.83 | G21: YES
A22: 17 | B22: Welsh, Student Loan SL repayment case PGL Plan 03, PPR, BR Employment/PRO, PSA (HR), DA, DUR, LLIR to max allowable, Small Debt Coded with PAYE Tax to cover (STR 17) | D22: Components: YPD INC-A REL-A SLR Emp-A PRO CAL | E22: 25254.11 | F22: 25254.11 | G22: YES
A23: 18 | B23: Welsh. Allcs set against NS, Sav & Div. BR Employment. Underpaid Tax for earlier years, Underpaid tax included in CY tax code. (STR 18) | D23: Components: YPD INC-A Emp-A CAL | E23: 3236.81 | F23: 3236.81 | G23: YES
A24: 19 | B24: BR/Employment/ Pension, SAV SR, PSA (HR), SAV BR, DA, DOR, DUR, Small debt coded no PAYE Tax (STR19) | D24: Components: YPD INC-A INC-B REL-B Emp-A | E24: 4012.78 | F24: 831.33 | G24: YES
A25: 20 | B25: SAV SR, PSA (HR), SAV BR, DA, DOR, DUR, Tax deducted on interest ( STR 20) | D25: Components: YPD INC-A REL-A MAT Emp-A | E25: 2700.85 | F25: 2700.85 | G25: YES
A26: 21 | B26: BR employment, SAV SR, PSA (HR), SAV BR, SAV HR, DA, DUR, Tax deducted on interest ( STR 21) | D26: Components: YPD INC-A SLR Emp-A | E26: 15160.22 | F26: 15160.22 | G26: YES
A27: 22 | B27: BR Self employment, PSA, SAV AR, DA, Class 4 NIC + Class 2 NIC, Tax deducted on interest ( STR 22) | D27: Components: YPD INC-A Emp-A SSE NI2 NI1 | E27: 27692.71 | F27: 14244.81 | G27: YES
A28: 23 | B28: Higher Rate (HR)BR employment/PRO, PSA (HR), DA, DOR, DUR, Marriage Allowance Transfer (MAT) Digital Claim (out) not allowed as HR, Small Debt Coded with PAYE Tax to cover (STR 23) | D28: Components: YPD INC-A REL-A MAT Emp-A FSE NI2 PRO CAL | E28: 6818.63 | F28: 6818.63 | G28: YES
A29: 24 | B29: Scottish customer with BPR, Pension/OI, SSR, SBR, SIR, PSA (HR), DA, DOR, DUR, Tax deducted on interest (STR 24) | D29: Components: YPD INC-A INC-B INC-C REL-C | E29: 2195.67 | F29: 1883.01 | G29: YES
A30: 25 | B30: BR Employment/self employment/PRO/Pension/OI, PSA (HR), DA, DOR, DUR ,LLIR reduced to max allowable, Class 4 NIC + Class 2 NIC (STR 25) | D30: Components: YPD INC-A INC-B INC-C MAT Emp-A SSE FSE NI2 NI1 PRO | E30: 3952.09 | F30: 3383.86 | G30: YES
A31: 26 | B31: Welsh, MAT_IN with Gift Aid payments where beneficial to allocate PA £997 to dividends which is less beneficial than set against non-savings but retains MAT_IN (STR26) | D31: Components: YPD INC-A REL-B MAT Emp-A | E31: -652.6 | F31: -652.6 | G31: YES
A32: 27 | B32: Scottish, PA + BPR, MAT_IN with Gift Aid payments where taxable at SIR_band rate (STR27) | D32: Components: YPD INC-A REL-B REL-C MAT Emp-A FSE PRO | E32: 5656.82 | F32: 5683.93 | G32: YES
A33: 28 | B33: PA to non-savings and savings but no different if all PA to non-savings (STR28) | D33: Components: YPD INC-A INC-B REL-B | E33: 7457.65 | F33: 7457.65 | G33: YES
A34: 29 | B34: Scottish Additional Rate, Top Rate customer (STR29) | D34: Components: YPD INC-A INC-C REL-A SLR Emp-A | E34: 25941.42 | F34: 25955.93 | G34: YES
A35: 30 | B35: Welsh Additional Rate customer (STR30) | D35: Components: YPD INC-A REL-A Emp-A FSE NI2 NI1 CAL | E35: 36014 | F35: 36083 | G35: YES
A36: 31 | B36: Scottish customer (STR31) | D36: Components: YPD INC-B REL-A SLR Emp-A SSE NI2 | E36: 327.8 | F36: 342.31 | G36: YES
A37: 32 | B37: rUK customer with SSL | D37: Components: YPD INC-A REL-A REL-B SLR AOR Emp-A FSE NI2 NI1 | E37: 11160.15 | F37: 11161.15 | G37: YES
A38: 33 | B38: Welsh customer with SSL, PGL | D38: Components: YPD INC-A SLR Emp-A FSE NI2 PRO | E38: 9189.8 | F38: 9188.8 | G38: YES
A39: 34 | B39: Scottish customer, Employment, Int, Divs, RAR, coded debt | D39: Components: YPD INC-A REL-A Emp-A CAL | E39: 42682.22 | F39: 42696.67 | G39: YES
A40: 35 | B40: Employment, self-employment, other inc, savings in SR band | D40: Components: YPD INC-A INC-C AOI-B Emp-A FSE NI2 NIC2Vol | E40: 770.3 | F40: 428.45 | G40: YES
A41: 36 | B41: Property income, savings, pension , MCA | D41: Components: YPD INC-A INC-B MCA FSE PRO | E41: 4605.9 | F41: 4651.9 | G41: YES
A42: 37 | B42: Property income, savings dividends, pensions, MAT, gift aid charge | D42: Components: YPD INC-A INC-B INC-C REL-B MAT PRO | E42: 344.2 | F42: 344.2 | G42: YES
A43: 38 | B43: Employment, self-employment, Div, Class 2 NICs treated as paid | D43: Components: YPD INC-A REL-B FIN Emp-A FSE NI2 | E43: 9660.42 | F43: 8882.72 | G43: YES
A44: 39 | B44: Employment, RAR, reduced PA, SAV, DIV | D44: Components: YPD INC-A REL-A Emp-A PRO | E44: 21131.6 | F44: 21146.11 | G44: YES
A45: 40 | B45: Employment, savings, dividends,pensions, reduced PA, gift aid | D45: Components: YPD INC-A INC-B REL-B Emp-A PRO | E45: 15728.63 | F45: 15728.63 | G45: YES
A46: 41 | B46: Employment, Other income, Savings, Student Loan repayment (plan 01) SL, Chargeable Event Gains CEG, Top Slicing Relief TSR, Additional rate | D46: Components: YPD INC-A INC-C REL-A SLR AOI-B Emp-A Emp-B PRO | E46: 54970.49 | F46: 54375 | G46: YES
A47: 42 | B47: employment, Savings, Dividends, Losses from SSE set against other income + Marriage Allowance Transfer transferred (MAT_OUT) Voluntary Class 2 | D47: Components: YPD INC-A MAT Emp-A SSE NI2 NI1 NIC2Vol | E47: 3915.12 | F47: 337.75 | G47: YES
A48: 43 | B48: Employment income over £100,000, Savings and dividends, no PA, Blind Person Relief BPR due, CGT | D48: Components: YPD INC-A REL-C MAT Emp-A CGT | E48: 16492.57 | F48: 26797.98 | G48: YES
A49: 44 | B49: Self employed, Trusts, Student Loan repayment SL (Plan 01), S/E Losses set against other income. CIS deductions, | D49: Components: YPD SLR MAT SSE FSE NI2 TRU | E49: -965.46 | F49: -4.45 | G49: NO
A50: 45 | B50: Property income, Relief for Finance Costs (Landlord Loan Savings Relief), UK and Foreign Chargeable Event Gains CEG, Top Slicing Relief TSR due; Notional tax; Basic MCA , 50% to partner. | D50: Components: YPD AOI-B MCA PRO FOR | E50: 3707.81 | F50: 3711.81 | G50: YES
A51: 46 | B51: Pension, Savings and dividends. Non-UK Resident, 'normal' s23 calculation more beneficial (s811) | D51: Components: YPD INC-A INC-B NRD | E51: -91.25 | F51: -91.25 | G51: NO
A52: 47 | B52: Propert Income, Pensions, Dividends. Non-UK Resident, non resident calculation more beneficial (s811 disregarded income).Relief for Finance Costs (Landlord Loan Savings Relief) | D52: Components: YPD INC-A INC-B PRO CGT NRD | E52: 10872.8 | F52: 7189 | G52: NO
A53: 48 | B53: Property Income, Pensions and Dividends.Non-UK Resident, non resident calculation more beneficial (s811 disregarded income); MAT_IN but removed from calculation; Relief for Finance Costs (Landlord Loan Savings Relief) | D53: Components: YPD INC-A INC-B MAT PRO NRD | E53: 5217 | F53: 5217 | G53: NO
A54: 49 | B54: Multiple employment and share scheme. Box Fin1, CAL7/8 completed, Income over £100,000 PA reduced to Nil, Enterprise Investment Scheme relief EIS, & Social Investment Tax Relief SITR | D54: Components: YPD FIN ASE-A AOR Emp-A Emp-B CAL | E54: 22345 | F54: 22345 | G54: YES
A55: 50 | B55: Employment, Foreign and Partnership income. Losses from FPS20 set against other income; balance BR to CGT; FPS Relief for Finance Costs (Landlord Loan Savings Relief).Voluntary Class 2, CGT. | D55: Components: YPD Emp-A Emp-B FPS NI2 NI1 NIC2Vol FOR TCR CGT | E55: 6511.45 | F55: 8826.42 | G55: YES
A56: 51 | B56: Partnership, Foreign Income, Foreign Dividends, Trust Income, RAR, Annuities, trade union death benefit, widows and orphan relief.Class 2. FOR Relief for Finance Costs (Landlord Loan Savings Relief). | D56: Components: YPD REL-A SLR ASE-B AOR Emp-A SPS FPS NI2 FOR TCR TRU | E56: 47178.46 | F56: 19081.83 | G56: NO
A57: 52 | B57: Kitchen sink, multiple sources, PA reduced to Nil,Losses, RAR, TRU & FOR Relief for Finance Costs (Landlord Loan Savings Relief), CEG, MCA, CGT | D57: Components: YPD INC-A INC-B INC-C REL-A REL-B FIN AOI-A AOI-B AOI-C ASE-A ASE-B ASE-C AOR MCA Emp-A Emp-B SSE SPS FPS NI2 NI1 PRO FOR TCR TRU CGT | E57: 107225.1 | F57: 102356.02 | G57: NO
A58: 53 | B58: Self employment, Savings, Dividends, Lump Sum income. Class 2, No Class 4 due. Student Loan Undergraduate and Postgraduate Loans Plan Types 02 and 03. | D58: Components: YPD INC-A SLR ASE-B Emp-A SSE NI2 | E58: 7036.06 | F58: 7142.06 | G58: YES
A59: 54 | B59: Higher rate Scottish taxpayer with non-savings and savings income with pension payments with relief at source increasing Scottish and English & NI basic rates | D59: Components: YPD INC-A REL-A SLR Emp-A Emp-B | E59: 10904.97 | F59: 10970.49 | G59: YES
A60: 55 | B60: Pension, savings, and dividend income with Chargeable Event Gain, Stock Dividends and taxable short service refund (overseas schemes) and Capital Gains. More beneficial to have CEG in HRNilBand than savings in BRNilBand | D60: Components: YPD INC-A INC-B REL-B AOI-B CGT | E60: 4494.4 | F60: 8660.22 | G60: YES
A61: 56 | B61: Pay, Dividends and Chargeable Event Gains ensuring no Allcs allocated to CEG | D61: Components: YPD INC-A AOI-B Emp-A NicEx | E61: 4.37 | F61: 4.37 | G61: YES
A62: 57 | B62: EX121 Employment, Savings and Dividend income and Qualifying Loan Interest Payments | D62: Components: YPD INC-A REL-B AOR Emp-A Emp-B NI2 | E62: 1681.94 | F62: 1681.95 | G62: YES
A63: 58 | B63: Self employment, Foreign income and Foreign Dividends. Class 4 and Class 2 NIC, Reduced PA and Losses. FOR Relief for Finance Costs (Landlord Loan Savings Relief) | D63: Components: YPD FSE NI2 FOR TCR | E63: 1790.69 | F63: 34376.95 | G63: YES
A64: 59 | B64: Non-UK resident with Taxed Savings, Property income, and Venture Capital Trust subcriptions | D64: Components: YPD INC-A AOR PRO NRD | E64: 0 | F64: 0 | G64: NO
A65: 60 | B65: Trust, Savings, Dividends and CEG,TSR not due | D65: Components: YPD INC-A REL-B AOI-B TRU | E65: -6310.97 | F65: -6310.97 | G65: NO
A66: 61 | B66: Employment, Pension Savings and CEG, top slicing relief due, State pension lump sum. | D66: Components: YPD INC-A INC-B AOI-B Emp-A | E66: 2311.5 | F66: 2311.5 | G66: YES
A67: 62 | B67: Pension Foreign Dividends and Savings. In year MCA claim and gift aid. | D67: Components: YPD INC-A INC-B REL-B MCA | E67: -2834.79 | F67: -2834.79 | G67: YES
A68: 63 | B68: Employment, Savings and Dividends. PA reduced to nil BPA claim, FIN1 entry, Deficiency relief, EIS, relief for qualifying distribution. | D68: Components: YPD INC-A REL-C FIN AOI-B AOR Emp-A | E68: 306752.65 | F68: 306780.01 | G68: YES
A69: 64 | B69: Self employed, Pension and other income. Gift aid, CGT chargeable at more than one CGT rate | D69: Components: YPD INC-B INC-C REL-B COV FSE NicEx CGT | E69: 34977.02 | F69: 4972 | G69: YES
A70: 65 | B70: Pension, Other income, Savings and Dividends. | D70: Components: YPD INC-A INC-B INC-C COV | E70: 10332.57 | F70: 10332.57 | G70: YES
A71: 66 | B71: Pension, Other income, Savings, Dividends and Gift Aid | D71: Components: YPD INC-A INC-B INC-C REL-B | E71: -202.13 | F71: -202.13 | G71: YES
A72: 67 | B72: Employment, Pension, Other income, Dividends, Foreign Dividends and Savings. | D72: Components: YPD INC-A INC-B INC-C AOI-C Emp-A | E72: 1144.84 | F72: 1144.85 | G72: YES
A73: 68 | B73: EX121 Property income, Dividends and CGT. | D73: Components: YPD INC-A PRO CGT | E73: 3054.32 | F73: 20422.48 | G73: YES
A74: 69 | B74: Pension, Other income, Savings, Dividends, Gift Aid and CGT | D74: Components: YPD INC-A INC-B INC-C REL-B AOI-A CGT | E74: 8646.39 | F74: 4778.85 | G74: YES
A75: 70 | B75: Self employment, Pension, Property income and Savings. MCA. Beneficial ordering | D75: Components: YPD INC-A INC-B MCA SSE NicEx PRO | E75: 20602.25 | F75: 0 | G75: YES
A76: 71 | B76: Savings and Dividends. MCA. CGT | D76: Components: YPD INC-A MCA CGT | E76: -91.25 | F76: 2608.75 | G76: YES
A77: 72 | B77: Property income, Other income, Pension, Savings and Dividends. Losses and MCA reduced due to Age related income limits. | D77: Components: YPD INC-A INC-B INC-C MCA PRO | E77: -1996 | F77: -697.53 | G77: YES
A78: 73 | B78: Pension, Savings, Dividends and Gift Aid, Tax due on Gift Aid more than tax paid by individual | D78: Components: YPD INC-A INC-B REL-B MCA FSE | E78: 600 | F78: 600 | G78: YES
A79: 74 | B79: Pension and CGT including entreprenueral gains | D79: Components: YPD INC-A INC-B REL-B CGT | E79: -1032.59 | F79: 3167.41 | G79: YES
A80: 75 | B80: Pension, Savings, Dividends and In year MCA claim. | D80: Components: YPD INC-A INC-B MCA | E80: 2556.71 | F80: 0 | G80: YES
A81: 76 | B81: Employment, Savings and Dividend income and Qualifying Loan Interest Payments & Qualifying loan interest payable in the year | D81: Components: YPD INC-A REL-B AOR SSE FSE FPS NI2 PRO FOR | E81: 157233.13 | F81: 143309.56 | G81: YES
A82: 77 | B82: Property income, Trust and CEG. Losses, Relief for Finance Costs (Landlord Loan Savings Relief) and CITR claimed. | D82: Components: YPD REL-A AOI-B AOR FPS PRO TRU | E82: 193308.97 | F82: 219033.49 | G82: NO
A83: 78 | B83: Employment, Pension and Property income. Gift Aid including carry back gift aid, MCA and CGT. | C83: , | D83: Components: YPD INC-B REL-B Emp-A FSE FPS PRO CGT | E83: 69722.77 | F83: 45721.32 | G83: YES
A84: 79 | B84: Employment income, PPR | D84: Components: YPD REL-A AIL Emp-A Emp-B FPS | E84: -5739.05 | F84: -8126 | G84: YES
A85: 80 | B85: Employment, Self employment, Pension, Savings and Dividends. RAR, in year MCA reduced due to income limits. | D85: Components: YPD INC-A INC-B REL-A MCA Emp-A FSE NI1 NicEx | E85: 352528.91 | F85: 351989.01 | G85: YES
A86: 81 | B86: Incapacity Benefit, BPA. Gift Aid with no tax paid. | D86: Components: YPD INC-A INC-B REL-B REL-C FPS | E86: 9562.37 | F86: 2146.33 | G86: YES
A87: 82 | B87: Employment, Self employment, Pension, Property and Dividends income. In year MCA claimed reduced due to income limits and RAR. | D87: Components: YPD INC-A INC-B INC-C REL-A REL-B FIN MCA Emp-A FSE FPS NI1 NicEx PRO | E87: 26218.77 | F87: 23825.57 | G87: YES
A88: 83 | B88: Employment, Partnership, Pension, Property and Dividends income with state pension Lump Sum. Losses, Relief for Finance Costs (Landlord Loan Savings Relief) and Community investment relief. | D88: Components: YPD INC-A INC-B REL-B AOI-A AOR MOR SSE SPS FPS NicEx PRO CAL | E88: 83666.83 | F88: 16640.84 | G88: NO
A89: 84 | B89: Foreign Income, Foreign Dividends, Divenden and Savings. CEG, Non-Resident, Remittance basis charge for Non Dom and TSR = 0 (previously incorrectly £0.02) | D89: Components: YPD INC-A AOI-B FOR NRD | E89: 240580.72 | F89: 67375.63 | G89: NO
A90: 85 | B90: Partnership, Pension, Savings and Dividend income. In year Repayment results in underpaid amount on SA302. Beneficial ordering in calc with transition profit | D90: Components: YPD INC-A INC-B COV FIN FSE FPS | E90: 14155.1 | F90: 11826.75 | G90: YES
A91: 86 | B91: Self employment, Savings and Dividends. RAR, PPR Losses, Gifts of property to charity, Disguised Remuneration DR AIL22. | D91: Components: YPD INC-A REL-A REL-B AIL FSE NI2 | E91: 15612.56 | F91: 21713.96 | G91: YES
A92: 87 | B92: Pension, Other income and State Pension lump sum. RAR, Gift Aid and gift aid relief backdated (REL8) | D92: Components: YPD INC-B INC-C REL-A REL-B FSE | E92: -1433.5 | F92: 1264.04 | G92: YES
A93: 88 | B93: Employment and Dividend income. RAR and Pension taxable short service refund, stock dividends | D93: Components: YPD REL-A AOI-C AIL Emp-A Emp-B FSE | E93: 130349.95 | F93: 1287.2 | G93: YES
A94: 89 | B94: Employment income, Self employment Losses set off against other income + no digital claim to Marriage Allowance Transfer (MAT_OUT) but MAT claimed on Return. Class 2 NIC | D94: Components: YPD MAT Emp-A SSE FSE NI2 NI1 NIC2Vol | E94: -1145 | F94: -1148.5 | G94: YES
A95: 90 | B95: Self employment, Pension and other Income. State pension lump sum. | D95: Components: YPD INC-A INC-B INC-C SSE FSE FPS NicEx | E95: 76372.69 | F95: 79238.16 | G95: YES
A96: 91 | B96: Scottish, Employment and Property income. Seafarers deduction ASE11. Pension taxf charge AIL10. Relief for Finance Costs (Landlord Loan Savings Relief). | D96: Components: YPD REL-B ASE-B ASE-C AIL Emp-A PRO CGT | E96: 2182.15 | F96: 1164.14 | G96: YES
A97: 92 | B97: Scottish Customer, Self employment, Property income, Savings and Dividends. Property losses from FL to c/f to lettings inc (PRO17), Deficiency relief on both savings and dividends. | D97: Components: YPD INC-A REL-A REL-B AOI-B AOR FSE NI2 PRO | E97: 378949.13 | F97: 372670.28 | G97: YES
A98: 93 | B98: Self employment, Property income, Savings and Dividends. RAR, S/E Losses, Annuity, Gift Aid to charity.Deficiency relief on both savings and dividends. Class 4 and Class 2 NIC. | D98: Components: YPD INC-A REL-A REL-B AOI-B AOR FSE NI2 PRO | E98: 373977.73 | F98: 368311.13 | G98: YES
A99: 94 | B99: MOR, Property income, Foreign income, Foreign Dividends Other income, CEG, Savings and Dividens. RAR. PPR, Gift Aid. CGT. Tests TSR change | D99: Components: YPD INC-A INC-C REL-A REL-B FIN AOI-B AOI-C MOR PRO FOR TCR CGT CAL | E99: 35703.17 | F99: 40155.37 | G99: NO
A100: 95 | B100: Self employment, Savings and Dividends. RAR, S/E Losses. Cash basis adjustment FSE70 and Class 4 NIC adjustment FSE101, Class 2 NIC | D100: Components: YPD REL-A FIN AOI-A AOI-C FSE NI2 | E100: 55924.04 | F100: 56857.44 | G100: YES
A101: 96 | B101: Employment, Self employment, Pension, Savings and Dividend income, RAR, Property Losses and Relief for Finance Costs (Landlord Loan Savings Relief), including AOR12. Class 2 and 4 NIC. | D101: Components: YPD INC-B REL-A REL-B FIN AOI-A AOI-C ASE-C AOR Emp-A FSE NI2 NI1 PRO | E101: 68142.02 | F101: 66520.4 | G101: YES
A102: 97 | B102: Partnership, Other income and Savings. Basis adjustment SPS9, tax deducted partnerships SPS27 and SPS29. EIS releif. Class 2 and 4 NIC. | D102: Components: YPD INC-C REL-A REL-B FIN AOI-A AOR SPS NI2 | E102: 14601.07 | F102: 15534.47 | G102: YES
A103: 98 | B103: Partnership, Other income, Pension, CEG, Savings and Dividends. State Pension Lump Sum. Voluntary Class 2 NIC | D103: Components: YPD INC-A INC-B INC-C AOI-A AOI-B SPS NI2 NIC2Vol | E103: 22264.09 | F103: 913.54 | G103: YES
A104: 99 | B104: Partnership, Intersest and Foreign Dividends. RAR, Losses from property on partnerships, Deficiency Relief. Gift Aid to Charity and BPA. | D104: Components: YPD INC-A REL-A REL-B REL-C AOI-B FPS NI2 | E104: 9899.52 | F104: 10642.62 | G104: YES
A105: 100 | B105: Partnership, Property and Dividend income. Partnership and Property Losses. FPS Relief for Finance Costs (Landlord Loan Savings Relief). No PA. | D105: Components: YPD INC-A REL-B FPS NI2 PRO | E105: 92573.42 | F105: 93484.92 | G105: YES
A106: 101 | B106: Partnership, Property, Dividends and CEG. Gift Aid, Losses, FPS Relief for Finance Costs (Landlord Loan Savings Relief). Class 2 and 4 NIC. CGT. | D106: Components: YPD INC-A REL-B AOI-B AOI-C AOR FPS NI2 PRO CGT | E106: 192490.66 | F106: 100804.66 | G106: YES
A107: 102 | B107: Employment income, Savings, Divendends and Foreign Dividends. Student Loan SL (plan 1). | D107: Components: YPD INC-A REL-B SLR Emp-A Emp-B CAL | E107: -78471.86 | F107: -99405.84 | G107: YES
A108: 103 | B108: Self employment, Property income and CEG. Income over £150,000, Property and S/E losses, Gift Aid.CGT, VCT, EIS and SEIS | D108: Components: YPD REL-B FIN AOI-B AOR FSE NI2 PRO CGT | E108: 36938.08 | F108: 53568.34 | G108: YES
A109: 104 | B109: Employment, Self employment, Partnership income and CEG. TSR and gift aid | D109: Components: YPD REL-B AOI-B Emp-A SSE SPS NI2 | E109: 7102.4 | F109: 7626.8 | G109: YES
A110: 105 | B110: Employment, Pension, Property, Savings and CEG. Relief for Finance Costs (Landlord Loan Savings Relief). | D110: Components: YPD INC-A INC-B COV AOI-B Emp-A | E110: 523.91 | F110: 523.91 | G110: YES
A111: 106 | B111: Employment income, Redundancy Lump sum, Dividends and CEG. | D111: Components: YPD INC-A AOI-B ASE-B Emp-A | E111: 89859.84 | F111: 2152.55 | G111: YES
A112: 107 | B112: Partnership, Savings, Dividends and CEG income. CGT and PPR. Class 2 and 4 NIC. | D112: Components: YPD INC-A REL-A AOI-B SPS NI2 CGT | E112: 19066.06 | F112: 11328.87 | G112: YES
A113: 108 | B113: Property income, Trust income, Pension, Savings and Dividends. Losses, Relief for Finance Costs (Landlord Loan Savings Relief) and CITR. Test TSR change | D113: Components: YPD INC-B AOI-A AOI-B AOI-C AOR FPS NicEx TRU | E113: -56.05 | F113: -56.04 | G113: NO
A114: 109 | B114: Employment, Pension, Dividends, Foreign income and Foreign dividends. Losses, Relief for Finance Costs (Landlord Loan Savings Relief) and Community investment relief. | D114: Components: YPD INC-B AOI-C AOR Emp-A Emp-B PRO FOR TCR | E114: 3454.08 | F114: -108.15 | G114: YES
A115: 110 | B115: Self employment, Partnership and Trust income. Student Loan (plan2) SL, CGT, Income over £100000 with losses, RAR, PPR and Gift Aid. VCT, SEISR and EIS | D115: Components: YPD REL-A REL-B SLR FIN AOR FSE FPS NI2 TRU CGT | E115: 83535.84 | F115: 111349.21 | G115: NO
A116: 111 | B116: MOR, Employments and Trusts income. | D116: Components: YPD Emp-A MOR TRU CAL | E116: -1724.25 | F116: -1724.25 | G116: NO
A117: 112 | B117: Employment income, Savings. Relief for Finance Costs (Landlord Loan Savings Relief). Lump sum, CAL7/8, PA reduced to Nil | D117: Components: YPD INC-A ASE-B Emp-A Emp-B PRO CAL | E117: 22079.7 | F117: 22079.7 | G117: YES
A118: 113 | B118: Partnership, Property, Trusts, Other income, Savings, Dividends, Foreign income and Foreign Dividends. Losses, PA reduced to Nil, gifts to charity, Relief for Finance Costs (Landlord Loan Savings Relief), CGT. Class 2 and 4 NIC. | D118: Components: YPD INC-A INC-C REL-B SPS FPS NI2 PRO FOR TCR TRU CGT | E118: 47598.32 | F118: 45394.88 | G118: NO
A119: 114 | B119: Self Employment and Share Schemes. Class 2 and 4 NIC. | D119: Components: YPD ASE-A SSE NI2 | E119: 5264.5 | F119: 5802.4 | G119: YES
A120: 115 | B120: Pension income, S/E Losses. CGT. | D120: Components: YPD INC-B SSE FSE NI2 CGT | E120: 20830.76 | F120: 13630 | G120: NO
A121: 116 | B121: Employment income, Lloyds Underwriters, Lump Sums, savings and Dividends. Losses and Class 2 NIC. | D121: Components: YPD INC-A INC-B AOI-B | E121: 9429.94 | F121: 5021.25 | G121: NO
A122: 117 | B122: Lloyds Underwriters, Trust and savings. Foreign tax on estates. Class 2 and 4 NIC. CIS deductions. | D122: Components: YPD INC-A INC-C AOI-B | E122: 3004 | F122: 3004 | G122: NO
A123: 118 | B123: Foreign Tax on Estates, income from Property, Trusts, savings and Dividends. AHR and Ahdiv rates PA reduced to Nil. Relief for Finance Costs (Landlord Loan savings Relief) | D123: Components: YPD INC-A PRO TRU | E123: 16556.76 | F123: 23102.83 | G123: NO
A124: 119 | B124: savings and Dividends. Remittance basis for non-dom. BPA and MCA not due as taxpayer is Non resident | D124: Components: YPD INC-A REL-C MCA NRD | E124: -99048.29 | F124: 59919.75 | G124: NO
A125: 120 | B125: Employment, Dividends, Foreign Income. Remitted Basis - income less than £2000 tick box. | D125: Components: YPD INC-A Emp-A FOR TCR NRD | E125: -102551.16 | F125: 19785.23 | G125: NO
A126: 121 | B126: Employment, Partnership savings income. Student Loan (Plan 1) SL box EMP8 entry, eligible income below £15795 | D126: Components: YPD INC-A SLR Emp-A SPS NI2 CAL | E126: 590.5 | F126: 590.5 | G126: YES
A127: 122 | B127: Employment, Pension and Share Schemes. Student Loan (plan 1). | D127: Components: YPD INC-B SLR ASE-A Emp-A SSE | E127: 10206.8 | F127: 14512.8 | G127: YES
A128: 123 | B128: Pension, savings and Dividends. State pension lump sum 0%. MCA claimed husband, Relief for Finance Costs (Landlord Loan savings Relief). Losses | D128: Components: YPD INC-A INC-B REL-B MCA AIL PRO | E128: 9976.21 | F128: -3515 | G128: YES
A129: 124 | B129: Self employment, savings, Dividends and Foreign Dividends. MCA ( half basic to wife ). | D129: Components: YPD INC-A MCA SSE NicEx | E129: -496.66 | F129: 0 | G129: YES
A130: 125 | B130: savings and Dividends. In year MCA claim. | D130: Components: YPD INC-A AOI-C MCA | E130: -2140.68 | F130: -91.25 | G130: YES
A131: 126 | B131: Pension, Other and shares income, MCA claim with basic MCA to wife | D131: Components: YPD INC-B INC-C ASE-A MCA | E131: -76.9 | F131: -1400 | G131: YES
A132: 127 | B132: Ministers of Religion, Employment and Self Employment. | D132: Components: YPD INC-B Emp-A MOR | E132: 21042.05 | F132: 398.6 | G132: NO
A133: 128 | B133: Ministers of Religion employment, savings and Dividends, Gift Aid. | D133: Components: YPD INC-A REL-B MOR | E133: -139.9 | F133: -102.65 | G133: NO
A134: 129 | B134: Ministers of Religion employment, Other income and Dividends AHR. | D134: Components: YPD INC-A INC-C MOR | E134: 326931.96 | F134: 326811.64 | G134: NO
A135: 130 | B135: Employment and Self Employment. CGT | D135: Components: YPD Emp-A SSE NI1 NicEx CGT | E135: 0 | F135: 16898.4 | G135: YES
A136: 131 | B136: Employment, Other income. S/E losses reduced PA , CEG and Class 2 NIC. | D136: Components: YPD INC-C Emp-A Emp-B SSE NI2 NI1 NIC2Vol CGT | E136: 62714.59 | F136: 14029 | G136: YES
A137: 132 | B137: Self Employment, Foreign Dividends, savings and Dividends. Class 4 and 2 NIC. | D137: Components: YPD INC-A FSE NI2 | E137: 573.03 | F137: 781.5 | G137: YES
A138: 133 | B138: Employment income and voluntary Class 2 NIC. CGT. | D138: Components: YPD Emp-A FSE NI2 NI1 NIC2Vol FOR CGT | E138: 17264.32 | F138: 14201.2 | G138: YES
A139: 134 | B139: Employment, Partnership income, savings and Dividends. Losses, Class 1 NIC contributions reducing Class 4 NIC due and voluntary Class 2. | D139: Components: YPD INC-A FIN Emp-A FPS NI2 NI1 CGT | E139: 13269.49 | F139: 12597.42 | G139: YES
A140: 135 | B140: Employment, Self employment and Partnership. Losses. PA reduced to nil. | D140: Components: YPD Emp-A FSE FPS NI1 NicEx | E140: 38284.7 | F140: 37392.8 | G140: YES
A141: 136 | B141: Partnership, COV1/2, Scottish Customer, Employment, Income from Property and CEG. | D141: Components: YPD COV AOI-B Emp-A SPS PRO | E141: 4289.77 | F141: 6017 | G141: YES
A142: 137 | B142: Partnership, COV1/2, Employment and Dividend income. Student Loan (plan 1) SL. investment income >2000, SL repayments via empt | D142: Components: YPD INC-A SLR COV Emp-A SPS | E142: 5215.75 | F142: 5396.49 | G142: YES
A143: 138 | B143: Scottish Customer, Employment, and other income. Interest and dividends. Pension tax charges (AIL10) | D143: Components: YPD INC-A INC-C SLR AIL Emp-A | E143: 52656.72 | F143: 90528.13 | G143: YES
A144: 139 | B144: Scottish Customer. Self employment. Losses, Class 2 and 4 NIC. Pension tax charges (AIL10) | D144: Components: YPD AIL FSE NI2 | E144: 8372141.45 | F144: 37759.72 | G144: YES
A145: 140 | B145: Scottish Customer. Self employment and Income from Property. Losses, Relief for Finance Costs (Landlord Loan savings Relief), Pension tax charges (AIL10) and Voluntary Class 2 NIC. | D145: Components: YPD AIL SSE NI2 NIC2Vol PRO | E145: 67968.82 | F145: 4253.41 | G145: YES
A146: 141 | B146: Scottish Customer. Employment, Foreign income and Foreign Dividends. Overseas pension charge; Relief for Finance Costs (Landlord Loan savings Relief). PA reduced to nil. | D146: Components: YPD AIL Emp-A FOR | E146: 235781.93 | F146: 227221.53 | G146: YES
A147: 142 | B147: Scottish Customer. Employment. Reduced PA. Pension tax charges for AIL 7,8 and 9 | D147: Components: YPD AIL Emp-A | E147: 61090.32 | F147: 47730.86 | G147: YES
A148: 143 | B148: Lloyds underwriter and savings. | D148: Components: YPD INC-A LUN NI2 | E148: 19676.58 | F148: -358.5 | G148: NO
A149: 144 | B149: Scottish Customer, Lloyds underwriter, Losses, class 4 NIC, voluntary Class 2 NIC and CGT. | D149: Components: YPD LUN NI2 CGT | E149: 22660.12 | F149: 20715.91 | G149: NO
A150: 145 | B150: Scottish customer, Lloyds underwriter. Losses, aged over 65 Nic exempt | D150: Components: YPD LUN NicEx | E150: -634.98 | F150: 3642.75 | G150: NO
A151: 146 | B151: Scottish Customer. Lloyds underwriter, Pension and CEG with TSR | D151: Components: YPD INC-B AOI-B LUN NicEx | E151: 269.66 | F151: 5133.67 | G151: NO
A152: 147 | B152: Scottish Customer, Lloyds underwriter losses set off against income from property and Voluntary Class 2 | D152: Components: YPD LUN NI2 NIC2Vol PRO | E152: 9259.58 | F152: 2486.34 | G152: NO
A153: 148 | B153: Lloyds underwriter, Losses income with pension savings and capital gains, balance BR to gains | D153: Components: YPD AIL LUN NicEx CGT | E153: 78967.02 | F153: 5415 | G153: NO
A154: 149 | B154: Lloyds underwriter with Trust income and Student Loan (plan 1) repayments | D154: Components: YPD SLR LUN NI2 TRU | E154: -2545.03 | F154: -4976.85 | G154: NO
A155: 150 | B155: Lloyds underwriter with Foreign Income and Foreign Dividends. Losses. Class 2 and 4 NIC | D155: Components: YPD REL-B LUN NI2 FOR TCR | E155: 27567.34 | F155: 5404.52 | G155: NO
A156: 151 | B156: Lloyds underwriter with Self Employment Income. Losses Class 2 and 4 NIC. CGT | D156: Components: YPD FSE LUN NI2 CGT | E156: 56500.02 | F156: 37997.58 | G156: NO
A157: 152 | B157: Lloyds underwriter with employment income. Losses and voluntary Class 2 NIC. | D157: Components: YPD Emp-A LUN NI2 | E157: 18809.67 | F157: 1261.2 | G157: NO
A158: 153 | B158: Lloyds underwriter, employment income with Lump Sum , Partnership, savings, Dividends and Other Income, PA reduced to Nil. PPR | D158: Components: YPD INC-A INC-C REL-A ASE-B LUN FPS NI2 CGT | E158: 2814824.04 | F158: 63078.66 | G158: NO
A159: 154 | B159: Scottish Customer, Minister of Religion, Pension income. In year marriage. | D159: Components: YPD INC-B MCA MOR | E159: 4736163.64 | F159: 1957.92 | G159: NO
A160: 155 | B160: Scottish Customer, Employment, Other Income, savings and Foreign income. | D160: Components: YPD INC-A INC-C ASE-B AOR Emp-A | E160: 23755.4 | F160: -1538.15 | G160: YES
A161: 156 | B161: Scottish Customer. Employment income, Partnership Foreign Income savings and other income. Reduced PA. Voluntary Class 2 NIC | D161: Components: YPD INC-A INC-C Emp-A SPS NI2 NI1 NIC2Vol | E161: 46417.8 | F161: 13947.16 | G161: YES
A162: 157 | B162: Self employment, savings and Dividends below Personal Alowance. CGT and Voluntary Class 2 | D162: Components: YPD INC-A SSE NI2 NIC2Vol CGT | E162: 194716.53 | F162: 13710.4 | G162: YES
A163: 158 | B163: Scottish Customer. Self emaployment, Partnership, Property Income, Other income, savings and Dividends. CGT, Class 2 and 4 NIC. | D163: Components: YPD INC-A INC-C FSE SPS NI2 PRO CGT | E163: 2297952.03 | F163: 32550.25 | G163: YES
A164: 159 | B164: Employment income, savings and Dividends. Voluntary Class 2 NIC. Ent Gains plus other gains. AEA, loss and balance BR band to other gains | D164: Components: YPD INC-A SSE NI2 NIC2Vol CGT | E164: 0 | F164: 2780.4 | G164: YES
A165: 160 | B165: Scottish Customer. Self employment, savings and Dividends. Losses. Class 2 and 4 NIC. ENT Gains plus other gains. | D165: Components: YPD INC-A FIN SSE FSE NI2 CGT | E165: 129074.7 | F165: 70736.81 | G165: YES
A166: 161 | B166: Partnership, Voluntary Class 2, CGT. | D166: Components: YPD SPS NI2 NIC2Vol CGT | E166: 4208.05 | F166: 5708.75 | G166: YES
A167: 162 | B167: Scottish customer, Partnership, Gift Aid charge. CGT. | D167: Components: YPD REL-B SPS NI2 NicEx CGT | E167: 237807.13 | F167: 4837.94 | G167: YES
A168: 163 | B168: Scottish Customer, Partnership. Losses, FPS Relief for Finance Costs (Landlord Loan savings Relief). Class 2 and 4 NIC. CGT | D168: Components: YPD FPS NI2 CGT | E168: 110062 | F168: 92880.98 | G168: YES
A169: 164 | B169: CEG and other income. CGT. | D169: Components: YPD INC-C AOI-B CGT | E169: 12652.48 | F169: 996 | G169: NO
A170: 165 | B170: Employment income, CEG and CGT. Reduced PA. Ex115 | D170: Components: YPD INC-A REL-B AOI-B Emp-A CGT | E170: 215701.53 | F170: 32973.25 | G170: YES
A171: 166 | B171: Employment income. CGT with Deficiency Relief | D171: Components: YPD AOI-B Emp-A CGT | E171: 18885.8 | F171: 14743 | G171: YES
A172: 167 | B172: Scottish Customer. Employment income. CGT with Deficiency Relief. | D172: Components: YPD AOI-B Emp-A CGT | E172: 139119.36 | F172: 14890.95 | G172: YES
A173: 168 | B173: Scottish, Employment income, Savings income & loss relief. CGT without deficiency. | D173: Components: YPD INC-A AOR Emp-A SSE CGT | E173: 21373.83 | F173: 60075.38 | G173: YES
A174: 169 | B174: Employment, savings and dividend income. AIL 16. | D174: Components: YPD INC-A AIL Emp-A | E174: 1124.7 | F174: 222.95 | G174: YES
A175: 170 | B175: Employment income including Lump Sum and Chargeable event gain. | D175: Components: YPD AOI-B ASE-B | E175: 517057.9 | F175: 6185 | G175: YES
A176: 171 | B176: Gift aid charge reduced by notional tax | D176: Components: YPD INC-B REL-A REL-B AOI-B | E176: -499.2 | F176: -499.2 | G176: YES
A177: 172 | B177: Property Income, Dividends and Pension. Losses. Relief for Finance Costs (Landlord Loan savings Relief). Non Resident with AOI12 | D177: Components: YPD INC-A INC-B AOI-C PRO NRD | E177: 4608.68 | F177: 4292.38 | G177: NO
A178: 173 | B178: Property Income, Dividends and Pension. Losses. Relief for Finance Costs (Landlord Loan savings Relief). Non resident with AOI13 | D178: Components: YPD INC-A INC-B AOI-C PRO NRD | E178: 5217 | F178: 4263.87 | G178: NO
A179: 174 | B179: Non resident, Partnership, Pension, Property, savings and Dividend income. | D179: Components: YPD INC-A INC-B FPS NI2 NicEx PRO NRD | E179: 23439.3 | F179: 19308.1 | G179: NO
A180: 175 | B180: Employment, Trust, savings and Dividend income. Test for TRU18. | D180: Components: YPD INC-A AOI-B Emp-A TRU | E180: 12048.2 | F180: 13518.06 | G180: NO
A181: 176 | B181: Proerty Income, savings and Dividends. AIL16 over £20,000 | D181: Components: YPD INC-A AIL PRO | E181: 77733 | F181: 77733 | G181: YES
A182: 177 | B182: Pension, Other income and savings. MCA | D182: Components: YPD INC-A INC-B INC-C AOI-C MCA CAL | E182: 21414.06 | F182: -1400 | G182: YES
A183: 178 | B183: Pension, Other income and savings. MCA1, half basic to partner | D183: Components: YPD INC-A INC-B INC-C MCA | E183: 7520 | F183: 1896.04 | G183: YES
A184: 179 | B184: Pension, Other income and savings. MCA, all basic to partner | D184: Components: YPD INC-A INC-B INC-C MCA | E184: 9423.75 | F184: -1400 | G184: YES
A185: 180 | B185: Pension, Other income and savings. MCA claim lower income partner | D185: Components: YPD INC-A INC-B INC-C MCA | E185: 6412 | F185: -1156.9 | G185: YES
A186: 181 | B186: Employment, Foreign Income and savings. Student Loan repayments (plan 1) SL, CAL7 and CAL 8 entries. | D186: Components: YPD INC-A SLR AOR Emp-A Emp-B CAL | E186: -2321.15 | F186: 6194.4 | G186: YES
A187: 182 | B187: Employment income, Student loan repayments (plan 1) SL, EMP8 entry, PT Teacher earnings > SL limit but PT teacher earnings on own < SL limit | D187: Components: YPD Emp-A Emp-B FSE | E187: 463.03 | F187: 2569 | G187: YES
A188: 183 | B188: Property Income from both EEA and UK lettings. Pension CEG, savings and Dividends. | D188: Components: YPD INC-A INC-B AOI-B PRO | E188: 2233.47 | F188: 4833.47 | G188: YES
A189: 184 | B189: Employment income, Property Income from EEA and UK lettings, Foreign land and property income and Foreign Dividends. FOR Relief for Finance Costs (Landlord Loan savings Relief). PA reduced to Nil. | D189: Components: YPD Emp-A PRO FOR TCR | E189: 7962.01 | F189: 23142.53 | G189: YES
A190: 185 | B190: Property and Trust income, savings and Dividends, CEG. Income over £100,000 reduced PA. Student Loan repayments (plan 1) | D190: Components: YPD INC-A SLR AOI-B PRO TRU | E190: 16175.88 | F190: 16297.88 | G190: NO
A191: 186 | B191: Pension, savings, Dividends and Foreign Dividends. Lifetime allowance charge (lump sum amount) | D191: Components: YPD INC-A INC-B AOI-C AIL | E191: -1257.95 | F191: -1187.94 | G191: YES
A192: 187 | B192: Self employment, Pension. Lifetime allowance charge -further tax due (lump sum and pension amounts) | D192: Components: YPD INC-B AIL SSE NI2 NicEx | E192: 18768.29 | F192: 30662.7 | G192: YES
A193: 188 | B193: Self employment, Property Income, Other income, savings and Dividends, CRG. Annual allowance charge and unauthorised payment charge (@40% and 55%). Reduced PA | D193: Components: YPD INC-A INC-C AOI-B AOI-C AIL FSE NI2 NicEx PRO | E193: 178656.68 | F193: 183329.63 | G193: YES
A194: 189 | B194: Employment income. Small Debt coded but not enough PAYE tax to cover. CEG. | D194: Components: YPD Emp-A CGT CAL | E194: 17358.2 | F194: 7918.5 | G194: YES
A195: 190 | B195: Partnership, Other income and savings. PPR and Gift Aid. Losses. Class 4 and Voluntary Class 2. AOR9 | D195: Components: YPD INC-C REL-A REL-B AOI-A AOR SPS NI2 | E195: 53719.77 | F195: 16266.47 | G195: YES
A196: 191 | B196: Partnership, Other income and savings. PPR and Gift Aid. Losses. Class 4 and Voluntary Class 2. EIS and AOR9. | D196: Components: YPD INC-C REL-A REL-B AOI-A AOR SPS NI2 | E196: 42892.02 | F196: 13266.47 | G196: YES
A197: 192 | B197: Self employment adjusted loss reduced by transition profit, savings, dividneds and HICBC. Voluntary Class 2. | D197: Components: YPD INC-A CBC FSE NI2 | E197: 21750.19 | F197: 8842.02 | G197: YES
A198: 193 | B198: Employment, Self employment and savings. Losses. HICBC. Class 4 and Voluntary Class 2 NIC. | D198: Components: YPD INC-A CBC Emp-A SSE NI2 NI1 | E198: 11630.15 | F198: 12117.98 | G198: YES
A199: 194 | B199: Employment, savings and Dividends. HICBC. AOR6.1 | D199: Components: YPD INC-A CBC AOR Emp-A | E199: 13703.37 | F199: 13703.37 | G199: YES
A200: 195 | B200: Employment, Self employment. Losses. HICBC. Gift Aid. Class 4 and Voluntary Class 2 NIC. | D200: Components: YPD REL-B CBC Emp-A SSE NI2 NI1 | E200: 1097.33 | F200: 2766.83 | G200: YES
A201: 196 | B201: Employment income, savings and Dividends. PPR. HICBC. | D201: Components: YPD INC-A REL-A CBC AOI-C Emp-A CAL | E201: 45793.16 | F201: 714.47 | G201: YES
... 77 more rows

Sheet Selector
A1: - | D1: Select the components from the Core Tax Return and Additional Information pages to test
A2: 1 | C2: Core Tax Return
A3: 2
A4: 3 | C4: Taxpayer's date of birth | E4: Test case reference | F4: 168 | G4: ='REL(2)'!C50&" ("&FIN&'REL(2)'!C52&")" -> Tax refunded (FIN1)
A5: 4
A6: 5 | C6: Income
A7: 6 | C7: UK interest and dividends | E7: UK pensions received | G7: Other UK income
A8: 7 | C8: =C0!C11&" ("&C0!C12&" to "&C0!C18&")" -> INC-A (INC1 to INC7) | E8: =C0!C20&" ("&C0!C21&" to "&C0!C28&")" -> INC-B (INC8 to INC15) | G8: =C0!C31&" ("&C0!C32&" to "&C0!C36&")" -> INC-C (INC17 to INC21)
A9: 8
A10: 9 | C10: Tax Reliefs
A11: 10 | C11: Paying personal pensions | E11: Charitable giving | G11: Blind Person's Allowance
A12: 11 | C12: =C0!C38&" ("&C0!C39&" to "&C0!C43&")" -> REL-A (REL1 to REL4) | E12: =C0!C45&" ("&C0!C46&" to "&C0!C51&")" -> REL-B (REL5 to REL10) | G12: =C0!C53&" ("&C0!C54&" to "&C0!C57&")" -> REL-C (REL13 to REL16) | J12: =" Components are currently "&IF(A34,"visible","hidden") -> Components are currently hidden
A13: 12
A14: 13 | C14: Student Loan Repayments | E14: High Income Child Benefit Charge | G14: Marriage Allowance Transfer
A15: 14 | C15: Student Loan Repayments | E15: Child Benefit | G15: Allowance Transfer
A16: 15 | C16: =C0!C59&" ("&C0!C63&" to "&C0!C60&")" -> SLR (SLR2 to SLR1) | E16: =C0!C66&" ("&C0!C67&" to "&C0!C69&")" -> CBC (CBC1 to CBC3) | G16: =C0!C74&" ("&C0!C75&" to "&C0!C80&")" -> MAT (MAT1-5 to MAT5)
A17: 16
A18: 17
A19: 18 | C19: Additional information
A20: 19 | C20: Gilt edged securities | E20: Life insurance gains | G20: Stock dividends
A21: 20 | C21: ='C1'!C3&" ("&'C1'!C4&" to "&'C1'!C6&")" -> AOI-A (AOI1 to AOI3) | E21: ='C1'!C9&" ("&'C1'!C10&" to "&'C1'!C17&")" -> AOI-B (AOI4 to AOI11) | G21: ='C1'!C20&" ("&'C1'!C21&" to "&'C1'!C25&")" -> AOI-C (AOI12 to AOI15)
A23: DoB | C23: ='C1'!C27 -> Share schemes | E23: ='C1'!C31 -> Lump Sums | G23: ='C1'!C42 -> Other deductions
A24: 7 | C24: ='C1'!C28&" ("&'C1'!C29&")" -> ASE-A (ASE1) | E24: ='C1'!C32&" ("&'C1'!C33&" to "&'C1'!C40&")" -> ASE-B (ASE3 to ASE10) | G24: ='C1'!C43&" ("&'C1'!C44&" to "&'C1'!C48&")" -> ASE-C (ASE11 to ASE15)
A25: ="03/06/"&MCA_year-1 -> 03/06/1934
A26: ="22/02/"&MCA_year+1 -> 22/02/1936 | C26: =AOR!C3 -> Other tax reliefs | E26: =MCA!C2 -> Married couple's allowance | G26: =AIL!C3 -> Other Income Tax losses
A27: ="05/03/"&Tax_year_end-75 -> 05/03/1951 | C27: ='C1'!C50&" ("&'C1'!C51&" to "&'C1'!C60&")" -> AOR (AOR1 to AOR9) | E27: ='C1'!C74&" ("&'C1'!C75&" to "&'C1'!C85&")" -> MCA (MCA1 to MCA11) | G27: ='C1'!C88 -> AIL1
A28: ="03/01/"&Tax_year_end-63 -> 03/01/1963
A29: ="17/11/"&Tax_year_end-40 -> 17/11/1986
A30: ="02/05/"&Tax_year_end-15 -> 02/05/2011
A31: not present
A32: =IF(A24=1,A25,IF(A24=2,A26,IF(A24=3,A27,IF(A24=4,A28,IF(A24=5,A29,IF(A24=6,A30,A31)))))) -> not present
A33: Components Visible
A34: FALSE

Sheet More Select
A1: - | E1: Select the components from the additional pages to test
A2: 1
A3: 2 | C3: Employment
A4: 3 | C4: Employment 1 | E4: Employment 2 | H4: Ministers
A5: 4 | C5: ='C2'!B2 -> selected 168 | E5: EMP-B | H5: of Religion
A6: 5 | C6: ="("&'C2'!C3&" to "&'C2'!C29&")" -> (EMP1 to EMP20) | E6: ="("&'C2'!C3&" to "&'C2'!C29&")" -> (EMP1 to EMP20) | H6: ="("&'C2'!C61&" to "&'C2'!C101&")" -> (MOR1 to MOR39)
A7: 6
A8: 7 | C8: Self Employment
A9: 8 | C9: Short Self Employment | E9: Full Self Employment | H9: Lloyds Underwriter | K9: ="Components are currently "&IF(Selector!A34,"visible","hidden") -> Components are currently hidden
A10: 9 | C10: ="("&'C3'!C3&" to "&'C3'!C46&")" -> (SSE1 to SSE38) | E10: ="("&'C3'!C49&" to "&'C3'!C155&")" -> (FSE1 to FSE103)
A11: 10
A12: 11 | C12: Short Partnership | E12: Full Partnership
A13: 12 | C13: ="("&'C4'!C3&" to "&'C4'!C29&")" -> (SPS1 to SPS32) | E13: ="("&'C4'!C32&" to "&'C4'!C120&")" -> (FPS1 to FPS80)
A14: 13
A15: 14
A16: 15 | C16: Income from Property | E16: Foreign income | H16: Trust income
A17: 16 | C17: ="("&'C5'!C2&" to "&'C5'!C74&")" -> (PRO1 to PRO45) | E17: ="("&'C6'!C2&" to "&'C6'!#REF!&")" ->  | H17: ="("&'C7'!C2&" to "&'C7'!C28&")" -> (TRU1 to TRU26)
A18: 17
A19: 18 | C19: Capital Gains | E19: Residence etc. | H19: Tax calculation summary
A20: NIC exempt set | C20: ="("&'C8C9C10'!C3&" to "&'C8C9C10'!C86&")" -> (CGT1 to CGT54) | E20: ="("&'C8C9C10'!C89&" to "&'C8C9C10'!C145&")" -> (NRD1 to NRD54) | H20: ="("&'C8C9C10'!C156&" to "&'C8C9C10'!C166&")" -> (CAL7 to CAL17)
A21: FALSE
A22: NIC2_Vol | E22: Class 2 NIC | H22: Class 1 NIC
A23: FALSE
A24: Remit set
A25: FALSE

Sheet tc_template (hidden)
B1: =IF(Selector!F4="","","Test case "&Selector!F4) -> Test case 168
C2: SA100 | I2: SA101 | N2: SA102 | Q2: SA102M | T2: SA103S | X2: SA103F | AD2: SA103L | AI2: SA104S | AM2: SA104F | AR2: SA105 | AV2: SA106 | BA2: SA107 | BD2: SA108 | BG2: SA109 | BJ2: SA110
A3: YPD | D3: REL | E3: ="Selected = "&REL_A_IND-1&"/"&REL_B_IND-1&"/"&REL_C_IND-1 -> Selected = 0/0/0 | G3: AOI | H3: ="Selected = "&AOI_A_IND-1&"/"&AOI_B_IND-1&"/"&AOI_C_IND-1 -> Selected = 0/0/0 | J3: MCA | K3: ="Selected = "&MCA_IND-1 -> Selected = 0 | M3: EMP-A | N3: ="Selected = "&EMP_A_IND-1 -> Selected = 168 | P3: MOR | Q3: ="Selected = "&MOR_IND-1 -> Selected = 0 | S3: SSE | T3: ="Selected = "&SE_A_IND-1 -> Selected = 168 | V3: FSE | W3: ="Selected = "&SE_B_IND-1 -> Selected = 0 | Y3: FSE | Z3: ="Selected = "&SE_B_IND-1 -> Selected = 0 | AB3: LUN | AC3: ="Selected = "&LUN_IND-1 -> Selected = 0 | AE3: LUN | AF3: ="Selected = "&LUN_IND-1 -> Selected = 0 | AH3: SPS | AI3: ="Selected = "&PS_A_IND-1 -> Selected = 168 | AK3: FPS | AL3: ="Selected = "&PS_B_IND-1 -> Selected = 0 | AN3: FPS | AO3: ="Selected = "&PS_B_IND-1 -> Selected = 0 | AQ3: PRO | AR3: ="Selected = "&PRO_IND-1 -> Selected = 0 | AT3: FOR | AU3: ="Selected = "&FOR_IND-1 -> Selected = 168 | AW3: FOR | AX3: ="Selected = "&FOR_IND-1 -> Selected = 168 | AZ3: TRU | BA3: ="Selected = "&TRU_IND-1 -> Selected = 0 | BC3: CGT | BD3: ="Selected = "&CGT_IND-1 -> Selected = 168 | BF3: NRD | BG3: ="Selected = "&NRD_IND-1 -> Selected = 0 | BI3: CAL | BJ3: ="Selected = "&CAL_IND-1 -> Selected = 0
A4: 1 | B4: =IF(C0!B4<>"",C0!B4,"") -> 23/04/1987 | D4: 1 | E4: =IF(C0!B39<>"",C0!B39,"") ->  | G4: 1 | H4: =IF('C1'!B4<>"",'C1'!B4,"") ->  | J4: 1 | K4: =IF('C1'!B75<>0,'C1'!B75,"") ->  | M4: 1 | N4: =IF('C2'!B3<>0,'C2'!B3,"") -> 89201 | P4: 1 | Q4: =IF('C2'!B61<>0,'C2'!B61,"") ->  | S4: 1 | T4: =IF('C3'!B3<>0,'C3'!B3,"") -> caterer | V4: 1 | W4: =IF('C3'!B49<>0,'C3'!B49,"") ->  | Y4: 53 | Z4: =IF('C3'!B105<>0,'C3'!B105,"") ->  | AB4: 1 | AC4: =IF('C3'!B158<>0,'C3'!B158,"") ->  | AE4: 51 | AF4: =IF('C3'!B205<>0,'C3'!B205,"") ->  | AH4: 1 | AI4: =IF('C4'!B3<>0,'C4'!B3,"") -> 1000050020 | AK4: 1 | AL4: =IF('C4'!B32<>0,'C4'!B32,"") ->  | AN4: 52 | AO4: =IF('C4'!B87<>0,'C4'!B87,"") ->  | AQ4: 1 | AR4: =IF('C5'!B2<>0,'C5'!B2,"") ->  | AT4: 1 | AU4: =IF('C6'!B2<>0,'C6'!B2,"") ->  | AW4: 13.1 | AX4: =IF('C6'!B96<>0,'C6'!B96,"") ->  | AZ4: 1 | BA4: =IF('C7'!B2<>0,'C7'!B2,"") ->  | BC4: 1 | BD4: =IF('C8C9C10'!B3<>0,'C8C9C10'!B3,"") ->  | BF4: 1 | BG4: =IF('C8C9C10'!B89<>"",'C8C9C10'!B89,"") ->  | BI4: 1 | BJ4: =IF(box_18_3<0,"",ROUND(box_18_3,2)) -> 0
A5: 2 | D5: 1.1 | E5: =IF(C0!B40<>"",C0!B40,"") ->  | G5: 2 | H5: =IF('C1'!B5<>"",'C1'!B5,"") ->  | J5: 2 | K5: =IF('C1'!B76<>0,'C1'!B76,"") ->  | M5: 1.1 | N5: =IF('C2'!B4<>0,'C2'!B4,"") ->  | P5: 2 | Q5: =IF('C2'!B62<>0,'C2'!B62,"") ->  | S5: 2 | T5: =IF('C3'!B4<>0,'C3'!B4,"") ->  | V5: 2 | W5: =IF('C3'!B50<>0,'C3'!B50,"") ->  | Y5: 53.1 | Z5: =IF('C3'!B106<>0,'C3'!B106,"") ->  | AB5: 2 | AC5: =IF('C3'!B159<>0,'C3'!B159,"") ->  | AE5: 52 | AF5: =IF('C3'!B206<>0,'C3'!B206,"") ->  | AH5: 2 | AI5: =IF('C4'!B4<>0,'C4'!B4,"") -> trader | AK5: 2 | AL5: =IF('C4'!B33<>0,'C4'!B33,"") ->  | AN5: 53 | AO5: =IF('C4'!B88<>0,'C4'!B88,"") ->  | AQ5: 2 | AR5: =IF('C5'!B3<>0,'C5'!B3,"") ->  | AT5: 2 | AU5: =IF('C6'!B3<>0,'C6'!B3,"") ->  | AW5: 13.2 | AX5: =IF('C6'!B97<>0,'C6'!B97,"") ->  | AZ5: 2 | BA5: =IF('C7'!B3<>0,'C7'!B3,"") ->  | BC5: 2 | BD5: =IF('C8C9C10'!B4<>0,'C8C9C10'!B4,"") ->  | BF5: 2 | BG5: Box not in use | BI5: 2 | BJ5: =IF(box_18_3<0,-1*box_18_3,"") -> 
A6: 3 | D6: 2 | E6: =IF(C0!B41<>"",C0!B41,"") ->  | G6: 3 | H6: =IF('C1'!B6<>"",'C1'!B6,"") ->  | J6: 3 | K6: =IF('C1'!B77<>0,'C1'!B77,"") ->  | M6: 2 | N6: =IF('C2'!B5<>0,'C2'!B5,"") -> 14056 | P6: 2.1 | Q6: =IF('C2'!B63<>0,'C2'!B63,"") ->  | S6: 3 | T6: =IF('C3'!B5<>0,'C3'!B5,"") ->  | V6: 3 | W6: =IF('C3'!B51<>0,'C3'!B51,"") ->  | Y6: 54 | Z6: =IF('C3'!B107<>0,'C3'!B107,"") ->  | AB6: 2.1 | AC6: Box not in use | AE6: 53 | AF6: =IF('C3'!B207<>0,'C3'!B207,"") ->  | AH6: 3Q | AI6: =IF('C4'!B5<>0,'C4'!B5,"") -> N | AK6: 3Q | AL6: =IF('C4'!B34<>0,'C4'!B34,"") ->  | AN6: 54 | AO6: =IF('C4'!B89<>0,'C4'!B89,"") ->  | AQ6: 3 | AR6: =IF('C5'!B4<>0,'C5'!B4,"") ->  | AT6: A_1 | AU6: =IF('C6'!B4<>0,'C6'!B4,"") -> GGY | AW6: 14 | AX6: =IF('C6'!B98<>0,'C6'!B98,"") ->  | AZ6: 3 | BA6: =IF('C7'!B4<>0,'C7'!B4,"") ->  | BC6: 3 | BD6: =IF('C8C9C10'!B5<>0,'C8C9C10'!B5,"") -> 1 | BF6: 3 | BG6: =IF('C8C9C10'!B91<>"",'C8C9C10'!B91,"") ->  | BI6: 3 | BJ6: =IF(AND(C0!B60="Y",'Tax due (c12)'!J61>0),'Tax due (c12)'!J61,"") -> 
A7: 4 | D7: 3 | E7: =IF(C0!B42<>"",C0!B42,"") ->  | G7: 4 | H7: =IF('C1'!B10<>"",'C1'!B10,"") ->  | J7: 4 | K7: =IF('C1'!B78<>0,'C1'!B78,"") ->  | M7: 3 | N7: =IF('C2'!B6<>0,'C2'!B6,"") ->  | P7: 3 | Q7: =IF('C2'!B64<>0,'C2'!B64,"") ->  | S7: 4 | T7: =IF('C3'!B6<>0,'C3'!B6,"") ->  | V7: 4 | W7: =IF('C3'!B52<>0,'C3'!B52,"") ->  | Y7: 55 | Z7: =IF('C3'!B108<>0,'C3'!B108,"") ->  | AB7: 3 | AC7: =IF('C3'!B160<>0,'C3'!B160,"") ->  | AE7: 54 | AF7: =IF('C3'!B208<>0,'C3'!B208,"") ->  | AH7: 3 | AI7: =IF('C4'!B6<>0,'C4'!B6,"") ->  | AK7: 3 | AL7: =IF('C4'!B35<>0,'C4'!B35,"") ->  | AN7: 55 | AO7: =IF('C4'!B90<>0,'C4'!B90,"") ->  | AQ7: 4 | AR7: =IF('C5'!B5<>0,'C5'!B5,"") ->  | AT7: B_1 | AU7: =IF('C6'!B5<>0,'C6'!B5,"") -> 698 | AW7: 14.1 | AX7: =IF('C6'!B99<>0,'C6'!B99,"") ->  | AZ7: 4 | BA7: =IF('C7'!B5<>0,'C7'!B5,"") ->  | BC7: 4 | BD7: =IF(CGT_IND-1>0,'C8C9C10'!B6,"") ->  | BF7: 3.1 | BG7: =IF('C8C9C10'!B92<>"",'C8C9C10'!B92,"") ->  | BI7: 3.1 | BJ7: =IF(AND(C0!B60="Y",'Tax due (c12)'!J64>0),'Tax due (c12)'!J64,"") -> 
A8: TR | B8: =IF(C0!B9<>"",C0!B9,"") -> 2 | D8: 4 | E8: =IF(C0!B43<>"",C0!B43,"") ->  | G8: 5 | H8: =IF('C1'!B11<>"",'C1'!B11,"") ->  | J8: 5 | K8: =IF('C1'!B79<>0,'C1'!B79,"") ->  | M8: 3.1 | N8: Box not in use | P8: 4 | Q8: =IF('C2'!B65<>0,'C2'!B65,"") ->  | S8: 5Q | T8: =IF('C3'!B7<>0,'C3'!B7,"") -> Y | V8: 5 | W8: =IF('C3'!B53<>0,'C3'!B53,"") ->  | Y8: 56 | Z8: =IF('C3'!B109<>0,'C3'!B109,"") ->  | AB8: 3.1 | AC8: Box not in use | AE8: 55 | AF8: =IF('C3'!B209<>0,'C3'!B209,"") ->  | AH8: 4Q | AI8: =IF('C4'!B7<>0,'C4'!B7,"") -> Y | AK8: 4Q | AL8: =IF('C4'!B36<>0,'C4'!B36,"") ->  | AN8: 55.1 | AO8: =IF('C4'!B91<>0,'C4'!B91,"") ->  | AQ8: 5 | AR8: Box not in use | AT8: C_1 | AU8: =IF('C6'!B6<>0,'C6'!B6,"") ->  | AW8: 14.2 | AX8: =IF('C6'!B100<>"",'C6'!B100,"") ->  | AZ8: 5 | BA8: =IF('C7'!B6<>0,'C7'!B6,"") ->  | BC8: 5 | BD8: =IF('C8C9C10'!B7<>0,'C8C9C10'!B7,"") ->  | BF8: 4 | BG8: =IF('C8C9C10'!B93<>"",'C8C9C10'!B93,"") ->  | BI8: 4 | BJ8: ='Tax due (c12)'!J39 -> 0
D9: 5 | E9: =IF(C0!B46<>"",C0!B46,"") ->  | G9: 6 | H9: =IF('C1'!B12<>"",'C1'!B12,"") ->  | J9: 6 | K9: =IF('C1'!B80<>0,'C1'!B80,"") ->  | M9: 4 | N9: =IF('C2'!B8<>0,'C2'!B8,"") -> 525/444 | P9: 4.1 | Q9: Box not in use | S9: 5 | T9: =IF('C3'!B8<>0,'C3'!B8,"") -> 25/04/2025 | V9: 6Q | W9: =IF('C3'!B54<>0,'C3'!B54,"") ->  | Y9: 57 | Z9: =IF('C3'!B110<>0,'C3'!B110,"") ->  | AB9: 4 | AC9: =IF('C3'!B161<>0,'C3'!B161,"") ->  | AE9: 56 | AF9: =IF('C3'!B210<>0,'C3'!B210,"") ->  | AH9: 4 | AI9: =IF('C4'!B8<>0,'C4'!B8,"") -> 30/03/2026 | AK9: 4 | AL9: =IF('C4'!B37<>0,'C4'!B37,"") ->  | AN9: 56 | AO9: =IF('C4'!B92<>"",'C4'!B92,"") ->  | AQ9: 5.1 | AR9: Box not in use | AT9: 3D_1 | AU9: =IF('C6'!B7<>0,'C6'!B7,"") ->  | AW9: 15 | AX9: =IF('C6'!B101<>0,'C6'!B101,"") ->  | AZ9: 6 | BA9: =IF('C7'!B7<>0,'C7'!B7,"") ->  | BC9: 6 | BD9: =IF('C8C9C10'!B8<>0,'C8C9C10'!B8,"") -> 29077 | BF9: 5 | BG9: Box not in use | BI9: 4.1 | BJ9: ='Tax due (c12)'!J47 -> 0
A10: INC | B10: ="Selected = "&INC_A_IND-1&"/"&INC_B_IND-1&"/"&INC_C_IND-1 -> Selected = 168/0/0 | D10: 6 | E10: =IF(C0!B47<>"",C0!B47,"") ->  | G10: 7 | H10: =IF('C1'!B13<>"",'C1'!B13,"") ->  | J10: 7 | K10: =IF('C1'!B81<>0,'C1'!B81,"") ->  | M10: 5 | N10: =IF('C2'!B9<>0,'C2'!B9,"") ->  | P10: 5 | Q10: =IF('C2'!B67<>0,'C2'!B67,"") ->  | S10: 6Q | T10: =IF('C3'!B9<>0,'C3'!B9,"") -> Y | V10: 6 | W10: =IF('C3'!B55<>0,'C3'!B55,"") ->  | Y10: 58 | Z10: Box not in use | AB10: 5 | AC10: =IF('C3'!B162<>0,'C3'!B162,"") ->  | AE10: 57 | AF10: =IF('C3'!B211<>0,'C3'!B211,"") ->  | AH10: 5 | AI10: Box not in use | AK10: 5 | AL10: Box not in use | AN10: 57 | AO10: =IF('C4'!B93<>0,'C4'!B93,"") ->  | AQ10: 5.2 | AR10: Box not in use | AT10: E_1 | AU10: =IF('C6'!B8<>0,'C6'!B8,"") ->  | AW10: 16 | AX10: =IF('C6'!B102<>0,'C6'!B102,"") ->  | AZ10: 7 | BA10: =IF('C7'!B8<>0,'C7'!B8,"") ->  | BC10: 6.1 | BD10: =IF('C8C9C10'!B9<>0,'C8C9C10'!B9,"") ->  | BF10: 6 | BG10: =IF('C8C9C10'!B95<>"",'C8C9C10'!B95,"") ->  | BI10: 5 | BJ10: =IF('Tax due (c12)'!J95>0,'Tax due (c12)'!J95,"") -> 
A11: 1 | B11: =IF(C0!B12<>"",C0!B12,"") ->  | D11: 7 | E11: =IF(C0!B48<>"",C0!B48,"") ->  | G11: 8 | H11: =IF('C1'!B14<>"",'C1'!B14,"") ->  | J11: 8 | K11: =IF('C1'!B82<>0,'C1'!B82,"") ->  | M11: 6 | N11: =IF('C2'!B10<>0,'C2'!B10,"") -> Y | P11: 6 | Q11: =IF('C2'!B68<>0,'C2'!B68,"") ->  | S11: 6 | T11: =IF('C3'!B10<>0,'C3'!B10,"") -> 05/04/2026 | V11: 7Q | W11: =IF('C3'!B56<>0,'C3'!B56,"") ->  | Y11: 59 | Z11: =IF('C3'!B111<>0,'C3'!B111,"") ->  | AB11: 6 | AC11: =IF('C3'!B163<>0,'C3'!B163,"") ->  | AE11: 58 | AF11: =IF('C3'!B212<>0,'C3'!B212,"") ->  | AH11: 6 | AI11: Box not in use | AK11: 6 | AL11: Box not in use | AN11: 58 | AO11: =IF('C4'!B94<>"",'C4'!B94,"") ->  | AQ11: 6 | AR11: Box not in use | AT11: 4F_1 | AU11: =IF('C6'!B9<>0,'C6'!B9,"") -> 698 | AW11: 17 | AX11: =IF('C6'!B103<>0,'C6'!B103,"") ->  | AZ11: 8 | BA11: =IF('C7'!B9<>0,'C7'!B9,"") ->  | BC11: 7 | BD11: =IF('C8C9C10'!B10<>0,'C8C9C10'!B10,"") ->  | BF11: 7 | BG11: =IF('C8C9C10'!B96<>"",'C8C9C10'!B96,"") ->  | BI11: 6 | BJ11: =IF('Tax adj (c9)'!J161>0,'Tax adj (c9)'!J161,"") -> 
A12: 2 | B12: =IF(C0!B13<>"",C0!B13,"") ->  | D12: 8 | E12: =IF(C0!B49<>"",C0!B49,"") ->  | G12: 9 | H12: =IF('C1'!B15<>"",'C1'!B15,"") ->  | J12: 9 | K12: =IF('C1'!B83<>0,'C1'!B83,"") ->  | M12: 6.1 | N12: =IF('C2'!B11<>0,'C2'!B11,"") ->  | P12: 7 | Q12: =IF('C2'!B69<>0,'C2'!B69,"") ->  | S12: 7 | T12: =IF('C3'!B11<>0,'C3'!B11,"") -> 05/04/2026 | V12: 7 | W12: =IF('C3'!B57<>0,'C3'!B57,"") ->  | Y12: 60 | Z12: =IF('C3'!B112<>0,'C3'!B112,"") ->  | AB12: 7 | AE12: 59 | AF12: =IF('C3'!B213<>0,'C3'!B213,"") ->  | AH12: 7 | AI12: Box not in use | AK12: 7 | AL12: Box not in use | AN12: 59 | AO12: =IF('C4'!B95<>0,'C4'!B95,"") ->  | AQ12: 7 | AR12: Box not in use | AT12: A_2 | AU12: =IF('C6'!B10<>0,'C6'!B10,"") -> IRL | AW12: 18 | AX12: =IF('C6'!B104<>0,'C6'!B104,"") ->  | AZ12: 9 | BA12: =IF('C7'!B10<>0,'C7'!B10,"") ->  | BC12: 8 | BD12: =IF('C8C9C10'!B11<>0,'C8C9C10'!B11,"") ->  | BF12: 8 | BG12: =IF('C8C9C10'!B97<>"",'C8C9C10'!B97,"") ->  | BI12: 7 | BJ12: =IF('C8C9C10'!B156<>0,'C8C9C10'!B156,"") -> 
A13: 3 | B13: =IF(C0!B14<>"",C0!B14,"") ->  | D13: 9 | E13: =IF(C0!B50<>"",C0!B50,"") ->  | G13: 10 | H13: =IF('C1'!B16<>"",'C1'!B16,"") ->  | J13: 10 | K13: =IF('C1'!B84<>0,'C1'!B84,"") ->  | M13: 7 | N13: =IF('C2'!B12<>0,'C2'!B12,"") ->  | P13: 8 | Q13: =IF('C2'!B70<>0,'C2'!B70,"") ->  | S13: 8 | T13: =IF('C3'!B12<>0,'C3'!B12,"") -> N | V13: 8 | W13: =IF('C3'!B58<>0,'C3'!B58,"") ->  | Y13: 61 | Z13: =IF('C3'!B113<>0,'C3'!B113,"") ->  | AB13: 8 | AC13: =IF('C3'!B164<>0,'C3'!B164,"") ->  | AE13: 60 | AF13: =IF('C3'!B214<>0,'C3'!B214,"") ->  | AH13: 8 | AI13: =IF('C4'!B9<>0,'C4'!B9,"") -> -1840 | AK13: 8 | AL13: =IF('C4'!B38<>"",'C4'!B38,"") ->  | AN13: 60 | AO13: =IF('C4'!B96<>0,'C4'!B96,"") ->  | AQ13: 8 | AR13: Box not in use | AT13: B_2 | AU13: =IF('C6'!B11<>0,'C6'!B11,"") -> 14265 | AW13: 19 | AX13: =IF('C6'!B105<>0,'C6'!B105,"") ->  | AZ13: 10 | BA13: =IF('C7'!B11<>0,'C7'!B11,"") ->  | BC13: 9 | BD13: =IF('C8C9C10'!B12<>0,'C8C9C10'!B12,"") ->  | BF13: 9 | BG13: =IF('C8C9C10'!B98<>"",'C8C9C10'!B98,"") ->  | BI13: 8 | BJ13: =IF('C8C9C10'!B157<>0,'C8C9C10'!B157,"") -> 
A14: 4 | B14: =IF(C0!B15<>"",C0!B15,"") -> 40000 | D14: 10 | E14: =IF(C0!B51<>"",C0!B51,"") ->  | G14: 11 | H14: =IF('C1'!B17<>"",'C1'!B17,"") ->  | J14: 11 | K14: =IF('C1'!B85<>0,'C1'!B85,"") ->  | M14: 7.1 | N14: =IF('C2'!B13<>0,'C2'!B13,"") ->  | P14: 9 | Q14: =IF('C2'!B71<>0,'C2'!B71,"") ->  | S14: 9 | T14: =IF('C3'!B13<>0,'C3'!B13,"") -> 27643 | V14: 9 | W14: =IF('C3'!B59<>0,'C3'!B59,"") ->  | Y14: 62 | Z14: =IF('C3'!B114<>0,'C3'!B114,"") ->  | AB14: 9 | AC14: =IF('C3'!B165<>0,'C3'!B165,"") ->  | AE14: 61 | AF14: =IF('C3'!B215<>0,'C3'!B215,"") ->  | AH14: 9 | AI14: =IF('C4'!B10<>0,'C4'!B10,"") ->  | AK14: 9 | AL14: =IF('C4'!B39<>"",'C4'!B39,"") ->  | AN14: 60.1 | AO14: =IF('C4'!B97<>0,'C4'!B97,"") ->  | AQ14: 9 | AR14: Box not in use | AT14: C_2 | AU14: =IF('C6'!B12<>0,'C6'!B12,"") ->  | AW14: 20 | AX14: =IF('C6'!B106<>0,'C6'!B106,"") ->  | AZ14: 11 | BA14: =IF('C7'!B12<>0,'C7'!B12,"") ->  | BC14: 10 | BD14: =IF('C8C9C10'!B13<>0,'C8C9C10'!B13,"") ->  | BF14: 10 | BG14: =IF('C8C9C10'!B99<>"",'C8C9C10'!B99,"") ->  | BI14: 9 | BJ14: =IF('C8C9C10'!B158<>0,'C8C9C10'!B158,"") -> 
A15: 5 | B15: =IF(C0!B16<>"",C0!B16,"") ->  | D15: 11 | E15: Box not in use | G15: 12 | H15: =IF('C1'!B21<>"",'C1'!B21,"") ->  | M15: 7.2 | N15: =IF('C2'!B14<>0,'C2'!B14,"") ->  | P15: 10 | Q15: =IF('C2'!B72<>0,'C2'!B72,"") ->  | S15: 10 | T15: =IF('C3'!B14<>0,'C3'!B14,"") ->  | V15: 10 | W15: =IF('C3'!B60<>0,'C3'!B60,"") ->  | Y15: 63 | Z15: =IF('C3'!B115<>0,'C3'!B115,"") ->  | AB15: 10 | AC15: Box not in use | AE15: 62 | AF15: =IF('C3'!B216<>0,'C3'!B216,"") ->  | AH15: 9.1 | AI15: Box not in use | AK15: 9.1 | AL15: Box not in use | AN15: 61 | AO15: =IF('C4'!B98<>0,'C4'!B98,"") ->  | AQ15: 10 | AR15: Box not in use | AT15: 3D_2 | AU15: =IF('C6'!B13<>0,'C6'!B13,"") ->  | AW15: 21 | AX15: =IF('C6'!B107<>0,'C6'!B107,"") ->  | AZ15: 12 | BA15: =IF('C7'!B13<>0,'C7'!B13,"") ->  | BC15: 11 | BD15: =IF('C8C9C10'!B14<>0,'C8C9C10'!B14,"") ->  | BF15: 11 | BG15: =IF('C8C9C10'!B100<>"",'C8C9C10'!B100,"") ->  | BI15: 10 | BJ15: =IF('C8C9C10'!B159<>0,'C8C9C10'!B159,"") -> 
A16: 6 | B16: =IF(C0!B17<>"",C0!B17,"") ->  | D16: 12 | E16: Box not in use | G16: 13 | H16: =IF('C1'!B22<>"",'C1'!B22,"") ->  | J16: AIL | K16: ="Selected = "&AIL_IND-1 -> Selected = 0 | M16: 7.3 | N16: =IF('C2'!B15<>0,'C2'!B15,"") ->  | P16: 11 | Q16: =IF('C2'!B73<>0,'C2'!B73,"") ->  | S16: 10.1 | T16: =IF('C3'!B15<>0,'C3'!B15,"") ->  | V16: 11 | W16: =IF('C3'!B61<>0,'C3'!B61,"") ->  | Y16: 64 | Z16: =IF('C3'!B116<>0,'C3'!B116,"") ->  | AB16: 11 | AC16: =IF('C3'!B166<>0,'C3'!B166,"") ->  | AE16: 63 | AF16: =IF('C3'!B217<>0,'C3'!B217,"") ->  | AH16: 10 | AI16: =IF('C4'!B11<>0,'C4'!B11,"") ->  | AK16: 10 | AL16: =IF('C4'!B40<>0,'C4'!B40,"") ->  | AN16: 62 | AO16: =IF('C4'!B99<>0,'C4'!B99,"") ->  | AQ16: 11 | AR16: Box not in use | AT16: E_2 | AU16: =IF('C6'!B14<>0,'C6'!B14,"") ->  | AW16: 21.1 | AX16: =IF('C6'!B108<>0,'C6'!B108,"") ->  | AZ16: 13 | BA16: =IF('C7'!B14<>0,'C7'!B14,"") ->  | BC16: 12 | BD16: =IF('C8C9C10'!B15<>0,'C8C9C10'!B15,"") ->  | BF16: 11.1 | BG16: =IF('C8C9C10'!B101<>"",'C8C9C10'!B101,"") ->  | BI16: 11 | BJ16: =IF('C8C9C10'!B160<>0,'C8C9C10'!B160,"") -> 
A17: 7 | B17: =IF(C0!B18<>"",C0!B18,"") ->  | D17: 13 | E17: =IF(C0!B54<>"",C0!B54,"") ->  | G17: 13.1 | H17: =IF('C1'!B23<>"",'C1'!B23,"") ->  | J17: 1 | K17: =IF('C1'!B88<>0,'C1'!B88,"") ->  | M17: 7.4 | N17: =IF('C2'!B16<>0,'C2'!B16,"") ->  | P17: 12 | Q17: =IF('C2'!B74<>0,'C2'!B74,"") ->  | S17: 11 | T17: =IF('C3'!B16<>0,'C3'!B16,"") -> 1200 | V17: 12 | W17: =IF('C3'!B62<>0,'C3'!B62,"") ->  | Y17: 65 | Z17: =IF('C3'!B117<>0,'C3'!B117,"") ->  | AB17: 12 | AC17: =IF('C3'!B167<>0,'C3'!B167,"") ->  | AE17: 64 | AF17: =IF('C3'!B218<>0,'C3'!B218,"") ->  | AH17: 11 | AI17: =IF('C4'!B12<>0,'C4'!B12,"") ->  | AK17: 11 | AL17: =IF('C4'!B41<>"",'C4'!B41,"") ->  | AN17: 63 | AO17: =IF('C4'!B100<>0,'C4'!B100,"") ->  | AQ17: 11.1 | AR17: Box not in use | AT17: 4F_2 | AU17: =IF('C6'!B15<>0,'C6'!B15,"") -> 14265 | AW17: 22 | AX17: Box not in use | AZ17: 14 | BA17: =IF('C7'!B15<>0,'C7'!B15,"") ->  | BC17: 13 | BD17: =IF('C8C9C10'!B16<>0,'C8C9C10'!B16,"") ->  | BF17: 12 | BG17: =IF('C8C9C10'!B102<>"",'C8C9C10'!B102,"") ->  | BI17: 12 | BJ17: =IF('C8C9C10'!B161<>0,'C8C9C10'!B161,"") -> 
A18: 8 | B18: =IF(C0!B21<>"",C0!B21,"") ->  | D18: 14 | E18: =IF(C0!B55<>"",C0!B55,"") ->  | G18: 14 | H18: =IF('C1'!B24<>"",'C1'!B24,"") ->  | J18: 2 | K18: =IF('C1'!B89<>0,'C1'!B89,"") ->  | M18: 8 | N18: =IF('C2'!B17<>0,'C2'!B17,"") ->  | P18: 13 | Q18: =IF('C2'!B75<>0,'C2'!B75,"") ->  | S18: 12 | T18: =IF('C3'!B17<>0,'C3'!B17,"") -> 9200 | V18: 13 | W18: =IF('C3'!B63<>0,'C3'!B63,"") ->  | Y18: 66 | Z18: Box not in use | AB18: 13 | AC18: =IF('C3'!B168<>0,'C3'!B168,"") ->  | AE18: 65 | AF18: =IF('C3'!B219<>0,'C3'!B219,"") ->  | AH18: 12 | AI18: =IF('C4'!B13<>0,'C4'!B13,"") ->  | AK18: 12 | AL18: =IF('C4'!B42<>0,'C4'!B42,"") ->  | AN18: 63.1 | AO18: =IF('C4'!B101<>0,'C4'!B101,"") ->  | AQ18: 11.2 | AR18: Box not in use | AT18: 3 | AU18: =IF('C6'!B16<>0,'C6'!B16,"") ->  | AW18: 22.1 | AX18: =IF('C6'!B110<>0,'C6'!B110,"") ->  | AZ18: 15 | BA18: =IF('C7'!B16<>0,'C7'!B16,"") ->  | BC18: 13A | BD18: =IF('C8C9C10'!B17<>0,'C8C9C10'!B17,"") ->  | BF18: 13 | BG18: =IF('C8C9C10'!B103<>"",'C8C9C10'!B103,"") ->  | BI18: 13 | BJ18: =IF('C8C9C10'!B162<>0,'C8C9C10'!B162,"") -> 
A19: 9 | B19: =IF(C0!B22<>"",C0!B22,"") ->  | D19: 15 | E19: =IF(C0!B56<>"",C0!B56,"") ->  | G19: 15 | H19: =IF('C1'!B25<>"",'C1'!B25,"") ->  | J19: 3 | K19: =IF('C1'!B90<>0,'C1'!B90,"") ->  | M19: 8.1 | N19: Box not in use | P19: 14 | Q19: =IF('C2'!B76<>0,'C2'!B76,"") ->  | S19: 13 | T19: =IF('C3'!B18<>0,'C3'!B18,"") -> 12500 | V19: 14 | W19: =IF('C3'!B64<>0,'C3'!B64,"") ->  | Y19: 67 | Z19: Box not in use | AB19: 14 | AC19: =IF('C3'!B169<>0,'C3'!B169,"") ->  | AE19: 66 | AF19: =IF('C3'!B220<>0,'C3'!B220,"") ->  | AH19: 13 | AI19: Box not in use | AK19: 13 | AL19: Box not in use | AN19: 63.2 | AO19: =IF('C4'!B102<>0,'C4'!B102,"") ->  | AQ19: 12 | AR19: Box not in use | AT19: 4 | AU19: =IF('C6'!B17<>0,'C6'!B17,"") -> 14963 | AW19: 22.2 | AX19: =IF('C6'!B111<>0,'C6'!B111,"") ->  | AZ19: 16 | BA19: =IF('C7'!B17<>0,'C7'!B17,"") ->  | BC19: 13B | BD19: =IF('C8C9C10'!B18<>0,'C8C9C10'!B18,"") ->  | BF19: 14 | BG19: =IF('C8C9C10'!B104<>"",'C8C9C10'!B104,"") ->  | BI19: 14 | BJ19: =IF('C8C9C10'!B163<>0,'C8C9C10'!B163,"") -> 
A20: 10 | B20: =IF(C0!B23<>"",C0!B23,"") ->  | D20: 16 | E20: =IF(C0!B57<>"",C0!B57,"") ->  | J20: 4 | K20: =IF('C1'!B91<>0,'C1'!B91,"") ->  | M20: 9 | N20: =IF('C2'!B18<>0,'C2'!B18,"") ->  | P20: 15 | Q20: =IF('C2'!B77<>0,'C2'!B77,"") ->  | S20: 14 | T20: =IF('C3'!B19<>0,'C3'!B19,"") -> 17320 | V20: 15 | W20: =IF('C3'!B65<>0,'C3'!B65,"") ->  | Y20: 68 | Z20: =IF('C3'!B118<>0,'C3'!B118,"") ->  | AB20: 15 | AC20: =IF('C3'!B170<>0,'C3'!B170,"") ->  | AH20: 14 | AI20: Box not in use | AK20: 14 | AL20: Box not in use | AN20: AF2 | AO20: =IF('C4'!B103<>0,'C4'!B103,"") ->  | AQ20: 13 | AR20: Box not in use | AT20: 4.1 | AU20: =IF('C6'!B18<>0,'C6'!B18,"") ->  | AW20: 23 | AX20: =IF('C6'!B112<>0,'C6'!B112,"") ->  | AZ20: 17 | BA20: =IF('C7'!B18<>0,'C7'!B18,"") ->  | BC20: 13C | BD20: =IF('C8C9C10'!B19<>0,'C8C9C10'!B19,"") ->  | BF20: 15 | BG20: =IF('C8C9C10'!B105<>"",'C8C9C10'!B105,"") ->  | BI20: 15 | BJ20: =IF('C8C9C10'!B164<>0,'C8C9C10'!B164,"") -> 
A21: 11 | B21: =IF(C0!B24<>"",C0!B24,"") ->  | G21: ASE | H21: ="Selected = "&ASE_A_IND-1&"/"&ASE_B_IND-1&"/"&ASE_C_IND-1 -> Selected = 0/0/0 | J21: 5 | K21: =IF('C1'!B92<>0,'C1'!B92,"") ->  | M21: 10 | N21: =IF('C2'!B19<>0,'C2'!B19,"") ->  | P21: 16 | Q21: =IF('C2'!B78<>0,'C2'!B78,"") ->  | S21: 15 | T21: =IF('C3'!B20<>0,'C3'!B20,"") -> 11109 | V21: 16 | W21: =IF('C3'!B66<>0,'C3'!B66,"") ->  | Y21: 69 | Z21: Box not in use | AB21: 16 | AC21: =IF('C3'!B171<>0,'C3'!B171,"") ->  | AH21: 15 | AI21: Box not in use | AK21: 15 | AL21: Box not in use | AN21: 64 | AO21: Box not in use | AQ21: 14 | AR21: Box not in use | AT21: A_1 | AU21: =IF('C6'!B19<>0,'C6'!B19,"") ->  | AW21: 24 | AX21: =IF('C6'!B113<>0,'C6'!B113,"") ->  | AZ21: 18 | BA21: =IF('C7'!B19<>0,'C7'!B19,"") ->  | BC21: 13.1 | BD21: =IF('C8C9C10'!B20<>0,'C8C9C10'!B20,"") ->  | BF21: 16 | BG21: =IF('C8C9C10'!B106<>"",'C8C9C10'!B106,"") ->  | BI21: 16 | BJ21: =IF('C8C9C10'!B165<>0,'C8C9C10'!B165,"") -> 
A22: 12 | B22: =IF(C0!B25<>"",C0!B25,"") ->  | D22: FIN | G22: 1 | H22: =IF('C1'!B29<>0,'C1'!B29,"") ->  | J22: 6 | K22: =IF('C1'!B93<>0,'C1'!B93,"") ->  | M22: 11 | N22: =IF('C2'!B20<>0,'C2'!B20,"") -> 8303 | P22: 17 | Q22: =IF('C2'!B79<>0,'C2'!B79,"") ->  | S22: 16 | T22: =IF('C3'!B21<>0,'C3'!B21,"") -> 4200 | V22: 16.1 | W22: =IF('C3'!B67<>0,'C3'!B67,"") ->  | Y22: 70 | Z22: Box not in use | AB22: 17 | AC22: =IF('C3'!B172<>0,'C3'!B172,"") ->  | AH22: 16 | AI22: =IF('C4'!B14<>0,'C4'!B14,"") ->  | AK22: 16 | AL22: =IF('C4'!B43<>"",'C4'!B43,"") ->  | AN22: 65 | AO22: Box not in use | AQ22: 15 | AR22: Box not in use | AT22: B_1 | AU22: =IF('C6'!B20<>0,'C6'!B20,"") ->  | AW22: 24.1 | AX22: =IF('C6'!B114<>0,'C6'!B114,"") ->  | AZ22: 18.1 | BA22: =IF('C7'!B20<>0,'C7'!B20,"") ->  | BC22: 13.2 | BD22: =IF('C8C9C10'!B21<>0,'C8C9C10'!B21,"") ->  | BF22: 17 | BG22: =IF('C8C9C10'!B107<>"",'C8C9C10'!B107,"") ->  | BI22: 17
A23: 13 | B23: =IF(C0!B26<>"",C0!B26,"") ->  | D23: 1 | E23: =IF(C0!B85<>"",C0!B85,"") ->  | G23: 2 | J23: 7 | K23: Box not in use | M23: 12 | N23: =IF('C2'!B21<>0,'C2'!B21,"") ->  | P23: 18 | Q23: =IF('C2'!B80<>0,'C2'!B80,"") ->  | S23: 17 | T23: =IF('C3'!B22<>0,'C3'!B22,"") -> 13642 | V23: 17 | W23: =IF('C3'!B68<>0,'C3'!B68,"") ->  | Y23: 70.1 | Z23: Box not in use | AB23: 18 | AC23: =IF('C3'!B173<>0,'C3'!B173,"") ->  | AH23: 17 | AI23: =IF('C4'!B15<>0,'C4'!B15,"") ->  | AK23: 16.1 | AL23: Box not in use | AN23: 66 | AO23: Box not in use | AQ23: 16 | AR23: Box not in use | AT23: C_1 | AU23: =IF('C6'!B21<>0,'C6'!B21,"") ->  | AW23: 24.2 | AX23: =IF('C6'!B115<>0,'C6'!B115,"") ->  | AZ23: 19 | BA23: =IF('C7'!B21<>0,'C7'!B21,"") ->  | BC23: 13.3 | BD23: =IF('C8C9C10'!B22<>0,'C8C9C10'!B22,"") ->  | BF23: 18 | BG23: =IF('C8C9C10'!B108<>"",'C8C9C10'!B108,"") -> 
A24: 14 | B24: =IF(C0!B27<>"",C0!B27,"") ->  | D24: 2 | E24: N | G24: 3 | H24: =IF('C1'!B33<>0,'C1'!B33,"") ->  | J24: 8 | K24: Box not in use | M24: 13 | N24: =IF('C2'!B22<>0,'C2'!B22,"") ->  | P24: 19 | Q24: =IF('C2'!B81<>0,'C2'!B81,"") ->  | S24: 18 | T24: =IF('C3'!B23<>0,'C3'!B23,"") -> 1602 | V24: 18 | W24: =IF('C3'!B69<>0,'C3'!B69,"") ->  | Y24: 71 | Z24: =IF('C3'!B119<>0,'C3'!B119,"") ->  | AB24: 19 | AH24: 18 | AI24: =IF('C4'!B16<>0,'C4'!B16,"") ->  | AK24: 16.2 | AL24: Box not in use | AN24: 67 | AO24: =IF('C4'!B104<>0,'C4'!B104,"") ->  | AQ24: 17 | AR24: Box not in use | AT24: 5D_1 | AU24: =IF('C6'!B22<>0,'C6'!B22,"") ->  | AW24: A_1 | AX24: =IF('C6'!B116<>0,'C6'!B116,"") ->  | AZ24: 22 | BA24: =IF('C7'!B22<>0,'C7'!B22,"") ->  | BC24: 13.4 | BD24: =IF('C8C9C10'!B23<>0,'C8C9C10'!B23,"") ->  | BF24: 19 | BG24: =IF('C8C9C10'!B109<>"",'C8C9C10'!B109,"") ->  | BJ24: NI
A25: 15 | B25: =IF(C0!B28<>"",C0!B28,"") ->  | D25: 3 | E25: N | G25: 4 | H25: =IF('C1'!B34<>0,'C1'!B34,"") ->  | J25: 9 | K25: Box not in use | M25: 14 | N25: =IF('C2'!B23<>0,'C2'!B23,"") ->  | P25: 20 | Q25: =IF('C2'!B82<>0,'C2'!B82,"") ->  | S25: 19 | T25: =IF('C3'!B24<>0,'C3'!B24,"") -> 777 | V25: 19 | W25: =IF('C3'!B70<>0,'C3'!B70,"") ->  | Y25: 72 | Z25: =IF('C3'!B120<>0,'C3'!B120,"") ->  | AB25: 20 | AC25: =IF('C3'!B174<>0,'C3'!B174,"") ->  | AH25: 19 | AI25: =IF('C4'!B17<>0,'C4'!B17,"") ->  | AK25: 16.3 | AL25: =IF('C4'!B44<>"",'C4'!B44,"") ->  | AN25: 68 | AO25: =IF('C4'!B105<>0,'C4'!B105,"") ->  | AQ25: 18 | AR25: Box not in use | AT25: E_1 | AU25: =IF('C6'!B23<>0,'C6'!B23,"") ->  | AW25: 25B_1 | AX25: =IF('C6'!B117<>0,'C6'!B117,"") ->  | AZ25: 22.1 | BA25: =IF('C7'!B23<>0,'C7'!B23,"") ->  | BC25: 13.5 | BD25: =IF('C8C9C10'!B24<>0,'C8C9C10'!B24,"") ->  | BF25: 20 | BG25: =IF('C8C9C10'!B110<>"",'C8C9C10'!B110,"") ->  | BI25: Class 2 | BJ25: ="Selected = "&NI2_IND-1 -> Selected = 0
A26: 16 | B26: =IF(C0!B29<>"",C0!B29,"") ->  | D26: 4 | G26: 5 | H26: =IF('C1'!B35<>0,'C1'!B35,"") ->  | J26: 10 | K26: =IF('C1'!B94<>0,'C1'!B94,"") ->  | M26: 15 | N26: =IF('C2'!B24<>0,'C2'!B24,"") ->  | P26: 21 | Q26: =IF('C2'!B83<>0,'C2'!B83,"") ->  | S26: 20 | T26: =IF('C3'!B25<>0,'C3'!B25,"") -> 71550 | V26: 20 | W26: =IF('C3'!B71<>0,'C3'!B71,"") ->  | Y26: 73 | Z26: =IF('C3'!B121<>0,'C3'!B121,"") ->  | AB26: 21 | AC26: =IF('C3'!B175<>0,'C3'!B175,"") ->  | AH26: 20 | AI26: =IF('C4'!B18<>0,'C4'!B18,"") ->  | AK26: 16.4 | AL26: =IF('C4'!B45<>0,'C4'!B45,"") ->  | AN26: 69 | AO26: =IF('C4'!B106<>0,'C4'!B106,"") ->  | AQ26: 19 | AR26: Box not in use | AT26: 6F_1 | AU26: =IF('C6'!B24<>0,'C6'!B24,"") ->  | AW26: 28C_1 | AX26: =IF('C6'!B118<>0,'C6'!B118,"") ->  | AZ26: 23 | BA26: =IF('C7'!B24<>0,'C7'!B24,"") ->  | BC26: 13.6 | BD26: =IF('C8C9C10'!B25<>0,'C8C9C10'!B25,"") ->  | BF26: 21 | BG26: =IF('C8C9C10'!B111<>"",'C8C9C10'!B111,"") ->  | BI26: CL2 | BJ26: =IF('C8C9C10'!B170="","",'C8C9C10'!B170) -> 
A27: 17 | B27: =IF(C0!B32<>"",C0!B32,"") ->  | D27: 5 | G27: 6 | H27: =IF('C1'!B36<>0,'C1'!B36,"") ->  | J27: 11 | K27: =IF('C1'!B95<>0,'C1'!B95,"") ->  | M27: 16 | N27: =IF('C2'!B25<>0,'C2'!B25,"") ->  | P27: 22 | Q27: =IF('C2'!B84<>0,'C2'!B84,"") ->  | S27: 21 | T27: =IF('C3'!B26<>0,'C3'!B26,"") ->  | V27: 21 | W27: =IF('C3'!B72<>0,'C3'!B72,"") ->  | Y27: 73.1 | Z27: Box not in use | AB27: 22 | AC27: =IF('C3'!B176<>0,'C3'!B176,"") ->  | AH27: 21 | AI27: =IF('C4'!B19<>0,'C4'!B19,"") -> 1844 | AK27: 17 | AL27: =IF('C4'!B46<>0,'C4'!B46,"") ->  | AN27: 70 | AO27: =IF('C4'!B107<>0,'C4'!B107,"") ->  | AQ27: 5 | AR27: Box not in use | AT27: A_2 | AU27: =IF('C6'!B25<>0,'C6'!B25,"") ->  | AW27: 29D_1 | AX27: =IF('C6'!B119<>0,'C6'!B119,"") ->  | AZ27: 24 | BA27: =IF('C7'!B25<>0,'C7'!B25,"") ->  | BC27: 13.7 | BD27: =IF('C8C9C10'!B26<>0,'C8C9C10'!B26,"") ->  | BF27: 22 | BG27: =IF('C8C9C10'!B112<>"",'C8C9C10'!B112,"") ->  | BI27: CL2wkamt_Type | BJ27: =IF('C8C9C10'!B171="","",'C8C9C10'!B171) -> 
A28: 18 | B28: =IF(C0!B33<>"",C0!B33,"") ->  | D28: 6 | G28: 7 | H28: =IF('C1'!B37<>0,'C1'!B37,"") ->  | J28: 11.1 | K28: =IF('C1'!B96<>0,'C1'!B96,"") ->  | M28: 17 | N28: =IF('C2'!B26<>0,'C2'!B26,"") ->  | P28: 23 | Q28: =IF('C2'!B85<>0,'C2'!B85,"") ->  | S28: 22 | T28: =IF('C3'!B27<>0,'C3'!B27,"") -> 43907 | V28: 22 | W28: =IF('C3'!B73<>0,'C3'!B73,"") ->  | Y28: 73.2 | Z28: Box not in use | AB28: 23 | AC28: =IF('C3'!B177<>0,'C3'!B177,"") ->  | AH28: 22 | AI28: =IF('C4'!B20<>0,'C4'!B20,"") -> 1844 | AK28: 18 | AL28: =IF('C4'!B47<>"",'C4'!B47,"") ->  | AN28: 70.1 | AO28: =IF('C4'!B108<>0,'C4'!B108,"") ->  | AQ28: 5.1 | AR28: Box not in use | AT28: B_2 | AU28: =IF('C6'!B26<>0,'C6'!B26,"") ->  | AW28: E_1 | AX28: =IF('C6'!B120<>0,'C6'!B120,"") ->  | AZ28: 25 | BA28: =IF('C7'!B26<>0,'C7'!B26,"") ->  | BC28: 13.8 | BD28: =IF('C8C9C10'!B27<>0,'C8C9C10'!B27,"") ->  | BF28: 23 | BG28: =IF('C8C9C10'!B113<>"",'C8C9C10'!B113,"") -> 
A29: 19 | B29: =IF(C0!B34<>"",C0!B34,"") ->  | D29: 7 | G29: 8 | H29: =IF('C1'!B38<>0,'C1'!B38,"") ->  | J29: 11.2 | K29: =IF('C1'!B97<>0,'C1'!B97,"") ->  | M29: 18 | N29: =IF('C2'!B27<>0,'C2'!B27,"") ->  | P29: 24 | Q29: =IF('C2'!B86<>0,'C2'!B86,"") ->  | S29: 23 | T29: =IF('C3'!B28<>0,'C3'!B28,"") ->  | V29: 23 | W29: =IF('C3'!B74<>0,'C3'!B74,"") ->  | Y29: 73.3 | Z29: =IF('C3'!B122<>"",'C3'!B122,"") ->  | AB29: 24 | AC29: =IF('C3'!B178<>0,'C3'!B178,"") ->  | AH29: 23 | AI29: =IF('C4'!B21<>0,'C4'!B21,"") ->  | AK29: 19 | AL29: =IF('C4'!B48<>0,'C4'!B48,"") ->  | AN29: 71 | AO29: =IF('C4'!B109<>0,'C4'!B109,"") ->  | AQ29: 5.2 | AR29: Box not in use | AT29: C_2 | AU29: =IF('C6'!B27<>0,'C6'!B27,"") ->  | AW29: 30F_1 | AX29: =IF('C6'!B121<>0,'C6'!B121,"") ->  | AZ29: 25.1 | BA29: =IF('C7'!B27<>0,'C7'!B27,"") ->  | BC29: 14 | BD29: =IF('C8C9C10'!B28<>0,'C8C9C10'!B28,"") ->  | BF29: 23.1 | BG29: Box not in use | BJ29: NI
A30: 20 | B30: =IF(C0!B35<>"",C0!B35,"") ->  | D30: 8 | G30: 9 | H30: =IF('C1'!B39<>0,'C1'!B39,"") ->  | J30: 12 | K30: =IF('C1'!B98<>0,'C1'!B98,"") ->  | M30: 19 | N30: =IF('C2'!B28<>0,'C2'!B28,"") ->  | P30: 25 | Q30: =IF('C2'!B87<>0,'C2'!B87,"") ->  | S30: 24 | T30: =IF('C3'!B29<>0,'C3'!B29,"") ->  | V30: 24 | W30: =IF('C3'!B75<>0,'C3'!B75,"") ->  | Y30: 73.4 | Z30: =IF('C3'!B123<>0,'C3'!B123,"") ->  | AB30: 25 | AC30: =IF('C3'!B179<>0,'C3'!B179,"") ->  | AH30: 24 | AI30: =IF('C4'!B22<>0,'C4'!B22,"") ->  | AK30: 20 | AL30: =IF('C4'!B49<>"",'C4'!B49,"") ->  | AN30: 72 | AO30: =IF('C4'!B110<>0,'C4'!B110,"") ->  | AQ30: 6 | AR30: Box not in use | AT30: 5D_2 | AU30: =IF('C6'!B28<>0,'C6'!B28,"") ->  | AW30: 25 | AX30: =IF('C6'!B122<>0,'C6'!B122,"") ->  | BC30: 15 | BD30: =IF('C8C9C10'!B29<>0,'C8C9C10'!B29,"") ->  | BF30: 23.2 | BG30: Box not in use | BI30: Class 1 | BJ30: ="Selected = "&NI1_IND-1 -> Selected = 168
A31: 21 | B31: =IF(C0!B36<>"",C0!B36,"") ->  | D31: 9 | E31: N | G31: 10 | H31: =IF('C1'!B40<>0,'C1'!B40,"") ->  | J31: 13 | K31: =IF('C1'!B99<>0,'C1'!B99,"") ->  | M31: 20 | N31: =IF('C2'!B29<>0,'C2'!B29,"") ->  | P31: 26 | Q31: =IF('C2'!B88<>0,'C2'!B88,"") ->  | S31: 24.1 | T31: =IF('C3'!B30<>0,'C3'!B30,"") ->  | V31: 25 | W31: =IF('C3'!B76<>0,'C3'!B76,"") ->  | Y31: 74 | Z31: =IF('C3'!B124<>0,'C3'!B124,"") ->  | AB31: 26 | AC31: =IF('C3'!B180<>0,'C3'!B180,"") ->  | AH31: 25 | AI31: =IF('C4'!B23<>0,'C4'!B23,"") ->  | AK31: 20.1 | AL31: =IF('C4'!B50<>"",'C4'!B50,"") ->  | AN31: 73 | AO31: =IF('C4'!B111<>0,'C4'!B111,"") ->  | AQ31: 7 | AR31: Box not in use | AT31: E_2 | AU31: =IF('C6'!B29<>0,'C6'!B29,"") ->  | AW31: 26 | AX31: =IF('C6'!B123<>0,'C6'!B123,"") ->  | BC31: 16 | BD31: =IF('C8C9C10'!B30<>0,'C8C9C10'!B30,"") ->  | BF31: 23.3 | BG31: Box not in use | BI31: Total Cl1 | BJ31: =IF('C2'!B106="",0,'C2'!B106)+IF('C2'!B109="",0,'C2'!B109) -> 37700
D32: 10 | E32: N | G32: 11 | H32: =IF('C1'!B44<>0,'C1'!B44,"") ->  | J32: 14 | K32: =IF('C1'!B100<>0,'C1'!B100,"") ->  | P32: 27 | Q32: =IF('C2'!B89<>0,'C2'!B89,"") ->  | S32: 25 | T32: =IF('C3'!B31<>0,'C3'!B31,"") -> 11260 | V32: 26 | W32: =IF('C3'!B77<>0,'C3'!B77,"") ->  | Y32: 75 | Z32: =IF('C3'!B125<>0,'C3'!B125,"") ->  | AB32: 27 | AC32: =IF('C3'!B181<>0,'C3'!B181,"") ->  | AH32: 26 | AI32: =IF('C4'!B24<>0,'C4'!B24,"") ->  | AK32: 21 | AL32: =IF('C4'!B51<>"",'C4'!B51,"") ->  | AN32: 74 | AO32: =IF('C4'!B112<>0,'C4'!B112,"") ->  | AQ32: 8 | AR32: Box not in use | AT32: 6F_2 | AU32: =IF('C6'!B30<>0,'C6'!B30,"") ->  | AW32: 27 | AX32: =IF('C6'!B124<>0,'C6'!B124,"") ->  | BC32: 17 | BD32: =IF('C8C9C10'!B31<>0,'C8C9C10'!B31,"") ->  | BF32: 24 | BG32: =IF('C8C9C10'!B117<>"",'C8C9C10'!B117,"") -> 
A33: SLR | B33: ="Selected = "&SLR_ind-1 -> Selected = 0 | D33: 11 | E33: N | G33: 12 | H33: =IF('C1'!B45<>0,'C1'!B45,"") ->  | J33: 15 | K33: =IF('C1'!B101<>0,'C1'!B101,"") ->  | N33: SA102 | P33: 28 | Q33: =IF('C2'!B90<>0,'C2'!B90,"") ->  | S33: 25.1 | T33: =IF('C3'!B32<>0,'C3'!B32,"") ->  | V33: 27 | W33: =IF('C3'!B78<>0,'C3'!B78,"") ->  | Y33: 75.1 | Z33: Box not in use | AB33: 28 | AC33: =IF('C3'!B182<>0,'C3'!B182,"") ->  | AH33: 27 | AI33: =IF('C4'!B25<>0,'C4'!B25,"") ->  | AK33: 21.1 | AL33: =IF('C4'!B52<>"",'C4'!B52,"") ->  | AN33: 75 | AO33: =IF('C4'!B113<>0,'C4'!B113,"") ->  | AQ33: 9 | AR33: Box not in use | AT33: A_3 | AU33: =IF('C6'!B31<>0,'C6'!B31,"") ->  | AW33: 28 | AX33: =IF('C6'!B125<>0,'C6'!B125,"") ->  | BC33: 17.0 | BD33: =IF('C8C9C10'!B32<>0,'C8C9C10'!B32,"") ->  | BF33: 25 | BG33: Box not in use
A34: 1 | B34: =IF(C0!B60<>"",C0!B60,"") ->  | D34: 12 | G34: 13 | H34: =IF('C1'!B46<>0,'C1'!B46,"") ->  | J34: 16 | K34: =IF('C1'!B102<>0,'C1'!B102,"") ->  | M34: EMP-B | N34: ="Selected = "&EMP_B_IND-1 -> Selected = 0 | P34: 29 | Q34: =IF('C2'!B91<>0,'C2'!B91,"") ->  | S34: 25.2 | T34: =IF('C3'!B33<>0,'C3'!B33,"") ->  | V34: 28 | W34: =IF('C3'!B79<>0,'C3'!B79,"") ->  | Y34: 76 | Z34: =IF('C3'!B121<>0,'C3'!B126,"") ->  | AB34: 29 | AC34: =IF('C3'!B183<>0,'C3'!B183,"") ->  | AH34: 28 | AI34: =IF('C4'!B26<>0,'C4'!B26,"") ->  | AK34: 22 | AL34: =IF('C4'!B53<>0,'C4'!B53,"") ->  | AN34: 75.1 | AO34: =IF('C4'!B114<>0,'C4'!B114,"") ->  | AQ34: 10 | AR34: Box not in use | AT34: B_3 | AU34: =IF('C6'!B32<>0,'C6'!B32,"") ->  | AW34: 29 | AX34: =IF('C6'!B126<>0,'C6'!B126,"") ->  | BC34: 17.1 | BD34: =IF('C8C9C10'!B33<>0,'C8C9C10'!B33,"") ->  | BF34: 26 | BG34: Box not in use
A35: PT | B35: =IF(C0!B61<>"",C0!B61,"") ->  | D35: 13 | G35: 14 | H35: =IF('C1'!B47<>0,'C1'!B47,"") ->  | J35: 17 | K35: Box not in use | M35: 1 | N35: =IF('C2'!B32<>0,'C2'!B32,"") ->  | P35: 30 | Q35: =IF('C2'!B92<>0,'C2'!B92,"") ->  | S35: 26 | T35: =IF('C3'!B34<>0,'C3'!B34,"") -> 1340 | V35: 29 | W35: =IF('C3'!B80<>0,'C3'!B80,"") ->  | Y35: 76.1 | Z35: =IF('C3'!B122<>0,'C3'!B127,"") ->  | AB35: 30 | AC35: =IF('C3'!B184<>0,'C3'!B184,"") ->  | AH35: 29 | AI35: Box not in use | AK35: 23 | AL35: =IF('C4'!B54<>0,'C4'!B54,"") ->  | AN35: 76 | AO35: =IF('C4'!B115<>0,'C4'!B115,"") ->  | AQ35: 11 | AR35: Box not in use | AT35: C_3 | AU35: =IF('C6'!B33<>0,'C6'!B33,"") ->  | AW35: 30 | AX35: =IF('C6'!B127<>0,'C6'!B127,"") ->  | BC35: 17.2 | BD35: =IF('C8C9C10'!B34<>0,'C8C9C10'!B34,"") ->  | BF35: 27 | BG35: Box not in use
A36: PT | B36: =IF(C0!B62<>"",C0!B62,"") ->  | D36: 14 | G36: 15 | H36: =IF('C1'!B48<>0,'C1'!B48,"") ->  | J36: 18 | K36: =IF('C1'!B103<>0,'C1'!B103,"") ->  | M36: 1.1 | N36: =IF('C2'!B33<>0,'C2'!B33,"") ->  | P36: 31 | Q36: =IF('C2'!B93<>0,'C2'!B93,"") ->  | S36: 27 | T36: =IF('C3'!B35<>0,'C3'!B35,"") ->  | V36: 30 | W36: =IF('C3'!B81<>0,'C3'!B81,"") ->  | Y36: 77 | Z36: =IF('C3'!B128<>0,'C3'!B128,"") ->  | AB36: 31 | AC36: =IF('C3'!B185<>0,'C3'!B185,"") ->  | AH36: 30 | AI36: =IF('C4'!B27<>0,'C4'!B27,"") ->  | AK36: 24 | AL36: =IF('C4'!B55<>"",'C4'!B55,"") ->  | AN36: 76.1 | AO36: =IF('C4'!B116<>0,'C4'!B116,"") ->  | AQ36: 11.1 | AR36: Box not in use | AT36: 5D_3 | AU36: =IF('C6'!B34<>0,'C6'!B34,"") ->  | AW36: 30.1 | AX36: =IF('C6'!B128<>0,'C6'!B128,"") ->  | BC36: 17.3 | BD36: =IF('C8C9C10'!B35<>0,'C8C9C10'!B35,"") ->  | BF36: 28 | BG36: =IF('C8C9C10'!B121<>"",'C8C9C10'!B121,"") -> 
A37: 2 | B37: =IF(C0!B63<>"",C0!B63,"") ->  | D37: 15 | J37: 19 | K37: =IF('C1'!B104<>0,'C1'!B104,"") ->  | M37: 2 | N37: =IF('C2'!B34<>0,'C2'!B34,"") ->  | P37: 32 | Q37: =IF('C2'!B94<>0,'C2'!B94,"") ->  | S37: 27.1 | T37: Box not in use | V37: 31 | W37: =IF('C3'!B82<>0,'C3'!B82,"") ->  | Y37: 77.1 | Z37: =IF('C3'!B129<>0,'C3'!B129,"") ->  | AB37: 32 | AC37: =IF('C3'!B186<>0,'C3'!B186,"") ->  | AH37: 31 | AI37: =IF('C4'!B28<>0,'C4'!B28,"") ->  | AK37: 25 | AL37: =IF('C4'!B56<>0,'C4'!B56,"") ->  | AN37: 77 | AO37: =IF('C4'!B117<>0,'C4'!B117,"") ->  | AQ37: 11.2 | AR37: Box not in use | AT37: E_3 | AU37: =IF('C6'!B35<>0,'C6'!B35,"") ->  | AW37: 31 | AX37: =IF('C6'!B129<>0,'C6'!B129,"") ->  | BC37: 17.4 | BD37: =IF('C8C9C10'!B36<>0,'C8C9C10'!B36,"") ->  | BF37: 29 | BG37: =IF('C8C9C10'!B122<>"",'C8C9C10'!B122,"") -> 
A38: 3 | B38: =IF(C0!B64<>"",C0!B64,"") ->  | D38: 16 | G38: AOR | H38: ="Selected = "&AOR_IND-1 -> Selected = 0 | J38: 20 | K38: =IF('C1'!B105<>0,'C1'!B105,"") ->  | M38: 3 | N38: =IF('C2'!B35<>0,'C2'!B35,"") ->  | P38: 33 | Q38: =IF('C2'!B95<>0,'C2'!B95,"") ->  | S38: 28 | T38: =IF('C3'!B36<>0,'C3'!B36,"") ->  | V38: 32 | W38: =IF('C3'!B83<>0,'C3'!B83,"") ->  | Y38: 78 | Z38: =IF('C3'!B130<>0,'C3'!B130,"") ->  | AB38: 33 | AC38: =IF('C3'!B187<>0,'C3'!B187,"") ->  | AH38: 32 | AI38: =IF('C4'!B29<>0,'C4'!B29,"") ->  | AK38: 26 | AL38: =IF('C4'!B57<>0,'C4'!B57,"") ->  | AN38: 78 | AO38: =IF('C4'!B118<>0,'C4'!B118,"") ->  | AQ38: 12 | AR38: Box not in use | AT38: 6F_3 | AU38: =IF('C6'!B36<>0,'C6'!B36,"") ->  | AW38: 32 | AX38: =IF('C6'!B130<>0,'C6'!B130,"") ->  | BC38: 18 | BD38: Box not in use | BF38: 30 | BG38: =IF('C8C9C10'!B123<>"",'C8C9C10'!B123,"") -> 
D39: 17 | G39: 1 | H39: =IF('C1'!B51<>0,'C1'!B51,"") ->  | J39: 21 | K39: Box not in use | M39: 3.1 | N39: Box not in use | P39: 34 | Q39: =IF('C2'!B96<>0,'C2'!B96,"") ->  | S39: 29 | T39: =IF('C3'!B37<>0,'C3'!B37,"") ->  | V39: 33 | W39: =IF('C3'!B84<>0,'C3'!B84,"") ->  | Y39: 79 | Z39: =IF('C3'!B131<>0,'C3'!B131,"") ->  | AB39: 34 | AC39: =IF('C3'!B188<>0,'C3'!B188,"") ->  | AK39: 27 | AL39: =IF('C4'!B58<>0,'C4'!B58,"") ->  | AN39: 79 | AO39: =IF('C4'!B119<>0,'C4'!B119,"") ->  | AQ39: 13 | AR39: Box not in use | AT39: A_4 | AU39: =IF('C6'!B37<>0,'C6'!B37,"") ->  | AW39: A_1 | AX39: =IF('C6'!B131<>0,'C6'!B131,"") ->  | BC39: 19 | BD39: =IF('C8C9C10'!B38<>0,'C8C9C10'!B38,"") ->  | BF39: 31 | BG39: Box not in use
A40: CBC | B40: ="Selected = "&CBC_Ind-1 -> Selected = 0 | D40: 18 | G40: 2 | H40: =IF('C1'!B52<>0,'C1'!B52,"") ->  | J40: 22 | K40: Box not in use | M40: 4 | N40: =IF('C2'!B37<>0,'C2'!B37,"") ->  | P40: 35 | Q40: =IF('C2'!B97<>0,'C2'!B97,"") ->  | S40: 30 | T40: =IF('C3'!B38<>0,'C3'!B38,"") ->  | V40: 34 | W40: =IF('C3'!B85<>0,'C3'!B85,"") ->  | Y40: 80 | Z40: =IF('C3'!B132<>0,'C3'!B132,"") ->  | AB40: 35 | AC40: =IF('C3'!B189<>0,'C3'!B189,"") ->  | AK40: 28 | AL40: =IF('C4'!B59<>0,'C4'!B59,"") ->  | AN40: 80 | AO40: =IF('C4'!B120<>0,'C4'!B120,"") ->  | AQ40: 14 | AR40: Box not in use | AT40: B_4 | AU40: =IF('C6'!B38<>0,'C6'!B38,"") ->  | AW40: C_1 | AX40: =IF('C6'!B132<>0,'C6'!B132,"") ->  | BC40: 20 | BD40: =IF('C8C9C10'!B39<>0,'C8C9C10'!B39,"") ->  | BF40: 32 | BG40: Box not in use
A41: 1 | B41: =IF(C0!B67<>"",C0!B67,"") ->  | D41: 19 | E41: Andrea Gail | G41: 3 | H41: =IF('C1'!B53<>0,'C1'!B53,"") ->  | J41: 23 | K41: Box not in use | M41: 5 | N41: =IF('C2'!B38<>0,'C2'!B38,"") ->  | P41: 36 | Q41: =IF('C2'!B98<>0,'C2'!B98,"") ->  | S41: 31 | T41: =IF('C3'!B39<>0,'C3'!B39,"") ->  | V41: 35 | W41: =IF('C3'!B86<>0,'C3'!B86,"") ->  | Y41: 81 | Z41: =IF('C3'!B133<>0,'C3'!B133,"") ->  | AB41: 36 | AC41: =IF('C3'!B190<>0,'C3'!B190,"") ->  | AK41: 29 | AL41: =IF('C4'!B60<>"",'C4'!B60,"") ->  | AQ41: 15 | AR41: Box not in use | AT41: C_4 | AU41: =IF('C6'!B39<>0,'C6'!B39,"") ->  | AW41: E_1 | AX41: =IF('C6'!B133<>0,'C6'!B133,"") ->  | BC41: 21 | BD41: =IF('C8C9C10'!B40<>0,'C8C9C10'!B40,"") ->  | BF41: 33 | BG41: Box not in use
A42: 2 | B42: =IF(C0!B68<>"",C0!B68,"") ->  | D42: 20 | G42: 4 | H42: =IF('C1'!B54<>0,'C1'!B54,"") ->  | J42: 24 | K42: Box not in use | M42: 6 | N42: =IF('C2'!B39<>0,'C2'!B39,"") ->  | P42: 37 | Q42: =IF('C2'!B99<>0,'C2'!B99,"") ->  | S42: 32 | T42: =IF('C3'!B40<>0,'C3'!B40,"") -> 53827 | V42: 36 | W42: =IF('C3'!B87<>0,'C3'!B87,"") ->  | Y42: 82 | Z42: =IF('C3'!B134<>0,'C3'!B134,"") ->  | AB42: 37 | AC42: =IF('C3'!B191<>0,'C3'!B191,"") ->  | AK42: 30 | AL42: =IF('C4'!B61<>"",'C4'!B61,"") ->  | AQ42: 16 | AR42: Box not in use | AT42: 5D_4 | AU42: =IF('C6'!B40<>0,'C6'!B40,"") ->  | AW42: F_1 | AX42: =IF('C6'!B134<>0,'C6'!B134,"") ->  | BC42: 22 | BD42: =IF('C8C9C10'!B41<>0,'C8C9C10'!B41,"") ->  | BF42: 34 | BG42: Box not in use
A43: 3 | B43: =IF(C0!B69<>"",C0!B69,"") ->  | D43: 20.1 | E43: Box not in use | G43: 5 | H43: =IF('C1'!B55<>0,'C1'!B55,"") ->  | M43: 6.1 | N43: =IF('C2'!B40<>0,'C2'!B40,"") ->  | P43: 38 | Q43: =IF('C2'!B100<>0,'C2'!B100,"") ->  | S43: 33 | T43: =IF('C3'!B41<>0,'C3'!B41,"") -> 53827 | V43: 37 | W43: =IF('C3'!B88<>0,'C3'!B88,"") ->  | Y43: 83 | Z43: =IF('C3'!B135<>0,'C3'!B135,"") ->  | AB43: 38 | AC43: =IF('C3'!B192<>0,'C3'!B192,"") ->  | AK43: 31 | AL43: =IF('C4'!B62<>0,'C4'!B62,"") ->  | AQ43: 17 | AR43: Box not in use | AT43: E_4 | AU43: =IF('C6'!B41<>0,'C6'!B41,"") ->  | AW43: A_2 | AX43: =IF('C6'!B135<>0,'C6'!B135,"") ->  | BC43: 23 | BD43: =IF('C8C9C10'!B42<>0,'C8C9C10'!B42,"") ->  | BF43: 35 | BG43: Box not in use
D44: 21 | G44: 6 | H44: =IF('C1'!B56<>0,'C1'!B56,"") ->  | M44: 7 | N44: =IF('C2'!B41<>0,'C2'!B41,"") ->  | P44: 39 | Q44: =IF('C2'!B101<>0,'C2'!B101,"") ->  | S44: 34 | T44: =IF('C3'!B42<>0,'C3'!B42,"") ->  | V44: 38 | W44: =IF('C3'!B89<>0,'C3'!B89,"") ->  | Y44: 84 | Z44: =IF('C3'!B136<>0,'C3'!B136,"") ->  | AB44: 39 | AC44: =IF('C3'!B193<>0,'C3'!B193,"") ->  | AK44: 32 | AL44: =IF('C4'!B63<>"",'C4'!B63,"") ->  | AQ44: 18 | AR44: Box not in use | AT44: 6F_4 | AU44: =IF('C6'!B42<>0,'C6'!B42,"") ->  | AW44: C_2 | AX44: =IF('C6'!B136<>0,'C6'!B136,"") ->  | BC44: 24 | BD44: =IF('C8C9C10'!B43<>0,'C8C9C10'!B43,"") -> 34228 | BF44: 36 | BG44: Box not in use
A45: WFHP | B45: ="Selected = "&WFP_Ind-1 -> Selected = 0 | D45: 22 | E45: Y | G45: 6.1 | H45: =IF('C1'!B57<>0,'C1'!B57,"") ->  | M45: 7.1 | N45: =IF('C2'!B42<>0,'C2'!B42,"") ->  | P45: CL1 | Q45: =IF('C2'!B109="","",'C2'!B109) -> 0 | S45: 35 | T45: =IF('C3'!B43<>0,'C3'!B43,"") ->  | V45: 39 | W45: =IF('C3'!B90<>0,'C3'!B90,"") ->  | Y45: 85 | Z45: =IF('C3'!B137<>0,'C3'!B137,"") ->  | AB45: 40 | AC45: =IF('C3'!B194<>0,'C3'!B194,"") ->  | AK45: 33 | AL45: =IF('C4'!B64<>0,'C4'!B64,"") ->  | AQ45: 19 | AR45: Box not in use | AT45: A_5 | AU45: =IF('C6'!B43<>0,'C6'!B43,"") ->  | AW45: E_2 | AX45: =IF('C6'!B137<>0,'C6'!B137,"") ->  | BC45: 25 | BD45: =IF('C8C9C10'!B44<>0,'C8C9C10'!B44,"") -> 26819 | BF45: 37 | BG45: =IF('C8C9C10'!B130<>"",'C8C9C10'!B130,"") -> 
A46: 1 | B46: =IF(C0!B72<>"",C0!B72,"") ->  | D46: 23 | G46: 7 | H46: =IF('C1'!B58<>0,'C1'!B58,"") ->  | M46: 7.2 | N46: =IF('C2'!B43<>0,'C2'!B43,"") ->  | S46: 36 | T46: =IF('C3'!B44<>0,'C3'!B44,"") ->  | V46: 40 | W46: =IF('C3'!B91<>0,'C3'!B91,"") ->  | Y46: 86 | Z46: =IF('C3'!B138<>0,'C3'!B138,"") ->  | AB46: 41 | AC46: =IF('C3'!B195<>0,'C3'!B195,"") ->  | AK46: 34 | AL46: =IF('C4'!B65<>"",'C4'!B65,"") ->  | AQ46: 20 | AR46: =IF('C5'!B44<>0,'C5'!B44,"") ->  | AT46: B_5 | AU46: =IF('C6'!B44<>0,'C6'!B44,"") ->  | AW46: F_2 | AX46: =IF('C6'!B138<>0,'C6'!B138,"") ->  | BC46: 26 | BD46: =IF('C8C9C10'!B45<>0,'C8C9C10'!B45,"") -> 7409 | BF46: 38 | BG46: =IF('C8C9C10'!B131<>"",'C8C9C10'!B131,"") -> 
D47: 24 | G47: 8 | H47: =IF('C1'!B59<>0,'C1'!B59,"") ->  | M47: 7.3 | N47: =IF('C2'!B44<>0,'C2'!B44,"") ->  | S47: 37 | T47: =IF('C3'!B45<>0,'C3'!B45,"") -> N | V47: 41 | W47: =IF('C3'!B92<>0,'C3'!B92,"") ->  | Y47: 87 | Z47: =IF('C3'!B139<>0,'C3'!B139,"") ->  | AB47: 42 | AC47: =IF('C3'!B196<>0,'C3'!B196,"") ->  | AK47: 34.1 | AL47: Box not in use | AQ47: 20.1 | AR47: =IF('C5'!B45<>0,'C5'!B45,"") ->  | AT47: C_5 | AU47: =IF('C6'!B45<>0,'C6'!B45,"") ->  | AW47: A_3 | AX47: =IF('C6'!B139<>0,'C6'!B139,"") ->  | BC47: 26.1 | BD47: =IF('C8C9C10'!B46<>0,'C8C9C10'!B46,"") ->  | BF47: 39 | BG47: =IF('C8C9C10'!B132<>"",'C8C9C10'!B132,"") -> 
A48: MAT | D48: 25 | G48: 9 | H48: =IF('C1'!B60<>0,'C1'!B60,"") ->  | M48: 7.4 | N48: =IF('C2'!B45<>0,'C2'!B45,"") ->  | S48: 38 | T48: =IF('C3'!B46<>0,'C3'!B46,"") ->  | V48: 42 | W48: =IF('C3'!B93<>0,'C3'!B93,"") ->  | Y48: 88 | Z48: =IF('C3'!B140<>0,'C3'!B140,"") ->  | AB48: 43 | AC48: =IF('C3'!B197<>0,'C3'!B197,"") ->  | AK48: 35 | AL48: =IF('C4'!B66<>"",'C4'!B66,"") ->  | AQ48: 20.2 | AR48: =IF('C5'!B46<>"",'C5'!B46,"") ->  | AT48: 5D_5 | AU48: =IF('C6'!B46<>0,'C6'!B46,"") ->  | AW48: C_3 | AX48: =IF('C6'!B140<>0,'C6'!B140,"") ->  | BC48: 27 | BD48: =IF('C8C9C10'!B47<>0,'C8C9C10'!B47,"") ->  | BF48: 40 | BG48: =IF('C8C9C10'!B133<>"",'C8C9C10'!B133,"") -> 
A49: 0 | B49: =IF(C0!B75<>"",C0!B75,"") ->  | D49: 26 | G49: 10 | H49: =IF('C1'!B61<>0,'C1'!B61,"") ->  | M49: 8 | N49: =IF('C2'!B46<>0,'C2'!B46,"") ->  | V49: 43 | W49: =IF('C3'!B94<>0,'C3'!B94,"") ->  | Y49: 89 | Z49: =IF('C3'!B141<>0,'C3'!B141,"") ->  | AB49: 44 | AC49: =IF('C3'!B198<>0,'C3'!B198,"") ->  | AK49: 35.1 | AL49: =IF('C4'!B67<>"",'C4'!B67,"") ->  | AQ49: 21 | AR49: =IF('C5'!B47<>0,'C5'!B47,"") ->  | AT49: E_5 | AU49: =IF('C6'!B47<>0,'C6'!B47,"") ->  | AW49: E_3 | AX49: =IF('C6'!B141<>0,'C6'!B141,"") ->  | BC49: 28 | BD49: =IF('C8C9C10'!B48<>0,'C8C9C10'!B48,"") ->  | BF49: 41 | BG49: =IF('C8C9C10'!B134<>"",'C8C9C10'!B134,"") -> 
A50: 1 | B50: =IF(C0!B76<>"",C0!B76,"") ->  | G50: 11 | H50: Box not in use | M50: 8.1 | N50: Box not in use | V50: 44 | W50: =IF('C3'!B95<>0,'C3'!B95,"") ->  | Y50: 90 | Z50: =IF('C3'!B142<>0,'C3'!B142,"") ->  | AB50: 45 | AC50: =IF('C3'!B199<>0,'C3'!B199,"") ->  | AK50: 36 | AL50: =IF('C4'!B68<>"",'C4'!B68,"") ->  | AQ50: 22 | AR50: =IF('C5'!B48<>0,'C5'!B48,"") ->  | AT50: 6F_5 | AU50: =IF('C6'!B48<>0,'C6'!B48,"") ->  | AW50: F_3 | AX50: =IF('C6'!B142<>0,'C6'!B142,"") ->  | BC50: 29 | BD50: =IF('C8C9C10'!B49<>0,'C8C9C10'!B49,"") ->  | BF50: 43 | BG50: =IF('C8C9C10'!B135<>"",'C8C9C10'!B135,"") -> 
A51: 2 | B51: =IF(C0!B77<>"",C0!B77,"") ->  | G51: 12 | H51: =IF('C1'!B62<>0,'C1'!B62,"") ->  | M51: 9 | N51: =IF('C2'!B47<>0,'C2'!B47,"") ->  | V51: 45 | W51: =IF('C3'!B96<>0,'C3'!B96,"") ->  | Y51: 91 | Z51: =IF('C3'!B143<>0,'C3'!B143,"") ->  | AB51: 46 | AC51: =IF('C3'!B200<>0,'C3'!B200,"") ->  | AK51: 37 | AL51: =IF('C4'!B69<>"",'C4'!B69,"") ->  | AQ51: 23 | AR51: =IF('C5'!B49<>0,'C5'!B49,"") ->  | AT51: 5 | AU51: =IF('C6'!B49<>0,'C6'!B49,"") ->  | AW51: A_4 | AX51: =IF('C6'!B143<>0,'C6'!B143,"") ->  | BC51: 30 | BD51: =IF('C8C9C10'!B50<>0,'C8C9C10'!B50,"") ->  | BF51: 44 | BG51: =IF('C8C9C10'!B136<>"",'C8C9C10'!B136,"") -> 
A52: 3 | B52: =IF(C0!B78<>"",C0!B78,"") ->  | M52: 10 | N52: =IF('C2'!B48<>0,'C2'!B48,"") ->  | V52: 46 | W52: =IF('C3'!B97<>0,'C3'!B97,"") ->  | Y52: 92 | Z52: =IF('C3'!B144<>0,'C3'!B144,"") ->  | AB52: 47 | AC52: =IF('C3'!B201<>0,'C3'!B201,"") ->  | AK52: 38 | AL52: =IF('C4'!B70<>0,'C4'!B70,"") ->  | AQ52: 24 | AR52: =IF('C5'!B50<>0,'C5'!B50,"") ->  | AT52: 6 | AU52: =IF('C6'!B50<>0,'C6'!B50,"") ->  | AW52: C_4 | AX52: =IF('C6'!B144<>0,'C6'!B144,"") ->  | BC52: 31 | BD52: =IF('C8C9C10'!B51<>0,'C8C9C10'!B51,"") ->  | BF52: 46 | BG52: =IF('C8C9C10'!B137<>"",'C8C9C10'!B137,"") -> 
A53: 4 | B53: =IF(C0!B79<>"",C0!B79,"") ->  | M53: 11 | N53: =IF('C2'!B49<>0,'C2'!B49,"") ->  | V53: 47 | W53: =IF('C3'!B98<>0,'C3'!B98,"") ->  | Y53: 93 | Z53: =IF('C3'!B145<>0,'C3'!B145,"") ->  | AB53: 48 | AC53: =IF('C3'!B202<>0,'C3'!B202,"") ->  | AK53: 39 | AL53: =IF('C4'!B71<>0,'C4'!B71,"") ->  | AQ53: 25 | AR53: =IF('C5'!B51<>0,'C5'!B51,"") ->  | AT53: 6.1 | AU53: =IF('C6'!B51<>0,'C6'!B51,"") ->  | AW53: E_4 | AX53: =IF('C6'!B145<>0,'C6'!B145,"") ->  | BC53: 32 | BD53: =IF('C8C9C10'!B52<>0,'C8C9C10'!B52,"") ->  | BF53: 47 | BG53: =IF('C8C9C10'!B138<>"",'C8C9C10'!B138,"") -> 
A54: 5 | B54: =IF(C0!B80<>"",C0!B80,"") ->  | M54: 12 | N54: =IF('C2'!B50<>0,'C2'!B50,"") ->  | V54: 48 | W54: =IF('C3'!B99<>0,'C3'!B99,"") ->  | Y54: 94 | Z54: =IF('C3'!B146<>0,'C3'!B146,"") ->  | AB54: 49 | AC54: =IF('C3'!B203<>0,'C3'!B203,"") ->  | AK54: 40 | AL54: =IF('C4'!B72<>"",'C4'!B72,"") ->  | AQ54: 26 | AR54: =IF('C5'!B52<>0,'C5'!B52,"") ->  | AT54: A_1 | AU54: =IF('C6'!B52<>0,'C6'!B52,"") ->  | AW54: F_4 | AX54: =IF('C6'!B146<>0,'C6'!B146,"") ->  | BC54: 33 | BD54: =IF('C8C9C10'!B53<>0,'C8C9C10'!B53,"") ->  | BF54: 48 | BG54: =IF('C8C9C10'!B139<>"",'C8C9C10'!B139,"") -> 
A55: -OUT | B55: =IF(C0!B81<>"",C0!B81,"") ->  | M55: 13 | N55: =IF('C2'!B51<>0,'C2'!B51,"") ->  | V55: 49 | W55: =IF('C3'!B100<>0,'C3'!B100,"") ->  | Y55: 95 | Z55: =IF('C3'!B147<>0,'C3'!B147,"") ->  | AB55: 50 | AC55: =IF('C3'!B204<>0,'C3'!B204,"") ->  | AK55: 41 | AL55: =IF('C4'!B73<>"",'C4'!B73,"") ->  | AQ55: 27 | AR55: =IF('C5'!B53<>0,'C5'!B53,"") ->  | AT55: B_1 | AU55: =IF('C6'!B53<>0,'C6'!B53,"") ->  | AW55: 33 | AX55: =IF('C6'!B147<>0,'C6'!B147,"") ->  | BC55: 34 | BD55: =IF('C8C9C10'!B54<>0,'C8C9C10'!B54,"") ->  | BF55: 49 | BG55: =IF('C8C9C10'!B140<>"",'C8C9C10'!B140,"") -> 
A56: -IN | B56: =IF(C0!B82<>"",C0!B82,"") ->  | M56: 14 | N56: =IF('C2'!B52<>0,'C2'!B52,"") ->  | V56: 50 | W56: =IF('C3'!B101<>0,'C3'!B101,"") ->  | Y56: 96 | Z56: =IF('C3'!B148<>0,'C3'!B148,"") ->  | AK56: 41.1 | AL56: =IF('C4'!B74<>"",'C4'!B74,"") ->  | AQ56: 28 | AR56: =IF('C5'!B54<>0,'C5'!B54,"") ->  | AT56: C_1 | AU56: =IF('C6'!B54<>0,'C6'!B54,"") ->  | AW56: 34 | AX56: =IF('C6'!B148<>0,'C6'!B148,"") ->  | BC56: 34.1 | BD56: =IF('C8C9C10'!B55<>0,'C8C9C10'!B55,"") ->  | BF56: 50 | BG56: =IF('C8C9C10'!B141<>"",'C8C9C10'!B141,"") -> 
M57: 15 | N57: =IF('C2'!B53<>0,'C2'!B53,"") ->  | V57: 51 | W57: =IF('C3'!B102<>0,'C3'!B102,"") ->  | Y57: 97 | Z57: =IF('C3'!B149<>0,'C3'!B149,"") ->  | AK57: 41.2 | AL57: =IF('C4'!B75<>"",'C4'!B75,"") ->  | AQ57: 29 | AR57: =IF('C5'!B55<>0,'C5'!B55,"") ->  | AT57: D_1 | AU57: =IF('C6'!B55<>0,'C6'!B55,"") ->  | AW57: 35 | AX57: =IF('C6'!B149<>0,'C6'!B149,"") ->  | BC57: 35 | BD57: =IF('C8C9C10'!B56<>0,'C8C9C10'!B56,"") ->  | BF57: 51 | BG57: =IF('C8C9C10'!B142<>"",'C8C9C10'!B142,"") -> 
M58: 16 | N58: =IF('C2'!B54<>0,'C2'!B54,"") ->  | V58: 52 | W58: =IF('C3'!B103<>0,'C3'!B103,"") ->  | Y58: 98 | Z58: =IF('C3'!B150<>0,'C3'!B150,"") ->  | AK58: AF1 | AL58: =IF('C4'!B76<>0,'C4'!B76,"") ->  | AQ58: 30 | AR58: =IF('C5'!B56<>0,'C5'!B56,"") ->  | AT58: E_1 | AU58: =IF('C6'!B56<>0,'C6'!B56,"") ->  | AW58: 36 | AX58: =IF('C6'!B150<>0,'C6'!B150,"") ->  | BC58: 36 | BD58: =IF('C8C9C10'!B57<>0,'C8C9C10'!B57,"") ->  | BF58: 52 | BG58: =IF('C8C9C10'!B143<>"",'C8C9C10'!B143,"") -> 
M59: 17 | N59: =IF('C2'!B55<>0,'C2'!B55,"") ->  | V59: 52.1 | W59: =IF('C3'!B104<>0,'C3'!B104,"") ->  | Y59: 99 | Z59: =IF('C3'!B151<>0,'C3'!B151,"") ->  | AK59: 42 | AL59: Box not in use | AQ59: 31 | AR59: =IF('C5'!B57<>0,'C5'!B57,"") ->  | AT59: F_1 | AU59: =IF('C6'!B57<>0,'C6'!B57,"") ->  | AW59: 37 | AX59: =IF('C6'!B151<>0,'C6'!B151,"") ->  | BC59: 37 | BD59: =IF('C8C9C10'!B58<>0,'C8C9C10'!B58,"") ->  | BF59: 53 | BG59: =IF('C8C9C10'!B144<>"",'C8C9C10'!B144,"") -> 
M60: 18 | N60: =IF('C2'!B56<>0,'C2'!B56,"") ->  | Y60: 100 | Z60: =IF('C3'!B152<>0,'C3'!B152,"") ->  | AK60: 43 | AL60: Box not in use | AQ60: 32 | AR60: =IF('C5'!B58<>0,'C5'!B58,"") ->  | AT60: 7.1 | AU60: =IF('C6'!B58<>0,'C6'!B58,"") ->  | AW60: 38 | AX60: =IF('C6'!B152<>0,'C6'!B152,"") ->  | BC60: 38 | BD60: =IF('C8C9C10'!B59<>0,'C8C9C10'!B59,"") ->  | BF60: 54 | BG60: =IF('C8C9C10'!B145<>"",'C8C9C10'!B145,"") -> 
M61: 19 | N61: =IF('C2'!B57<>0,'C2'!B57,"") ->  | Y61: 101 | Z61: =IF('C3'!B153<>0,'C3'!B153,"") ->  | AK61: 44 | AL61: Box not in use | AQ61: 33 | AR61: =IF('C5'!B59<>0,'C5'!B59,"") ->  | AT61: 7.2 | AU61: =IF('C6'!B59<>0,'C6'!B59,"") ->  | AW61: 39 | AX61: =IF('C6'!B153<>0,'C6'!B153,"") ->  | BC61: 39 | BD61: =IF('C8C9C10'!B60<>0,'C8C9C10'!B60,"") -> 
M62: 20 | N62: =IF('C2'!B58<>0,'C2'!B58,"") ->  | Y62: 102 | Z62: =IF('C3'!B154<>0,'C3'!B154,"") ->  | AK62: 45 | AL62: =IF('C4'!B80<>0,'C4'!B80,"") ->  | AQ62: 33.1 | AR62: =IF('C5'!B60<>0,'C5'!B60,"") ->  | AT62: A_1 | AU62: =IF('C6'!B60<>0,'C6'!B60,"") ->  | AW62: 40 | AX62: =IF('C6'!B154<>0,'C6'!B154,"") ->  | BC62: 40 | BD62: =IF('C8C9C10'!B61<>0,'C8C9C10'!B61,"") -> 
M63: CL1 | N63: =IF('C2'!B106="","",'C2'!B106) -> 37700 | Y63: 103 | Z63: =IF('C3'!B155<>0,'C3'!B155,"") ->  | AK63: 46 | AL63: =IF('C4'!B81<>"",'C4'!B81,"") ->  | AQ63: 33.2 | AR63: =IF('C5'!B61<>0,'C5'!B61,"") ->  | AT63: B_1 | AU63: =IF('C6'!B61<>0,'C6'!B61,"") ->  | AW63: 41 | AX63: Box not in use | BC63: 41 | BD63: =IF('C8C9C10'!B62<>0,'C8C9C10'!B62,"") -> 
AK64: 47 | AL64: =IF('C4'!B82<>"",'C4'!B82,"") ->  | AQ64: 34 | AR64: Box not in use | AT64: C_1 | AU64: =IF('C6'!B62<>0,'C6'!B62,"") ->  | AW64: 42 | AX64: Box not in use | BC64: 42 | BD64: =IF('C8C9C10'!B63<>0,'C8C9C10'!B63,"") -> 
AK65: 48 | AL65: =IF('C4'!B83<>"",'C4'!B83,"") ->  | AQ65: 34.1 | AR65: =IF('C5'!B63<>0,'C5'!B63,"") ->  | AT65: D_1 | AU65: =IF('C6'!B63<>0,'C6'!B63,"") ->  | AW65: 43 | AX65: =IF('C6'!B157<>0,'C6'!B157,"") ->  | BC65: 43 | BD65: =IF('C8C9C10'!B64<>0,'C8C9C10'!B64,"") -> 
AK66: 49 | AL66: =IF('C4'!B84<>0,'C4'!B84,"") ->  | AQ66: 35 | AR66: =IF('C5'!B64<>0,'C5'!B64,"") ->  | AT66: E_1 | AU66: =IF('C6'!B64<>0,'C6'!B64,"") ->  | AW66: 44 | AX66: =IF('C6'!B158<>0,'C6'!B158,"") ->  | BC66: 44 | BD66: =IF('C8C9C10'!B65<>0,'C8C9C10'!B65,"") -> 
AK67: 50 | AL67: =IF('C4'!B85<>"",'C4'!B85,"") ->  | AQ67: 36 | AR67: =IF('C5'!B65<>0,'C5'!B65,"") ->  | AT67: F_1 | AU67: =IF('C6'!B65<>0,'C6'!B65,"") ->  | AW67: 45 | AX67: =IF('C6'!B159<>0,'C6'!B159,"") ->  | BC67: 45 | BD67: =IF('C8C9C10'!B66<>0,'C8C9C10'!B66,"") -> 
AK68: 51 | AL68: =IF('C4'!B86<>0,'C4'!B86,"") ->  | AQ68: 37 | AR68: =IF('C5'!B66<>0,'C5'!B66,"") ->  | AT68: 7.3 | AU68: =IF('C6'!B66<>0,'C6'!B66,"") ->  | AW68: 46 | AX68: =IF('C6'!B160<>0,'C6'!B160,"") ->  | BC68: 46 | BD68: =IF('C8C9C10'!B67<>0,'C8C9C10'!B67,"") -> 
AQ69: 38 | AR69: =IF('C5'!B67<>0,'C5'!B67,"") ->  | AT69: 7.4 | AU69: =IF('C6'!B67<>0,'C6'!B67,"") ->  | AW69: A_1 | AX69: =IF('C6'!B161<>0,'C6'!B161,"") ->  | BC69: 47 | BD69: =IF('C8C9C10'!B68<>0,'C8C9C10'!B68,"") -> 
AQ70: 39 | AR70: =IF('C5'!B68<>0,'C5'!B68,"") ->  | AT70: 7.5 | AU70: =IF('C6'!B68<>0,'C6'!B68,"") ->  | AW70: B_1 | AX70: =IF('C6'!B162<>0,'C6'!B162,"") ->  | BC70: 48 | BD70: =IF('C8C9C10'!B69<>0,'C8C9C10'!B69,"") -> 
AQ71: 40 | AR71: =IF('C5'!B69<>0,'C5'!B69,"") ->  | AT71: A_1 | AU71: =IF('C6'!B69<>0,'C6'!B69,"") ->  | AW71: C_1 | AX71: =IF('C6'!B163<>0,'C6'!B163,"") ->  | BC71: 49 | BD71: =IF('C8C9C10'!B70<>0,'C8C9C10'!B70,"") -> 
AQ72: 41 | AR72: =IF('C5'!B70<>0,'C5'!B70,"") ->  | AT72: B_1 | AU72: =IF('C6'!B70<>0,'C6'!B70,"") ->  | AW72: D_1 | AX72: =IF('C6'!B164<>0,'C6'!B164,"") ->  | BC72: 50 | BD72: =IF('C8C9C10'!B71<>0,'C8C9C10'!B71,"") -> 
AQ73: 42 | AR73: =IF('C5'!B71<>0,'C5'!B71,"") ->  | AT73: C_1 | AU73: =IF('C6'!B71<>0,'C6'!B71,"") ->  | AW73: E_1 | AX73: =IF('C6'!B165<>0,'C6'!B165,"") ->  | BC73: 50.1 | BD73: =IF('C8C9C10'!B72<>0,'C8C9C10'!B72,"") -> 
AQ74: 43 | AR74: =IF('C5'!B72<>0,'C5'!B72,"") ->  | AT74: 8D_1 | AU74: =IF('C6'!B72<>0,'C6'!B72,"") ->  | AW74: F_1 | AX74: =IF('C6'!B166<>0,'C6'!B166,"") ->  | BC74: 51 | BD74: =IF('C8C9C10'!B73<>0,'C8C9C10'!B73,"") -> 
AQ75: 44 | AR75: =IF('C5'!B73<>0,'C5'!B73,"") ->  | AT75: E_1 | AU75: =IF('C6'!B73<>0,'C6'!B73,"") ->  | AW75: 47 | AX75: =IF('C6'!B167<>0,'C6'!B167,"") ->  | BC75: 52 | BD75: =IF('C8C9C10'!B74<>0,'C8C9C10'!B74,"") -> 
AQ76: 45 | AR76: =IF('C5'!B74<>0,'C5'!B74,"") ->  | AT76: 9F_1 | AU76: =IF('C6'!B74<>0,'C6'!B74,"") ->  | AW76: 48 | AX76: =IF('C6'!B168<>0,'C6'!B168,"") ->  | BC76: 52.1 | BD76: =IF('C8C9C10'!B75<>0,'C8C9C10'!B75,"") -> 
AT77: 8 | AU77: =IF('C6'!B75<>0,'C6'!B75,"") ->  | AW77: 48.1 | AX77: =IF('C6'!B169<>0,'C6'!B169,"") ->  | BC77: 52.2 | BD77: =IF('C8C9C10'!B76<>0,'C8C9C10'!B76,"") -> 
AT78: 9 | AU78: =IF('C6'!B76<>0,'C6'!B76,"") ->  | AW78: 49 | AX78: =IF('C6'!B170<>0,'C6'!B170,"") ->  | BC78: 52.3 | BD78: =IF('C8C9C10'!B77<>0,'C8C9C10'!B77,"") -> 
AT79: 9.1 | AU79: =IF('C6'!B77<>0,'C6'!B77,"") ->  | AW79: 49.1 | AX79: =IF('C6'!B171<>0,'C6'!B171,"") ->  | BC79: 52.4 | BD79: =IF('C8C9C10'!B78<>0,'C8C9C10'!B78,"") -> 
AT80: A_1 | AU80: =IF('C6'!B78<>0,'C6'!B78,"") ->  | AW80: A_1 | AX80: =IF('C6'!B172<>0,'C6'!B172,"") ->  | BC80: 52.5 | BD80: =IF('C8C9C10'!B79<>0,'C8C9C10'!B79,"") -> 
AT81: B_1 | AU81: =IF('C6'!B79<>0,'C6'!B79,"") ->  | AW81: B_1 | AX81: =IF('C6'!B173<>0,'C6'!B173,"") ->  | BC81: 52EG | BD81: =IF('C8C9C10'!B80<>0,'C8C9C10'!B80,"") -> 
AT82: C_1 | AU82: =IF('C6'!B80<>0,'C6'!B80,"") ->  | AW82: C_1 | AX82: =IF('C6'!B174<>0,'C6'!B174,"") ->  | BC82: 52EG.1 | BD82: =IF('C8C9C10'!B81<>0,'C8C9C10'!B81,"") -> 
AT83: 10D_1 | AU83: =IF('C6'!B81<>0,'C6'!B81,"") ->  | AW83: D_1 | AX83: =IF('C6'!B175<>0,'C6'!B175,"") ->  | BC83: 52QG | BD83: =IF('C8C9C10'!B82<>0,'C8C9C10'!B82,"") -> 
AT84: E_1 | AU84: =IF('C6'!B82<>0,'C6'!B82,"") ->  | AW84: E_1 | AX84: =IF('C6'!B176<>0,'C6'!B176,"") ->  | BC84: 52QG.1 | BD84: =IF('C8C9C10'!B83<>0,'C8C9C10'!B83,"") -> 
AT85: 11F_1 | AU85: =IF('C6'!B83<>0,'C6'!B83,"") ->  | AW85: F_1 | AX85: =IF('C6'!B177<>0,'C6'!B177,"") ->  | BC85: 52QL | BD85: =IF('C8C9C10'!B84<>0,'C8C9C10'!B84,"") -> 
AT86: 10 | AU86: =IF('C6'!B84<>0,'C6'!B84,"") ->  | AW86: 50 | AX86: =IF('C6'!B178<>0,'C6'!B178,"") ->  | BC86: 53 | BD86: =IF('C8C9C10'!B85<>0,'C8C9C10'!B85,"") -> 
AT87: 11 | AU87: =IF('C6'!B85<>0,'C6'!B85,"") ->  | AW87: 51 | AX87: =IF('C6'!B179<>0,'C6'!B179,"") ->  | BC87: 54 | BD87: =IF('C8C9C10'!B86<>0,'C8C9C10'!B86,"") -> computation
AT88: 11.1 | AU88: =IF('C6'!B86<>0,'C6'!B86,"") ->  | AW88: 51.1 | AX88: =IF('C6'!B180<>0,'C6'!B180,"") -> 
AT89: 13A | AU89: =IF('C6'!B87<>0,'C6'!B87,"") ->  | AW89: A_1 | AX89: =IF('C6'!B181<>0,'C6'!B181,"") -> 
AT90: 13B | AU90: =IF('C6'!B88<>0,'C6'!B88,"") ->  | AW90: B_1 | AX90: =IF('C6'!B182<>0,'C6'!B182,"") -> 
AT91: 13C | AU91: =IF('C6'!B89<>0,'C6'!B89,"") ->  | AW91: C_1 | AX91: =IF('C6'!B183<>0,'C6'!B183,"") -> 
AT92: 13D | AU92: =IF('C6'!B90<>0,'C6'!B90,"") ->  | AW92: D_1 | AX92: =IF('C6'!B184<>0,'C6'!B184,"") -> 
AT93: 13E | AU93: =IF('C6'!B91<>0,'C6'!B91,"") ->  | AW93: E_1 | AX93: =IF('C6'!B185<>0,'C6'!B185,"") -> 
AT94: 13F | AU94: =IF('C6'!B92<>0,'C6'!B92,"") ->  | AW94: F_1 | AX94: =IF('C6'!B186<>0,'C6'!B186,"") -> 
AT95: 12 | AU95: =IF('C6'!B93<>0,'C6'!B93,"") ->  | AW95: 52 | AX95: =IF('C6'!B187<>0,'C6'!B187,"") -> 
AT96: 13 | AU96: =IF('C6'!B94<>0,'C6'!B94,"") ->  | AW96: 53 | AX96: =IF('C6'!B188<>0,'C6'!B188,"") -> 
AT97: 13 | AU97: =IF('C6'!B95<>0,'C6'!B95,"") ->  | AW97: 53.1 | AX97: =IF('C6'!B189<>0,'C6'!B189,"") -> 
AW98: 54 | AX98: =IF('C6'!B190<>0,'C6'!B190,"") -> 
AW99: 54.1 | AX99: =IF('C6'!B191<>0,'C6'!B191,"") -> 
AW100: 55 | AX100: =IF('C6'!B192<>0,'C6'!B192,"") -> 
AW101: 55.1 | AX101: =IF('C6'!B193<>0,'C6'!B193,"") -> 
AW102: 56 | AX102: =IF('C6'!B194<>0,'C6'!B194,"") -> 
AW103: 56.1 | AX103: =IF('C6'!B195<>0,'C6'!B195,"") -> 
AW104: 57 | AX104: =IF('C6'!B196<>0,'C6'!B196,"") -> 
AW105: 57.1 | AX105: =IF('C6'!B197<>0,'C6'!B197,"") -> 
AW106: 58 | AX106: =IF('C6'!B198<>0,'C6'!B198,"") -> 
AW107: 58.1 | AX107: =IF('C6'!B199<>0,'C6'!B199,"") -> 
AW108: 59 | AX108: =IF('C6'!B200<>0,'C6'!B200,"") -> 
AW109: 59.1 | AX109: =IF('C6'!B201<>0,'C6'!B201,"") -> 
AW110: 60 | AX110: =IF('C6'!B202<>0,'C6'!B202,"") -> 
AW111: 60.1 | AX111: =IF('C6'!B203<>0,'C6'!B203,"") -> 
AW112: 61 | AX112: =IF('C6'!B204<>0,'C6'!B204,"") -> 
AW113: 61.1 | AX113: =IF('C6'!B205<>0,'C6'!B205,"") -> 
AW114: 62 | AX114: =IF('C6'!B206<>0,'C6'!B206,"") -> 
AW115: 62.1 | AX115: =IF('C6'!B207<>0,'C6'!B207,"") -> 
AW116: 63 | AX116: =IF('C6'!B208<>0,'C6'!B208,"") -> 
AW117: 63.1 | AX117: =IF('C6'!B209<>0,'C6'!B209,"") -> 
AW118: 64 | AX118: =IF('C6'!B210<>0,'C6'!B210,"") -> 
AW119: 64.1 | AX119: =IF('C6'!B211<>0,'C6'!B211,"") -> 
A121: If this goes beyond this line you will need to change the Range at the end of the 'Sub test_this_case()' as shown below
A122: 'Write Test case sheet
A123: Sheets("tc_template").Range("A1:BJ120").Copy
A124: Worksheets("Test case").Visible = True
A125: Sheets("Test case").Select
A126: Range("A1").Select
A127: Selection.PasteSpecial Paste:=xlValues, Operation:=xlNone, SkipBlanks:= _
A128: False, Transpose:=False
A129: Selection.PasteSpecial Paste:=xlFormats, Operation:=xlNone, SkipBlanks:= _
A130: False, Transpose:=False
A131: Sheets("Test case").Range("A1").Select
A132: Sheets("SA302").Select
A133: End Sub

Sheet target (hidden)
A1: 1 | B1: 2 | C1: 3 | D1: 4 | E1: 5 | F1: 6 | G1: 7 | H1: 8 | I1: 9 | J1: 10 | K1: 11 | L1: 12 | M1: 13 | N1: 14 | O1: 15 | P1: 16 | Q1: 17 | R1: 18 | S1: 19 | T1: 20 | U1: 21 | V1: 22 | W1: 23 | X1: 24 | Y1: 25 | Z1: 26 | AA1: 27 | AB1: 28 | AC1: 29 | AD1: 30 | AE1: 31 | AF1: 32 | AG1: 33 | AH1: 34 | AI1: 35 | AJ1: 36 | AK1: 37 | AL1: 38 | AM1: 39 | AN1: 40 | AO1: 41 | AP1: 42 | AQ1: 43 | AR1: 44 | AS1: 45 | AT1: 46 | AU1: 47 | AV1: 48 | AW1: 49 | AX1: 50 | AY1: 51 | AZ1: 52 | BA1: 53 | BB1: 54 | BC1: 55 | BD1: 56 | BE1: 57 | BF1: 58 | BG1: 59 | BH1: 60 | BI1: 61 | BJ1: 62 | BK1: 63 | BL1: 64 | BM1: 65 | BN1: 66 | BO1: 67 | BP1: 68 | BQ1: 69 | BR1: 70 | BS1: 71 | BT1: 72 | BU1: 73 | BV1: 74 | BW1: 75
A2: SCH D case | B2: =OR(A101>1,A105>1,A109>1,A113>1,A117>1) -> TRUE
A3: SCH E case | B3: =OR(A89>1,A93>1,A97>1,B16<>"",E16<>"" ) -> TRUE
A4: Coding | B4: FALSE
A5: 169 | B5: =YPD&'INC(1)'!C4 -> YPD1 | C5: =YPD&'INC(1)'!C7 -> YPDTR
A6: INC(1) | B6: I5 | C6: I8
A7: 3 | B7: 2 | C7: 1
B8: =C0!B5 ->  | C8: =C0!B9 -> 2
A9: 169 | B9: =INC&'INC(1)'!C15 -> INC1 | C9: =INC&'INC(1)'!C18 -> INC2 | D9: =INC&'INC(1)'!C21 -> INC3 | E9: =INC&'INC(1)'!I15 -> INC4 | F9: =INC&'INC(1)'!I18 -> INC5 | G9: =INC&'INC(1)'!I21 -> INC6
A10: INC(1) | B10: D16 | C10: D19 | D10: D22 | E10: J16 | F10: J19 | G10: J22
A11: 7 | B11: c | C11: c | D11: c | E11: c | F11: c | G11: c
B12: =C0!B12 ->  | C12: =C0!B13 ->  | D12: =C0!B14 ->  | E12: =C0!B15 -> 40000 | F12: =C0!B16 ->  | G12: =C0!B17 -> 
A13: 1 | B13: =INC&'INC(2)'!C4 -> INC8 | C13: =INC&'INC(2)'!C7 -> INC9 | D13: =INC&'INC(2)'!C10 -> INC10 | E13: =INC&'INC(2)'!C13 -> INC11 | F13: =INC&'INC(2)'!G4 -> INC12 | G13: =INC&'INC(2)'!G7 -> INC13 | H13: =INC&'INC(2)'!G10 -> INC14 | I13: =INC&'INC(2)'!G13 -> INC15 | J13: =INC&'INC(2)'!G16 -> INC16
A14: INC(2) | B14: D5 | C14: D8 | D14: D11 | E14: D14 | F14: H5 | G14: H8 | H14: H11 | I14: H14 | J14: H17
A15: 10 | B15: c | C15: c | D15: c | E15: c | F15: c | G15: c | H15: c | I15: c | J15: c
B16: =C0!B21 ->  | C16: =C0!B22 ->  | D16: =C0!B23 ->  | E16: =C0!B24 ->  | F16: =C0!B25 ->  | G16: =C0!B26 ->  | H16: =C0!B27 ->  | I16: =C0!B28 ->  | J16: =C0!B29 -> 
A17: 1 | B17: =INC&'INC(2)'!C22 -> INC17 | C17: =INC&'INC(2)'!C25 -> INC18 | D17: =INC&'INC(2)'!C28 -> INC19 | E17: =INC&'INC(2)'!G22 -> INC20
A18: INC(2) | B18: D23 | C18: D26 | D18: D29 | E18: H23
A19: 5 | B19: c | C19: c | D19: c | E19: c
B20: =C0!B32 ->  | C20: =C0!B33 ->  | D20: =C0!B34 ->  | E20: =C0!B35 -> 
A21: 1 | B21: =REL&'REL(1)'!C6 -> REL1 | C21: =REL&'REL(1)'!C9 -> REL2 | D21: =REL&'REL(1)'!H6 -> REL3 | E21: =REL&'REL(1)'!H9 -> REL4
A22: REL(1) | B22: D7 | C22: D10 | D22: I7 | E22: I10
A23: 5 | B23: c | C23: c | D23: c | E23: c
B24: =IF(C0!B39=0,"",C0!B39) ->  | C24: =IF(C0!B41=0,"",C0!B41) ->  | D24: =IF(C0!B42=0,"",C0!B42) ->  | E24: =IF(C0!B43=0,"",C0!B43) -> 
A25: 1 | B25: =REL&'REL(1)'!C16 -> REL5 | C25: =REL&'REL(1)'!C22 -> REL7 | D25: =REL&'REL(1)'!H16 -> REL8 | E25: =REL&'REL(1)'!H19 -> REL9 | F25: =REL&'REL(1)'!H22 -> REL10
A26: REL(1) | B26: D17 | C26: D23 | D26: I17 | E26: I20 | F26: I23
A27: 6 | B27: c | C27: c | D27: c | E27: c | F27: c
B28: =IF(C0!B46=0,"",C0!B46) ->  | C28: =IF(C0!B48=0,"",C0!B48) ->  | D28: =IF(C0!B49=0,"",C0!B49) ->  | E28: =IF(C0!B50=0,"",C0!B50) ->  | F28: =IF(C0!B51=0,"",C0!B51) -> 
A29: 1 | B29: =REL&'REL(2)'!C4 -> REL13
A30: REL(2) | B30: N5
A31: 2 | B31: FALSE
B32: =C0!B54="Y" -> FALSE
A33: 1 | B33: =SLR&'REL(2)'!C11 -> SLR1 | C33: =SLR&'REL(2)'!C13 -> SLRPT | D33: =SLR&'REL(2)'!G11 -> SLR2 | E33: =SLR&'REL(2)'!G15 -> SLR3 | F33: =PGLR&'REL(2)'!C17 -> PGLRPT
A34: REL(2) | B34: N12 | C34: N13 | D34: H12 | E34: H16 | F34: N25
A35: 6 | B35: FALSE | C35: 3 | D35: c | E35: c | F35: 2
B36: =C0!B60="Y" -> FALSE | C36: =C0!B61 ->  | D36: =C0!B63 ->  | E36: =C0!B64 ->  | F36: =C0!B62 -> 
A37: 1 | B37: ='REL(2)'!K23&'REL(2)'!C25 -> CBC1
A38: REL(2) | B38: D26
A39: 2 | B39: c
B40: =C0!B67 -> 
A41: 1 | B41: WFHP1
A42: REL(2) | B42: D33
A43: 2 | B43: c
B44: =C0!B72 -> 
A45: 1 | B45: ='REL(2)'!K37&'REL(2)'!C39 -> MAT1-5 | C45: ='REL(2)'!K37&'REL(2)'!C45 -> MATM_O | D45: ='REL(2)'!K37&'REL(2)'!G45 -> MATM_I
A46: REL(2) | B46: N51 | C46: N55 | D46: N56
A47: 4 | B47: FALSE | C47: FALSE | D47: FALSE
B48: =C0!B75="Y" -> FALSE | C48: =C0!B81="Y" -> FALSE | D48: =C0!B82="Y" -> FALSE
A49: 1 | B49: =FIN&'REL(2)'!C52 -> FIN1
A50: REL(2) | B50: D53
A51: 2 | B51: c
B52: =C0!B85 -> 
A53: 1 | B53: =AOI&AOI!C5 -> AOI2 | C53: =AOI&AOI!G7 -> AOI3
A54: AOI | B54: D6 | C54: H8
A55: 3 | B55: c | C55: c
B56: ='C1'!B5 ->  | C56: ='C1'!B6 -> 
A57: 1 | B57: =AOI&AOI!C13 -> AOI4 | C57: =AOI&AOI!C16 -> AOI5 | D57: =AOI&AOI!C19 -> AOI6 | E57: =AOI&AOI!C22 -> AOI7 | F57: =AOI&AOI!G13 -> AOI8 | G57: =AOI&AOI!G16 -> AOI9 | H57: =AOI&AOI!G19 -> AOI10 | I57: =AOI&AOI!G22 -> AOI11
A58: AOI | B58: D14 | C58: D17 | D58: D20 | E58: D23 | F58: H14 | G58: H17 | H58: H20 | I58: H23
A59: 9 | B59: c | C59: c | D59: c | E59: c | F59: c | G59: c | H59: c | I59: c
B60: ='C1'!B10 ->  | C60: ='C1'!B11 ->  | D60: ='C1'!B12 ->  | E60: ='C1'!B13 ->  | F60: ='C1'!B14 ->  | G60: ='C1'!B15 ->  | H60: ='C1'!B16 ->  | I60: ='C1'!B17 -> 
A61: 1 | B61: =AOI&AOI!C28 -> AOI12 | C61: =AOI&AOI!G28 -> AOI13 | D61: =AOI&AOI!G31 -> AOI13.1
A62: AOI | B62: D29 | C62: H29 | D62: H32
A63: 4 | B63: c | C63: c | D63: c
B64: ='C1'!B21 ->  | C64: ='C1'!B22 ->  | D64: ='C1'!B23 -> 
A65: 1 | B65: =ASE&ASE!C5 -> ASE1
A66: ASE | B66: D6
A67: 2 | B67: c
B68: ='C1'!B29 -> 
A69: 1 | B69: =ASE&ASE!C8 -> ASE3 | C69: =ASE&ASE!C11 -> ASE4 | D69: =ASE&ASE!C14 -> ASE5 | E69: =ASE&ASE!C17 -> ASE6
A70: ASE | B70: D9 | C70: D12 | D70: D15 | E70: D18
A71: 5 | B71: c | C71: c | D71: c | E71: c
B72: ='C1'!B33 ->  | C72: ='C1'!B34 ->  | D72: ='C1'!B35 ->  | E72: ='C1'!B36 -> 
A73: 1 | B73: =ASE&ASE!G11 -> ASE11 | C73: =ASE&ASE!G14 -> ASE12 | D73: =ASE&ASE!G17 -> ASE13 | E73: =ASE&ASE!G20 -> ASE15
A74: ASE | B74: H12 | C74: H15 | D74: H18 | E74: H21
A75: 5 | B75: c | C75: c | D75: c | E75: c
B76: ='C1'!B44 ->  | C76: ='C1'!B45 ->  | D76: ='C1'!B46 ->  | E76: ='C1'!B48 -> 
A77: 1 | B77: =AOR&AOR!C5 -> AOR1 | C77: =AOR&AOR!C8 -> AOR2 | D77: =AOR&AOR!C11 -> AOR3 | E77: =AOR&AOR!C14 -> AOR4 | F77: =AOR&AOR!C17 -> AOR5 | G77: =AOR&AOR!C20 -> AOR6 | H77: =AOR&AOR!C23 -> AOR6.1 | I77: =AOR&AOR!G5 -> AOR7 | J77: =AOR&AOR!G8 -> AOR8 | K77: =AOR&AOR!G11 -> AOR9 | L77: =AOR&AOR!G14 -> AOR10 | M77: =AOR&AOR!G17 -> AOR12
A78: AOR | B78: D6 | C78: D9 | D78: D12 | E78: D15 | F78: D18 | G78: D21 | H78: D24 | I78: H6 | J78: H9 | K78: H12 | L78: H15 | M78: H18
A79: 13 | B79: c | C79: c | D79: c | E79: c | F79: c | G79: c | H79: c | I79: c | J79: c | K79: c | L79: c | M79: c
B80: ='C1'!B51 ->  | C80: ='C1'!B52 ->  | D80: ='C1'!B53 ->  | E80: ='C1'!B54 ->  | F80: ='C1'!B55 ->  | G80: ='C1'!B56 ->  | H80: ='C1'!B57 ->  | I80: ='C1'!B58 ->  | J80: ='C1'!B59 ->  | K80: ='C1'!B60 ->  | L80: ='C1'!B61 ->  | M80: ='C1'!B62 -> 
A81: 1 | B81: ="MCA"&MCA!$C$4 -> MCA1 | C81: ="MCA"&MCA!$C$8 -> MCA2 | D81: ="MCA"&MCA!$C$12 -> MCA3 | E81: ="MCA"&MCA!$C$16 -> MCA9
A82: MCA | B82: F5 | C82: F9 | D82: F13 | E82: F17
A83: 5 | B83: 1 | C83: 2 | D83: 1 | E83: 1
B84: =IF(MCA_IND>1,HLOOKUP(MCA_IND-1,MCA_CONTROL_RANGE,2),"") ->  | C84: =IF(MCA_IND>1,HLOOKUP(MCA_IND-1,MCA_CONTROL_RANGE,4),"") ->  | D84: =IF(MCA_IND>1,HLOOKUP(MCA_IND-1,MCA_CONTROL_RANGE,6),"") ->  | E84: =IF(MCA_IND>1,HLOOKUP(MCA_IND-1,MCA_CONTROL_RANGE,8),"") -> 
A85: 1 | B85: =AIL&AIL!C5 -> AIL1 | C85: =AIL&AIL!G5 -> AIL6 | D85: =AIL&AIL!C11 -> AIL10 | E85: =AIL&AIL!C14 -> AIL11 | F85: =AIL&AIL!C17 -> AIL11.1 | G85: =AIL&AIL!C20 -> AIL11.2 | H85: =AIL&AIL!G11 -> AIL13 | I85: =AIL&AIL!G14 -> AIL14 | J85: =AIL&AIL!G17 -> AIL15 | K85: =AIL&AIL!G20 -> AIL16 | L85: =AIL&AIL!G23 -> AIL18
A86: AIL | B86: D6 | C86: H6 | D86: D12 | E86: D15 | F86: D18 | G86: D21 | H86: H12 | I86: H15 | J86: H18 | K86: H21 | L86: H24
A87: 12 | B87: c | C87: c | D87: c | E87: c | F87: c | G87: c | H87: c | I87: c | J87: c | K87: c | L87: c
B88: ='C1'!B88 ->  | C88: ='C1'!B93 ->  | D88: ='C1'!B94 ->  | E88: ='C1'!B95 ->  | F88: ='C1'!B96 ->  | G88: ='C1'!B97 ->  | H88: ='C1'!B99 ->  | I88: ='C1'!B100 ->  | J88: ='C1'!B101 ->  | K88: ='C1'!B102 ->  | L88: ='C1'!B103 -> 
A89: 169 | B89: =EMP&EMP!C4 -> EMP1 | C89: =EMP&EMP!G4 -> EMP1.1 | D89: =EMP&EMP!C7 -> EMP2 | E89: =EMP&EMP!C10 -> EMP3 | F89: =EMP&EMP!C16 -> EMP9 | G89: =EMP&EMP!C19 -> EMP10 | H89: =EMP&EMP!C22 -> EMP11 | I89: =EMP&EMP!C25 -> EMP12 | J89: =EMP&EMP!G16 -> EMP13 | K89: =EMP&EMP!G19 -> EMP14 | L89: =EMP&EMP!G22 -> EMP15 | M89: =EMP&EMP!G25 -> EMP16 | N89: =EMP&EMP!C30 -> EMP17 | O89: =EMP&EMP!C33 -> EMP18 | P89: =EMP&EMP!G30 -> EMP19 | Q89: =EMP&EMP!G33 -> EMP20
A90: EMP | B90: D5 | C90: H5 | D90: D8 | E90: D11 | F90: D17 | G90: D20 | H90: D23 | I90: D26 | J90: H17 | K90: H20 | L90: H23 | M90: H26 | N90: D31 | O90: D34 | P90: H31 | Q90: H34
A91: 17 | B91: c | C91: c | D91: c | E91: c | F91: c | G91: c | H91: c | I91: c | J91: c | K91: c | L91: c | M91: c | N91: c | O91: c | P91: c | Q91: c
B92: ='C2'!B3 -> 89201 | C92: ='C2'!B4 ->  | D92: ='C2'!B5 -> 14056 | E92: ='C2'!B6 ->  | F92: ='C2'!B18 ->  | G92: ='C2'!B19 ->  | H92: ='C2'!B20 -> 8303 | I92: ='C2'!B21 ->  | J92: ='C2'!B22 ->  | K92: ='C2'!B23 ->  | L92: ='C2'!B24 ->  | M92: ='C2'!B25 ->  | N92: ='C2'!B26 ->  | O92: ='C2'!B27 ->  | P92: ='C2'!B28 ->  | Q92: ='C2'!B29 -> 
A93: 1 | B93: =EMP&EMP!K4 -> EMP1 | C93: =EMP&EMP!O4 -> EMP1.1 | D93: =EMP&EMP!K7 -> EMP2 | E93: =EMP&EMP!K10 -> EMP3 | F93: =EMP&EMP!K16 -> EMP9 | G93: =EMP&EMP!K19 -> EMP10 | H93: =EMP&EMP!K22 -> EMP11 | I93: =EMP&EMP!K25 -> EMP12 | J93: =EMP&EMP!O16 -> EMP13 | K93: =EMP&EMP!O19 -> EMP14 | L93: =EMP&EMP!O22 -> EMP15 | M93: =EMP&EMP!O25 -> EMP16 | N93: =EMP&EMP!K30 -> EMP17 | O93: =EMP&EMP!K33 -> EMP18 | P93: =EMP&EMP!O30 -> EMP19 | Q93: =EMP&EMP!O33 -> EMP20
A94: EMP | B94: L5 | C94: P5 | D94: L8 | E94: L11 | F94: L17 | G94: L20 | H94: L23 | I94: L26 | J94: P17 | K94: P20 | L94: P23 | M94: P26 | N94: L31 | O94: L34 | P94: P31 | Q94: P34
A95: 17 | B95: c | C95: c | D95: c | E95: c | F95: c | G95: c | H95: c | I95: c | J95: c | K95: c | L95: c | M95: c | N95: c | O95: c | P95: c | Q95: c
B96: ='C2'!B32 ->  | C96: ='C2'!B33 ->  | D96: ='C2'!B34 ->  | E96: ='C2'!B35 ->  | F96: ='C2'!B47 ->  | G96: ='C2'!B48 ->  | H96: ='C2'!B49 ->  | I96: ='C2'!B50 ->  | J96: ='C2'!B51 ->  | K96: ='C2'!B52 ->  | L96: ='C2'!B53 ->  | M96: ='C2'!B54 ->  | N96: ='C2'!B55 ->  | O96: ='C2'!B56 ->  | P96: ='C2'!B57 ->  | Q96: ='C2'!B58 -> 
A97: 1 | B97: =MOR&MOR!C8 -> MOR2.1 | C97: =MOR&MOR!C15 -> MOR6 | D97: =MOR&MOR!C19 -> MOR38 | E97: =MOR&MOR!G11 -> MOR17 | F97: =MOR&MOR!G15 -> MOR19 | G97: =MOR&MOR!G19 -> MOR39
A98: MOR | B98: D9 | C98: D16 | D98: D20 | E98: H12 | F98: H16 | G98: H20
A99: 7 | B99: c | C99: c | D99: c | E99: c | F99: c | G99: c
B100: ='C2'!B63 ->  | C100: ='C2'!B68 ->  | D100: ='C2'!B100 ->  | E100: ='C2'!B79 ->  | F100: ='C2'!B81 ->  | G100: ='C2'!B101 -> 
A101: 169 | B101: =SSE&SE!C5 -> SSE29 | C101: =SSE&SE!C8 -> SSE31 | D101: =SSE&SE!C11 -> SSE33 | E101: =SSE&SE!C14 -> SSE36 | F101: =SSE&SE!C17 -> SSE37 | G101: =SSE&SE!C20 -> SSE38
A102: SE | B102: D6 | C102: D9 | D102: D12 | E102: L20 | F102: L21 | G102: D21
A103: 7 | B103: c | C103: c | D103: c | E103: FALSE | F103: FALSE | G103: c
B104: ='C3'!B37 ->  | C104: ='C3'!B39 -> 0 | D104: ='C3'!B41 -> 53827 | E104: ='C3'!B44="Y" -> FALSE | F104: ='C3'!B45="Y" -> FALSE | G104: ='C3'!B46 -> 
A105: 1 | B105: =FSE&SE!G5 -> FSE73.3 | C105: =FSE&SE!G8 -> FSE73.4 | D105: =FSE&SE!G11 -> FSE74 | E105: =FSE&SE!G14 -> FSE76 | F105: =FSE&SE!G17 -> FSE76.1 | G105: =FSE&SE!G20 -> FSE78 | H105: =FSE&SE!G23 -> FSE81 | I105: =FSE&SE!G26 -> FSE82 | J105: =FSE&SE!G29 -> FSE100 | K105: =FSE&SE!G32 -> FSE101 | L105: =FSE&SE!G35 -> FSE102
A106: SE | B106: H6 | C106: H9 | D106: H12 | E106: H15 | F106: H18 | G106: H21 | H106: H24 | I106: H27 | J106: M20 | K106: M21 | L106: H36
A107: 12 | B107: c | C107: c | D107: c | E107: c | F107: c | G107: c | H107: c | I107: c | J107: FALSE | K107: FALSE | L107: c
B108: ='C3'!B122 ->  | C108: ='C3'!B123 ->  | D108: ='C3'!B124 ->  | E108: ='C3'!B126 ->  | F108: ='C3'!B127 ->  | G108: ='C3'!B130 ->  | H108: ='C3'!B133 ->  | I108: ='C3'!B134 ->  | J108: ='C3'!B152="Y" -> FALSE | K108: ='C3'!B153="Y" -> FALSE | L108: ='C3'!B154 -> 
A109: 1 | B109: =LUN&LUN!C4 -> LUN4 | C109: =LUN&LUN!C7 -> LUN6 | D109: =LUN&LUN!C13 -> LUN8 | E109: =LUN&LUN!C16 -> LUN9 | F109: =LUN&LUN!G4 -> LUN14 | G109: =LUN&LUN!G7 -> LUN15 | H109: =LUN&LUN!G10 -> LUN16 | I109: =LUN&LUN!G13 -> LUN17 | J109: =LUN&LUN!K4 -> LUN51 | K109: =LUN&LUN!K7 -> LUN52 | L109: =LUN&LUN!K10 -> LUN56 | M109: =LUN&LUN!K13 -> LUN63 | N109: =LUN&LUN!K16 -> LUN64 | O109: =LUN&LUN!K19 -> LUN65
A110: LUN | B110: D5 | C110: D8 | D110: D14 | E110: D17 | F110: H5 | G110: H8 | H110: H11 | I110: H14 | J110: L5 | K110: L8 | L110: L11 | M110: P19 | N110: P20 | O110: L20
A111: 15 | B111: c | C111: c | D111: c | E111: c | F111: c | G111: c | H111: c | I111: c | J111: c | K111: c | L111: c | M111: FALSE | N111: FALSE | O111: c
B112: ='C3'!B161 ->  | C112: ='C3'!B163 ->  | D112: ='C3'!B164 ->  | E112: ='C3'!B165 ->  | F112: ='C3'!B169 ->  | G112: ='C3'!B170 ->  | H112: ='C3'!B171 ->  | I112: ='C3'!B172 ->  | J112: ='C3'!B205 ->  | K112: ='C3'!B206 ->  | L112: ='C3'!B210 ->  | M112: ='C3'!B217="Y" -> FALSE | N112: ='C3'!B218="Y" -> FALSE | O112: ='C3'!B219 -> 
A113: 169 | B113: =SPS&PS!C4 -> SPS17 | C113: =SPS&PS!C7 -> SPS20 | D113: =SPS&PS!C10 -> SPS22 | E113: =SPS&PS!C13 -> SPS25 | F113: =SPS&PS!C16 -> SPS26 | G113: =SPS&PS!C19 -> SPS27 | H113: =SPS&PS!C22 -> SPS28 | I113: =SPS&PS!C25 -> SPS30 | J113: =SPS&PS!C28 -> SPS31
A114: PS | B114: D5 | C114: D8 | D114: D11 | E114: R19 | F114: R20 | G114: D20 | H114: D23 | I114: D26 | J114: D29
A115: 10 | B115: c | C115: c | D115: c | E115: FALSE | F115: FALSE | G115: c | H115: c | I115: c | J115: c
B116: ='C4'!B15 ->  | C116: ='C4'!B18 ->  | D116: ='C4'!B20 -> 1844 | E116: ='C4'!B23="Y" -> FALSE | F116: ='C4'!B24="Y" -> FALSE | G116: ='C4'!B25 ->  | H116: ='C4'!B26 ->  | I116: ='C4'!B27 ->  | J116: ='C4'!B28 -> 
A117: 1 | B117: =FPS&PS!G4 -> FPS16.3 | C117: =FPS&PS!G7 -> FPS16.4 | D117: =FPS&PS!J4 -> FPS17 | E117: =FPS&PS!J7 -> FPS20 | F117: =FPS&PS!G11 -> FPS22 | G117: =FPS&PS!G14 -> FPS25 | H117: =FPS&PS!J14 -> FPS26 | I117: =FPS&PS!M14 -> FPS27 | J117: =FPS&PS!G17 -> FPS35 | K117: =FPS&PS!J17 -> FPS35.1 | L117: =FPS&PS!G20 -> FPS38 | M117: =FPS&PS!J20 -> FPS39 | N117: FPS41 | O117: FPS41.1 | P117: FPS41.2 | Q117: =FPS&PS!G29 -> FPS47 | R117: =FPS&PS!G32 -> FPS58 | S117: FPS60 | T117: FPS63.1 | U117: FPS63.2 | V117: =FPS&PS!G42 -> FPS70 | W117: =FPS&PS!J42 -> FPS70.1 | X117: =FPS&PS!J52 -> FPS73 | Y117: =FPS&PS!G45 -> FPS76 | Z117: =FPS&PS!G48 -> FPS76.1 | AA117: =FPS&PS!G52 -> FPS77 | AB117: =FPS&PS!G55 -> FPS78 | AC117: =FPS&PS!J55 -> FPS79 | AD117: =FPS&PS!M26 -> FPSAF1 | AE117: =FPS&PS!M38 -> FPSAF2
A118: PS | B118: H5 | C118: H8 | D118: K5 | E118: K8 | F118: H12 | G118: S19 | H118: S20 | I118: N15 | J118: H18 | K118: K18 | L118: H21 | M118: K21 | N118: H24 | O118: K24 | P118: N24 | Q118: H30 | R118: H33 | S118: H36 | T118: K36 | U118: N36 | V118: H43 | W118: K43 | X118: K53 | Y118: H46 | Z118: H49 | AA118: H53 | AB118: H56 | AC118: K56 | AD118: N27 | AE118: N39
A119: 31 | B119: c | C119: c | D119: c | E119: c | F119: c | G119: FALSE | H119: FALSE | I119: c | J119: c | K119: c | L119: c | M119: c | N119: c | O119: c | P119: c | Q119: c | R119: c | S119: c | T119: c | U119: c | V119: c | W119: c | X119: c | Y119: c | Z119: c | AA119: c | AB119: c | AC119: c | AD119: c | AE119: c
B120: ='C4'!B44 ->  | C120: ='C4'!B45 ->  | D120: ='C4'!B46 ->  | E120: ='C4'!B49 ->  | F120: ='C4'!B53 ->  | G120: ='C4'!B56="Y" -> FALSE | H120: ='C4'!B57="Y" -> FALSE | I120: ='C4'!B58 ->  | J120: ='C4'!B66 ->  | K120: ='C4'!B67 ->  | L120: ='C4'!B70 ->  | M120: ='C4'!B71 ->  | N120: ='C4'!B73 ->  | O120: ='C4'!B74 ->  | P120: ='C4'!B75 ->  | Q120: ='C4'!B82 ->  | R120: ='C4'!B94 ->  | S120: ='C4'!B96 ->  | T120: ='C4'!B101 ->  | U120: ='C4'!B102 ->  | V120: ='C4'!B107 ->  | W120: ='C4'!B108 ->  | X120: ='C4'!B111 ->  | Y120: ='C4'!B115 ->  | Z120: ='C4'!B116 ->  | AA120: ='C4'!B117 ->  | AB120: ='C4'!B118 ->  | AC120: ='C4'!B119 ->  | AD120: ='C4'!B76 ->  | AE120: ='C4'!B103 -> 
A121: 1 | B121: CL2A | C121: CL2amt | D121: CL2wkamt
A122: NI | B122: D8 | C122: D12 | D122: O23
A123: 4 | B123: c | C123: c | D123: 2
B124: ='C8C9C10'!B170 ->  | C124: ='C8C9C10'!B170 ->  | D124: ='C8C9C10'!B171 -> 
A125: 169 | B125: EMPCL1 | C125: MORCL1
A126: NI | B126: D20 | C126: D27
A127: 3 | B127: c | C127: c
B128: ='C2'!B106 -> 37700 | C128: ='C2'!B109 -> 0
A129: 1 | B129: NI2_Vol
A130: NI | B130: O24
A131: 2 | B131: FALSE
B132: ='C8C9C10'!B174="Y" -> FALSE
A133: 1 | B133: NI4_Ex
A134: NI | B134: O25
A135: 2 | B135: FALSE
B136: ='C8C9C10'!B177="Y" -> FALSE
A137: 1 | B137: =PRO&PRO!C7 -> PRO21 | C137: =PRO&PRO!G7 -> PRO22 | D137: =PRO&PRO!G10 -> PRO33 | E137: =PRO&PRO!G13 -> PRO38 | F137: =PRO&PRO!G16 -> PRO39 | G137: =PRO&PRO!G19 -> PRO40 | H137: =PRO&PRO!G22 -> PRO42 | I137: =PRO&PRO!G25 -> PRO44 | J137: =PRO&PRO!G28 -> PRO45
A138: PRO | B138: D8 | C138: H8 | D138: H11 | E138: H14 | F138: H17 | G138: H20 | H138: H23 | I138: H26 | J138: H29
A139: 10 | B139: c | C139: c | D139: c | E139: c | F139: c | G139: c | H139: c | I139: c | J139: c
B140: ='C5'!B47 ->  | C140: ='C5'!B48 ->  | D140: ='C5'!B59 ->  | E140: ='C5'!B67 ->  | F140: ='C5'!B68 ->  | G140: ='C5'!B69 ->  | H140: ='C5'!B71 ->  | I140: ='C5'!B73 ->  | J140: ='C5'!B74 -> 
A141: 169 | B141: =FOR&FOR!C10 -> FOR2 | C141: =FOR&FOR!C18 -> FOR3 | D141: =FOR&FOR!G18 -> FOR4 | E141: =FOR&FOR!G21 -> FOR4.1 | F141: =FOR&FOR!C24 -> FOR5 | G141: =FOR&FOR!G24 -> FOR6 | H141: =FOR&FOR!G27 -> FOR6.1 | I141: =FOR&FOR!C30 -> FOR7.1 | J141: =FOR&FOR!G30 -> FOR7.2 | K141: =FOR&FOR!C33 -> FOR7.3 | L141: =FOR&FOR!G33 -> FOR7.4 | M141: =FOR&FOR!G37 -> FOR7.5 | N141: =FOR&FOR!C40 -> FOR8 | O141: =FOR&FOR!G40 -> FOR9 | P141: =FOR&FOR!G43 -> FOR9.1 | Q141: =FOR&FOR!C46 -> FOR10 | R141: =FOR&FOR!G46 -> FOR11 | S141: =FOR&FOR!G49 -> FOR11.1 | T141: =FOR&FOR!C52 -> FOR12 | U141: =FOR&FOR!G52 -> FOR13 | V141: =FOR&FOR!G55&".0" -> FOR13.0 | W141: =FOR&FOR!C58 -> FOR13.1 | X141: =FOR&FOR!G58 -> FOR13.2 | Y141: =FOR&FOR!K5 -> FOR24 | Z141: =FOR&FOR!O5 -> FOR24.1 | AA141: =FOR&FOR!O8 -> FOR24.2 | AB141: =FOR&FOR!K10 -> FOR26 | AC141: =FOR&FOR!O11 -> FOR27 | AD141: =FOR&FOR!K15 -> FOR29 | AE141: =FOR&FOR!O15 -> FOR30 | AF141: =FOR&FOR!O18 -> FOR30.1 | AG141: =FOR&FOR!K21 -> FOR31 | AH141: =FOR&FOR!O21 -> FOR32 | AI141: =FOR&FOR!K27 -> FOR39 | AJ141: =FOR&FOR!O27 -> FOR40 | AK141: =FOR&FOR!K35 -> FOR41 | AL141: =FOR&FOR!K39 -> FOR42 | AM141: =FOR&FOR!K42 -> FOR43 | AN141: =FOR&FOR!O35 -> FOR44 | AO141: =FOR&FOR!O39 -> FOR45 | AP141: =FOR&FOR!K47 -> FOR47 | AQ141: =FOR&FOR!O47 -> FOR48 | AR141: =FOR&FOR!O50 -> FOR48.1 | AS141: =FOR&FOR!K53 -> FOR49 | AT141: =FOR&FOR!O53 -> FOR49.1 | AU141: =FOR&FOR!K58 -> FOR50 | AV141: =FOR&FOR!O58 -> FOR51 | AW141: =FOR&FOR!O61 -> FOR51.1 | AX141: =FOR&FOR!R7 -> FOR52 | AY141: =FOR&FOR!V7 -> FOR53 | AZ141: =FOR&FOR!V10 -> FOR53.1 | BA141: =FOR&FOR!R13 -> FOR54 | BB141: =FOR&FOR!V13 -> FOR54.1 | BC141: =FOR&FOR!R16 -> FOR55 | BD141: =FOR&FOR!V16 -> FOR55.1 | BE141: =FOR&FOR!R19 -> FOR56 | BF141: =FOR&FOR!V19 -> FOR56.1 | BG141: =FOR&FOR!R22 -> FOR57 | BH141: =FOR&FOR!V22 -> FOR57.1 | BI141: =FOR&FOR!R25 -> FOR58 | BJ141: =FOR&FOR!V25 -> FOR58.1 | BK141: =FOR&FOR!R28 -> FOR59 | BL141: =FOR&FOR!V28 -> FOR59.1 | BM141: =FOR&FOR!R31 -> FOR60 | BN141: =FOR&FOR!V31 -> FOR60.1 | BO141: =FOR&FOR!R34 -> FOR61 | BP141: =FOR&FOR!V34 -> FOR61.1 | BQ141: =FOR&FOR!R37 -> FOR62 | BR141: =FOR&FOR!V37 -> FOR62.1 | BS141: =FOR&FOR!R40 -> FOR63 | BT141: =FOR&FOR!V40 -> FOR63.1 | BU141: =FOR&FOR!R43 -> FOR64 | BV141: =FOR&FOR!V43 -> FOR64.1 | BW141: Swiss
A142: FOR | B142: D11 | C142: D19 | D142: H19 | E142: H22 | F142: D25 | G142: H25 | H142: H28 | I142: D31 | J142: H31 | K142: D34 | L142: H34 | M142: H38 | N142: D41 | O142: H41 | P142: H44 | Q142: D47 | R142: H47 | S142: H50 | T142: D53 | U142: H53 | V142: H56 | W142: D59 | X142: H59 | Y142: L6 | Z142: P6 | AA142: P9 | AB142: L11 | AC142: P12 | AD142: L16 | AE142: P16 | AF142: P19 | AG142: L22 | AH142: P22 | AI142: L28 | AJ142: P28 | AK142: L36 | AL142: L40 | AM142: L43 | AN142: P36 | AO142: P40 | AP142: L48 | AQ142: P48 | AR142: P51 | AS142: L54 | AT142: P54 | AU142: L59 | AV142: P59 | AW142: P62 | AX142: S8 | AY142: W8 | AZ142: W11 | BA142: S14 | BB142: W14 | BC142: S17 | BD142: W17 | BE142: S20 | BF142: W20 | BG142: S23 | BH142: W23 | BI142: S26 | BJ142: W26 | BK142: S29 | BL142: W29 | BM142: S32 | BN142: W32 | BO142: S35 | BP142: W35 | BQ142: S38 | BR142: W38 | BS142: S41 | BT142: W41 | BU142: S44 | BV142: W44 | BW142: Z20
A143: 75 | B143: c | C143: c | D143: c | E143: c | F143: c | G143: c | H143: c | I143: c | J143: c | K143: c | L143: c | M143: c | N143: c | O143: c | P143: c | Q143: c | R143: c | S143: c | T143: c | U143: c | V143: c | W143: c | X143: c | Y143: c | Z143: c | AA143: c | AB143: c | AC143: c | AD143: c | AE143: c | AF143: c | AG143: c | AH143: c | AI143: c | AJ143: c | AK143: c | AL143: c | AM143: c | AN143: c | AO143: c | AP143: c | AQ143: c | AR143: c | AS143: c | AT143: c | AU143: c | AV143: c | AW143: c | AX143: c | AY143: c | AZ143: c | BA143: c | BB143: c | BC143: c | BD143: c | BE143: c | BF143: c | BG143: c | BH143: c | BI143: c | BJ143: c | BK143: c | BL143: c | BM143: c | BN143: c | BO143: c | BP143: c | BQ143: c | BR143: c | BS143: c | BT143: c | BU143: c | BV143: c | BW143: FALSE
B144: ='C6'!B3 ->  | C144: ='C6'!B16 ->  | D144: ='C6'!B17 -> 14963 | E144: ='C6'!B18 ->  | F144: ='C6'!B49 ->  | G144: ='C6'!B50 ->  | H144: ='C6'!B51 ->  | I144: ='C6'!B58 ->  | J144: ='C6'!B59 ->  | K144: ='C6'!B66 ->  | L144: ='C6'!B67 ->  | M144: ='C6'!B68 ->  | N144: ='C6'!B75 ->  | O144: ='C6'!B76 ->  | P144: ='C6'!B77 ->  | Q144: ='C6'!B84 ->  | R144: ='C6'!B85 ->  | S144: ='C6'!B86 ->  | T144: ='C6'!B93 ->  | U144: ='C6'!B94 ->  | V144: ='C6'!B95 ->  | W144: ='C6'!B96 ->  | X144: ='C6'!B97 ->  | Y144: ='C6'!B113 ->  | Z144: ='C6'!B114 ->  | AA144: ='C6'!B115 ->  | AB144: ='C6'!B123 ->  | AC144: ='C6'!B124 ->  | AD144: ='C6'!B126 ->  | AE144: ='C6'!B127 ->  | AF144: ='C6'!B128 ->  | AG144: ='C6'!B129 ->  | AH144: ='C6'!B130 ->  | AI144: ='C6'!B153 ->  | AJ144: ='C6'!B154 ->  | AK144: ='C6'!B155 ->  | AL144: ='C6'!B156 ->  | AM144: ='C6'!B157 ->  | AN144: ='C6'!B158 ->  | AO144: ='C6'!B159 ->  | AP144: ='C6'!B167 ->  | AQ144: ='C6'!B168 ->  | AR144: ='C6'!B169 ->  | AS144: ='C6'!B170 ->  | AT144: ='C6'!B171 ->  | AU144: ='C6'!B178 ->  | AV144: ='C6'!B179 ->  | AW144: ='C6'!B180 ->  | AX144: ='C6'!B187 ->  | AY144: ='C6'!B188 ->  | AZ144: ='C6'!B189 ->  | BA144: ='C6'!B190 ->  | BB144: ='C6'!B191 ->  | BC144: ='C6'!B192 ->  | BD144: ='C6'!B193 ->  | BE144: ='C6'!B194 ->  | BF144: ='C6'!B195 ->  | BG144: ='C6'!B196 ->  | BH144: ='C6'!B197 ->  | BI144: ='C6'!B198 ->  | BJ144: ='C6'!B199 ->  | BK144: ='C6'!B200 ->  | BL144: ='C6'!B201 ->  | BM144: ='C6'!B202 ->  | BN144: ='C6'!B203 ->  | BO144: ='C6'!B204 ->  | BP144: ='C6'!B205 ->  | BQ144: ='C6'!B206 ->  | BR144: ='C6'!B207 ->  | BS144: ='C6'!B208 ->  | BT144: ='C6'!B209 ->  | BU144: ='C6'!B210 ->  | BV144: ='C6'!B211 -> 
A145: 169 | B145: item 1 country | C145: item 1 type | D145: item 1 rate | E145: item 1 inc | F145: item 1 tax | G145: item 1 dedn | H145: item 1 ftcr | I145: item 2 country | J145: item 2 type | K145: item 2 rate | L145: item 2 inc | M145: item 2 tax | N145: item 2 dedn | O145: item 2 ftcr | P145: item 3 country | Q145: item 3 type | R145: item 3 rate | S145: item 3 inc | T145: item 3 tax | U145: item 3 dedn | V145: item 3 ftcr | W145: item 4 country | X145: item 4 type | Y145: item 4 rate | Z145: item 4 inc | AA145: item 4 tax | AB145: item 4 dedn | AC145: item 4 ftcr | AD145: item 5 country | AE145: item 5 type | AF145: item 5 rate | AG145: item 5 inc | AH145: item 5 tax | AI145: item 5 dedn | AJ145: item 5 ftcr | AK145: item 6 country | AL145: item 6 type | AM145: item 6 rate | AN145: item 6 inc | AO145: item 6 tax | AP145: item 6 dedn | AQ145: item 6 ftcr | AR145: item 7 country | AS145: item 7 type | AT145: item 7 rate | AU145: item 7 inc | AV145: item 7 tax | AW145: item 7 dedn | AX145: item 7 ftcr | AY145: item 8 country | AZ145: item 8 type | BA145: item 8 rate | BB145: item 8 inc | BC145: item 8 tax | BD145: item 8 dedn | BE145: item 8 ftcr | BF145: item 9 country | BG145: item 9 type | BH145: item 9 rate | BI145: item 9 inc | BJ145: item 9 tax | BK145: item 9 dedn | BL145: item 9 ftcr | BM145: item 10 country | BN145: item 10 type | BO145: item 10 rate | BP145: item 10 inc | BQ145: item 10 tax | BR145: item 10 dedn | BS145: item 10 ftcr
A146: FTCR | B146: E10 | C146: R11 | D146: T11 | E146: G10 | F146: I10 | G146: M10 | H146: I12 | I146: E14 | J146: R12 | K146: T12 | L146: G14 | M146: I14 | N146: M14 | O146: I16 | P146: E18 | Q146: R13 | R146: T13 | S146: G18 | T146: I18 | U146: M18 | V146: I20 | W146: E22 | X146: R14 | Y146: T14 | Z146: G22 | AA146: I22 | AB146: M22 | AC146: I24 | AD146: E26 | AE146: R15 | AF146: T15 | AG146: G26 | AH146: I26 | AI146: M26 | AJ146: I28 | AK146: E30 | AL146: R16 | AM146: T16 | AN146: G30 | AO146: I30 | AP146: M30 | AQ146: I32 | AR146: E34 | AS146: R17 | AT146: T17 | AU146: G34 | AV146: I34 | AW146: M34 | AX146: I36 | AY146: E38 | AZ146: R18 | BA146: T18 | BB146: G38 | BC146: I38 | BD146: M38 | BE146: I40 | BF146: E42 | BG146: R19 | BH146: T19 | BI146: G42 | BJ146: I42 | BK146: M42 | BL146: I44 | BM146: E46 | BN146: R20 | BO146: T20 | BP146: G46 | BQ146: I46 | BR146: M46 | BS146: I48
A147: 71 | B147: c | C147: 1 | D147: 1 | E147: c | F147: c | G147: c | H147: c | I147: c | J147: 1 | K147: 1 | L147: c | M147: c | N147: c | O147: c | P147: c | Q147: 1 | R147: 1 | S147: c | T147: c | U147: c | V147: c | W147: c | X147: 1 | Y147: 1 | Z147: c | AA147: c | AB147: c | AC147: c | AD147: c | AE147: 1 | AF147: 1 | AG147: c | AH147: c | AI147: c | AJ147: c | AK147: c | AL147: 1 | AM147: 1 | AN147: c | AO147: c | AP147: c | AQ147: c | AR147: c | AS147: 1 | AT147: 1 | AU147: c | AV147: c | AW147: c | AX147: c | AY147: c | AZ147: 1 | BA147: 1 | BB147: c | BC147: c | BD147: c | BE147: c | BF147: c | BG147: 1 | BH147: 1 | BI147: c | BJ147: c | BK147: c | BL147: c | BM147: c | BN147: 1 | BO147: 1 | BP147: c | BQ147: c | BR147: c | BS147: c
B148: ='C6'!B220 ->  | C148: ='C6'!B218 -> 1 | D148: ='C6'!B219 -> 1 | E148: ='C6'!B221 -> 0 | F148: ='C6'!B222 -> 0 | I148: ='C6'!B225 ->  | J148: ='C6'!B223 -> 1 | K148: ='C6'!B224 -> 1 | L148: ='C6'!B226 -> 0 | M148: ='C6'!B227 -> 0 | P148: ='C6'!B230 ->  | Q148: ='C6'!B228 -> 1 | R148: ='C6'!B229 -> 1 | S148: ='C6'!B231 -> 0 | T148: ='C6'!B232 -> 0 | W148: ='C6'!B235 ->  | X148: ='C6'!B233 -> 1 | Y148: ='C6'!B234 -> 1 | Z148: ='C6'!B236 -> 0 | AA148: ='C6'!B237 -> 0 | AD148: ='C6'!B240 ->  | AE148: ='C6'!B238 -> 1 | AF148: ='C6'!B239 -> 1 | AG148: ='C6'!B241 -> 0 | AH148: ='C6'!B242 -> 0 | AK148: ='C6'!B245 ->  | AL148: ='C6'!B243 -> 1 | AM148: ='C6'!B244 -> 1 | AN148: ='C6'!B246 -> 0 | AO148: ='C6'!B247 -> 0 | AR148: ='C6'!B250 ->  | AS148: ='C6'!B248 -> 1 | AT148: ='C6'!B249 -> 1 | AU148: ='C6'!B251 -> 0 | AV148: ='C6'!B252 -> 0 | AY148: ='C6'!B255 ->  | AZ148: ='C6'!B253 -> 1 | BA148: ='C6'!B254 -> 1 | BB148: ='C6'!B256 -> 0 | BC148: ='C6'!B257 -> 0 | BF148: ='C6'!B260 ->  | BG148: ='C6'!B258 -> 1 | BH148: ='C6'!B259 -> 1 | BI148: ='C6'!B261 -> 0 | BJ148: ='C6'!B262 -> 0 | BM148: ='C6'!B265 ->  | BN148: ='C6'!B263 -> 1 | BO148: ='C6'!B264 -> 1 | BP148: ='C6'!B266 -> 0 | BQ148: ='C6'!B267 -> 0
A149: 1 | B149: =TRU&TRU!C6 -> TRU1 | C149: =TRU&TRU!G6 -> TRU2 | D149: =TRU&TRU!C11 -> TRU3 | E149: =TRU&TRU!C15 -> TRU4 | F149: =TRU&TRU!G11 -> TRU5 | G149: =TRU&TRU!C20 -> TRU7 | H149: =TRU&TRU!C24 -> TRU8 | I149: =TRU&TRU!C28 -> TRU9 | J149: =TRU&TRU!C32 -> TRU10 | K149: =TRU&TRU!G20 -> TRU11 | L149: =TRU&TRU!G24 -> TRU12 | M149: =TRU&TRU!G28 -> TRU13 | N149: =TRU&TRU!G32 -> TRU14 | O149: =TRU&TRU!G36 -> TRU15 | P149: =TRU&TRU!K6 -> TRU16 | Q149: =TRU&TRU!K11 -> TRU17 | R149: =TRU&TRU!K15 -> TRU18 | S149: =TRU&TRU!K20 -> TRU18.1 | T149: =TRU&TRU!O6 -> TRU19 | U149: =TRU&TRU!K24 -> TRU22 | V149: =TRU&TRU!K28 -> TRU22.1 | W149: =TRU&TRU!O24 -> TRU23 | X149: =TRU&TRU!K35 -> TRU24 | Y149: TRU25 | Z149: TRU25.1
A150: TRU | B150: D7 | C150: H7 | D150: D12 | E150: D16 | F150: H12 | G150: D21 | H150: D25 | I150: D29 | J150: D33 | K150: H21 | L150: H25 | M150: H29 | N150: H33 | O150: H37 | P150: L7 | Q150: L12 | R150: L16 | S150: L21 | T150: P7 | U150: L25 | V150: L29 | W150: P25 | X150: L36 | Y150: L41 | Z150: P44
A151: 26 | B151: c | C151: c | D151: c | E151: c | F151: c | G151: c | H151: c | I151: c | J151: c | K151: c | L151: c | M151: c | N151: c | O151: c | P151: c | Q151: c | R151: c | S151: c | T151: c | U151: c | V151: c | W151: c | X151: c | Y151: c | Z151: c
B152: ='C7'!B2 ->  | C152: ='C7'!B3 ->  | D152: ='C7'!B4 ->  | E152: ='C7'!B5 ->  | F152: ='C7'!B6 ->  | G152: ='C7'!B8 ->  | H152: ='C7'!B9 ->  | I152: ='C7'!B10 ->  | J152: ='C7'!B11 ->  | K152: ='C7'!B12 ->  | L152: ='C7'!B13 ->  | M152: ='C7'!B14 ->  | N152: ='C7'!B15 ->  | O152: ='C7'!B16 ->  | P152: ='C7'!B17 ->  | Q152: ='C7'!B18 ->  | R152: ='C7'!B19 ->  | S152: ='C7'!B20 ->  | T152: ='C7'!B21 ->  | U152: ='C7'!B22 ->  | V152: ='C7'!B23 ->  | W152: ='C7'!B24 ->  | X152: ='C7'!B25 ->  | Y152: ='C7'!B26 ->  | Z152: ='C7'!B27 -> 
A153: 169 | B153: =CGT&CGT!C4 -> CGT6 | C153: =CGT&CGT!C7 -> CGT6.1 | D153: =CGT&CGT!C10 -> CGT7 | E153: =CGT&CGT!G4 -> CGT10 | F153: =CGT&CGT!G10 -> CGT12 | G153: =CGT&CGT!C13 -> CGT13B | H153: =CGT&CGT!G13 -> CGT13C | I153: =CGT&CGT!C18 -> CGT13.4 | J153: =CGT&CGT!C21 -> CGT13.5 | K153: =CGT&CGT!G18 -> CGT13.8 | L153: =CGT&CGT!C26 -> CGT17 | M153: =CGT&CGT!C29&".0" -> CGT17.0 | N153: =CGT&CGT!G26 -> CGT19 | O153: =CGT&CGT!G32 -> CGT22 | P153: =CGT&CGT!C36 -> CGT26 | Q153: =CGT&CGT!C39 -> CGT26.1 | R153: =CGT&CGT!G36 -> CGT27 | S153: =CGT&CGT!G39 -> CGT30 | T153: =CGT&CGT!C43 -> CGT34 | U153: =CGT&CGT!G43 -> CGT34.1 | V153: =CGT&CGT!C46 -> CGT35 | W153: =CGT&CGT!G46 -> CGT38 | X153: =CGT&CGT!C49 -> CGT41 | Y153: =CGT&CGT!C52 -> CGT42 | Z153: =CGT&CGT!G52 -> CGT43 | AA153: =CGT&CGT!L4 -> CGT45 | AB153: =CGT&CGT!P4 -> CGT46 | AC153: =CGT&CGT!P8 -> CGT48 | AD153: =CGT&CGT!P11 -> CGT49 | AE153: =CGT&CGT!P15 -> CGT50 | AF153: =CGT&CGT!L18 -> CGT51 | AG153: =CGT&CGT!P18 -> CGT52 | AH153: =CGT&CGT!L26 -> CGT52.1 | AI153: =CGT&CGT!L34 -> CGT52.2 | AJ153: =CGT&CGT!P26 -> CGT52.3 | AK153: =CGT&CGT!P30 -> CGT52.4 | AL153: =CGT&CGT!P34 -> CGT52.5
A154: CGT | B154: D5 | C154: D8 | D154: D11 | E154: H5 | F154: H11 | G154: D14 | H154: H14 | I154: D19 | J154: D22 | K154: H19 | L154: D27 | M154: D30 | N154: H27 | O154: H33 | P154: D37 | Q154: D40 | R154: H37 | S154: H40 | T154: D44 | U154: H44 | V154: D47 | W154: H47 | X154: D50 | Y154: D53 | Z154: H53 | AA154: M5 | AB154: Q5 | AC154: Q9 | AD154: Q12 | AE154: Q16 | AF154: M19 | AG154: Q19 | AH154: M27 | AI154: M35 | AJ154: W24 | AK154: Q31 | AL154: Q35
A155: 38 | B155: c | C155: c | D155: c | E155: c | F155: c | G155: c | H155: c | I155: c | J155: c | K155: c | L155: c | M155: c | N155: c | O155: c | P155: c | Q155: c | R155: c | S155: c | T155: c | U155: c | V155: c | W155: c | X155: c | Y155: c | Z155: c | AA155: c | AB155: c | AC155: c | AD155: c | AE155: c | AF155: c | AG155: c | AH155: c | AI155: c | AJ155: FALSE | AK155: c | AL155: c
B156: ='C8C9C10'!B8 -> 29077 | C156: ='C8C9C10'!B9 ->  | D156: ='C8C9C10'!B10 ->  | E156: ='C8C9C10'!B13 ->  | F156: ='C8C9C10'!B15 ->  | G156: ='C8C9C10'!B18 ->  | H156: ='C8C9C10'!B19 ->  | I156: ='C8C9C10'!B23 ->  | J156: ='C8C9C10'!B24 ->  | K156: ='C8C9C10'!B27 ->  | L156: ='C8C9C10'!B31 ->  | M156: ='C8C9C10'!B32 ->  | N156: ='C8C9C10'!B38 ->  | O156: ='C8C9C10'!B41 ->  | P156: ='C8C9C10'!B45 -> 7409 | Q156: ='C8C9C10'!B46 ->  | R156: ='C8C9C10'!B47 ->  | S156: ='C8C9C10'!B50 ->  | T156: ='C8C9C10'!B54 ->  | U156: ='C8C9C10'!B55 ->  | V156: ='C8C9C10'!B56 ->  | W156: ='C8C9C10'!B59 ->  | X156: ='C8C9C10'!B62 ->  | Y156: ='C8C9C10'!B63 ->  | Z156: ='C8C9C10'!B64 ->  | AA156: ='C8C9C10'!B66 ->  | AB156: ='C8C9C10'!B67 ->  | AC156: ='C8C9C10'!B69 ->  | AD156: ='C8C9C10'!B70 ->  | AE156: ='C8C9C10'!B71 ->  | AF156: ='C8C9C10'!B73 ->  | AG156: ='C8C9C10'!B74 ->  | AH156: ='C8C9C10'!B75 ->  | AI156: ='C8C9C10'!B76 ->  | AJ156: ='C8C9C10'!B77="Y" -> FALSE | AK156: ='C8C9C10'!B78 ->  | AL156: ='C8C9C10'!B79 -> 
A157: 1 | B157: =NRD&NRD!C5 -> NRD1 | C157: =NRD&NRD!C9 -> NRD15 | D157: =NRD&NRD!C12 -> NRD16 | E157: =NRD&NRD!D16 -> NRD20 | F157: =NRD&NRD!D19 -> NRD21 | G157: =NRD&NRD!D22 -> NRD22 | H157: NRCAL | I157: =NRD&NRD!H5 -> NRD28 | J157: =NRD&NRD!H8 -> NRD29 | K157: =NRD&NRD!H12 -> NRD40 | L157: =NRD&NRD!H15 -> NRD49 | M157: =NRD&NRD!H19 -> NRD51 | N157: =NRD&NRD!K19 -> NRD52
A158: NRD | B158: Q4 | C158: Q8 | D158: Q9 | E158: E17 | F158: E20 | G158: E23 | H158: Q6 | I158: Q10 | J158: Q11 | K158: Q18 | L158: I16 | M158: I20 | N158: L20
A159: 14 | B159: FALSE | C159: FALSE | D159: FALSE | E159: c | F159: c | G159: c | H159: FALSE | I159: FALSE | J159: FALSE | K159: FALSE | L159: c | M159: c | N159: c
B160: ='C8C9C10'!B89="Y" -> FALSE | C160: ='C8C9C10'!B105="Y" -> FALSE | D160: ='C8C9C10'!B106="Y" -> FALSE | E160: ='C8C9C10'!B110 ->  | F160: ='C8C9C10'!B111 ->  | G160: ='C8C9C10'!B112 ->  | H160: FALSE | I160: ='C8C9C10'!B121="Y" -> FALSE | J160: ='C8C9C10'!B122="Y" -> FALSE | K160: ='C8C9C10'!B133="Y" -> FALSE | L160: ='C8C9C10'!B140 ->  | M160: ='C8C9C10'!B142 ->  | N160: ='C8C9C10'!B143 -> 
A161: 1 | B161: =CAL&CAL!C6 -> CAL7 | C161: =CAL&CAL!C9 -> CAL8 | D161: =CAL&CAL!G9 -> CAL9 | E161: =CAL&CAL!C14 -> CAL10 | F161: =CAL&CAL!G14 -> CAL11 | G161: =CAL&CAL!C19 -> CAL12 | H161: =CAL&CAL!G19 -> CAL13 | I161: =CAL&CAL!C22 -> CAL14 | J161: =CAL&CAL!G22 -> CAL15 | K161: =CAL&CAL!G25 -> CAL16
A162: CAL | B162: D7 | C162: D10 | D162: H10 | E162: K15 | F162: H15 | G162: D20 | H162: H20 | I162: D23 | J162: H23 | K162: H26
A163: 11 | B163: c | C163: c | D163: c | E163: FALSE | F163: c | G163: c | H163: c | I163: c | J163: c | K163: c
B164: ='C8C9C10'!B156 ->  | C164: ='C8C9C10'!B157 ->  | D164: ='C8C9C10'!B158 ->  | E164: ='C8C9C10'!B159 ->  | F164: ='C8C9C10'!B160 ->  | G164: ='C8C9C10'!B161 ->  | H164: ='C8C9C10'!B162 ->  | I164: ='C8C9C10'!B163 ->  | J164: ='C8C9C10'!B164 ->  | K164: ='C8C9C10'!B165 -> 
I165: SA151 | J165: In-Year | K165: EMP | L165: MOR | M165: SE | N165: LUN | O165: PS | P165: NI | Q165: PRO | R165: FOR | S165: FTCR | T165: TRU | U165: CGT | V165: NRD | W165: CAL | X165: AOI | Y165: ASE | Z165: AOR | AA165: MCA | AB165: AIL
A166: Add pages | B166: C4 | C166: C5 | D166: C6 | E166: C7 | F166: G5 | G166: I5 | H166: I36 | I166: M24 | J166: M35 | K166: N7 | L166: N8 | M166: N9 | N166: N10 | O166: N11 | P166: N12 | Q166: P7 | R166: P8 | S166: P8 | T166: P9 | U166: P10 | V166: P11 | W166: P12 | X166: R7 | Y166: R8 | Z166: R9 | AA166: R10 | AB166: R11
A167: 28 | B167: c | C167: c | D167: c | E167: c | F167: c | G167: c | H167: c | I167: FALSE | J167: FALSE | K167: FALSE | L167: FALSE | M167: FALSE | N167: FALSE | O167: FALSE | P167: FALSE | Q167: FALSE | R167: FALSE | S167: FALSE | T167: FALSE | U167: FALSE | V167: FALSE | W167: FALSE | X167: FALSE | Y167: FALSE | Z167: FALSE | AA167: FALSE | AB167: FALSE
K168: =OR(EMP_A_IND>1, EMP_B_IND>1) -> TRUE | L168: =MOR_IND>1 -> FALSE | M168: =OR(SE_A_IND>1,SE_B_IND>1) -> TRUE | N168: =LUN_IND>1 -> FALSE | O168: =OR(PS_A_IND>1,PS_B_IND>1) -> TRUE | P168: =OR(NI2_IND>1,NI1_IND>1,NI2Vol_IND>1,NI4Ex_IND>1) -> TRUE | Q168: =PRO_IND>1 -> FALSE | R168: =FOR_IND>1 -> TRUE | S168: =TCR_IND>1 -> TRUE | T168: =TRU_IND>1 -> FALSE | U168: =CGT_IND>1 -> TRUE | V168: =NRD_IND>1 -> FALSE | W168: =CAL_IND>1 -> FALSE | X168: =OR(AOI_A_IND>1,AOI_B_IND> 1,AOI_C_IND> 1) -> FALSE | Y168: =OR(ASE_A_IND>1,ASE_B_IND> 1,ASE_C_IND> 1) -> FALSE | Z168: =AOR_IND>1 -> FALSE | AA168: =MCA_IND>1 -> FALSE | AB168: =AIL_IND>1 -> FALSE
B169: DoB | C169: View | D169: TC ref | E169: FIN1
A170: Selector | B170: A24 | C170: A34 | D170: F4 | E170: H4
A171: 5 | B171: 7 | C171: FALSE | D171: c | E171: c
B173: Nic X | C173: NIC2 Vol
A174: More Select | B174: A21 | C174: A23
A175: 3 | B175: FALSE | C175: FALSE

Sheet C0 (hidden)
E1: 1 | F1: 2 | G1: 3 | H1: 4 | I1: 5 | J1: 6 | K1: 7 | L1: 8 | M1: 9 | N1: 10 | O1: 11 | P1: 12 | Q1: 13 | R1: 14 | S1: 15 | T1: 16 | U1: 17 | V1: 18 | W1: 19 | X1: 20 | Y1: 21 | Z1: 22 | AA1: 23 | AB1: 24 | AC1: 25 | AD1: 26 | AE1: 27 | AF1: 28 | AG1: 29 | AH1: 30 | AI1: 31 | AJ1: 32 | AK1: 33 | AL1: 34 | AM1: 35 | AN1: 36 | AO1: 37 | AP1: 38 | AQ1: 39 | AR1: 40 | AS1: 41 | AT1: 42 | AU1: 43 | AV1: 44 | AW1: 45 | AX1: 46 | AY1: 47 | AZ1: 48 | BA1: 49 | BB1: 50 | BC1: 51 | BD1: 52 | BE1: 53 | BF1: 54 | BG1: 55 | BH1: 56 | BI1: 57 | BJ1: 58 | BK1: 59 | BL1: 60 | BM1: 61 | BN1: 62 | BO1: 63 | BP1: 64 | BQ1: 65 | BR1: 66 | BS1: 67 | BT1: 68 | BU1: 69 | BV1: 70 | BW1: 71 | BX1: 72 | BY1: 73 | BZ1: 74 | CA1: 75 | CB1: 76 | CC1: 77 | CD1: 78 | CE1: 79 | CF1: 80 | CG1: 81 | CH1: 82 | CI1: 83 | CJ1: 84 | CK1: 85 | CL1: 86 | CM1: 87 | CN1: 88 | CO1: 89 | CP1: 90 | CQ1: 91 | CR1: 92 | CS1: 93 | CT1: 94 | CU1: 95 | CV1: 96 | CW1: 97 | CX1: 98 | CY1: 99 | CZ1: 100 | DA1: 101 | DB1: 102 | DC1: 103 | DD1: 104 | DE1: 105 | DF1: 106 | DG1: 107 | DH1: 108 | DI1: 109 | DJ1: 110 | DK1: 111 | DL1: 112 | DM1: 113 | DN1: 114 | DO1: 115 | DP1: 116 | DQ1: 117 | DR1: 118 | DS1: 119 | DT1: 120 | DU1: 121 | DV1: 122 | DW1: 123 | DX1: 124 | DY1: 125 | DZ1: 126 | EA1: 127 | EB1: 128 | EC1: 129 | ED1: 130 | EE1: 131 | EF1: 132 | EG1: 133 | EH1: 134 | EI1: 135 | EJ1: 136 | EK1: 137 | EL1: 138 | EM1: 139 | EN1: 140 | EO1: 141 | EP1: 142 | EQ1: 143 | ER1: 144 | ES1: 145 | ET1: 146 | EU1: 147 | EV1: 148 | EW1: 149 | EX1: 150 | EY1: 151 | EZ1: 152 | FA1: 153 | FB1: 154 | FC1: 155 | FD1: 156 | FE1: 157 | FF1: 158 | FG1: 159 | FH1: 160 | FI1: 161 | FJ1: 162 | FK1: 163 | FL1: 164 | FM1: 165 | FN1: 166 | FO1: 167 | FP1: 168 | FQ1: 169 | FR1: 170 | FS1: 171 | FT1: 172 | FU1: 173 | FV1: 174 | FW1: 175 | FX1: 176 | FY1: 177 | FZ1: 178 | GA1: 179 | GB1: 180 | GC1: 181 | GD1: 182 | GE1: 183 | GF1: 184 | GG1: 185 | GH1: 186 | GI1: 187 | GJ1: 188 | GK1: 189 | GL1: 190 | GM1: 191 | GN1: 192 | GO1: 193 | GP1: 194 | GQ1: 195 | GR1: 196 | GS1: 197 | GT1: 198 | GU1: 199 | GV1: 200 | GW1: 201 | GX1: 202 | GY1: 203 | GZ1: 204 | HA1: 205 | HB1: 206 | HC1: 207 | HD1: 208 | HE1: 209 | HF1: 210 | HG1: 211 | HH1: 212 | HI1: 213 | HJ1: 214 | HK1: 215 | HL1: 216 | HM1: 217 | HN1: 218 | HO1: 219 | HP1: 220 | HQ1: 221 | HR1: 222 | HS1: 223 | HT1: 224 | HU1: 225 | HV1: 226 | HW1: 227 | HX1: 228 | HY1: 229 | HZ1: 230 | IA1: 231 | IB1: 232 | IC1: 233 | ID1: 234 | IE1: 235 | IF1: 236 | IG1: 237 | IH1: 238 | II1: 239 | IJ1: 240 | IK1: 241 | IL1: 242 | IM1: 243 | IN1: 244 | IO1: 245 | IP1: 246 | IQ1: 247 | IR1: 248 | IS1: 249 | IT1: 250 | IU1: 251 | IV1: 252 | IW1: 253 | IX1: 254 | IY1: 255 | IZ1: 256 | JA1: 257 | JB1: 258 | JC1: 259 | JD1: 260 | JE1: 261 | JF1: 262 | JG1: 263 | JH1: 264 | JI1: 265 | JJ1: 266 | JK1: 267 | JL1: 268 | JM1: 269 | JN1: 270 | JO1: 271 | JP1: 272 | JQ1: 273 | JS1: Validation | JT1: Type
C2: Your personal details | JS2: Validation
A3: row | B3: ="selected "&YPD_IND-1 -> selected 168 | C3: YPD | E3: 1 | F3: 2 | G3: 3 | H3: 4 | I3: 5 | J3: 6 | K3: 7 | L3: 8 | M3: 9 | N3: 10 | O3: 11 | P3: 12 | Q3: 13 | R3: 14 | S3: 15 | T3: 16 | U3: 17 | V3: 18 | W3: 19 | X3: 20 | Y3: 21 | Z3: 22 | AA3: 23 | AB3: 24 | AC3: 25 | AD3: 26 | AE3: 27 | AF3: 28 | AG3: 29 | AH3: 30 | AI3: 31 | AJ3: 32 | AK3: 33 | AL3: 34 | AM3: 35 | AN3: 36 | AO3: 37 | AP3: 38 | AQ3: 39 | AR3: 40 | AS3: 41 | AT3: 42 | AU3: 43 | AV3: 44 | AW3: 45 | AX3: 46 | AY3: 47 | AZ3: 48 | BA3: 49 | BB3: 50 | BC3: 51 | BD3: 52 | BE3: 53 | BF3: 54 | BG3: 55 | BH3: 56 | BI3: 57 | BJ3: 58 | BK3: 59 | BL3: 60 | BM3: 61 | BN3: 62 | BO3: 63 | BP3: 64 | BQ3: 65 | BR3: 66 | BS3: 67 | BT3: 68 | BU3: 69 | BV3: 70 | BW3: 71 | BX3: 72 | BY3: 73 | BZ3: 74 | CA3: 75 | CB3: 76 | CC3: 77 | CD3: 78 | CE3: 79 | CF3: 80 | CG3: 81 | CH3: 82 | CI3: 83 | CJ3: 84 | CK3: 85 | CL3: 86 | CM3: 87 | CN3: 88 | CO3: 89 | CP3: 90 | CQ3: 91 | CR3: 92 | CS3: 93 | CT3: 94 | CU3: 95 | CV3: 96 | CW3: 97 | CX3: 98 | CY3: 99 | CZ3: 100 | DA3: 101 | DB3: 102 | DC3: 103 | DD3: 104 | DE3: 105 | DF3: 106 | DG3: 107 | DH3: 108 | DI3: 109 | DJ3: 110 | DK3: 111 | DL3: 112 | DM3: 113 | DN3: 114 | DO3: 115 | DP3: 116 | DQ3: 117 | DR3: 118 | DS3: 119 | DT3: 120 | DU3: 121 | DV3: 122 | DW3: 123 | DX3: 124 | DY3: 125 | DZ3: 126 | EA3: 127 | EB3: 128 | EC3: 129 | ED3: 130 | EE3: 131 | EF3: 132 | EG3: 133 | EH3: 134 | EI3: 135 | EJ3: 136 | EK3: 137 | EL3: 138 | EM3: 139 | EN3: 140 | EO3: 141 | EP3: 142 | EQ3: 143 | ER3: 144 | ES3: 145 | ET3: 146 | EU3: 147 | EV3: 148 | EW3: 149 | EX3: 150 | EY3: 151 | EZ3: 152 | FA3: 153 | FB3: 154 | FC3: 155 | FD3: 156 | FE3: 157 | FF3: 158 | FG3: 159 | FH3: 160 | FI3: 161 | FJ3: 162 | FK3: 163 | FL3: 164 | FM3: 165 | FN3: 166 | FO3: 167 | FP3: 168 | FQ3: 169 | FR3: 170 | FS3: 171 | FT3: 172 | FU3: 173 | FV3: 174 | FW3: 175 | FX3: 176 | FY3: 177 | FZ3: 178 | GA3: 179 | GB3: 180 | GC3: 181 | GD3: 182 | GE3: 183 | GF3: 184 | GG3: 185 | GH3: 186 | GI3: 187 | GJ3: 188 | GK3: 189 | GL3: 190 | GM3: 191 | GN3: 192 | GO3: 193 | GP3: 194 | GQ3: 195 | GR3: 196 | GS3: 197 | GT3: 198 | GU3: 199 | GV3: 200 | GW3: 201 | GX3: 202 | GY3: 203 | GZ3: 204 | HA3: 205 | HB3: 206 | HC3: 207 | HD3: 208 | HE3: 209 | HF3: 210 | HG3: 211 | HH3: 212 | HI3: 213 | HJ3: 214 | HK3: 215 | HL3: 216 | HM3: 217 | HN3: 218 | HO3: 219 | HP3: 220 | HQ3: 221 | HR3: 222 | HS3: 223 | HT3: 224 | HU3: 225 | HV3: 226 | HW3: 227 | HX3: 228 | HY3: 229 | HZ3: 230 | IA3: 231 | IB3: 232 | IC3: 233 | ID3: 234 | IE3: 235 | IF3: 236 | IG3: 237 | IH3: 238 | II3: 239 | IJ3: 240 | IK3: 241 | IL3: 242 | IM3: 243 | IN3: 244 | IO3: 245 | IP3: 246 | IQ3: 247 | IR3: 248 | IS3: 249 | IT3: 250 | IU3: 251 | IV3: 252 | IW3: 253 | IX3: 254 | IY3: 255 | IZ3: 256 | JA3: 257 | JB3: 258 | JC3: 259 | JD3: 260 | JE3: 261 | JF3: 262 | JG3: 263 | JH3: 264 | JI3: 265 | JJ3: 266 | JK3: 267 | JL3: 268 | JM3: 269 | JN3: 270 | JO3: 271 | JP3: 272 | JQ3: 273 | JT3: Type
